Workbook

Sheet Revision History (hidden)
B2: Revision History
C3: NStf-Fil | D3: =Control_Panel!OrgCodeSelection -> RWK
B4: Version | C4: Date | D4: Change | H4: Notes
B5: 0.1 | C5: 2017-08-30 | D5: Rebranding | H5: Finish question status sheet
B6: 0.2 | C6: 2018-01-15 | D6: Updates after meeting with AW | H6: Insert appropriate email hyperlink into cover
B7: 0.3 | C7: 2018-01-25 | D7: Created backsheet, works with automation tool | H7: Row 12-41 in control panel contains validations specific to questions
B8: 0.4 | C8: 2018-01-29 | D8: updated formulas in backsheet to accommodate for "0" defaults in site code | H8: Unsure if site summary needs to be visible to user or not i.e coloured blue or white
B9: 4 | C9: 2018-01-31 | D9: final lockdown and version number updates
B10: 5 | D10: repaired broken image
B11: 6 | C11: 2018-02-28 | D11: validation repairs
B12: 7 | C12: 2018-03-28 | D12: made locked cells selectable for ease of use
B13: 8 | C13: 2018-04-30 | D13: ref data and validation updates
B14: 9 | C14: 2018-05-10 | D14: Fix backsheet issues with hyphens & mixed data type for wards | H14: To DO
B15: 10 | C15: 2018-05-30 | D15: removed a validation at AW request
B16: 11 | C16: 2018-06-26 | D16: added a validation at AW request | H16: get correct email address for Cover sheet
B17: 12 | C17: 2018-07-25 | D17: AW Updates to ref data | H17: Check if Site summary is required - and if it need to be visible. - if so, is this better to be included in the frontsheet?
B18: 13 | C18: 2018-09-26 | D18: Updated Site codes as per Change Request Form | H18: Move validations to column AA
B19: 14 | C19: 2018-11-01 | D19: Added New Fields to collection | H19: set validations to appear in control panel
B20: 15 | C20: 2018-11-23 | H20: check ref data is up to date - Org code, site code, site speciality
B21: 16 | C21: 2018-11-27 | D21: Added org identifier in cell D3 revision history tab contains a look up to the org code selected on the control panel. | H21: check with Alun as to which validations he requires.
B22: 17 | C22: 2018-11-28 | D22: Removed RR1 and Added new sites to RRK | H22: New Backsheet
B23: 18 | C23: 2018-12-21 | D23: Mo fixed dropdown in column G | H23: Remove redudant VBA
B24: 19 | C24: 2019-01-31 | D24: Changed R1L - AHP from No to Yes
B25: 20 | C25: 2019-02-28 | D25: Updated AX3 and used new password
B26: 20.1 | C26: 2019-03-22 | D26: Protected workbook with same password as work sheets. ZSD
B27: 20.2 | C27: 2019-04-30 | D27: Updated R0B
B28: 21 | C28: 2019-05-31 | D28: Updated RX3
B29: 22 | C29: 2019-06-28 | D29: Updated RNU
B30: 23 | C30: 2019-08-30 | D30: Added new columns for Day/Night - Also Updated Backsheet Added - AB
B31: 24 | C31: 2019-09-30 | D31: Updated New Wards and added RYX98
B32: 25 | C32: 2019-10-16 | D32: VBA password update
C33: 2019-10-21 | D33: Updated Prov ref data DM-4825
C34: 2019-10-25 | D34: Updated reference data hidden in Frontsheet - AB
C35: 2019-10-29 | D35: Updated ward list, as provided by Alun Williams
B36: 26 | C36: 2019-11-01 | D36: Added missing formula to top row of front sheet
C37: 2019-11-12 | D37: Reference data updates
B38: 27 | C38: 2019-11-28 | D38: DM-5184 - Additional ref data updates based on email from CO. - AB
B39: 28 | C39: 2019-12-05 | D39: Added formula back in AD14 and AD216 and protected the grey cells (DM-5265) - CR
B40: 28.1 | C40: 2019-12-16 | D40: Updated ref data - LFN,CR,AB
B41: 29 | C41: 2019-12-20 | D41: Added new ward names (DM-5414) - CR

Sheet Cover

Sheet Control_Panel
L1: =IF(C17="","",C17) ->  | M1: =IF(C29="","",C29) ->  | P1: Backsheet Check
C2: Safe Staffing (Rota Fill Rates and CHPPD) Collection | L2: =IF(C19="","",C19) ->  | M2: =IF(C30="","",C30) ->  | P2: =IF(SUM(IF(ISERROR(INDIRECT("Backsheet!" &P3)),1,0))=0,0,1) -> 0
P3: A2:ZZ500
C4: Please check that the data on this upload template is accurate before being submitted to SDCS. You are reminded that these figures will be published, and it is the responsibility of your organisation that these submitted figures are accurate and in line with national guidance. We will undertake basic validation checks on these figures post submission, and may come back to you with any queries we may have.
E6: RWK | F6: =VLOOKUP(OrgCodeSelection,Orgs,2,FALSE) -> East London Foundation Trust
L7: =IF(C24="","",C24) -> 
C8: Validations
C9: Please correct all issues listed within the tables below. If the issues are not corrected then the pro forma will fail the validation stage in SDCS.
L12: =IF(C32="","",C32) -> 
C13: Control Panel
C14: =L14 ->  | L14: =IF(OrgCodeSelection="","No 'Organisation Code' has been selected. Please choose an organisation","") -> 
C16: Trust - Frontsheet
C17: =IF('Trust - Frontsheet'!AX2="","",'Trust - Frontsheet'!AX2) -> 
C18: =IF('Trust - Frontsheet'!AZ5="","",'Trust - Frontsheet'!AZ5) -> Check ward spelling and site-ward combination against ward list. If a new ward or site-ward combination, leave it in, and the ward list will be updated in time for the next collection.
C19: =IF('Trust - Frontsheet'!AX4="","",'Trust - Frontsheet'!AX4) -> 
C20: =IF('Trust - Frontsheet'!AX5="","",'Trust - Frontsheet'!AX5) -> 
C21: =IF('Trust - Frontsheet'!AX6="","",'Trust - Frontsheet'!AX6) -> 
C22: =IF('Trust - Frontsheet'!AX7="","",'Trust - Frontsheet'!AX7) -> 
C23: =IF('Trust - Frontsheet'!AX8="","",'Trust - Frontsheet'!AX8) -> 
C24: =IF('Trust - Frontsheet'!AX9="","",'Trust - Frontsheet'!AX9) -> 
C25: =IF('Trust - Frontsheet'!AX10="","",'Trust - Frontsheet'!AX10) -> 
C26: =IF('Trust - Frontsheet'!AX14="","",'Trust - Frontsheet'!AX14) -> 
C27: =IF('Trust - Frontsheet'!AX15="","",'Trust - Frontsheet'!AX15) -> 
C28: =IF(P2=1,"This template is broken. Please download a new copy and start again","") -> 
C29: =IF('Trust - Frontsheet'!AZ6="","",'Trust - Frontsheet'!AZ6) -> 
C30: =IF('Trust - Frontsheet'!AZ7="","",'Trust - Frontsheet'!AZ7) -> 
C31: =IF('Trust - Frontsheet'!AZ8="","",'Trust - Frontsheet'!AZ8) -> 
C32: =IF('Trust - Frontsheet'!AX13="","",'Trust - Frontsheet'!AX13) -> 
C33: =IF('Trust - Frontsheet'!AX16="","",'Trust - Frontsheet'!AX16) -> 

Sheet Trust - Frontsheet
C1: =IF(E5="","",IF(VLOOKUP($E$5,Index!$N:$O,2,0)="Y","Y","N")) -> Y | AY1: ERRORS | BA1: WARNINGS | BR1: =CONCATENATE(LEFT(BS1, 3),BT1) -> AXGSAVERNAKE COMMUNITY HOSPITAL | BS1: AXG02 | BT1: SAVERNAKE COMMUNITY HOSPITAL | BU1: AXG02 | BV1: SAVERNAKE COMMUNITY HOSPITAL | BW1: =LEFT(BU1,3) -> AXG
D2: Safe Staffing (Rota Fill Rates and CHPPD) Collection | AX2: =IF(BG214=0,"","Select Site Name in Column E") ->  | AY2: SELECT SITE CODE | BR2: AXGWARMINSTER COMMUNITY HOSPITAL | BS2: AXG03 | BT2: WARMINSTER COMMUNITY HOSPITAL | BU2: AXG03 | BV2: WARMINSTER COMMUNITY HOSPITAL | BW2: AXG
AY3: Select Ward Name | BR3: AXGWILTSHIRE HEALTH & CARE (CHIPPENHAM COMMUNITY HOSPITAL) | BS3: AXG01 | BT3: WILTSHIRE HEALTH & CARE (CHIPPENHAM COMMUNITY HOSPITAL) | BU3: AXG01 | BV3: WILTSHIRE HEALTH & CARE (CHIPPENHAM COMMUNITY HOSPITAL) | BW3: AXG
AX4: =IF(BH214=0,"","Select Ward Name in Column F") ->  | AY4: Select speciality | BR4: NHMALDEBURGH COMMUNITY HOSPITAL | BS4: NHM02 | BT4: ALDEBURGH COMMUNITY HOSPITAL | BU4: NHM02 | BV4: ALDEBURGH COMMUNITY HOSPITAL | BW4: NHM
D5: Organisation: | E5: =IF(ISBLANK(Control_Panel!OrgCodeSelection),"",Control_Panel!OrgCodeSelection) -> RWK | F5: =IF(Control_Panel!OrgNameSelection="","",Control_Panel!OrgNameSelection) -> East London Foundation Trust | AX5: =IF(E415=0,"","At least one specialty must be selected (Speciality 1) for each row") ->  | AY5: Total planned hours > 0 | AZ5: =IF(BM214=0,"","Check ward spelling and site-ward combination against ward list. If a new ward or site-ward combination, leave it in, and the ward list will be updated in time for the next collection.") -> Check ward spelling and site-ward combination against ward list. If a new ward or site-ward combination, leave it in, and the ward list will be updated in time for the next collection. | BR5: NHMBLUEBIRD LODGE | BS5: NHM03 | BT5: BLUEBIRD LODGE | BU5: NHM03 | BV5: BLUEBIRD LODGE | BW5: NHM
AX6: =IF(F415=0,"","Total number of planned hours must be greater than 0") ->  | AY6: Total actual hours > 0 | AZ6: =IF(H415>0,"One or more wards has less than 1448 actual hours (approx. 2 full time staff)","") ->  | BR6: NHMFELIXSTOWE COMMUNITY HOSPITAL | BS6: NHM05 | BT6: FELIXSTOWE COMMUNITY HOSPITAL | BU6: NHM05 | BV6: FELIXSTOWE COMMUNITY HOSPITAL | BW6: NHM
F7: Please provide the URL to the page on your trust website where your staffing information is available | AX7: =IF(G415=0,"","Total number of actual hours must be greater than 0") ->  | AY7: duplicate ward/hospital and spec codes | AZ7: =IF(I415>0,"One or more wards has greater than 30000 actual hours (approx. 40 full time staff)","") ->  | BR7: NHMGLASTONBURY COURT | BS7: NHM26 | BT7: GLASTONBURY COURT | BU7: NHM26 | BV7: GLASTONBURY COURT | BW7: NHM
F8: (Please can you ensure that the URL you attach to the spreadsheet is correct and links to the correct web page and include 'http://' in your URL) | AX8: =IF(E5="","",IF(BI416>0,"Duplicate Ward entry within site","")) ->  | AY8: Avoid gaps in between data rows | AZ8: =IF(AC415>0,"One or more wards has submitted actual hours but zero CHPPD patients.","") ->  | BR8: NHMNEWMARKET COMMUNITY HOSPITAL | BS8: NHM04 | BT8: NEWMARKET COMMUNITY HOSPITAL | BU8: NHM04 | BV8: NEWMARKET COMMUNITY HOSPITAL | BW8: NHM
F9: https://www.elft.nhs.uk/About-Us/Safer-Staffing-Levels | AX9: =IF(BK416>0,"Please do not leave gaps between rows of data.","") ->  | AY9: duplicate speciality codes | BR9: NLXCHIPPENHAM COMMUNITY HOSPITAL | BS9: NLX17 | BT9: CHIPPENHAM COMMUNITY HOSPITAL | BU9: NLX17 | BV9: CHIPPENHAM COMMUNITY HOSPITAL | BW9: NLX
A10: =IF(E14="",1,0) -> 0 | AX10: =IF(BL416>0,"Duplicate speciality codes entered","") ->  | BR10: NLXCOSSHAM HOSPITAL | BS10: NLX23 | BT10: COSSHAM HOSPITAL | BU10: NLX23 | BV10: COSSHAM HOSPITAL | BW10: NLX
F11: Only complete sites your organisation is accountable for | I11: Day | Q11: Night | Y11: Allied Health Professionals | AC11: Care Hours Per Patient Day (CHPPD) | AK11: Day | AO11: Night | AS11: Allied Health Professionals | AX11: =Control_Panel!L14 ->  | AY11: Site code issue | BR11: NLXDEVIZES COMMUNITY HOSPITAL | BS11: NLX18 | BT11: DEVIZES COMMUNITY HOSPITAL | BU11: NLX18 | BV11: DEVIZES COMMUNITY HOSPITAL | BW11: NLX
D12: Hospital Site Details | F12: Ward name | G12: Main 2 Specialties on each ward | I12: Registered Nurses/Midwives | K12: Non-registered Nurses/Midwives (Care Staff) | M12: Registered Nursing Associates | O12: Non-registered Nursing Associates | Q12: Registered Nurses/Midwives | S12: Non-registered Nurses/Midwives (Care Staff) | U12: Registered Nursing Associates | W12: Non-registered Nursing Associates | Y12: Registered allied health professionals | AA12: Non-registered allied health professionals | AC12: Cumulative count over the month of patients at 23:59 each day | AD12: Registered Nurses/Midwives | AE12: Non-registered Nurses/Midwives | AF12: Registered Nursing Associates | AG12: Non-registered Nursing Associates | AH12: Registered allied health professionals | AI12: Non-registered allied health professionals | AJ12: Overall | AK12: Average fill rate - Registered Nurses/Midwives (%) | AL12: Average fill rate - Non-registered Nurses/Midwives (care staff) (%) | AM12: Average fill rate - Registered Nursing Associates (%) | AN12: Average fill rate - Non-Registered Nursing Associates (%) | AO12: Average fill rate - Registered Nurses/Midwives (%) | AP12: Average fill rate - Non-registered Nurses/Midwives (care staff) (%) | AQ12: Average fill rate - Registered Nursing Associates (%) | AR12: Average fill rate - Non-Registered Nursing Associates (%) | AS12: Average fill rate - registered allied health professionals (AHP) (%) | AT12: Average fill rate - non-registered allied health professionals (AHP) (%) | AX12: =D626 ->  | AY12: Do not enter negative numbers | BF12: VALIDATIONS | BR12: NLXGREYSTONES | BS12: NLX12 | BT12: GREYSTONES | BU12: NLX12 | BV12: GREYSTONES | BW12: NLX
D13: Site code *The Site code is automatically populated when a Site name is selected | E13: Hospital Site name | G13: Specialty 1 | H13: Specialty 2 | I13: Total monthly planned staff hours | J13: Total monthly actual staff hours | K13: Total monthly planned staff hours | L13: Total monthly actual staff hours | M13: Total monthly planned staff hours | N13: Total monthly actual staff hours | O13: Total monthly planned staff hours | P13: Total monthly actual staff hours | Q13: Total monthly planned staff hours | R13: Total monthly actual staff hours | S13: Total monthly planned staff hours | T13: Total monthly actual staff hours | U13: Total monthly planned staff hours | V13: Total monthly actual staff hours | W13: Total monthly planned staff hours | X13: Total monthly actual staff hours | Y13: Total monthly planned staff hours | Z13: Total monthly actual staff hours | AA13: Total monthly planned staff hours | AB13: Total monthly actual staff hours | AV13: Specialties | AX13: =IF(J622>0, "Please do not enter negative numbers","") ->  | AY13: speciality codes not in list | BG13: SITE CODE | BH13: WARD NAME | BI13: Carriage Return | BR13: NLXHANHAM HEALTH | BS13: NLX27 | BT13: HANHAM HEALTH | BU13: NLX27 | BV13: HANHAM HEALTH | BW13: NLX
A14: =IF(Q215=1,"No Site Selected",IF(R215=1,"No Ward Name","")) ->  | B14: =IF(SUM(E215:G215,Q215:R215)>0,1,IF(AU215>0,2,0)) -> 2 | D14: =IF(ISNA(VLOOKUP($E$5&E14,$BR:$BS,2,FALSE)),"",VLOOKUP($E$5&E14,$BR:$BS,2,FALSE)) -> RWK2X | E14: LUTON & CENTRAL BEDS MHIP | F14: BED Archer Unit | G14: 430 - GERIATRIC MEDICINE | I14: 850 | J14: 1233.5 | K14: 1556 | L14: 1643.5 | M14: 0 | N14: 0 | O14: 0 | P14: 0 | Q14: 673.5 | R14: 673.5 | S14: 1020 | T14: 1020 | U14: 0 | V14: 0 | W14: 0 | X14: 0 | Y14: 0 | Z14: 0 | AA14: 0 | AB14: 0 | AC14: 702 | AD14: =IF(ISERROR(IF($AC14="","",SUM(J14,R14)/$AC14)),"-",(IF($AC14="","",SUM(J14,R14)/$AC14))) -> 2.716524217 | AE14: =IF(ISERROR(IF($AC14="","",SUM(L14,T14)/$AC14)),"-",(IF($AC14="","",SUM(L14,T14)/$AC14))) -> 3.794159544 | AF14: =IF(ISERROR(IF($AC14="","",SUM(N14,V14)/$AC14)),"-",(IF($AC14="","",SUM(N14,V14)/$AC14))) -> 0 | AG14: =IF(ISERROR(IF($AC14="","",SUM(P14,X14)/$AC14)),"-",(IF($AC14="","",SUM(P14,X14)/$AC14))) -> 0 | AH14: =IF(ISERROR(IF($AC14="","",Z14/$AC14)),"-",(IF($AC14="","",Z14/$AC14))) -> 0 | AI14: =IF(ISERROR(IF($AC14="","",AB14/$AC14)),"-",(IF($AC14="","",AB14/$AC14))) -> 0 | AJ14: =IF(ISERROR(IF($AC14="","",SUM(J14,L14,R14,T14,Z14,AB14,X14,P14,V14,N14)/$AC14)),"-",(IF($AC14="","",SUM(J14,L14,R14,T14,Z14,AB14,X14,P14,V14,N14)/$AC14))) -> 6.510683761 | AK14: =IF(ISERROR(IF($I14="","",J14/I14)),"-",(IF($I14="","",J14/I14))) -> 1.451176471 | AL14: =IF(ISERROR(IF(K14="","",L14/K14)),"-",(IF(K14="","",L14/K14))) -> 1.056233933 | AM14: =IF(ISERROR(IF(M14="","",N14/M14)),"-",(IF(M14="","",N14/M14))) -> - | AN14: =IF(ISERROR(IF(O14="","",P14/O14)),"-",(IF(O14="","",P14/O14))) -> - | AO14: =IF(ISERROR(IF(Q14="","",R14/Q14)),"-",(IF(Q14="","",R14/Q14))) -> 1 | AP14: =IF(ISERROR(IF(S14="","",T14/S14)),"-",IF(S14="","",T14/S14)) -> 1 | AQ14: =IF(ISERROR(IF(U14="","",V14/U14)),"-",IF(U14="","",V14/U14)) -> - | AR14: =IF(ISERROR(IF(W14="","",X14/W14)),"-",IF(W14="","",X14/W14)) -> - | AS14: =IF(ISERROR(IF(Y14="","",Z14/Y14)),"-",IF(Y14="","",Z14/Y14)) -> - | AT14: =IF(ISERROR(IF(AA14="","",AB14/AA14)),"-",IF(AA14="","",AB14/AA14)) -> - | AV14: 100 - GENERAL SURGERY | AW14: 0 | AX14: =IF(SUM(D834:E834)>0,"Please enter valid speciality codes","") ->  | AY14: AHP Data entered but not required | BG14: =IF(Q215=1,"No Site Selected","") ->  | BH14: =IF(R215=1,"No Ward Name","") ->  | BI14: =IF(ISNUMBER((IFERROR(FIND(CHAR(10),F14),"")))=TRUE,1,"") ->  | BM14: =IF(C215=1,"Incorrect Ward Name","") ->  | BR14: NLXHOMELINK & COMMUNITY OPTIONS | BS14: NLX14 | BT14: HOMELINK & COMMUNITY OPTIONS | BU14: NLX14 | BV14: HOMELINK & COMMUNITY OPTIONS | BW14: NLX
A15: =IF(Q216=1,"No Site Selected",IF(R216=1,"No Ward Name","")) ->  | B15: 2 | D15: RWK2X | E15: LUTON & CENTRAL BEDS MHIP | F15: BED Ash Ward | G15: 710 - ADULT MENTAL ILLNESS | I15: 713 | J15: 807.25 | K15: 1070 | L15: 1187 | M15: 0 | N15: 0 | O15: 0 | P15: 0 | Q15: 828 | R15: 716 | S15: 713 | T15: 1089.5 | U15: 0 | V15: 0 | W15: 0 | X15: 0 | Y15: 0 | Z15: 0 | AA15: 0 | AB15: 0 | AC15: 585 | AD15: 2.603846154 | AE15: =IF(ISERROR(IF($AC15="","",SUM(L15,T15)/$AC15)),"-",(IF($AC15="","",SUM(L15,T15)/$AC15))) -> 3.891452991 | AF15: =IF(ISERROR(IF($AC15="","",SUM(N15,V15)/$AC15)),"-",(IF($AC15="","",SUM(N15,V15)/$AC15))) -> 0 | AG15: =IF(ISERROR(IF($AC15="","",SUM(P15,X15)/$AC15)),"-",(IF($AC15="","",SUM(P15,X15)/$AC15))) -> 0 | AH15: =IF(ISERROR(IF($AC15="","",Z15/$AC15)),"-",(IF($AC15="","",Z15/$AC15))) -> 0 | AI15: =IF(ISERROR(IF($AC15="","",AB15/$AC15)),"-",(IF($AC15="","",AB15/$AC15))) -> 0 | AJ15: =IF(ISERROR(IF($AC15="","",SUM(J15,L15,R15,T15,Z15,AB15,X15,P15,V15,N15)/$AC15)),"-",(IF($AC15="","",SUM(J15,L15,R15,T15,Z15,AB15,X15,P15,V15,N15)/$AC15))) -> 6.495299145 | AK15: =IF(ISERROR(IF($I15="","",J15/I15)),"-",(IF($I15="","",J15/I15))) -> 1.132187938 | AL15: =IF(ISERROR(IF(K15="","",L15/K15)),"-",(IF(K15="","",L15/K15))) -> 1.109345794 | AM15: =IF(ISERROR(IF(M15="","",N15/M15)),"-",(IF(M15="","",N15/M15))) -> - | AN15: =IF(ISERROR(IF(O15="","",P15/O15)),"-",(IF(O15="","",P15/O15))) -> - | AO15: =IF(ISERROR(IF(Q15="","",R15/Q15)),"-",(IF(Q15="","",R15/Q15))) -> 0.8647342995 | AP15: =IF(ISERROR(IF(S15="","",T15/S15)),"-",IF(S15="","",T15/S15)) -> 1.528050491 | AQ15: =IF(ISERROR(IF(U15="","",V15/U15)),"-",IF(U15="","",V15/U15)) -> - | AR15: =IF(ISERROR(IF(W15="","",X15/W15)),"-",IF(W15="","",X15/W15)) -> - | AS15: =IF(ISERROR(IF(Y15="","",Z15/Y15)),"-",IF(Y15="","",Z15/Y15)) -> - | AT15: =IF(ISERROR(IF(AA15="","",AB15/AA15)),"-",IF(AA15="","",AB15/AA15)) -> - | AV15: 101 - UROLOGY | AW15: 0 | AX15: =IF(SUM(J625)>0,"AHP Data entered but not required","") ->  | BG15: =IF(Q216=1,"No Site Selected","") ->  | BH15: =IF(R216=1,"No Ward Name","") ->  | BI15: =IF(ISNUMBER((IFERROR(FIND(CHAR(10),F15),"")))=TRUE,1,"") ->  | BM15: =IF(C216=1,"Incorrect Ward Name","") ->  | BR15: NLXMELKSHAM COMMUNITY HOSPITAL | BS15: NLX19 | BT15: MELKSHAM COMMUNITY HOSPITAL | BU15: NLX19 | BV15: MELKSHAM COMMUNITY HOSPITAL | BW15: NLX
A16: =IF(Q217=1,"No Site Selected",IF(R217=1,"No Ward Name","")) ->  | B16: 2 | D16: RWK2X | E16: LUTON & CENTRAL BEDS MHIP | F16: BED Cedar House | G16: 928 - MENTAL HEALTH REHABILITATION | I16: 614 | J16: 636.5 | K16: 713 | L16: 993.2 | M16: 0 | N16: 0 | O16: 0 | P16: 0 | Q16: 356.5 | R16: 356.5 | S16: 714.5 | T16: 714.5 | U16: 0 | V16: 0 | W16: 0 | X16: 0 | Y16: 0 | Z16: 0 | AA16: 0 | AB16: 0 | AC16: 496 | AD16: 2.002016129 | AE16: 3.442943548 | AF16: 0 | AG16: 0 | AH16: 0 | AI16: 0 | AJ16: 5.444959677 | AK16: 1.036644951 | AL16: 1.392987377 | AM16: - | AN16: - | AO16: 1 | AP16: 1 | AQ16: - | AR16: - | AS16: - | AT16: - | AV16: 103 - BREAST SURGERY | AW16: 0 | AX16: =IF(BI214>0,"Do not enter carriage returns in the ward names field","") ->  | BR16: NLXPAULTON MEMORIAL HOSPITAL | BS16: NLX02 | BT16: PAULTON MEMORIAL HOSPITAL | BU16: NLX02 | BV16: PAULTON MEMORIAL HOSPITAL | BW16: NLX
A17: =IF(Q218=1,"No Site Selected",IF(R218=1,"No Ward Name","")) ->  | B17: 2 | D17: RWK2X | E17: LUTON & CENTRAL BEDS MHIP | F17: BED Fountains Court | G17: 715 - OLD AGE PSYCHIATRY | I17: 1060.833333 | J17: 1413.75 | K17: 2105.683333 | L17: 3026.9 | M17: 0 | N17: 0 | O17: 0 | P17: 0 | Q17: 701.5 | R17: 734.5 | S17: 1782.5 | T17: 2669 | U17: 0 | V17: 0 | W17: 0 | X17: 0 | Y17: 0 | Z17: 0 | AA17: 0 | AB17: 0 | AC17: 773 | AD17: 2.779107374 | AE17: 7.368564036 | AF17: 0 | AG17: 0 | AH17: 0 | AI17: 0 | AJ17: 10.14767141 | AK17: 1.332678712 | AL17: 1.437490601 | AM17: - | AN17: - | AO17: 1.047042053 | AP17: 1.497335203 | AQ17: - | AR17: - | AS17: - | AT17: - | AV17: 110 - TRAUMA & ORTHOPAEDICS | AW17: 0 | BR17: NLXST MARTINS HOSPITAL | BS17: NLX01 | BT17: ST MARTINS HOSPITAL | BU17: NLX01 | BV17: ST MARTINS HOSPITAL | BW17: NLX | BY17: Selected Org:
B18: 2 | D18: RWK2X | E18: LUTON & CENTRAL BEDS MHIP | F18: BED Townsend Court | G18: 710 - ADULT MENTAL ILLNESS | I18: 694.25 | J18: 961.75 | K18: 1056 | L18: 1156.8 | M18: 0 | N18: 0 | O18: 0 | P18: 0 | Q18: 712 | R18: 728 | S18: 713 | T18: 700.5 | U18: 0 | V18: 0 | W18: 0 | X18: 0 | Y18: 0 | Z18: 0 | AA18: 0 | AB18: 0 | AC18: 604 | AD18: 2.797599338 | AE18: 3.075 | AF18: 0 | AG18: 0 | AH18: 0 | AI18: 0 | AJ18: 5.872599338 | AK18: 1.385307886 | AL18: 1.095454545 | AM18: - | AN18: - | AO18: 1.02247191 | AP18: 0.9824684432 | AQ18: - | AR18: - | AS18: - | AT18: - | AV18: 120 - ENT | AW18: 0 | BR18: NLXTHORNBURY HOSPITAL | BS18: NLX22 | BT18: THORNBURY HOSPITAL | BU18: NLX22 | BV18: THORNBURY HOSPITAL | BW18: NLX | BY18: =$E$5 -> RWK
B19: 2 | D19: RWK2X | E19: LUTON & CENTRAL BEDS MHIP | F19: BED Willow Ward | G19: 710 - ADULT MENTAL ILLNESS | I19: 713 | J19: 693 | K19: 713 | L19: 827 | M19: 0 | N19: 0 | O19: 0 | P19: 0 | Q19: 828 | R19: 713 | S19: 356.5 | T19: 460 | U19: 0 | V19: 0 | W19: 0 | X19: 0 | Y19: 0 | Z19: 0 | AA19: 0 | AB19: 0 | AC19: 336 | AD19: 4.18452381 | AE19: 3.830357143 | AF19: 0 | AG19: 0 | AH19: 0 | AI19: 0 | AJ19: 8.014880952 | AK19: 0.9719495091 | AL19: 1.159887798 | AM19: - | AN19: - | AO19: 0.8611111111 | AP19: 1.290322581 | AQ19: - | AR19: - | AS19: - | AT19: - | AV19: 130 - OPHTHALMOLOGY | AW19: 0 | BR19: NLXTROWBRIDGE COMMUNITY HOSPITAL | BS19: NLX20 | BT19: TROWBRIDGE COMMUNITY HOSPITAL | BU19: NLX20 | BV19: TROWBRIDGE COMMUNITY HOSPITAL | BW19: NLX
B20: 2 | D20: RWK2X | E20: LUTON & CENTRAL BEDS MHIP | F20: LU Coral Ward | G20: 710 - ADULT MENTAL ILLNESS | I20: 1054.483333 | J20: 978.4666667 | K20: 1069.5 | L20: 1173 | M20: 92 | N20: 92 | O20: 0 | P20: 0 | Q20: 713 | R20: 727 | S20: 1069.5 | T20: 1013 | U20: 0 | V20: 0 | W20: 0 | X20: 0 | Y20: 0 | Z20: 0 | AA20: 0 | AB20: 0 | AC20: 641 | AD20: 2.660634425 | AE20: 3.410296412 | AF20: 0.143525741 | AG20: 0 | AH20: 0 | AI20: 0 | AJ20: 6.214456578 | AK20: 0.9279109833 | AL20: 1.096774194 | AM20: 1 | AN20: - | AO20: 1.019635344 | AP20: 0.9471715755 | AQ20: - | AR20: - | AS20: - | AT20: - | AV20: 140 - ORAL SURGERY | AW20: 0 | BR20: NQ1ACE (THE CRESCENT, COLCHESTER) | BS20: NQ114 | BT20: ACE (THE CRESCENT, COLCHESTER) | BU20: NQ114 | BV20: ACE (THE CRESCENT, COLCHESTER) | BW20: NQ1 | BY20: Match:
B21: 2 | D21: RWK2X | E21: LUTON & CENTRAL BEDS MHIP | F21: LU Onyx Ward | G21: 710 - ADULT MENTAL ILLNESS | I21: 710.5 | J21: 1365.25 | K21: 1069.5 | L21: 973.5 | M21: 0 | N21: 0 | O21: 0 | P21: 0 | Q21: 713 | R21: 718 | S21: 713 | T21: 716 | U21: 0 | V21: 0 | W21: 0 | X21: 0 | Y21: 0 | Z21: 0 | AA21: 0 | AB21: 0 | AC21: 583 | AD21: 3.573327616 | AE21: 2.897941681 | AF21: 0 | AG21: 0 | AH21: 0 | AI21: 0 | AJ21: 6.471269297 | AK21: 1.921534131 | AL21: 0.9102384292 | AM21: - | AN21: - | AO21: 1.007012623 | AP21: 1.004207574 | AQ21: - | AR21: - | AS21: - | AT21: - | AV21: 141 - RESTORATIVE DENTISTRY | AW21: 0 | BR21: NQ1ACE CIC (CLACTON ON SEA) | BS21: NQ101 | BT21: ACE CIC (CLACTON ON SEA) | BU21: NQ101 | BV21: ACE CIC (CLACTON ON SEA) | BW21: NQ1 | BY21: =MATCH($BY$18,$BW$1:$BW$5065,0) -> 3149
B22: 2 | D22: RWK2X | E22: LUTON & CENTRAL BEDS MHIP | F22: LU Poplars Ward | G22: 928 - MENTAL HEALTH REHABILITATION | I22: 627 | J22: 900.5 | K22: 889 | L22: 1111.5 | M22: 0 | N22: 0 | O22: 0 | P22: 0 | Q22: 356.5 | R22: 598 | S22: 356.5 | T22: 839.5 | U22: 0 | V22: 0 | W22: 0 | X22: 0 | Y22: 0 | Z22: 0 | AA22: 0 | AB22: 0 | AC22: 495 | AD22: 3.027272727 | AE22: 3.941414141 | AF22: 0 | AG22: 0 | AH22: 0 | AI22: 0 | AJ22: 6.968686869 | AK22: 1.436204147 | AL22: 1.250281215 | AM22: - | AN22: - | AO22: 1.677419355 | AP22: 2.35483871 | AQ22: - | AR22: - | AS22: - | AT22: - | AV22: 142 - PAEDIATRIC DENTISTRY | AW22: 0 | BR22: NQ1CLACTON HOSPITAL | BS22: NQ108 | BT22: CLACTON HOSPITAL | BU22: NQ108 | BV22: CLACTON HOSPITAL | BW22: NQ1 | BY22: Countif:
B23: 2 | D23: RWK2X | E23: LUTON & CENTRAL BEDS MHIP | F23: LUTON Crystal Ward | G23: 710 - ADULT MENTAL ILLNESS | I23: 667 | J23: 970.25 | K23: 954.5 | L23: 1127.25 | M23: 0 | N23: 0 | O23: 0 | P23: 0 | Q23: 713 | R23: 725.5 | S23: 701.5 | T23: 791 | U23: 0 | V23: 0 | W23: 0 | X23: 0 | Y23: 0 | Z23: 0 | AA23: 0 | AB23: 0 | AC23: 540 | AD23: 3.140277778 | AE23: 3.552314815 | AF23: 0 | AG23: 0 | AH23: 0 | AI23: 0 | AJ23: 6.692592593 | AK23: 1.454647676 | AL23: 1.180984809 | AM23: - | AN23: - | AO23: 1.017531557 | AP23: 1.127583749 | AQ23: - | AR23: - | AS23: - | AT23: - | AV23: 143 - ORTHODONTICS | AW23: 0 | BR23: NQ1COLCHESTER GENERAL HOSPITAL | BS23: NQ107 | BT23: COLCHESTER GENERAL HOSPITAL | BU23: NQ107 | BV23: COLCHESTER GENERAL HOSPITAL | BW23: NQ1 | BY23: =SUM(COUNTIF($BV$1:$BW$5065,$BY$18)+$BY$21-1) -> 3185
B24: 2 | D24: RWK2X | E24: LUTON & CENTRAL BEDS MHIP | F24: LUTON Jade | G24: 996 - PSYCHIATRIC INTENSIVE CARE UNIT | I24: 690 | J24: 1263.5 | K24: 1058 | L24: 1077 | M24: 0 | N24: 0 | O24: 0 | P24: 0 | Q24: 713 | R24: 793.5 | S24: 713 | T24: 642.5 | U24: 0 | V24: 0 | W24: 0 | X24: 0 | Y24: 0 | Z24: 0 | AA24: 0 | AB24: 0 | AC24: 198 | AD24: 10.38888889 | AE24: 8.684343434 | AF24: 0 | AG24: 0 | AH24: 0 | AI24: 0 | AJ24: 19.07323232 | AK24: 1.83115942 | AL24: 1.017958412 | AM24: - | AN24: - | AO24: 1.112903226 | AP24: 0.9011220196 | AQ24: - | AR24: - | AS24: - | AT24: - | AV24: 145 - ORAL & MAXILLO FACIAL SURGERY | AW24: 0 | BR24: NQ1CONNAUGHT MEWS SUITES 6-10 | BS24: NQ126 | BT24: CONNAUGHT MEWS SUITES 6-10 | BU24: NQ126 | BV24: CONNAUGHT MEWS SUITES 6-10 | BW24: NQ1 | BY24: Concat Items:
B25: 2 | D25: RWK60 | E25: FORENSIC CENTRE FOR MENTAL HEALTH | F25: Bow Ward | G25: 712 - FORENSIC PSYCHIATRY | I25: 726 | J25: 944.75 | K25: 720 | L25: 1308.5 | M25: 0 | N25: 0 | O25: 0 | P25: 0 | Q25: 341 | R25: 561.5 | S25: 682 | T25: 1013.5 | U25: 0 | V25: 0 | W25: 0 | X25: 0 | Y25: 0 | Z25: 0 | AA25: 0 | AB25: 0 | AC25: 465 | AD25: 3.239247312 | AE25: 4.993548387 | AF25: 0 | AG25: 0 | AH25: 0 | AI25: 0 | AJ25: 8.232795699 | AK25: 1.30130854 | AL25: 1.817361111 | AM25: - | AN25: - | AO25: 1.646627566 | AP25: 1.486070381 | AQ25: - | AR25: - | AS25: - | AT25: - | AV25: 150 - NEUROSURGERY | AW25: 0 | BR25: NQ1CORNERSTONE | BS25: NQ123 | BT25: CORNERSTONE | BU25: NQ123 | BV25: CORNERSTONE | BW25: NQ1 | BY25: $BT
B26: 2 | D26: RWK60 | E26: FORENSIC CENTRE FOR MENTAL HEALTH | F26: Broadgate Ward | G26: 712 - FORENSIC PSYCHIATRY | I26: 744 | J26: 1187.5 | K26: 678 | L26: 1059 | M26: 34.5 | N26: 34.5 | O26: 0 | P26: 0 | Q26: 682 | R26: 628 | S26: 341 | T26: 326.5 | U26: 80.5 | V26: 80.5 | W26: 0 | X26: 0 | Y26: 0 | Z26: 0 | AA26: 0 | AB26: 0 | AC26: 526 | AD26: 3.451520913 | AE26: 2.634030418 | AF26: 0.2186311787 | AG26: 0 | AH26: 0 | AI26: 0 | AJ26: 6.30418251 | AK26: 1.596102151 | AL26: 1.561946903 | AM26: 1 | AN26: - | AO26: 0.9208211144 | AP26: 0.9574780059 | AQ26: 1 | AR26: - | AS26: - | AT26: - | AV26: 160 - PLASTIC SURGERY | AW26: 0 | BR26: NQ1FRYATT HOSPITAL | BS26: NQ106 | BT26: FRYATT HOSPITAL | BU26: NQ106 | BV26: FRYATT HOSPITAL | BW26: NQ1 | BY26: :$BT
B27: 2 | D27: RWK60 | E27: FORENSIC CENTRE FOR MENTAL HEALTH | F27: Butterfield Ward | G27: 712 - FORENSIC PSYCHIATRY | I27: 725 | J27: 895.5 | K27: 729 | L27: 843.5 | M27: 0 | N27: 0 | O27: 0 | P27: 0 | Q27: 341 | R27: 572 | S27: 341 | T27: 604 | U27: 0 | V27: 0 | W27: 0 | X27: 0 | Y27: 0 | Z27: 0 | AA27: 0 | AB27: 0 | AC27: 527 | AD27: 2.784629981 | AE27: 2.746679317 | AF27: 0 | AG27: 0 | AH27: 0 | AI27: 0 | AJ27: 5.531309298 | AK27: 1.235172414 | AL27: 1.157064472 | AM27: - | AN27: - | AO27: 1.677419355 | AP27: 1.771260997 | AQ27: - | AR27: - | AS27: - | AT27: - | AV27: 170 - CARDIOTHORACIC SURGERY | AW27: 0 | BR27: NVCASHTEAD HOSPITAL | BS27: NVC01 | BT27: ASHTEAD HOSPITAL | BU27: NVC01 | BV27: ASHTEAD HOSPITAL | BW27: NVC
B28: 2 | D28: RWK60 | E28: FORENSIC CENTRE FOR MENTAL HEALTH | F28: Clerkenwell JHC | G28: 712 - FORENSIC PSYCHIATRY | H28: 700 - LEARNING DISABILITY | I28: 708 | J28: 1134.416667 | K28: 684 | L28: 1470 | M28: 0 | N28: 0 | O28: 0 | P28: 0 | Q28: 594 | R28: 671 | S28: 308 | T28: 592 | U28: 0 | V28: 0 | W28: 0 | X28: 0 | Y28: 0 | Z28: 0 | AA28: 0 | AB28: 0 | AC28: 465 | AD28: 3.882616487 | AE28: 4.434408602 | AF28: 0 | AG28: 0 | AH28: 0 | AI28: 0 | AJ28: 8.31702509 | AK28: 1.602283427 | AL28: 2.149122807 | AM28: - | AN28: - | AO28: 1.12962963 | AP28: 1.922077922 | AQ28: - | AR28: - | AS28: - | AT28: - | AV28: 171 - PAEDIATRIC SURGERY | AW28: 0 | BR28: NVCBLAKELANDS HOSPITAL | BS28: NVC31 | BT28: BLAKELANDS HOSPITAL | BU28: NVC31 | BV28: BLAKELANDS HOSPITAL | BW28: NVC | BY28: Concat Final:
B29: 2 | D29: RWK60 | E29: FORENSIC CENTRE FOR MENTAL HEALTH | F29: Clissold Ward | G29: 712 - FORENSIC PSYCHIATRY | I29: 727.5 | J29: 911.9166667 | K29: 744 | L29: 712.5 | M29: 0 | N29: 0 | O29: 0 | P29: 0 | Q29: 341 | R29: 490 | S29: 341 | T29: 594 | U29: 0 | V29: 0 | W29: 0 | X29: 0 | Y29: 0 | Z29: 0 | AA29: 0 | AB29: 0 | AC29: 527 | AD29: 2.660183428 | AE29: 2.479127135 | AF29: 0 | AG29: 0 | AH29: 0 | AI29: 0 | AJ29: 5.139310563 | AK29: 1.2534937 | AL29: 0.9576612903 | AM29: - | AN29: - | AO29: 1.436950147 | AP29: 1.741935484 | AQ29: - | AR29: - | AS29: - | AT29: - | AV29: 180 - ACCIDENT & EMERGENCY | AW29: 0 | BR29: NVCBODMIN NHS TREATMENT CENTRE | BS29: NVC24 | BT29: BODMIN NHS TREATMENT CENTRE | BU29: NVC24 | BV29: BODMIN NHS TREATMENT CENTRE | BW29: NVC | BY29: =CONCATENATE($BY$25,$BY$21,$BY$26,$BY$23) -> $BT3149:$BT3185
B30: 2 | D30: RWK60 | E30: FORENSIC CENTRE FOR MENTAL HEALTH | F30: East India | G30: 712 - FORENSIC PSYCHIATRY | I30: 732 | J30: 931.75 | K30: 742.5 | L30: 853.6666667 | M30: 0 | N30: 0 | O30: 0 | P30: 0 | Q30: 341 | R30: 661 | S30: 341 | T30: 506 | U30: 0 | V30: 0 | W30: 0 | X30: 0 | Y30: 0 | Z30: 0 | AA30: 0 | AB30: 0 | AC30: 403 | AD30: 3.952233251 | AE30: 3.373862696 | AF30: 0 | AG30: 0 | AH30: 0 | AI30: 0 | AJ30: 7.326095947 | AK30: 1.272882514 | AL30: 1.149719416 | AM30: - | AN30: - | AO30: 1.938416422 | AP30: 1.483870968 | AQ30: - | AR30: - | AS30: - | AT30: - | AV30: 190 - ANAESTHETICS | AW30: 0 | BR30: NVCBOSTON WEST HOSPITAL | BS30: NVC27 | BT30: BOSTON WEST HOSPITAL | BU30: NVC27 | BV30: BOSTON WEST HOSPITAL | BW30: NVC
B31: 2 | D31: RWK60 | E31: FORENSIC CENTRE FOR MENTAL HEALTH | F31: Hoxton Ward | G31: 712 - FORENSIC PSYCHIATRY | I31: 743.5 | J31: 976.25 | K31: 744 | L31: 807.5 | M31: 0 | N31: 0 | O31: 0 | P31: 0 | Q31: 341 | R31: 479 | S31: 341 | T31: 627 | U31: 0 | V31: 0 | W31: 0 | X31: 0 | Y31: 0 | Z31: 0 | AA31: 0 | AB31: 0 | AC31: 527 | AD31: 2.761385199 | AE31: 2.722011385 | AF31: 0 | AG31: 0 | AH31: 0 | AI31: 0 | AJ31: 5.483396584 | AK31: 1.313046402 | AL31: 1.085349462 | AM31: - | AN31: - | AO31: 1.404692082 | AP31: 1.838709677 | AQ31: - | AR31: - | AS31: - | AT31: - | AV31: 192 - CRITICAL CARE MEDICINE | AW31: 0 | BR31: NVCCLIFTON PARK HOSPITAL | BS31: NVC28 | BT31: CLIFTON PARK HOSPITAL | BU31: NVC28 | BV31: CLIFTON PARK HOSPITAL | BW31: NVC
B32: 2 | D32: RWK60 | E32: FORENSIC CENTRE FOR MENTAL HEALTH | F32: Limehouse Unit | G32: 712 - FORENSIC PSYCHIATRY | I32: 732 | J32: 768 | K32: 732 | L32: 828.5 | M32: 0 | N32: 0 | O32: 0 | P32: 0 | Q32: 340.5 | R32: 395.5 | S32: 341 | T32: 623 | U32: 0 | V32: 0 | W32: 0 | X32: 0 | Y32: 0 | Z32: 0 | AA32: 0 | AB32: 0 | AC32: 496 | AD32: 2.345766129 | AE32: 2.92641129 | AF32: 0 | AG32: 0 | AH32: 0 | AI32: 0 | AJ32: 5.272177419 | AK32: 1.049180328 | AL32: 1.131830601 | AM32: - | AN32: - | AO32: 1.161527166 | AP32: 1.826979472 | AQ32: - | AR32: - | AS32: - | AT32: - | AV32: 300 - GENERAL MEDICINE | AW32: 0 | BR32: NVCCOBALT HOSPITAL | BS32: NVC29 | BT32: COBALT HOSPITAL | BU32: NVC29 | BV32: COBALT HOSPITAL | BW32: NVC
B33: 2 | D33: RWK60 | E33: FORENSIC CENTRE FOR MENTAL HEALTH | F33: Loxford Ward | G33: 712 - FORENSIC PSYCHIATRY | I33: 613.5 | J33: 1044 | K33: 621 | L33: 783.5 | M33: 0 | N33: 0 | O33: 0 | P33: 0 | Q33: 341 | R33: 396 | S33: 308 | T33: 638 | U33: 0 | V33: 0 | W33: 0 | X33: 0 | Y33: 0 | Z33: 0 | AA33: 0 | AB33: 0 | AC33: 527 | AD33: 2.732447818 | AE33: 2.697343454 | AF33: 0 | AG33: 0 | AH33: 0 | AI33: 0 | AJ33: 5.429791271 | AK33: 1.701711491 | AL33: 1.261674718 | AM33: - | AN33: - | AO33: 1.161290323 | AP33: 2.071428571 | AQ33: - | AR33: - | AS33: - | AT33: - | AV33: 301 - GASTROENTEROLOGY | AW33: 0 | BR33: NVCDUCHY HOSPITAL | BS33: NVC04 | BT33: DUCHY HOSPITAL | BU33: NVC04 | BV33: DUCHY HOSPITAL | BW33: =LEFT(BU33,3) -> NVC
B34: 2 | D34: RWK60 | E34: FORENSIC CENTRE FOR MENTAL HEALTH | F34: Ludgate Ward | G34: 712 - FORENSIC PSYCHIATRY | I34: 730.5 | J34: 1081.583333 | K34: 732 | L34: 886.5 | M34: 0 | N34: 0 | O34: 0 | P34: 0 | Q34: 341 | R34: 499 | S34: 341 | T34: 693 | U34: 0 | V34: 0 | W34: 0 | X34: 0 | Y34: 0 | Z34: 0 | AA34: 0 | AB34: 0 | AC34: 509 | AD34: 3.105271775 | AE34: 3.103143418 | AF34: 0 | AG34: 0 | AH34: 0 | AI34: 0 | AJ34: 6.208415193 | AK34: 1.48060689 | AL34: 1.211065574 | AM34: - | AN34: - | AO34: 1.463343109 | AP34: 2.032258065 | AQ34: - | AR34: - | AS34: - | AT34: - | AV34: 302 - ENDOCRINOLOGY | AW34: 0 | BR34: NVCEUXTON HALL HOSPITAL | BS34: NVC05 | BT34: EUXTON HALL HOSPITAL | BU34: NVC05 | BV34: EUXTON HALL HOSPITAL | BW34: NVC
B35: 2 | D35: RWK60 | E35: FORENSIC CENTRE FOR MENTAL HEALTH | F35: Morrison Ward | G35: 712 - FORENSIC PSYCHIATRY | I35: 732 | J35: 1062 | K35: 720 | L35: 945.5 | M35: 0 | N35: 0 | O35: 0 | P35: 0 | Q35: 396 | R35: 552 | S35: 397 | T35: 554 | U35: 0 | V35: 0 | W35: 0 | X35: 0 | Y35: 0 | Z35: 0 | AA35: 0 | AB35: 0 | AC35: 496 | AD35: 3.254032258 | AE35: 3.023185484 | AF35: 0 | AG35: 0 | AH35: 0 | AI35: 0 | AJ35: 6.277217742 | AK35: 1.450819672 | AL35: 1.313194444 | AM35: - | AN35: - | AO35: 1.393939394 | AP35: 1.395465995 | AQ35: - | AR35: - | AS35: - | AT35: - | AV35: 303 - CLINICAL HAEMATOLOGY | AW35: 0 | BR35: NVCFITZWILLIAM HOSPITAL | BS35: NVC06 | BT35: FITZWILLIAM HOSPITAL | BU35: NVC06 | BV35: FITZWILLIAM HOSPITAL | BW35: NVC
B36: 2 | D36: RWK60 | E36: FORENSIC CENTRE FOR MENTAL HEALTH | F36: Shoreditch | G36: 712 - FORENSIC PSYCHIATRY | H36: 700 - LEARNING DISABILITY | I36: 744.5 | J36: 1482.5 | K36: 1116.5 | L36: 1627 | M36: 0 | N36: 0 | O36: 0 | P36: 0 | Q36: 341 | R36: 1012.5 | S36: 660 | T36: 1396 | U36: 0 | V36: 0 | W36: 0 | X36: 0 | Y36: 0 | Z36: 0 | AA36: 0 | AB36: 0 | AC36: 367 | AD36: 6.798365123 | AE36: 8.237057221 | AF36: 0 | AG36: 0 | AH36: 0 | AI36: 0 | AJ36: 15.03542234 | AK36: 1.991269308 | AL36: 1.457232423 | AM36: - | AN36: - | AO36: 2.969208211 | AP36: 2.115151515 | AQ36: - | AR36: - | AS36: - | AT36: - | AV36: 304 - CLINICAL PHYSIOLOGY | AW36: 0 | BR36: NVCFULWOOD HALL HOSPITAL | BS36: NVC07 | BT36: FULWOOD HALL HOSPITAL | BU36: NVC07 | BV36: FULWOOD HALL HOSPITAL | BW36: NVC
B37: 2 | D37: RWK60 | E37: FORENSIC CENTRE FOR MENTAL HEALTH | F37: Victoria Ward | G37: 712 - FORENSIC PSYCHIATRY | I37: 696 | J37: 1040.583333 | K37: 696 | L37: 992 | M37: 0 | N37: 0 | O37: 0 | P37: 0 | Q37: 341 | R37: 572 | S37: 330 | T37: 528 | U37: 0 | V37: 0 | W37: 0 | X37: 0 | Y37: 0 | Z37: 0 | AA37: 0 | AB37: 0 | AC37: 527 | AD37: 3.059930424 | AE37: 2.884250474 | AF37: 0 | AG37: 0 | AH37: 0 | AI37: 0 | AJ37: 5.944180898 | AK37: 1.495090996 | AL37: 1.425287356 | AM37: - | AN37: - | AO37: 1.677419355 | AP37: 1.6 | AQ37: - | AR37: - | AS37: - | AT37: - | AV37: 305 - CLINICAL PHARMACOLOGY | AW37: 0 | BR37: NVCHORTON NHS TREATMENT CENTRE | BS37: NVC25 | BT37: HORTON NHS TREATMENT CENTRE | BU37: NVC25 | BV37: HORTON NHS TREATMENT CENTRE | BW37: NVC
B38: 2 | D38: RWK60 | E38: FORENSIC CENTRE FOR MENTAL HEALTH | F38: West Ferry | G38: 712 - FORENSIC PSYCHIATRY | H38: 996 - PSYCHIATRIC INTENSIVE CARE UNIT | I38: 912.5 | J38: 1184.083333 | K38: 1116 | L38: 1406.5 | M38: 0 | N38: 0 | O38: 0 | P38: 0 | Q38: 671 | R38: 870 | S38: 682 | T38: 1164.166667 | U38: 0 | V38: 0 | W38: 0 | X38: 0 | Y38: 0 | Z38: 0 | AA38: 0 | AB38: 0 | AC38: 339 | AD38: 6.059242871 | AE38: 7.583087512 | AF38: 0 | AG38: 0 | AH38: 0 | AI38: 0 | AJ38: 13.64233038 | AK38: 1.297625571 | AL38: 1.260304659 | AM38: - | AN38: - | AO38: 1.29657228 | AP38: 1.706989247 | AQ38: - | AR38: - | AS38: - | AT38: - | AV38: 307 - DIABETIC MEDICINE | AW38: 0 | BR38: NVCMOUNT STUART HOSPITAL | BS38: NVC08 | BT38: MOUNT STUART HOSPITAL | BU38: NVC08 | BV38: MOUNT STUART HOSPITAL | BW38: NVC
B39: 2 | D39: RWK60 | E39: FORENSIC CENTRE FOR MENTAL HEALTH | F39: Woodberry Ward | G39: 712 - FORENSIC PSYCHIATRY | I39: 720 | J39: 895.5 | K39: 744 | L39: 921.25 | M39: 0 | N39: 0 | O39: 0 | P39: 0 | Q39: 341 | R39: 466 | S39: 341 | T39: 583 | U39: 0 | V39: 0 | W39: 0 | X39: 0 | Y39: 0 | Z39: 0 | AA39: 0 | AB39: 0 | AC39: 341 | AD39: 3.992668622 | AE39: 4.411290323 | AF39: 0 | AG39: 0 | AH39: 0 | AI39: 0 | AJ39: 8.403958944 | AK39: 1.24375 | AL39: 1.238239247 | AM39: - | AN39: - | AO39: 1.366568915 | AP39: 1.709677419 | AQ39: - | AR39: - | AS39: - | AT39: - | AV39: 310 - AUDIOLOGICAL MEDICINE | AW39: 0 | BR39: NVCNEW HALL HOSPITAL | BS39: NVC09 | BT39: NEW HALL HOSPITAL | BU39: NVC09 | BV39: NEW HALL HOSPITAL | BW39: NVC
B40: 2 | D40: RWK62 | E40: CITY AND HACKNEY CENTRE FOR MENTAL HEALTH | F40: Bevan Ward | G40: 996 - PSYCHIATRIC INTENSIVE CARE UNIT | I40: 1206.5 | J40: 1314.5 | K40: 697.75 | L40: 831.5 | M40: 0 | N40: 0 | O40: 0 | P40: 0 | Q40: 701.5 | R40: 697.5 | S40: 713 | T40: 977.5 | U40: 0 | V40: 0 | W40: 0 | X40: 0 | Y40: 0 | Z40: 0 | AA40: 0 | AB40: 0 | AC40: 318 | AD40: 6.327044025 | AE40: 5.688679245 | AF40: 0 | AG40: 0 | AH40: 0 | AI40: 0 | AJ40: 12.01572327 | AK40: 1.089515126 | AL40: 1.191687567 | AM40: - | AN40: - | AO40: 0.994297933 | AP40: 1.370967742 | AQ40: - | AR40: - | AS40: - | AT40: - | AV40: 313 - CLINICAL IMMUNOLOGY AND ALLERGY | AW40: 0 | BR40: NVCNORTH DOWNS HOSPITAL | BS40: NVC11 | BT40: NORTH DOWNS HOSPITAL | BU40: NVC11 | BV40: NORTH DOWNS HOSPITAL | BW40: NVC
B41: 2 | D41: RWK62 | E41: CITY AND HACKNEY CENTRE FOR MENTAL HEALTH | F41: Brett Ward | G41: 710 - ADULT MENTAL ILLNESS | I41: 706.5 | J41: 763.5 | K41: 898 | L41: 1337.25 | M41: 57.5 | N41: 57.5 | O41: 0 | P41: 0 | Q41: 713 | R41: 652 | S41: 356.5 | T41: 619.8333333 | U41: 0 | V41: 0 | W41: 0 | X41: 0 | Y41: 0 | Z41: 0 | AA41: 0 | AB41: 0 | AC41: 568 | AD41: 2.492077465 | AE41: 3.445569249 | AF41: 0.1012323944 | AG41: 0 | AH41: 0 | AI41: 0 | AJ41: 6.038879108 | AK41: 1.080679406 | AL41: 1.489142539 | AM41: 1 | AN41: - | AO41: 0.9144460028 | AP41: 1.738662927 | AQ41: - | AR41: - | AS41: - | AT41: - | AV41: 314 - REHABILITATION | AW41: 0 | BR41: NVCNOTTINGHAM WOODTHORPE HOSPITAL | BS41: NVC40 | BT41: NOTTINGHAM WOODTHORPE HOSPITAL | BU41: NVC40 | BV41: NOTTINGHAM WOODTHORPE HOSPITAL | BW41: NVC
B42: 2 | D42: RWK62 | E42: CITY AND HACKNEY CENTRE FOR MENTAL HEALTH | F42: Conolly Ward | G42: 710 - ADULT MENTAL ILLNESS | I42: 697 | J42: 784.5 | K42: 710.5 | L42: 994.5 | M42: 0 | N42: 0 | O42: 0 | P42: 0 | Q42: 678.5 | R42: 713 | S42: 356.5 | T42: 622 | U42: 0 | V42: 0 | W42: 0 | X42: 0 | Y42: 0 | Z42: 0 | AA42: 0 | AB42: 0 | AC42: 464 | AD42: 3.22737069 | AE42: 3.483836207 | AF42: 0 | AG42: 0 | AH42: 0 | AI42: 0 | AJ42: 6.711206897 | AK42: 1.12553802 | AL42: 1.399718508 | AM42: - | AN42: - | AO42: 1.050847458 | AP42: 1.744740533 | AQ42: - | AR42: - | AS42: - | AT42: - | AV42: 315 - PALLIATIVE MEDICINE | AW42: 0 | BR42: NVCOAKLANDS HOSPITAL | BS42: NVC12 | BT42: OAKLANDS HOSPITAL | BU42: NVC12 | BV42: OAKLANDS HOSPITAL | BW42: NVC
B43: 2 | D43: RWK62 | E43: CITY AND HACKNEY CENTRE FOR MENTAL HEALTH | F43: Gardner Ward | G43: 710 - ADULT MENTAL ILLNESS | I43: 701.5 | J43: 799.5 | K43: 713 | L43: 870 | M43: 0 | N43: 0 | O43: 0 | P43: 0 | Q43: 713 | R43: 701.5 | S43: 345 | T43: 460 | U43: 0 | V43: 0 | W43: 0 | X43: 0 | Y43: 0 | Z43: 0 | AA43: 0 | AB43: 0 | AC43: 518 | AD43: 2.897683398 | AE43: 2.567567568 | AF43: 0 | AG43: 0 | AH43: 0 | AI43: 0 | AJ43: 5.465250965 | AK43: 1.139700641 | AL43: 1.220196353 | AM43: - | AN43: - | AO43: 0.9838709677 | AP43: 1.333333333 | AQ43: - | AR43: - | AS43: - | AT43: - | AV43: 318 - INTERMEDIATE CARE | AW43: 0 | BR43: NVCOAKS HOSPITAL | BS43: NVC13 | BT43: OAKS HOSPITAL | BU43: NVC13 | BV43: OAKS HOSPITAL | BW43: NVC
B44: 2 | D44: RWK62 | E44: CITY AND HACKNEY CENTRE FOR MENTAL HEALTH | F44: Joshua Ward | G44: 710 - ADULT MENTAL ILLNESS | I44: 708.5 | J44: 791 | K44: 661 | L44: 1091.5 | M44: 0 | N44: 0 | O44: 0 | P44: 0 | Q44: 713 | R44: 690 | S44: 322 | T44: 437 | U44: 0 | V44: 0 | W44: 0 | X44: 0 | Y44: 0 | Z44: 0 | AA44: 0 | AB44: 0 | AC44: 576 | AD44: 2.571180556 | AE44: 2.653645833 | AF44: 0 | AG44: 0 | AH44: 0 | AI44: 0 | AJ44: 5.224826389 | AK44: 1.11644319 | AL44: 1.65128593 | AM44: - | AN44: - | AO44: 0.9677419355 | AP44: 1.357142857 | AQ44: - | AR44: - | AS44: - | AT44: - | AV44: 319 - RESPITE CARE | AW44: 0 | BR44: NVCPARK HILL HOSPITAL | BS44: NVC14 | BT44: PARK HILL HOSPITAL | BU44: NVC14 | BV44: PARK HILL HOSPITAL | BW44: NVC
B45: 2 | D45: RWK62 | E45: CITY AND HACKNEY CENTRE FOR MENTAL HEALTH | F45: Mother & Baby Ward | G45: 710 - ADULT MENTAL ILLNESS | I45: 810.5 | J45: 1255 | K45: 529 | L45: 1144.25 | M45: 0 | N45: 0 | O45: 0 | P45: 0 | Q45: 713 | R45: 656 | S45: 356.5 | T45: 1151.5 | U45: 0 | V45: 0 | W45: 0 | X45: 0 | Y45: 0 | Z45: 0 | AA45: 0 | AB45: 0 | AC45: 270 | AD45: 7.077777778 | AE45: 8.502777778 | AF45: 0 | AG45: 0 | AH45: 0 | AI45: 0 | AJ45: 15.58055556 | AK45: 1.548426897 | AL45: 2.163043478 | AM45: - | AN45: - | AO45: 0.920056101 | AP45: 3.230014025 | AQ45: - | AR45: - | AS45: - | AT45: - | AV45: 320 - CARDIOLOGY | AW45: 0 | BM45: Incorrect Ward Name | BR45: NVCPINEHILL HOSPITAL | BS45: NVC15 | BT45: PINEHILL HOSPITAL | BU45: NVC15 | BV45: PINEHILL HOSPITAL | BW45: NVC
B46: =IF(SUM(E247:G247,Q247:R247)>0,1,IF(AU247>0,2,0)) -> 2 | D46: RWK62 | E46: CITY AND HACKNEY CENTRE FOR MENTAL HEALTH | F46: Ruth Seifert Ward | G46: 710 - ADULT MENTAL ILLNESS | I46: 818 | J46: 865.5833333 | K46: 713 | L46: 910.5 | M46: 0 | N46: 0 | O46: 0 | P46: 0 | Q46: 713 | R46: 702.5 | S46: 356.5 | T46: 540 | U46: 0 | V46: 0 | W46: 0 | X46: 0 | Y46: 0 | Z46: 0 | AA46: 0 | AB46: 0 | AC46: 461 | AD46: 3.401482285 | AE46: 3.146420824 | AF46: 0 | AG46: 0 | AH46: 0 | AI46: 0 | AJ46: 6.547903109 | AK46: 1.058170334 | AL46: 1.276998597 | AM46: - | AN46: - | AO46: 0.9852734923 | AP46: 1.514726508 | AQ46: - | AR46: - | AS46: - | AT46: - | AV46: 321 - PAEDIATRIC CARDIOLOGY | AW46: 0 | BR46: NVCRENACRES HOSPITAL | BS46: NVC16 | BT46: RENACRES HOSPITAL | BU46: NVC16 | BV46: RENACRES HOSPITAL | BW46: NVC
B47: 2 | D47: =IF(ISNA(VLOOKUP($E$5&E47,$BR:$BS,2,FALSE)),"",VLOOKUP($E$5&E47,$BR:$BS,2,FALSE)) -> RWK61 | E47: TOWER HAMLETS CENTRE FOR MENTAL HEALTH | F47: Brick Lane Ward | G47: 710 - ADULT MENTAL ILLNESS | I47: 713 | J47: 909.75 | K47: 713 | L47: 893 | M47: 0 | N47: 0 | O47: 0 | P47: 0 | Q47: 713 | R47: 644 | S47: 356.5 | T47: 368 | U47: 0 | V47: 0 | W47: 0 | X47: 0 | Y47: 0 | Z47: 0 | AA47: 0 | AB47: 0 | AC47: 485 | AD47: 3.203608247 | AE47: 2.6 | AF47: 0 | AG47: 0 | AH47: 0 | AI47: 0 | AJ47: 5.803608247 | AK47: 1.275946704 | AL47: 1.252454418 | AM47: - | AN47: - | AO47: 0.9032258065 | AP47: 1.032258065 | AQ47: - | AR47: - | AS47: - | AT47: - | AV47: 323 - SPINAL INJURIES | AW47: 0 | BR47: NVCRIVERS HOSPITAL | BS47: NVC19 | BT47: RIVERS HOSPITAL | BU47: NVC19 | BV47: RIVERS HOSPITAL | BW47: NVC
B48: 2 | D48: RWK61 | E48: TOWER HAMLETS CENTRE FOR MENTAL HEALTH | F48: Columbia Ward | G48: 715 - OLD AGE PSYCHIATRY | I48: 647.5 | J48: 1130.5 | K48: 873.5 | L48: 1767 | M48: 0 | N48: 0 | O48: 0 | P48: 0 | Q48: 701.5 | R48: 724.5 | S48: 356.5 | T48: 1161.5 | U48: 0 | V48: 0 | W48: 0 | X48: 0 | Y48: 0 | Z48: 0 | AA48: 0 | AB48: 0 | AC48: 673 | AD48: 2.756315007 | AE48: 4.35141159 | AF48: 0 | AG48: 0 | AH48: 0 | AI48: 0 | AJ48: 7.107726597 | AK48: 1.745945946 | AL48: 2.022896394 | AM48: - | AN48: - | AO48: 1.032786885 | AP48: 3.258064516 | AQ48: - | AR48: - | AS48: - | AT48: - | AV48: 325 - SPORTS AND EXERCISE MEDICINE | AW48: 0 | BR48: NVCROWLEY HALL HOSPITAL | BS48: NVC17 | BT48: ROWLEY HALL HOSPITAL | BU48: NVC17 | BV48: ROWLEY HALL HOSPITAL | BW48: NVC
B49: 2 | D49: RWK61 | E49: TOWER HAMLETS CENTRE FOR MENTAL HEALTH | F49: Globe Ward | G49: 710 - ADULT MENTAL ILLNESS | I49: 717.5 | J49: 800.5 | K49: 706.25 | L49: 928.25 | M49: 0 | N49: 0 | O49: 0 | P49: 0 | Q49: 713 | R49: 632.5 | S49: 356.5 | T49: 563.5 | U49: 0 | V49: 0 | W49: 0 | X49: 0 | Y49: 0 | Z49: 0 | AA49: 0 | AB49: 0 | AC49: 532 | AD49: 2.693609023 | AE49: 2.804041353 | AF49: 0 | AG49: 0 | AH49: 0 | AI49: 0 | AJ49: 5.497650376 | AK49: 1.115679443 | AL49: 1.314336283 | AM49: - | AN49: - | AO49: 0.8870967742 | AP49: 1.580645161 | AQ49: - | AR49: - | AS49: - | AT49: - | AV49: 326 - ACUTE INTERNAL MEDICINE | AW49: 0 | BR49: NVCSPRINGFIELD HOSPITAL | BS49: NVC18 | BT49: SPRINGFIELD HOSPITAL | BU49: NVC18 | BV49: SPRINGFIELD HOSPITAL | BW49: NVC
B50: 2 | D50: RWK61 | E50: TOWER HAMLETS CENTRE FOR MENTAL HEALTH | F50: Lea Ward | G50: 710 - ADULT MENTAL ILLNESS | I50: 667 | J50: 897.75 | K50: 678.5 | L50: 988.75 | M50: 0 | N50: 0 | O50: 0 | P50: 0 | Q50: 713 | R50: 690 | S50: 356.5 | T50: 471.5 | U50: 0 | V50: 0 | W50: 0 | X50: 0 | Y50: 0 | Z50: 0 | AA50: 0 | AB50: 0 | AC50: 548 | AD50: 2.897354015 | AE50: 2.664689781 | AF50: 0 | AG50: 0 | AH50: 0 | AI50: 0 | AJ50: 5.562043796 | AK50: 1.345952024 | AL50: 1.457258659 | AM50: - | AN50: - | AO50: 0.9677419355 | AP50: 1.322580645 | AQ50: - | AR50: - | AS50: - | AT50: - | AV50: 328 - STROKE MEDICINE | AW50: 0 | BR50: NVCTEES VALLEY TREATMENT CENTRE | BS50: NVC35 | BT50: TEES VALLEY TREATMENT CENTRE | BU50: NVC35 | BV50: TEES VALLEY TREATMENT CENTRE | BW50: NVC
B51: 2 | D51: RWK61 | E51: TOWER HAMLETS CENTRE FOR MENTAL HEALTH | F51: Leadenhall Ward | G51: 715 - OLD AGE PSYCHIATRY | I51: 598 | J51: 737 | K51: 713 | L51: 1144.5 | M51: 0 | N51: 0 | O51: 0 | P51: 0 | Q51: 713 | R51: 678.5 | S51: 345 | T51: 586.5 | U51: 0 | V51: 0 | W51: 0 | X51: 0 | Y51: 0 | Z51: 0 | AA51: 0 | AB51: 0 | AC51: 549 | AD51: 2.578324226 | AE51: 3.153005464 | AF51: 0 | AG51: 0 | AH51: 0 | AI51: 0 | AJ51: 5.73132969 | AK51: 1.232441472 | AL51: 1.605189341 | AM51: - | AN51: - | AO51: 0.9516129032 | AP51: 1.7 | AQ51: - | AR51: - | AS51: - | AT51: - | AV51: 330 - DERMATOLOGY | AW51: 0 | BR51: NVCTHE BERKSHIRE INDEPENDENT HOSPITAL | BS51: NVC02 | BT51: THE BERKSHIRE INDEPENDENT HOSPITAL | BU51: NVC02 | BV51: THE BERKSHIRE INDEPENDENT HOSPITAL | BW51: NVC
B52: 2 | D52: RWK61 | E52: TOWER HAMLETS CENTRE FOR MENTAL HEALTH | F52: Roman Ward | G52: 710 - ADULT MENTAL ILLNESS | I52: 713 | J52: 935.9833333 | K52: 644 | L52: 647.5 | M52: 0 | N52: 0 | O52: 0 | P52: 0 | Q52: 701.5 | R52: 675.5 | S52: 356.5 | T52: 438 | U52: 0 | V52: 0 | W52: 0 | X52: 0 | Y52: 0 | Z52: 0 | AA52: 0 | AB52: 0 | AC52: 505 | AD52: 3.191056106 | AE52: 2.14950495 | AF52: 0 | AG52: 0 | AH52: 0 | AI52: 0 | AJ52: 5.340561056 | AK52: 1.312739598 | AL52: 1.005434783 | AM52: - | AN52: - | AO52: 0.9629365645 | AP52: 1.228611501 | AQ52: - | AR52: - | AS52: - | AT52: - | AV52: 340 - RESPIRATORY MEDICINE | AW52: 0 | BR52: NVCTHE WESTBOURNE CENTRE | BS52: NVC44 | BT52: THE WESTBOURNE CENTRE | BU52: NVC44 | BV52: THE WESTBOURNE CENTRE | BW52: NVC
B53: 2 | D53: RWK61 | E53: TOWER HAMLETS CENTRE FOR MENTAL HEALTH | F53: Rosebank Ward | G53: 996 - PSYCHIATRIC INTENSIVE CARE UNIT | I53: 710.5 | J53: 802.5 | K53: 1415 | L53: 1690.5 | M53: 0 | N53: 0 | O53: 0 | P53: 0 | Q53: 713 | R53: 678.5 | S53: 1069.5 | T53: 1389.5 | U53: 0 | V53: 0 | W53: 0 | X53: 0 | Y53: 0 | Z53: 0 | AA53: 0 | AB53: 0 | AC53: 376 | AD53: 3.938829787 | AE53: 8.191489362 | AF53: 0 | AG53: 0 | AH53: 0 | AI53: 0 | AJ53: 12.13031915 | AK53: 1.129486277 | AL53: 1.194699647 | AM53: - | AN53: - | AO53: 0.9516129032 | AP53: 1.299205236 | AQ53: - | AR53: - | AS53: - | AT53: - | AV53: 350 - INFECTIOUS DISEASES | AW53: 0 | BR53: NVCTHE YORKSHIRE CLINIC | BS53: NVC20 | BT53: THE YORKSHIRE CLINIC | BU53: NVC20 | BV53: THE YORKSHIRE CLINIC | BW53: NVC
B54: 2 | D54: RWK61 | E54: TOWER HAMLETS CENTRE FOR MENTAL HEALTH | F54: Thames Hse | G54: 715 - OLD AGE PSYCHIATRY | I54: 712 | J54: 990 | K54: 695 | L54: 1134 | M54: 0 | N54: 0 | O54: 0 | P54: 0 | Q54: 713 | R54: 736 | S54: 356.5 | T54: 690 | U54: 0 | V54: 0 | W54: 0 | X54: 0 | Y54: 0 | Z54: 0 | AA54: 0 | AB54: 0 | AC54: 486 | AD54: 3.551440329 | AE54: 3.75308642 | AF54: 0 | AG54: 0 | AH54: 0 | AI54: 0 | AJ54: 7.304526749 | AK54: 1.390449438 | AL54: 1.631654676 | AM54: - | AN54: - | AO54: 1.032258065 | AP54: 1.935483871 | AQ54: - | AR54: - | AS54: - | AT54: - | AV54: 352 - TROPICAL MEDICINE | AW54: 0 | BR54: NVCWEST MIDLANDS HOSPITAL | BS54: NVC21 | BT54: WEST MIDLANDS HOSPITAL | BU54: NVC21 | BV54: WEST MIDLANDS HOSPITAL | BW54: NVC
B55: 2 | D55: RWK46 | E55: NEWHAM CENTRE FOR MENTAL HEALTH | F55: Emerald Ward | G55: 710 - ADULT MENTAL ILLNESS | I55: 695.5 | J55: 788 | K55: 714 | L55: 697.5 | M55: 0 | N55: 0 | O55: 0 | P55: 0 | Q55: 713 | R55: 713 | S55: 356.5 | T55: 356.5 | U55: 0 | V55: 0 | W55: 0 | X55: 0 | Y55: 0 | Z55: 0 | AA55: 0 | AB55: 0 | AC55: 479 | AD55: 3.133611691 | AE55: 2.200417537 | AF55: 0 | AG55: 0 | AH55: 0 | AI55: 0 | AJ55: 5.334029228 | AK55: 1.132997843 | AL55: 0.9768907563 | AM55: - | AN55: - | AO55: 1 | AP55: 1 | AQ55: - | AR55: - | AS55: - | AT55: - | AV55: 360 - GENITOURINARY MEDICINE | AW55: 0 | BR55: NVCWINFIELD HOSPITAL | BS55: NVC22 | BT55: WINFIELD HOSPITAL | BU55: NVC22 | BV55: WINFIELD HOSPITAL | BW55: NVC
B56: 2 | D56: RWK46 | E56: NEWHAM CENTRE FOR MENTAL HEALTH | F56: LONDON Crystal | G56: 996 - PSYCHIATRIC INTENSIVE CARE UNIT | I56: 677.5 | J56: 932.75 | K56: 1055.5 | L56: 1069.5 | M56: 0 | N56: 0 | O56: 0 | P56: 0 | Q56: 678.5 | R56: 713 | S56: 701.5 | T56: 1092.5 | U56: 0 | V56: 0 | W56: 0 | X56: 0 | Y56: 0 | Z56: 0 | AA56: 0 | AB56: 0 | AC56: 277 | AD56: 5.94133574 | AE56: 7.805054152 | AF56: 0 | AG56: 0 | AH56: 0 | AI56: 0 | AJ56: 13.74638989 | AK56: 1.376752768 | AL56: 1.013263856 | AM56: - | AN56: - | AO56: 1.050847458 | AP56: 1.557377049 | AQ56: - | AR56: - | AS56: - | AT56: - | AV56: 361 - NEPHROLOGY | AW56: 0 | BR56: NVCWOODLAND HOSPITAL | BS56: NVC23 | BT56: WOODLAND HOSPITAL | BU56: NVC23 | BV56: WOODLAND HOSPITAL | BW56: NVC
B57: 2 | D57: RWK46 | E57: NEWHAM CENTRE FOR MENTAL HEALTH | F57: NEW Ivory | G57: 710 - ADULT MENTAL ILLNESS | I57: 713 | J57: 1041 | K57: 701.5 | L57: 1128 | M57: 0 | N57: 0 | O57: 0 | P57: 0 | Q57: 713 | R57: 827.5 | S57: 356.5 | T57: 747.5 | U57: 0 | V57: 0 | W57: 0 | X57: 0 | Y57: 0 | Z57: 0 | AA57: 0 | AB57: 0 | AC57: 353 | AD57: 5.293201133 | AE57: 5.313031161 | AF57: 0 | AG57: 0 | AH57: 0 | AI57: 0 | AJ57: 10.60623229 | AK57: 1.46002805 | AL57: 1.607982894 | AM57: - | AN57: - | AO57: 1.16058906 | AP57: 2.096774194 | AQ57: - | AR57: - | AS57: - | AT57: - | AV57: 370 - MEDICAL ONCOLOGY | AW57: 0 | BM57: Incorrect Ward Name | BR57: R0AMANCHESTER ROYAL EYE HOSPITAL | BS57: R0A04 | BT57: MANCHESTER ROYAL EYE HOSPITAL | BU57: R0A04 | BV57: MANCHESTER ROYAL EYE HOSPITAL | BW57: R0A
B58: 2 | D58: RWK46 | E58: NEWHAM CENTRE FOR MENTAL HEALTH | F58: Opal Ward | G58: 710 - ADULT MENTAL ILLNESS | I58: 164.5 | J58: 986.75 | K58: 1069 | L58: 1028 | M58: 0 | N58: 0 | O58: 0 | P58: 0 | Q58: 707.5 | R58: 697 | S58: 356.5 | T58: 379.5 | U58: 0 | V58: 0 | W58: 0 | X58: 0 | Y58: 0 | Z58: 0 | AA58: 0 | AB58: 0 | AC58: 536 | AD58: 3.141324627 | AE58: 2.625932836 | AF58: 0 | AG58: 0 | AH58: 0 | AI58: 0 | AJ58: 5.767257463 | AK58: 5.998480243 | AL58: 0.9616463985 | AM58: - | AN58: - | AO58: 0.9851590106 | AP58: 1.064516129 | AQ58: - | AR58: - | AS58: - | AT58: - | AV58: 399 - PSYCHIATRY SERVICES | AW58: 0 | BR58: R0AMANCHESTER ROYAL INFIRMARY | BS58: R0A02 | BT58: MANCHESTER ROYAL INFIRMARY | BU58: R0A02 | BV58: MANCHESTER ROYAL INFIRMARY | BW58: R0A
B59: 2 | D59: RWK46 | E59: NEWHAM CENTRE FOR MENTAL HEALTH | F59: Ruby Triage Ward | G59: 710 - ADULT MENTAL ILLNESS | I59: 859.5 | J59: 1154.75 | K59: 685.5 | L59: 943.5 | M59: 0 | N59: 0 | O59: 0 | P59: 0 | Q59: 690 | R59: 690 | S59: 713 | T59: 759 | U59: 0 | V59: 0 | W59: 0 | X59: 0 | Y59: 0 | Z59: 0 | AA59: 0 | AB59: 0 | AC59: 428 | AD59: 4.310163551 | AE59: 3.977803738 | AF59: 0 | AG59: 0 | AH59: 0 | AI59: 0 | AJ59: 8.28796729 | AK59: 1.343513671 | AL59: 1.376367615 | AM59: - | AN59: - | AO59: 1 | AP59: 1.064516129 | AQ59: - | AR59: - | AS59: - | AT59: - | AV59: 400 - NEUROLOGY | AW59: 0 | BR59: R0AROYAL MANCHESTER CHILDREN'S HOSPITAL | BS59: R0A03 | BT59: ROYAL MANCHESTER CHILDREN'S HOSPITAL | BU59: R0A03 | BV59: ROYAL MANCHESTER CHILDREN'S HOSPITAL | BW59: R0A
B60: 2 | D60: RWK46 | E60: NEWHAM CENTRE FOR MENTAL HEALTH | F60: Sapphire Ward | G60: 710 - ADULT MENTAL ILLNESS | I60: 805.5 | J60: 800 | K60: 964 | L60: 927 | M60: 0 | N60: 0 | O60: 0 | P60: 0 | Q60: 713 | R60: 770.5 | S60: 356.5 | T60: 356.5 | U60: 0 | V60: 0 | W60: 0 | X60: 0 | Y60: 0 | Z60: 0 | AA60: 0 | AB60: 0 | AC60: 394 | AD60: 3.986040609 | AE60: 3.257614213 | AF60: 0 | AG60: 0 | AH60: 0 | AI60: 0 | AJ60: 7.243654822 | AK60: 0.9931719429 | AL60: 0.9616182573 | AM60: - | AN60: - | AO60: 1.080645161 | AP60: 1 | AQ60: - | AR60: - | AS60: - | AT60: - | AV60: 401 - CLINICAL NEURO-PHYSIOLOGY | AW60: 0 | BR60: R0AST MARY'S HOSPITAL | BS60: R0A05 | BT60: ST MARY'S HOSPITAL | BU60: R0A05 | BV60: ST MARY'S HOSPITAL | BW60: R0A
B61: 2 | D61: RWK46 | E61: NEWHAM CENTRE FOR MENTAL HEALTH | F61: Topaz Ward | G61: 710 - ADULT MENTAL ILLNESS | I61: 696.5 | J61: 731 | K61: 714.5 | L61: 699.5 | M61: 0 | N61: 0 | O61: 0 | P61: 0 | Q61: 666 | R61: 700.5 | S61: 356.5 | T61: 414 | U61: 0 | V61: 0 | W61: 0 | X61: 0 | Y61: 0 | Z61: 0 | AA61: 0 | AB61: 0 | AC61: 428 | AD61: 3.344626168 | AE61: 2.601635514 | AF61: 0 | AG61: 0 | AH61: 0 | AI61: 0 | AJ61: 5.946261682 | AK61: 1.049533381 | AL61: 0.9790062981 | AM61: - | AN61: - | AO61: 1.051801802 | AP61: 1.161290323 | AQ61: - | AR61: - | AS61: - | AT61: - | AV61: 410 - RHEUMATOLOGY | AW61: 0 | BR61: R0ATRAFFORD GENERAL HOSPITAL | BS61: R0A09 | BT61: TRAFFORD GENERAL HOSPITAL | BU61: R0A09 | BV61: TRAFFORD GENERAL HOSPITAL | BW61: R0A
B62: 2 | D62: RWK46 | E62: NEWHAM CENTRE FOR MENTAL HEALTH | F62: Coborn-Galaxy Ward | G62: 711 - CHILD AND ADOLESCENT PSYCHIATRY | I62: 931.1 | J62: 1167.183333 | K62: 1076.75 | L62: 1796.45 | M62: 0 | N62: 0 | O62: 0 | P62: 0 | Q62: 682 | R62: 680.9166667 | S62: 1022.666667 | T62: 1066.083333 | U62: 0 | V62: 0 | W62: 0 | X62: 0 | Y62: 0 | Z62: 0 | AA62: 0 | AB62: 0 | AC62: 304 | AD62: 6.079276316 | AE62: 9.41622807 | AF62: 0 | AG62: 0 | AH62: 0 | AI62: 0 | AJ62: 15.49550439 | AK62: 1.253553145 | AL62: 1.668400279 | AM62: - | AN62: - | AO62: 0.9984115347 | AP62: 1.042454368 | AQ62: - | AR62: - | AS62: - | AT62: - | AV62: 420 - PAEDIATRICS | AW62: 0 | BR62: R0AUNIVERSITY DENTAL HOSPITAL | BS62: R0A06 | BT62: UNIVERSITY DENTAL HOSPITAL | BU62: R0A06 | BV62: UNIVERSITY DENTAL HOSPITAL | BW62: R0A
B63: 2 | D63: RWK46 | E63: NEWHAM CENTRE FOR MENTAL HEALTH | F63: Coborn Acute | G63: 711 - CHILD AND ADOLESCENT PSYCHIATRY | I63: 779.5666667 | J63: 762.7333333 | K63: 1057.55 | L63: 2037.516667 | M63: 0 | N63: 0 | O63: 0 | P63: 0 | Q63: 658.75 | R63: 530.1666667 | S63: 667 | T63: 786.7333333 | U63: 0 | V63: 0 | W63: 0 | X63: 0 | Y63: 0 | Z63: 0 | AA63: 0 | AB63: 0 | AC63: 361 | AD63: 3.581440443 | AE63: 7.823407202 | AF63: 0 | AG63: 0 | AH63: 0 | AI63: 0 | AJ63: 11.40484765 | AK63: 0.9784068072 | AL63: 1.926638614 | AM63: - | AN63: - | AO63: 0.8048070841 | AP63: 1.179510245 | AQ63: - | AR63: - | AS63: - | AT63: - | AV63: 421 - PAEDIATRIC NEUROLOGY | AW63: 0 | BR63: R0AWYTHENSHAWE HOSPITAL | BS63: R0A07 | BT63: WYTHENSHAWE HOSPITAL | BU63: R0A07 | BV63: WYTHENSHAWE HOSPITAL | BW63: R0A
B64: 2 | D64: RWK46 | E64: NEWHAM CENTRE FOR MENTAL HEALTH | F64: Coborn PICU | G64: 711 - CHILD AND ADOLESCENT PSYCHIATRY | H64: 996 - PSYCHIATRIC INTENSIVE CARE UNIT | I64: 780.1666667 | J64: 569.1666667 | K64: 322.3333333 | L64: 868.9333333 | M64: 0 | N64: 0 | O64: 0 | P64: 0 | Q64: 335 | R64: 403 | S64: 338 | T64: 628.1666667 | U64: 0 | V64: 0 | W64: 0 | X64: 0 | Y64: 0 | Z64: 0 | AA64: 0 | AB64: 0 | AC64: 124 | AD64: 7.840053763 | AE64: 12.0733871 | AF64: 0 | AG64: 0 | AH64: 0 | AI64: 0 | AJ64: 19.91344086 | AK64: 0.729544969 | AL64: 2.695760083 | AM64: - | AN64: - | AO64: 1.202985075 | AP64: 1.858481262 | AQ64: - | AR64: - | AS64: - | AT64: - | AV64: 422 - NEONATOLOGY | AW64: 0 | BR64: R0BMONKTON HALL HOSPITAL | BS64: R0B1J | BT64: MONKTON HALL HOSPITAL | BU64: R0B1J | BV64: MONKTON HALL HOSPITAL | BW64: R0B
B65: 2 | D65: RWK89 | E65: EAST HAM CARE CENTRE | F65: Sally Sherman Ward | G65: 715 - OLD AGE PSYCHIATRY | I65: 711.5 | J65: 802.25 | K65: 1541.5 | L65: 1506 | M65: 0 | N65: 0 | O65: 0 | P65: 0 | Q65: 356.5 | R65: 356.5 | S65: 1058 | T65: 1426 | U65: 0 | V65: 0 | W65: 0 | X65: 0 | Y65: 0 | Z65: 0 | AA65: 0 | AB65: 0 | AC65: 341 | AD65: 3.398093842 | AE65: 8.598240469 | AF65: 0 | AG65: 0 | AH65: 0 | AI65: 0 | AJ65: 11.99633431 | AK65: 1.127547435 | AL65: 0.9769704833 | AM65: - | AN65: - | AO65: 1 | AP65: 1.347826087 | AQ65: - | AR65: - | AS65: - | AT65: - | AV65: 424 - WELL BABIES | AW65: 0 | BR65: =CONCATENATE(LEFT(BS65, 3),BT65) -> R0BSOUTH TYNESIDE DISTRICT HOSPITAL | BS65: R0B0Q | BT65: SOUTH TYNESIDE DISTRICT HOSPITAL | BU65: R0B0Q | BV65: SOUTH TYNESIDE DISTRICT HOSPITAL | BW65: R0B
B66: 2 | D66: RWK89 | E66: EAST HAM CARE CENTRE | F66: Fothergill Ward | G66: 430 - GERIATRIC MEDICINE | I66: 699.5 | J66: 1099.5 | K66: 2149.983333 | L66: 2103.983333 | M66: 0 | N66: 0 | O66: 0 | P66: 0 | Q66: 713 | R66: 701.5 | S66: 1426 | T66: 1426 | U66: 0 | V66: 0 | W66: 0 | X66: 0 | Y66: 0 | Z66: 0 | AA66: 0 | AB66: 0 | AC66: 596 | AD66: 3.021812081 | AE66: 5.922790828 | AF66: 0 | AG66: 0 | AH66: 0 | AI66: 0 | AJ66: 8.944602908 | AK66: 1.571837026 | AL66: 0.9786044853 | AM66: - | AN66: - | AO66: 0.9838709677 | AP66: 1 | AQ66: - | AR66: - | AS66: - | AT66: - | AV66: 430 - GERIATRIC MEDICINE | AW66: 0 | BR66: R0BST BENEDICT'S HOSPICE | BS66: R0B0U | BT66: ST BENEDICT'S HOSPICE | BU66: R0B0U | BV66: ST BENEDICT'S HOSPICE | BW66: R0B
B67: 2 | D67: RWK60 | E67: FORENSIC CENTRE FOR MENTAL HEALTH | F67: Aldgate Ward | G67: 712 - FORENSIC PSYCHIATRY | I67: 721 | J67: 942.75 | K67: 1116 | L67: 894 | M67: 0 | N67: 0 | O67: 0 | P67: 0 | Q67: 341 | R67: 506 | S67: 341 | T67: 539 | U67: 0 | V67: 0 | W67: 0 | X67: 0 | Y67: 0 | Z67: 0 | AA67: 0 | AB67: 0 | AC67: 310 | AD67: 4.673387097 | AE67: 4.622580645 | AF67: 0 | AG67: 0 | AH67: 0 | AI67: 0 | AJ67: 9.295967742 | AK67: 1.307558946 | AL67: 0.8010752688 | AM67: - | AN67: - | AO67: 1.483870968 | AP67: 1.580645161 | AQ67: - | AR67: - | AS67: - | AT67: - | AV67: 450 - DENTAL MEDICINE SPECIALTIES | AW67: 0 | BR67: R0BSUNDERLAND EYE INFIRMARY | BS67: R0B0X | BT67: SUNDERLAND EYE INFIRMARY | BU67: R0B0X | BV67: SUNDERLAND EYE INFIRMARY | BW67: R0B
B68: 2 | D68: RWK61 | E68: toWER HAMLETS CENTRE FOR MENTAL HEALTH | F68: Millharbour | G68: 996 - PSYCHIATRIC INTENSIVE CARE UNIT | I68: 665 | J68: 685 | K68: 681.5 | L68: 1272.5 | M68: 0 | N68: 0 | O68: 0 | P68: 0 | Q68: 632.5 | R68: 657.5 | S68: 345 | T68: 828 | U68: 0 | V68: 0 | W68: 0 | X68: 0 | Y68: 0 | Z68: 0 | AA68: 0 | AB68: 0 | AC68: 319 | AD68: 4.20846395 | AE68: 6.584639498 | AF68: 0 | AG68: 0 | AH68: 0 | AI68: 0 | AJ68: 10.79310345 | AK68: 1.030075188 | AL68: 1.867204696 | AM68: - | AN68: - | AO68: 1.039525692 | AP68: 2.4 | AQ68: - | AR68: - | AS68: - | AT68: - | AV68: 460 - MEDICAL OPHTHALMOLOGY | AW68: 0 | BR68: R0BSUNDERLAND ROYAL HOSPITAL | BS68: R0B01 | BT68: SUNDERLAND ROYAL HOSPITAL | BU68: R0B01 | BV68: SUNDERLAND ROYAL HOSPITAL | BW68: R0B
B69: 0 | AV69: 501 - OBSTETRICS | AW69: 0 | BR69: R1AACONBURY UNIT | BS69: R1ADY | BT69: ACONBURY UNIT | BU69: R1ADY | BV69: ACONBURY UNIT | BW69: =LEFT(BU69,3) -> R1A
B70: 0 | AV70: 502 - GYNAECOLOGY | AW70: 0 | BR70: R1AALEXANDRA HOSPITAL | BS70: R1AAL | BT70: ALEXANDRA HOSPITAL | BU70: R1AAL | BV70: ALEXANDRA HOSPITAL | BW70: R1A
B71: 0 | AV71: 560 - MIDWIFE LED CARE | AW71: 0 | BR71: R1AARROWSIDE UNIT (ALEXANDRA HOSPITAL) | BS71: R1A1X | BT71: ARROWSIDE UNIT (ALEXANDRA HOSPITAL) | BU71: R1A1X | BV71: ARROWSIDE UNIT (ALEXANDRA HOSPITAL) | BW71: R1A
B72: 0 | AV72: 700 - LEARNING DISABILITY | AW72: 0 | BR72: R1ABATCHLEY FIRST NURSERY PLUS | BS72: R1AHC | BT72: BATCHLEY FIRST NURSERY PLUS | BU72: R1AHC | BV72: BATCHLEY FIRST NURSERY PLUS | BW72: R1A
B73: 0 | AV73: 710 - ADULT MENTAL ILLNESS | AW73: 0 | BR73: R1ABEACONSIDE AUTISM BASE | BS73: R1A05 | BT73: BEACONSIDE AUTISM BASE | BU73: R1A05 | BV73: BEACONSIDE AUTISM BASE | BW73: R1A
B74: 0 | AV74: 711 - CHILD AND ADOLESCENT PSYCHIATRY | AW74: 0 | BR74: R1ABIRMINGHAM CHILDREN'S HOSPITAL | BS74: R1A03 | BT74: BIRMINGHAM CHILDREN'S HOSPITAL | BU74: R1A03 | BV74: BIRMINGHAM CHILDREN'S HOSPITAL | BW74: R1A
B75: 0 | AV75: 712 - FORENSIC PSYCHIATRY | AW75: 0 | BR75: R1ACHURCHVIEW HOUSE | BS75: R1ACD | BT75: CHURCHVIEW HOUSE | BU75: R1ACD | BV75: CHURCHVIEW HOUSE | BW75: R1A
B76: 0 | AV76: 713 - PSYCHOTHERAPY | AW76: 0 | BR76: R1ACOMM HOSP WARDS (EVESHAM) | BS76: R1ARE | BT76: COMM HOSP WARDS (EVESHAM) | BU76: R1ARE | BV76: COMM HOSP WARDS (EVESHAM) | BW76: R1A
B77: 0 | AV77: 715 - OLD AGE PSYCHIATRY | AW77: 0 | BR77: R1ACOMM HOSP WARDS (MALVERN) | BS77: R1ARG | BT77: COMM HOSP WARDS (MALVERN) | BU77: R1ARG | BV77: COMM HOSP WARDS (MALVERN) | BW77: R1A
B78: =IF(SUM(E279:G279,Q279:R279)>0,1,IF(AU279>0,2,0)) -> 0 | AV78: 800 - CLINICAL ONCOLOGY | AW78: 0 | BR78: R1ACOMM HOSP WARDS (PERSHORE) | BS78: R1ARJ | BT78: COMM HOSP WARDS (PERSHORE) | BU78: R1ARJ | BV78: COMM HOSP WARDS (PERSHORE) | BW78: R1A
B79: 0 | D79: =IF(ISNA(VLOOKUP($E$5&E79,$BR:$BS,2,FALSE)),"",VLOOKUP($E$5&E79,$BR:$BS,2,FALSE)) ->  | AD79: =IF(ISERROR(IF($AC79="","",SUM(J79,R79)/$AC79)),"-",(IF($AC79="","",SUM(J79,R79)/$AC79))) ->  | AE79: =IF(ISERROR(IF($AC79="","",SUM(L79,T79)/$AC79)),"-",(IF($AC79="","",SUM(L79,T79)/$AC79))) ->  | AF79: =IF(ISERROR(IF($AC79="","",SUM(N79,V79)/$AC79)),"-",(IF($AC79="","",SUM(N79,V79)/$AC79))) ->  | AG79: =IF(ISERROR(IF($AC79="","",SUM(P79,X79)/$AC79)),"-",(IF($AC79="","",SUM(P79,X79)/$AC79))) ->  | AH79: =IF(ISERROR(IF($AC79="","",Z79/$AC79)),"-",(IF($AC79="","",Z79/$AC79))) ->  | AI79: =IF(ISERROR(IF($AC79="","",AB79/$AC79)),"-",(IF($AC79="","",AB79/$AC79))) ->  | AJ79: =IF(ISERROR(IF($AC79="","",SUM(J79,L79,R79,T79,Z79,AB79,X79,P79,V79,N79)/$AC79)),"-",(IF($AC79="","",SUM(J79,L79,R79,T79,Z79,AB79,X79,P79,V79,N79)/$AC79))) ->  | AK79: =IF(ISERROR(IF($I79="","",J79/I79)),"-",(IF($I79="","",J79/I79))) ->  | AL79: =IF(ISERROR(IF(K79="","",L79/K79)),"-",(IF(K79="","",L79/K79))) ->  | AM79: =IF(ISERROR(IF(M79="","",N79/M79)),"-",(IF(M79="","",N79/M79))) ->  | AN79: =IF(ISERROR(IF(O79="","",P79/O79)),"-",(IF(O79="","",P79/O79))) ->  | AO79: =IF(ISERROR(IF(Q79="","",R79/Q79)),"-",(IF(Q79="","",R79/Q79))) ->  | AP79: =IF(ISERROR(IF(S79="","",T79/S79)),"-",IF(S79="","",T79/S79)) ->  | AQ79: =IF(ISERROR(IF(U79="","",V79/U79)),"-",IF(U79="","",V79/U79)) ->  | AR79: =IF(ISERROR(IF(W79="","",X79/W79)),"-",IF(W79="","",X79/W79)) ->  | AS79: =IF(ISERROR(IF(Y79="","",Z79/Y79)),"-",IF(Y79="","",Z79/Y79)) ->  | AT79: =IF(ISERROR(IF(AA79="","",AB79/AA79)),"-",IF(AA79="","",AB79/AA79)) ->  | AV79: 810 - RADIOLOGY | AW79: 0 | BG79: =IF(Q280=1,"No Site Selected","") ->  | BH79: =IF(R280=1,"No Ward Name","") ->  | BI79: =IF(ISNUMBER((IFERROR(FIND(CHAR(10),F79),"")))=TRUE,1,"") ->  | BM79: =IF(C280=1,"Incorrect Ward Name","") ->  | BR79: R1ACOMM HOSP WARDS (TENBURY) | BS79: R1ARL | BT79: COMM HOSP WARDS (TENBURY) | BU79: R1ARL | BV79: COMM HOSP WARDS (TENBURY) | BW79: R1A
B80: 0 | AV80: 822 - CHEMICAL PATHOLOGY | AW80: 0 | BR80: R1ACOMM HOSP WARDS (WF GP UNIT) | BS80: R1ARN | BT80: COMM HOSP WARDS (WF GP UNIT) | BU80: R1ARN | BV80: COMM HOSP WARDS (WF GP UNIT) | BW80: R1A
A81: =IF(Q282=1,"No Site Selected",IF(R282=1,"No Ward Name","")) ->  | B81: 0 | AV81: 823 - HAEMATOLOGY | AW81: 0 | BR81: R1ACOMMUNITY FIRST | BS81: R1A94 | BT81: COMMUNITY FIRST | BU81: R1A94 | BV81: COMMUNITY FIRST | BW81: R1A
B82: 0 | AV82: 879 - COMMUNITY NURSING | AW82: 0 | BR82: R1ACOMMUNITY HOSP WARDS (POWCH) | BS82: R1ARK | BT82: COMMUNITY HOSP WARDS (POWCH) | BU82: R1ARK | BV82: COMMUNITY HOSP WARDS (POWCH) | BW82: R1A
B83: 0 | AV83: 901 - OCCUPATIONAL MEDICINE | AW83: 0 | BR83: R1ACOMMUNITY INREACH EVESHAM | BS83: R1AJX | BT83: COMMUNITY INREACH EVESHAM | BU83: R1AJX | BV83: COMMUNITY INREACH EVESHAM | BW83: R1A
B84: 0 | AV84: 903 - PUBLIC HEALTH MEDICINE | AW84: 0 | BR84: R1ACOMMUNITY INREACH REDDITCH 6 | BS84: R1AJV | BT84: COMMUNITY INREACH REDDITCH 6 | BU84: R1AJV | BV84: COMMUNITY INREACH REDDITCH 6 | BW84: R1A
B85: 0 | AV85: 920 - ORTHOTICS AND PROSTHETICS | AW85: 0 | BR85: R1ACOMMUNITY INREACH REDDITCH 8 | BS85: R1AJY | BT85: COMMUNITY INREACH REDDITCH 8 | BU85: R1AJY | BV85: COMMUNITY INREACH REDDITCH 8 | BW85: R1A
B86: 0 | AV86: 921 - GENETICS | AW86: 0 | BR86: R1ACOMMUNITY PAEDESTRICIANS-1 | BS86: R1AQQ | BT86: COMMUNITY PAEDESTRICIANS-1 | BU86: R1AQQ | BV86: COMMUNITY PAEDESTRICIANS-1 | BW86: R1A
B87: 0 | AV87: 922 - SEXUAL HEALTH SERVICES | AW87: 0 | BR87: R1ACOMMUNITY UNIT | BS87: R1ADV | BT87: COMMUNITY UNIT | BU87: R1ADV | BV87: COMMUNITY UNIT | BW87: R1A
B88: 0 | AV88: 923 - DIAGNOSTIC PATHOLOGY | AW88: 0 | BR88: R1ACOMMUNITY VENUE | BS88: R1A76 | BT88: COMMUNITY VENUE | BU88: R1A76 | BV88: COMMUNITY VENUE | BW88: R1A
B89: 0 | AV89: 924 - BLOOD DONOR CENTRES | AW89: 0 | BR89: R1ACOVERCROFT | BS89: R1APF | BT89: COVERCROFT | BU89: R1APF | BV89: COVERCROFT | BW89: R1A
B90: 0 | AV90: 925 - COMMUNITY CARE SERVICES | AW90: 0 | BR90: R1ACROMWELL HOUSE | BS90: R1AAV | BT90: CROMWELL HOUSE | BU90: R1AAV | BV90: CROMWELL HOUSE | BW90: R1A
B91: 0 | AV91: 926 - THERAPY SERVICES | AW91: 0 | BR91: R1ACROWNGATE PHYSIOTHERAPY | BS91: R1A82 | BT91: CROWNGATE PHYSIOTHERAPY | BU91: R1A82 | BV91: CROWNGATE PHYSIOTHERAPY | BW91: R1A
B92: 0 | AV92: 927 - PHYSICAL HEALTH REHABILITATION | AW92: 0 | BR92: R1ADROITWICH SPA PRIVATE HOSPITAL | BS92: R1AFT | BT92: DROITWICH SPA PRIVATE HOSPITAL | BU92: R1AFT | BV92: DROITWICH SPA PRIVATE HOSPITAL | BW92: R1A
B93: 0 | AV93: 928 - MENTAL HEALTH REHABILITATION | AW93: 0 | BR93: R1AELGAR UNIT | BS93: R1ADW | BT93: ELGAR UNIT | BU93: R1ADW | BV93: ELGAR UNIT | BW93: R1A
B94: 0 | AV94: 929 - NEURO-REHABILITATION | AW94: 0 | BR94: R1AESTATES BUILDING | BS94: R1ACE | BT94: ESTATES BUILDING | BU94: R1ACE | BV94: ESTATES BUILDING | BW94: R1A
B95: 0 | AV95: 996 - PSYCHIATRIC INTENSIVE CARE UNIT | AW95: 0 | BR95: R1AEVESHAM COMMUNITY HOSPITAL | BS95: R1A1P | BT95: EVESHAM COMMUNITY HOSPITAL | BU95: R1A1P | BV95: EVESHAM COMMUNITY HOSPITAL | BW95: R1A
B96: 0 | BR96: R1AGOLD HILL CARE HOME | BS96: R1AKK | BT96: GOLD HILL CARE HOME | BU96: R1AKK | BV96: GOLD HILL CARE HOME | BW96: R1A
B97: 0 | BR97: R1AHASTINGS CARE HOME | BS97: R1AKG | BT97: HASTINGS CARE HOME | BU97: R1AKG | BV97: HASTINGS CARE HOME | BW97: R1A
B98: 0 | BR98: R1AHILL CREST 1 | BS98: R1APM | BT98: HILL CREST 1 | BU98: R1APM | BV98: HILL CREST 1 | BW98: R1A
B99: 0 | BR99: R1AHILL CREST 2 | BS99: R1APQ | BT99: HILL CREST 2 | BU99: R1APQ | BV99: HILL CREST 2 | BW99: R1A
B100: 0 | BR100: R1AHILL CREST MENTAL HEALTH UNIT | BS100: R1A49 | BT100: HILL CREST MENTAL HEALTH UNIT | BU100: R1A49 | BV100: HILL CREST MENTAL HEALTH UNIT | BW100: R1A
B101: 0 | BR101: R1AHOME FARM TRUST | BS101: R1A89 | BT101: HOME FARM TRUST | BU101: R1A89 | BV101: HOME FARM TRUST | BW101: R1A
B102: 0 | BR102: R1AHOME TREATMENT 1 | BS102: R1APL | BT102: HOME TREATMENT 1 | BU102: R1APL | BV102: HOME TREATMENT 1 | BW102: R1A
B103: 0 | BR103: R1AHOME TREATMENT 2 | BS103: R1APN | BT103: HOME TREATMENT 2 | BU103: R1APN | BV103: HOME TREATMENT 2 | BW103: R1A
B104: 0 | BR104: R1AHOMEWARD BOUND UNIT | BS104: R1ADE | BT104: HOMEWARD BOUND UNIT | BU104: R1ADE | BV104: HOMEWARD BOUND UNIT | BW104: R1A
B105: 0 | BR105: R1AKEITH WINTER CLOSE MENTAL HEALTH UNIT | BS105: R1A22 | BT105: KEITH WINTER CLOSE MENTAL HEALTH UNIT | BU105: R1A22 | BV105: KEITH WINTER CLOSE MENTAL HEALTH UNIT | BW105: R1A
B106: 0 | BR106: R1AKEMPSEY PARISH HALL | BS106: R1AHL | BT106: KEMPSEY PARISH HALL | BU106: R1AHL | BV106: KEMPSEY PARISH HALL | BW106: R1A
B107: 0 | BR107: R1ALICKEY LANGUAGE UNIT | BS107: R1AHV | BT107: LICKEY LANGUAGE UNIT | BU107: R1AHV | BV107: LICKEY LANGUAGE UNIT | BW107: R1A
B108: 0 | BR108: R1ALINK HORTICULTURIAL NURSERIES - SHELTERED EMPLOYMENT | BS108: R1AAE | BT108: LINK HORTICULTURIAL NURSERIES - SHELTERED EMPLOYMENT | BU108: R1AAE | BV108: LINK HORTICULTURIAL NURSERIES - SHELTERED EMPLOYMENT | BW108: R1A
B109: 0 | BR109: R1ALUDLOW ROAD | BS109: R1A58 | BT109: LUDLOW ROAD | BU109: R1A58 | BV109: LUDLOW ROAD | BW109: R1A
B110: =IF(SUM(E311:G311,Q311:R311)>0,1,IF(AU311>0,2,0)) -> 0 | BR110: R1AMALVERN COMMUNITY HOSPITAL | BS110: R1ADC | BT110: MALVERN COMMUNITY HOSPITAL | BU110: R1ADC | BV110: MALVERN COMMUNITY HOSPITAL | BW110: R1A
B111: 0 | D111: =IF(ISNA(VLOOKUP($E$5&E111,$BR:$BS,2,FALSE)),"",VLOOKUP($E$5&E111,$BR:$BS,2,FALSE)) ->  | BR111: R1AMATCHBOROUGH FIRST NURSERY PLUS | BS111: R1AHF | BT111: MATCHBOROUGH FIRST NURSERY PLUS | BU111: R1AHF | BV111: MATCHBOROUGH FIRST NURSERY PLUS | BW111: R1A
B112: 0 | BR112: R1ANEW BROOK | BS112: R1ACF | BT112: NEW BROOK | BU112: R1ACF | BV112: NEW BROOK | BW112: R1A
B113: 0 | BR113: R1ANEW BROOK UNIT 1 | BS113: R1APK | BT113: NEW BROOK UNIT 1 | BU113: R1APK | BV113: NEW BROOK UNIT 1 | BW113: R1A
B114: 0 | BR114: R1ANEW BROOK UNIT 2 | BS114: R1APP | BT114: NEW BROOK UNIT 2 | BU114: R1APP | BV114: NEW BROOK UNIT 2 | BW114: R1A
B115: 0 | BR115: R1ANEW CROSS HOSPITAL | BS115: R1A1N | BT115: NEW CROSS HOSPITAL | BU115: R1A1N | BV115: NEW CROSS HOSPITAL | BW115: R1A
B116: 0 | BR116: R1ANEW HAVEN (MENTAL HEALTH UNIT) | BS116: R1ACC | BT116: NEW HAVEN (MENTAL HEALTH UNIT) | BU116: R1ACC | BV116: NEW HAVEN (MENTAL HEALTH UNIT) | BW116: R1A
B117: 0 | BR117: R1ANEWTOWN HOSPITAL | BS117: R1A07 | BT117: NEWTOWN HOSPITAL | BU117: R1A07 | BV117: NEWTOWN HOSPITAL | BW117: R1A
B118: 0 | BR118: R1AORCHARD PLACE | BS118: R1A37 | BT118: ORCHARD PLACE | BU118: R1A37 | BV118: ORCHARD PLACE | BW118: R1A
B119: 0 | BR119: R1AOSBORNE COURT | BS119: R1ACY | BT119: OSBORNE COURT | BU119: R1ACY | BV119: OSBORNE COURT | BW119: R1A
B120: 0 | BR120: R1AOT STORES | BS120: R1AGK | BT120: OT STORES | BU120: R1AGK | BV120: OT STORES | BW120: R1A
B121: 0 | BR121: R1APALLIATIVE CARE (R&B) | BS121: R1AQP | BT121: PALLIATIVE CARE (R&B) | BU121: R1AQP | BV121: PALLIATIVE CARE (R&B) | BW121: R1A
B122: 0 | BR122: R1APALLIATIVE CARE (SW) | BS122: R1ART | BT122: PALLIATIVE CARE (SW) | BU122: R1ART | BV122: PALLIATIVE CARE (SW) | BW122: R1A
B123: 0 | BR123: R1APALLIATIVE CARE (WF) | BS123: R1ARR | BT123: PALLIATIVE CARE (WF) | BU123: R1ARR | BV123: PALLIATIVE CARE (WF) | BW123: R1A
B124: 0 | BR124: R1APARKSIDE MIDDLE AUTISM BASE | BS124: R1AEM | BT124: PARKSIDE MIDDLE AUTISM BASE | BU124: R1AEM | BV124: PARKSIDE MIDDLE AUTISM BASE | BW124: R1A
B125: 0 | BR125: R1APERSHORE HOSPITAL | BS125: R1ACW | BT125: PERSHORE HOSPITAL | BU125: R1ACW | BV125: PERSHORE HOSPITAL | BW125: R1A
B126: 0 | BR126: R1APHYSIO UNIT ROSEHILL | BS126: R1AA6 | BT126: PHYSIO UNIT ROSEHILL | BU126: R1AA6 | BV126: PHYSIO UNIT ROSEHILL | BW126: R1A
B127: 0 | BR127: R1APHYSIO UNIT THORNTON | BS127: R1A1A | BT127: PHYSIO UNIT THORNTON | BU127: R1A1A | BV127: PHYSIO UNIT THORNTON | BW127: R1A
B128: 0 | BR128: R1APOSTNATAL UNIT | BS128: R1ADM | BT128: POSTNATAL UNIT | BU128: R1ADM | BV128: POSTNATAL UNIT | BW128: R1A
B129: 0 | BR129: =CONCATENATE(LEFT(BS129, 3),BT129) -> R1APRINCESS OF WALES HOSPITAL | BS129: R1ACG | BT129: PRINCESS OF WALES HOSPITAL | BU129: R1ACG | BV129: PRINCESS OF WALES HOSPITAL | BW129: R1A
B130: 0 | BR130: R1APUPIL REFERRAL UNIT | BS130: R1A60 | BT130: PUPIL REFERRAL UNIT | BU130: R1A60 | BV130: PUPIL REFERRAL UNIT | BW130: R1A
B131: 0 | BR131: R1AQUEEN ELIZABETH HOSPITAL | BS131: R1A02 | BT131: QUEEN ELIZABETH HOSPITAL | BU131: R1A02 | BV131: QUEEN ELIZABETH HOSPITAL | BW131: R1A
B132: 0 | BR132: R1ARIVENDELL | BS132: R1A14 | BT132: RIVENDELL | BU132: R1A14 | BV132: RIVENDELL | BW132: R1A
B133: 0 | BR133: R1ARIVERBANK NEONATAL UNIT | BS133: R1ADN | BT133: RIVERBANK NEONATAL UNIT | BU133: R1ADN | BV133: RIVERBANK NEONATAL UNIT | BW133: =LEFT(BU133,3) -> R1A
B134: 0 | BR134: R1ARUSSELLS HALL HOSPITAL | BS134: R1A56 | BT134: RUSSELLS HALL HOSPITAL | BU134: R1A56 | BV134: RUSSELLS HALL HOSPITAL | BW134: R1A
B135: 0 | BR135: R1ASILVERBIRCH | BS135: R1ACH | BT135: SILVERBIRCH | BU135: R1ACH | BV135: SILVERBIRCH | BW135: R1A
B136: 0 | BR136: R1ASTUDDERT KENNEDY OA | BS136: R1APG | BT136: STUDDERT KENNEDY OA | BU136: R1APG | BV136: STUDDERT KENNEDY OA | BW136: R1A
B137: 0 | BR137: R1ATENBURY COMMUNITY HOSPITAL | BS137: R1AAN | BT137: TENBURY COMMUNITY HOSPITAL | BU137: R1AAN | BV137: TENBURY COMMUNITY HOSPITAL | BW137: R1A
B138: 0 | BR138: R1ATESCO KIDDERMINSTER | BS138: R1A67 | BT138: TESCO KIDDERMINSTER | BU138: R1A67 | BV138: TESCO KIDDERMINSTER | BW138: R1A
B139: 0 | BR139: R1ATESCO REDDITCH | BS139: R1A43 | BT139: TESCO REDDITCH | BU139: R1A43 | BV139: TESCO REDDITCH | BW139: R1A
B140: 0 | BR140: R1ATESCO ST PETERS | BS140: R1A1G | BT140: TESCO ST PETERS | BU140: R1A1G | BV140: TESCO ST PETERS | BW140: R1A
B141: 0 | BR141: R1ATESCO WARNDON | BS141: R1AA1 | BT141: TESCO WARNDON | BU141: R1AA1 | BV141: TESCO WARNDON | BW141: R1A
B142: =IF(SUM(E343:G343,Q343:R343)>0,1,IF(AU343>0,2,0)) -> 0 | BR142: R1ATHE FIRS REST HOME | BS142: R1A1F | BT142: THE FIRS REST HOME | BU142: R1A1F | BV142: THE FIRS REST HOME | BW142: R1A
B143: 0 | D143: =IF(ISNA(VLOOKUP($E$5&E143,$BR:$BS,2,FALSE)),"",VLOOKUP($E$5&E143,$BR:$BS,2,FALSE)) ->  | AD143: =IF(ISERROR(IF($AC143="","",SUM(J143,R143)/$AC143)),"-",(IF($AC143="","",SUM(J143,R143)/$AC143))) ->  | AE143: =IF(ISERROR(IF($AC143="","",SUM(L143,T143)/$AC143)),"-",(IF($AC143="","",SUM(L143,T143)/$AC143))) ->  | AF143: =IF(ISERROR(IF($AC143="","",SUM(N143,V143)/$AC143)),"-",(IF($AC143="","",SUM(N143,V143)/$AC143))) ->  | AG143: =IF(ISERROR(IF($AC143="","",SUM(P143,X143)/$AC143)),"-",(IF($AC143="","",SUM(P143,X143)/$AC143))) ->  | AH143: =IF(ISERROR(IF($AC143="","",Z143/$AC143)),"-",(IF($AC143="","",Z143/$AC143))) ->  | AI143: =IF(ISERROR(IF($AC143="","",AB143/$AC143)),"-",(IF($AC143="","",AB143/$AC143))) ->  | AJ143: =IF(ISERROR(IF($AC143="","",SUM(J143,L143,R143,T143,Z143,AB143,X143,P143,V143,N143)/$AC143)),"-",(IF($AC143="","",SUM(J143,L143,R143,T143,Z143,AB143,X143,P143,V143,N143)/$AC143))) ->  | AK143: =IF(ISERROR(IF($I143="","",J143/I143)),"-",(IF($I143="","",J143/I143))) ->  | AL143: =IF(ISERROR(IF(K143="","",L143/K143)),"-",(IF(K143="","",L143/K143))) ->  | AM143: =IF(ISERROR(IF(M143="","",N143/M143)),"-",(IF(M143="","",N143/M143))) ->  | AN143: =IF(ISERROR(IF(O143="","",P143/O143)),"-",(IF(O143="","",P143/O143))) ->  | AO143: =IF(ISERROR(IF(Q143="","",R143/Q143)),"-",(IF(Q143="","",R143/Q143))) ->  | AP143: =IF(ISERROR(IF(S143="","",T143/S143)),"-",IF(S143="","",T143/S143)) ->  | AQ143: =IF(ISERROR(IF(U143="","",V143/U143)),"-",IF(U143="","",V143/U143)) ->  | AR143: =IF(ISERROR(IF(W143="","",X143/W143)),"-",IF(W143="","",X143/W143)) ->  | AS143: =IF(ISERROR(IF(Y143="","",Z143/Y143)),"-",IF(Y143="","",Z143/Y143)) ->  | AT143: =IF(ISERROR(IF(AA143="","",AB143/AA143)),"-",IF(AA143="","",AB143/AA143)) ->  | BG143: =IF(Q344=1,"No Site Selected","") ->  | BH143: =IF(R344=1,"No Ward Name","") ->  | BI143: =IF(ISNUMBER((IFERROR(FIND(CHAR(10),F143),"")))=TRUE,1,"") ->  | BM143: =IF(C344=1,"Incorrect Ward Name","") ->  | BR143: R1ATHE GRANGE | BS143: R1A66 | BT143: THE GRANGE | BU143: R1A66 | BV143: THE GRANGE | BW143: R1A
B144: 0 | BR144: R1ATHE HIVE | BS144: R1AKX | BT144: THE HIVE | BU144: R1AKX | BV144: THE HIVE | BW144: R1A
A145: =IF(Q346=1,"No Site Selected",IF(R346=1,"No Ward Name","")) ->  | B145: 0 | BR145: R1ATHE OLD VICARAGE | BS145: R1AKL | BT145: THE OLD VICARAGE | BU145: R1AKL | BV145: THE OLD VICARAGE | BW145: R1A
B146: 0 | BR146: R1ATHE PINES | BS146: R1AHX | BT146: THE PINES | BU146: R1AHX | BV146: THE PINES | BW146: R1A
B147: 0 | BR147: R1ATHE ROBERTSON CENTRE (D BLOCK) | BS147: R1ACN | BT147: THE ROBERTSON CENTRE (D BLOCK) | BU147: R1ACN | BV147: THE ROBERTSON CENTRE (D BLOCK) | BW147: R1A
B148: 0 | BR148: R1ATHE WOODLANDS | BS148: R1A44 | BT148: THE WOODLANDS | BU148: R1A44 | BV148: THE WOODLANDS | BW148: R1A
B149: 0 | BR149: R1ATIMBERDINE HOME RESIDENTIAL CARE | BS149: R1AHM | BT149: TIMBERDINE HOME RESIDENTIAL CARE | BU149: R1AHM | BV149: TIMBERDINE HOME RESIDENTIAL CARE | BW149: R1A
B150: 0 | BR150: R1ATOUCHSTONE UNIT | BS150: R1AAD | BT150: TOUCHSTONE UNIT | BU150: R1AAD | BV150: TOUCHSTONE UNIT | BW150: R1A
B151: 0 | BR151: R1AWALKWOOD MIDDLE AUTISM BASE | BS151: R1A31 | BT151: WALKWOOD MIDDLE AUTISM BASE | BU151: R1A31 | BV151: WALKWOOD MIDDLE AUTISM BASE | BW151: R1A
B152: 0 | BR152: R1AWALSGRAVE HOSPITAL | BS152: R1A55 | BT152: WALSGRAVE HOSPITAL | BU152: R1A55 | BV152: WALSGRAVE HOSPITAL | BW152: R1A
B153: 0 | BR153: R1AWASELY HIGH AUTISM BASE | BS153: R1A06 | BT153: WASELY HIGH AUTISM BASE | BU153: R1A06 | BV153: WASELY HIGH AUTISM BASE | BW153: R1A
B154: 0 | BR154: R1AWATERSIDE | BS154: R1AQG | BT154: WATERSIDE | BU154: R1AQG | BV154: WATERSIDE | BW154: R1A
B155: 0 | BR155: R1AWATERSIDE CARE HOME | BS155: R1AKR | BT155: WATERSIDE CARE HOME | BU155: R1AKR | BV155: WATERSIDE CARE HOME | BW155: R1A
B156: 0 | BR156: R1AWATERSIDE MENTAL HEALTH DAY HOSPITAL | BS156: R1A1V | BT156: WATERSIDE MENTAL HEALTH DAY HOSPITAL | BU156: R1A1V | BV156: WATERSIDE MENTAL HEALTH DAY HOSPITAL | BW156: R1A
B157: 0 | BR157: R1AWHCT HEALTHCARE FEATHERSTONE | BS157: R1AHY | BT157: WHCT HEALTHCARE FEATHERSTONE | BU157: R1AHY | BV157: WHCT HEALTHCARE FEATHERSTONE | BW157: R1A
B158: 0 | BR158: R1AWILDMOOR MILL FARM | BS158: R1A21 | BT158: WILDMOOR MILL FARM | BU158: R1A21 | BV158: WILDMOOR MILL FARM | BW158: R1A
B159: 0 | BR159: R1AWISHMOOR REST HOME | BS159: R1AKN | BT159: WISHMOOR REST HOME | BU159: R1AKN | BV159: WISHMOOR REST HOME | BW159: R1A
B160: 0 | BR160: R1AWOODSIDE | BS160: R1A1C | BT160: WOODSIDE | BU160: R1A1C | BV160: WOODSIDE | BW160: R1A
B161: 0 | BR161: R1AWORCESTER CITY MH 1 | BS161: R1AQF | BT161: WORCESTER CITY MH 1 | BU161: R1AQF | BV161: WORCESTER CITY MH 1 | BW161: R1A
B162: 0 | BR162: R1AWORCESTER CITY MH 2 | BS162: R1AQH | BT162: WORCESTER CITY MH 2 | BU162: R1AQH | BV162: WORCESTER CITY MH 2 | BW162: R1A
B163: 0 | BR163: R1AWORCESTER CITY MH 3 | BS163: R1AQK | BT163: WORCESTER CITY MH 3 | BU163: R1AQK | BV163: WORCESTER CITY MH 3 | BW163: R1A
B164: 0 | BR164: R1AWORCESTER INTERMEDIATE CARE UNIT (WICU) | BS164: R1A1Q | BT164: WORCESTER INTERMEDIATE CARE UNIT (WICU) | BU164: R1A1Q | BV164: WORCESTER INTERMEDIATE CARE UNIT (WICU) | BW164: R1A
B165: 0 | BR165: R1AWORCESTERSHIRE ROYAL HOSPITAL | BS165: R1ADP | BT165: WORCESTERSHIRE ROYAL HOSPITAL | BU165: R1ADP | BV165: WORCESTERSHIRE ROYAL HOSPITAL | BW165: R1A
B166: 0 | BR166: R1AWULSTAN UNIT | BS166: R1AEC | BT166: WULSTAN UNIT | BU166: R1AEC | BV166: WULSTAN UNIT | BW166: R1A
B167: 0 | BR167: R1AWULSTAN UNIT REHABILITATION | BS167: R1AED | BT167: WULSTAN UNIT REHABILITATION | BU167: R1AED | BV167: WULSTAN UNIT REHABILITATION | BW167: R1A
B168: 0 | BR168: R1AWYCHAVON OA | BS168: R1AQJ | BT168: WYCHAVON OA | BU168: R1AQJ | BV168: WYCHAVON OA | BW168: R1A
B169: 0 | BR169: R1CADULT MENTAL HEALTH | BS169: R1C19 | BT169: ADULT MENTAL HEALTH | BU169: R1C19 | BV169: ADULT MENTAL HEALTH | BW169: R1C
B170: 0 | BR170: R1CAMULREE DAY HOSPITAL | BS170: R1C14 | BT170: AMULREE DAY HOSPITAL | BU170: R1C14 | BV170: AMULREE DAY HOSPITAL | BW170: R1C
B171: 0 | BR171: R1CASHURST HOSPITAL | BS171: R1C07 | BT171: ASHURST HOSPITAL | BU171: R1C07 | BV171: ASHURST HOSPITAL | BW171: R1C
B172: 0 | BR172: R1CBEHAVIOUR RESOURCE (BRS) | BS172: R1C54 | BT172: BEHAVIOUR RESOURCE (BRS) | BU172: R1C54 | BV172: BEHAVIOUR RESOURCE (BRS) | BW172: R1C
B173: 0 | BR173: R1CBRAMBLES WARD | BS173: R1C48 | BT173: BRAMBLES WARD | BU173: R1C48 | BV173: BRAMBLES WARD | BW173: R1C
B174: =IF(SUM(E375:G375,Q375:R375)>0,1,IF(AU375>0,2,0)) -> 0 | BR174: R1CC&SH ANDOVER | BS174: R1C62 | BT174: C&SH ANDOVER | BU174: R1C62 | BV174: C&SH ANDOVER | BW174: R1C
B175: 0 | D175: =IF(ISNA(VLOOKUP($E$5&E175,$BR:$BS,2,FALSE)),"",VLOOKUP($E$5&E175,$BR:$BS,2,FALSE)) ->  | BR175: R1CC&SH BASINGSTOKE | BS175: R1C45 | BT175: C&SH BASINGSTOKE | BU175: R1C45 | BV175: C&SH BASINGSTOKE | BW175: R1C
B176: 0 | BR176: R1CC&SH PORTSMOUTH | BS176: R1C17 | BT176: C&SH PORTSMOUTH | BU176: R1C17 | BV176: C&SH PORTSMOUTH | BW176: R1C
B177: 0 | BR177: R1CC&SH SOUTHAMPTON | BS177: R1C51 | BT177: C&SH SOUTHAMPTON | BU177: R1C51 | BV177: C&SH SOUTHAMPTON | BW177: R1C
B178: 0 | BR178: R1CC&SH WINCHESTER | BS178: R1C58 | BT178: C&SH WINCHESTER | BU178: R1C58 | BV178: C&SH WINCHESTER | BW178: R1C
B179: 0 | BR179: R1CCAMPION PLACE | BS179: R1C90 | BT179: CAMPION PLACE | BU179: R1C90 | BV179: CAMPION PLACE | BW179: R1C
B180: 0 | BR180: R1CCHASE COMMUNITY HOSPITAL | BS180: R1CG1 | BT180: CHASE COMMUNITY HOSPITAL | BU180: R1CG1 | BV180: CHASE COMMUNITY HOSPITAL | BW180: R1C
B181: 0 | BR181: R1CCOMMUNITY PAEDIATRICS - EAST | BS181: R1C22 | BT181: COMMUNITY PAEDIATRICS - EAST | BU181: R1C22 | BV181: COMMUNITY PAEDIATRICS - EAST | BW181: R1C
B182: 0 | BR182: R1CCOMMUNITY PAEDIATRICS - WEST | BS182: R1C55 | BT182: COMMUNITY PAEDIATRICS - WEST | BU182: R1C55 | BV182: COMMUNITY PAEDIATRICS - WEST | BW182: R1C
B183: 0 | BR183: R1CCOMMUNITY PAEDS N.FOREST | BS183: R1CA6 | BT183: COMMUNITY PAEDS N.FOREST | BU183: R1CA6 | BV183: COMMUNITY PAEDS N.FOREST | BW183: R1C
B184: 0 | BR184: R1CCROWN HEIGHTS | BS184: R1CH3 | BT184: CROWN HEIGHTS | BU184: R1CH3 | BV184: CROWN HEIGHTS | BW184: R1C
B185: 0 | BR185: R1CEASTLEIGH DAS | BS185: R1CR3 | BT185: EASTLEIGH DAS | BU185: R1CR3 | BV185: EASTLEIGH DAS | BW185: R1C
B186: 0 | BR186: R1CELMLEIGH HOSPITAL | BS186: R1CM8 | BT186: ELMLEIGH HOSPITAL | BU186: R1CM8 | BV186: ELMLEIGH HOSPITAL | BW186: R1C
B187: 0 | BR187: R1CFANSHAWE WARD | BS187: R1C49 | BT187: FANSHAWE WARD | BU187: R1C49 | BV187: FANSHAWE WARD | BW187: R1C
B188: 0 | BR188: R1CFAREHAM COMMUNITY HOSPITAL | BS188: R1CF4 | BT188: FAREHAM COMMUNITY HOSPITAL | BU188: R1CF4 | BV188: FAREHAM COMMUNITY HOSPITAL | BW188: R1C
B189: 0 | BR189: R1CFAREHAM REACH UNIT | BS189: R1C89 | BT189: FAREHAM REACH UNIT | BU189: R1C89 | BV189: FAREHAM REACH UNIT | BW189: R1C
B190: 0 | BR190: R1CFENWICK HOSPITAL | BS190: R1CT7 | BT190: FENWICK HOSPITAL | BU190: R1CT7 | BV190: FENWICK HOSPITAL | BW190: R1C
B191: 0 | BR191: R1CFLEET COMMUNITY HOSPITAL | BS191: R1CG3 | BT191: FLEET COMMUNITY HOSPITAL | BU191: R1CG3 | BV191: FLEET COMMUNITY HOSPITAL | BW191: R1C
B192: 0 | BR192: R1CFRITH COTTAGE DAS | BS192: R1C09 | BT192: FRITH COTTAGE DAS | BU192: R1C09 | BV192: FRITH COTTAGE DAS | BW192: R1C
B193: 0 | BR193: =CONCATENATE(LEFT(BS193, 3),BT193) -> R1CGOSPORT WAR MEMORIAL HOSPITAL | BS193: R1C70 | BT193: GOSPORT WAR MEMORIAL HOSPITAL | BU193: R1C70 | BV193: GOSPORT WAR MEMORIAL HOSPITAL | BW193: R1C
B194: 0 | BR194: R1CHAVANT WAR MEMORIAL HOSPITAL | BS194: R1CJ2 | BT194: HAVANT WAR MEMORIAL HOSPITAL | BU194: R1CJ2 | BV194: HAVANT WAR MEMORIAL HOSPITAL | BW194: R1C
B195: 0 | BR195: R1CHOOK SHADIE AT THE BASE | BS195: R1CE8 | BT195: HOOK SHADIE AT THE BASE | BU195: R1CE8 | BV195: HOOK SHADIE AT THE BASE | BW195: R1C
B196: 0 | BR196: R1CHUNTERCOMBE MANOR HOSPITAL | BS196: R1CA9 | BT196: HUNTERCOMBE MANOR HOSPITAL | BU196: R1CA9 | BV196: HUNTERCOMBE MANOR HOSPITAL | BW196: R1C
B197: 0 | BR197: R1CHYTHE HOSPITAL | BS197: R1CG7 | BT197: HYTHE HOSPITAL | BU197: R1CG7 | BV197: HYTHE HOSPITAL | BW197: =LEFT(BU197,3) -> R1C
B198: 0 | BR198: R1CINSCAPE | BS198: R1C95 | BT198: INSCAPE | BU198: R1C95 | BV198: INSCAPE | BW198: R1C
B199: 0 | BR199: R1CINTEGRATED DRUG TREATMENT | BS199: R1C59 | BT199: INTEGRATED DRUG TREATMENT | BU199: R1C59 | BV199: INTEGRATED DRUG TREATMENT | BW199: R1C
B200: 0 | BR200: R1CJUBILEE HOUSE | BS200: R1CF5 | BT200: JUBILEE HOUSE | BU200: R1CF5 | BV200: JUBILEE HOUSE | BW200: R1C
... 817 more rows

Sheet Validation (hidden)
A2: Requested validations | B2: FFT IP validation code
A4: ERRORS:
A5: 1) Organisation code must be selected;
A6: 3) An ODS site code must be selected for each row;
A7: 4) A ward name must be entered for each row;
A8: 5) At least one specialty must be selected (Specialty 1) for each row;
A9: 6) Specialties (Specialty 1 and Specialty 2) must be selected from drop downs; | B9: internal?
A10: 7) Total planned hours for each row must be greater than zero;
A11: 8) Total actual hours for each row must be greater than zero;
A12: 9) There should be no gaps between each row; | B12: ?
A13: 10) Duplication of a ward name within a site. | B13: "=IF($AA$816>0,"Duplicate 'Ward name' (Col D), with the same specialty(s) (Col L and Col M), has been provided for at least 1 'Hospital Site'(Col C)","")" | C13: does not work in the other sheets!!
A14: WARNINGS:
A15: 1) One or more wards has a day nurse fill rate > 100%;
A16: 2) One or more wards has a day care staff fill rate > 100%;
A17: 3) One or more wards has a night nurse fill rate > 100%;
A18: 4) One or more wards has a night care staff fill rate > 100%;
A19: 5) One or more wards has less than 1448 actual hours (approx. 2 full time staff);
A20: 6) One or more wards has more than 30 000 actual hours (approx. 40 full time staff);
A21: 7) One or more wards has submitted actual hours but zero CHPPD patients.
A25: Other
A27: no duplicate speciality codes | B27: "=IF(Y816>0,"The same 'Specialty' (Col L and Col M) can not be selected twice","")"
A28: all relevant cells to be filled in | B28: "=IF(T816>0,"Data not complete for all rows",IF(W816>0,"Data not complete for all rows",""))"
A30: Fix ODS ref data
C47: a | D47: 1 | E47: p | K47: =CONCATENATE(C47,D47,E47,F47) -> a1p | L47: =(IF(COUNTIF($K$47:$K$59,K47)>1,1,0))=1 -> FALSE
C48: b | D48: 2 | E48: o | K48: =CONCATENATE(C48,D48,E48,F48) -> b2o | L48: =(IF(COUNTIF($K$47:$K$59,K48)>1,1,0))=1 -> FALSE
C49: c | D49: 3 | E49: i | K49: c3i | L49: FALSE
C50: d | D50: 4 | E50: u | K50: d4u | L50: FALSE
C51: e | D51: 5 | E51: y | K51: e5y | L51: FALSE
C52: f | D52: 6 | E52: t | K52: f6t | L52: FALSE
C53: g | D53: 7 | E53: r | K53: g7r | L53: FALSE
C54: h | D54: 8 | E54: e | K54: h8e | L54: FALSE
C55: i | D55: 9 | E55: s | K55: i9s | L55: FALSE
C56: j | D56: 10 | E56: w | K56: j10w | L56: FALSE
C57: w | D57: 13 | E57: w | K57: w13w | L57: TRUE
C58: w | D58: 13 | E58: w | K58: w13w | L58: TRUE
C59: w | D59: 13 | E59: w | F59: q | K59: w13wq | L59: FALSE

Sheet Wards
A1: Concatenate | B1: Org code | C1: Org name | D1: Site Code | E1: Site Name | F1: Ward | G1: Notes | H1: Last date of change
A2: =CONCATENATE(D2,"-",F2) -> RCF22-Acute Assessment Unit | B2: RCF | C2: AIREDALE NHS FOUNDATION TRUST | D2: RCF22 | E2: AIREDALE GENERAL HOSPITAL | F2: Acute Assessment Unit
A3: =CONCATENATE(D3,"-",F3) -> RCF22-Labour Suite | B3: RCF | C3: AIREDALE NHS FOUNDATION TRUST | D3: RCF22 | E3: AIREDALE GENERAL HOSPITAL | F3: Labour Suite
A4: RCF22-Neonatal Unit | B4: RCF | C4: AIREDALE NHS FOUNDATION TRUST | D4: RCF22 | E4: AIREDALE GENERAL HOSPITAL | F4: Neonatal Unit
A5: RCF22-Ward 01 | B5: RCF | C5: AIREDALE NHS FOUNDATION TRUST | D5: RCF22 | E5: AIREDALE GENERAL HOSPITAL | F5: Ward 01
A6: RCF22-Ward 02 | B6: RCF | C6: AIREDALE NHS FOUNDATION TRUST | D6: RCF22 | E6: AIREDALE GENERAL HOSPITAL | F6: Ward 02
A7: RCF22-Ward 04 | B7: RCF | C7: AIREDALE NHS FOUNDATION TRUST | D7: RCF22 | E7: AIREDALE GENERAL HOSPITAL | F7: Ward 04
A8: RCF22-Ward 05 | B8: RCF | C8: AIREDALE NHS FOUNDATION TRUST | D8: RCF22 | E8: AIREDALE GENERAL HOSPITAL | F8: Ward 05
A9: RCF22-Ward 06 | B9: RCF | C9: AIREDALE NHS FOUNDATION TRUST | D9: RCF22 | E9: AIREDALE GENERAL HOSPITAL | F9: Ward 06
A10: RCF22-Ward 07 | B10: RCF | C10: AIREDALE NHS FOUNDATION TRUST | D10: RCF22 | E10: AIREDALE GENERAL HOSPITAL | F10: Ward 07
A11: RCF22-Ward 09 | B11: RCF | C11: AIREDALE NHS FOUNDATION TRUST | D11: RCF22 | E11: AIREDALE GENERAL HOSPITAL | F11: Ward 09
A12: RCF22-Ward 10 | B12: RCF | C12: AIREDALE NHS FOUNDATION TRUST | D12: RCF22 | E12: AIREDALE GENERAL HOSPITAL | F12: Ward 10
A13: RCF22-Ward 13 | B13: RCF | C13: AIREDALE NHS FOUNDATION TRUST | D13: RCF22 | E13: AIREDALE GENERAL HOSPITAL | F13: Ward 13
A14: RCF22-Ward 14 | B14: RCF | C14: AIREDALE NHS FOUNDATION TRUST | D14: RCF22 | E14: AIREDALE GENERAL HOSPITAL | F14: Ward 14
A15: RCF22-Ward 15 | B15: RCF | C15: AIREDALE NHS FOUNDATION TRUST | D15: RCF22 | E15: AIREDALE GENERAL HOSPITAL | F15: Ward 15
A16: RCF22-Ward 16 | B16: RCF | C16: AIREDALE NHS FOUNDATION TRUST | D16: RCF22 | E16: AIREDALE GENERAL HOSPITAL | F16: Ward 16
A17: RCF22-Ward 17 | B17: RCF | C17: AIREDALE NHS FOUNDATION TRUST | D17: RCF22 | E17: AIREDALE GENERAL HOSPITAL | F17: Ward 17
A18: RCF22-Ward 18 | B18: RCF | C18: AIREDALE NHS FOUNDATION TRUST | D18: RCF22 | E18: AIREDALE GENERAL HOSPITAL | F18: Ward 18
A19: RCF22-Ward 19 | B19: RCF | C19: AIREDALE NHS FOUNDATION TRUST | D19: RCF22 | E19: AIREDALE GENERAL HOSPITAL | F19: Ward 19
A20: RCF22-Ward 21 | B20: RCF | C20: AIREDALE NHS FOUNDATION TRUST | D20: RCF22 | E20: AIREDALE GENERAL HOSPITAL | F20: Ward 21
A21: RCF30-Harden Ward | B21: RCF | C21: AIREDALE NHS FOUNDATION TRUST | D21: RCF30 | E21: CASTLEBERG HOSPITAL | F21: Harden Ward
A22: RBS25-1B - Burns | B22: RBS | C22: ALDER HEY CHILDREN'S NHS FOUNDATION TRUST | D22: RBS25 | E22: ALDER HEY CHILDREN'S NHS | F22: 1B - Burns
A23: RBS25-1B - HDU | B23: RBS | C23: ALDER HEY CHILDREN'S NHS FOUNDATION TRUST | D23: RBS25 | E23: ALDER HEY CHILDREN'S NHS | F23: 1B - HDU
A24: RBS25-1B - ICU | B24: RBS | C24: ALDER HEY CHILDREN'S NHS FOUNDATION TRUST | D24: RBS25 | E24: ALDER HEY CHILDREN'S NHS | F24: 1B - ICU
A25: RBS25-1C - Cardiac | B25: RBS | C25: ALDER HEY CHILDREN'S NHS FOUNDATION TRUST | D25: RBS25 | E25: ALDER HEY CHILDREN'S NHS | F25: 1C - Cardiac
A26: RBS25-1C - Neonatology | B26: RBS | C26: ALDER HEY CHILDREN'S NHS FOUNDATION TRUST | D26: RBS25 | E26: ALDER HEY CHILDREN'S NHS | F26: 1C - Neonatology
A27: RBS25-3A | B27: RBS | C27: ALDER HEY CHILDREN'S NHS FOUNDATION TRUST | D27: RBS25 | E27: ALDER HEY CHILDREN'S NHS | F27: 3A
A28: RBS25-3B | B28: RBS | C28: ALDER HEY CHILDREN'S NHS FOUNDATION TRUST | D28: RBS25 | E28: ALDER HEY CHILDREN'S NHS | F28: 3B
A29: RBS25-3C | B29: RBS | C29: ALDER HEY CHILDREN'S NHS FOUNDATION TRUST | D29: RBS25 | E29: ALDER HEY CHILDREN'S NHS | F29: 3C
A30: RBS25-4A | B30: RBS | C30: ALDER HEY CHILDREN'S NHS FOUNDATION TRUST | D30: RBS25 | E30: ALDER HEY CHILDREN'S NHS | F30: 4A
A31: RBS25-4B | B31: RBS | C31: ALDER HEY CHILDREN'S NHS FOUNDATION TRUST | D31: RBS25 | E31: ALDER HEY CHILDREN'S NHS | F31: 4B
A32: RBS25-4C | B32: RBS | C32: ALDER HEY CHILDREN'S NHS FOUNDATION TRUST | D32: RBS25 | E32: ALDER HEY CHILDREN'S NHS | F32: 4C
A33: RBS25-DJU | B33: RBS | C33: ALDER HEY CHILDREN'S NHS FOUNDATION TRUST | D33: RBS25 | E33: ALDER HEY CHILDREN'S NHS | F33: DJU
A34: RTK02-Dickens | B34: RTK | C34: ASHFORD AND ST PETER'S HOSPITALS NHS FOUNDATION TRUST | D34: RTK02 | E34: ASHFORD HOSPITAL | F34: Dickens
A35: RTK01-Abbey Birth Centre | B35: RTK | C35: ASHFORD AND ST PETER'S HOSPITALS NHS FOUNDATION TRUST | D35: RTK01 | E35: ST PETER'S HOSPITAL | F35: Abbey Birth Centre
A36: RTK01-ACU | B36: RTK | C36: ASHFORD AND ST PETER'S HOSPITALS NHS FOUNDATION TRUST | D36: RTK01 | E36: ST PETER'S HOSPITAL | F36: ACU
A37: RTK01-AMU | B37: RTK | C37: ASHFORD AND ST PETER'S HOSPITALS NHS FOUNDATION TRUST | D37: RTK01 | E37: ST PETER'S HOSPITAL | F37: AMU
A38: RTK01-Ash | B38: RTK | C38: ASHFORD AND ST PETER'S HOSPITALS NHS FOUNDATION TRUST | D38: RTK01 | E38: ST PETER'S HOSPITAL | F38: Ash
A39: RTK01-Aspen | B39: RTK | C39: ASHFORD AND ST PETER'S HOSPITALS NHS FOUNDATION TRUST | D39: RTK01 | E39: ST PETER'S HOSPITAL | F39: Aspen
A40: RTK01-BACU | B40: RTK | C40: ASHFORD AND ST PETER'S HOSPITALS NHS FOUNDATION TRUST | D40: RTK01 | E40: ST PETER'S HOSPITAL | F40: BACU
A41: RTK01-BRAD | B41: RTK | C41: ASHFORD AND ST PETER'S HOSPITALS NHS FOUNDATION TRUST | D41: RTK01 | E41: ST PETER'S HOSPITAL | F41: BRAD
A42: RTK01-Cedar | B42: RTK | C42: ASHFORD AND ST PETER'S HOSPITALS NHS FOUNDATION TRUST | D42: RTK01 | E42: ST PETER'S HOSPITAL | F42: Cedar
A43: RTK01-Cherry | B43: RTK | C43: ASHFORD AND ST PETER'S HOSPITALS NHS FOUNDATION TRUST | D43: RTK01 | E43: ST PETER'S HOSPITAL | F43: Cherry
A44: RTK01-Falcon | B44: RTK | C44: ASHFORD AND ST PETER'S HOSPITALS NHS FOUNDATION TRUST | D44: RTK01 | E44: ST PETER'S HOSPITAL | F44: Falcon
A45: RTK01-Heron | B45: RTK | C45: ASHFORD AND ST PETER'S HOSPITALS NHS FOUNDATION TRUST | D45: RTK01 | E45: ST PETER'S HOSPITAL | F45: Heron
A46: RTK01-Holly | B46: RTK | C46: ASHFORD AND ST PETER'S HOSPITALS NHS FOUNDATION TRUST | D46: RTK01 | E46: ST PETER'S HOSPITAL | F46: Holly
A47: RTK01-ITU | B47: RTK | C47: ASHFORD AND ST PETER'S HOSPITALS NHS FOUNDATION TRUST | D47: RTK01 | E47: ST PETER'S HOSPITAL | F47: ITU
A48: RTK01-Joan Booker | B48: RTK | C48: ASHFORD AND ST PETER'S HOSPITALS NHS FOUNDATION TRUST | D48: RTK01 | E48: ST PETER'S HOSPITAL | F48: Joan Booker
A49: RTK01-Kingfisher | B49: RTK | C49: ASHFORD AND ST PETER'S HOSPITALS NHS FOUNDATION TRUST | D49: RTK01 | E49: ST PETER'S HOSPITAL | F49: Kingfisher
A50: RTK01-Labour | B50: RTK | C50: ASHFORD AND ST PETER'S HOSPITALS NHS FOUNDATION TRUST | D50: RTK01 | E50: ST PETER'S HOSPITAL | F50: Labour
A51: RTK01-Maple | B51: RTK | C51: ASHFORD AND ST PETER'S HOSPITALS NHS FOUNDATION TRUST | D51: RTK01 | E51: ST PETER'S HOSPITAL | F51: Maple
A52: RTK01-May | B52: RTK | C52: ASHFORD AND ST PETER'S HOSPITALS NHS FOUNDATION TRUST | D52: RTK01 | E52: ST PETER'S HOSPITAL | F52: May
A53: RTK01-NICU | B53: RTK | C53: ASHFORD AND ST PETER'S HOSPITALS NHS FOUNDATION TRUST | D53: RTK01 | E53: ST PETER'S HOSPITAL | F53: NICU
A54: RTK01-SAU | B54: RTK | C54: ASHFORD AND ST PETER'S HOSPITALS NHS FOUNDATION TRUST | D54: RTK01 | E54: ST PETER'S HOSPITAL | F54: SAU
A55: RTK01-Swan | B55: RTK | C55: ASHFORD AND ST PETER'S HOSPITALS NHS FOUNDATION TRUST | D55: RTK01 | E55: ST PETER'S HOSPITAL | F55: Swan
A56: RTK01-Swift | B56: RTK | C56: ASHFORD AND ST PETER'S HOSPITALS NHS FOUNDATION TRUST | D56: RTK01 | E56: ST PETER'S HOSPITAL | F56: Swift
A57: RVN3Q-CAMHS Riverside Unit | B57: RVN | C57: AVON AND WILTSHIRE MENTAL HEALTH PARTNERSHIP NHS TRUST | D57: RVN3Q | E57: BLACKBERRY HILL HOSPITAL | F57: CAMHS Riverside Unit
A58: RVN3Q-Secure Low Wickham IP Cromwell | B58: RVN | C58: AVON AND WILTSHIRE MENTAL HEALTH PARTNERSHIP NHS TRUST | D58: RVN3Q | E58: BLACKBERRY HILL HOSPITAL | F58: Secure Low Wickham IP Cromwell
A59: RVN3Q-Secure Low Wickham IP Fairfax | B59: RVN | C59: AVON AND WILTSHIRE MENTAL HEALTH PARTNERSHIP NHS TRUST | D59: RVN3Q | E59: BLACKBERRY HILL HOSPITAL | F59: Secure Low Wickham IP Fairfax
A60: RVN3Q-Secure Low Wickham IP Hopton | B60: RVN | C60: AVON AND WILTSHIRE MENTAL HEALTH PARTNERSHIP NHS TRUST | D60: RVN3Q | E60: BLACKBERRY HILL HOSPITAL | F60: Secure Low Wickham IP Hopton
A61: RVN3Q-Secure Medium IP Bradley Brook | B61: RVN | C61: AVON AND WILTSHIRE MENTAL HEALTH PARTNERSHIP NHS TRUST | D61: RVN3Q | E61: BLACKBERRY HILL HOSPITAL | F61: Secure Medium IP Bradley Brook
A62: RVN3Q-Secure Medium IP Cary | B62: RVN | C62: AVON AND WILTSHIRE MENTAL HEALTH PARTNERSHIP NHS TRUST | D62: RVN3Q | E62: BLACKBERRY HILL HOSPITAL | F62: Secure Medium IP Cary
A63: RVN3Q-Secure Medium IP Kennet | B63: RVN | C63: AVON AND WILTSHIRE MENTAL HEALTH PARTNERSHIP NHS TRUST | D63: RVN3Q | E63: BLACKBERRY HILL HOSPITAL | F63: Secure Medium IP Kennet
A64: RVN3Q-Secure Medium IP Ladden Brook | B64: RVN | C64: AVON AND WILTSHIRE MENTAL HEALTH PARTNERSHIP NHS TRUST | D64: RVN3Q | E64: BLACKBERRY HILL HOSPITAL | F64: Secure Medium IP Ladden Brook
A65: RVN3Q-Secure Medium IP Severn | B65: RVN | C65: AVON AND WILTSHIRE MENTAL HEALTH PARTNERSHIP NHS TRUST | D65: RVN3Q | E65: BLACKBERRY HILL HOSPITAL | F65: Secure Medium IP Severn
A66: RVN3Q-Secure Medium IP Teign | B66: RVN | C66: AVON AND WILTSHIRE MENTAL HEALTH PARTNERSHIP NHS TRUST | D66: RVN3Q | E66: BLACKBERRY HILL HOSPITAL | F66: Secure Medium IP Teign
A67: =CONCATENATE(D67,"-",F67) -> RVN3Q-Secure Medium IP Wellow | B67: RVN | C67: AVON AND WILTSHIRE MENTAL HEALTH PARTNERSHIP NHS TRUST | D67: RVN3Q | E67: BLACKBERRY HILL HOSPITAL | F67: Secure Medium IP Wellow
A68: RVNP1-Specialised Eating Disorders IP Clifton | B68: RVN | C68: AVON AND WILTSHIRE MENTAL HEALTH PARTNERSHIP NHS TRUST | D68: RVNP1 | E68: BRISTOL ADULT | F68: Specialised Eating Disorders IP Clifton
A69: RVNP8-Specialised D&A Bristol IP Acer Unit | B69: RVN | C69: AVON AND WILTSHIRE MENTAL HEALTH PARTNERSHIP NHS TRUST | D69: RVNP8 | E69: BRISTOL SDAS | F69: Specialised D&A Bristol IP Acer Unit
A70: RVNEQ-Bristol Acute IP Lime | B70: RVN | C70: AVON AND WILTSHIRE MENTAL HEALTH PARTNERSHIP NHS TRUST | D70: RVNEQ | E70: CALLINGTON ROAD | F70: Bristol Acute IP Lime
A71: RVNEQ-Bristol Acute IP Silver Birch | B71: RVN | C71: AVON AND WILTSHIRE MENTAL HEALTH PARTNERSHIP NHS TRUST | D71: RVNEQ | E71: CALLINGTON ROAD | F71: Bristol Acute IP Silver Birch
A72: RVNEQ-Bristol LL IP Aspen | B72: RVN | C72: AVON AND WILTSHIRE MENTAL HEALTH PARTNERSHIP NHS TRUST | D72: RVNEQ | E72: CALLINGTON ROAD | F72: Bristol LL IP Aspen
A73: RVNEQ-Bristol PICU Elizabeth Casson | B73: RVN | C73: AVON AND WILTSHIRE MENTAL HEALTH PARTNERSHIP NHS TRUST | D73: RVNEQ | E73: CALLINGTON ROAD | F73: Bristol PICU Elizabeth Casson
A74: RVNEQ-Bristol PICU Hazel | B74: RVN | C74: AVON AND WILTSHIRE MENTAL HEALTH PARTNERSHIP NHS TRUST | D74: RVNEQ | E74: CALLINGTON ROAD | F74: Bristol PICU Hazel
A75: RVNEQ-Bristol Rehab Alder | B75: RVN | C75: AVON AND WILTSHIRE MENTAL HEALTH PARTNERSHIP NHS TRUST | D75: RVNEQ | E75: CALLINGTON ROAD | F75: Bristol Rehab Alder
A76: RVNEQ-Bristol Rehab Larch | B76: RVN | C76: AVON AND WILTSHIRE MENTAL HEALTH PARTNERSHIP NHS TRUST | D76: RVNEQ | E76: CALLINGTON ROAD | F76: Bristol Rehab Larch
A77: RVN9A-Wiltshire Acute IP Beechlydene | B77: RVN | C77: AVON AND WILTSHIRE MENTAL HEALTH PARTNERSHIP NHS TRUST | D77: RVN9A | E77: FOUNTAIN WAY, SALISBURY | F77: Wiltshire Acute IP Beechlydene
A78: RVN9A-Wiltshire LL IP Amblescroft North | B78: RVN | C78: AVON AND WILTSHIRE MENTAL HEALTH PARTNERSHIP NHS TRUST | D78: RVN9A | E78: FOUNTAIN WAY, SALISBURY | F78: Wiltshire LL IP Amblescroft North
A79: RVN9A-Wiltshire LL IP Amblescroft South | B79: RVN | C79: AVON AND WILTSHIRE MENTAL HEALTH PARTNERSHIP NHS TRUST | D79: RVN9A | E79: FOUNTAIN WAY, SALISBURY | F79: Wiltshire LL IP Amblescroft South
A80: RVN9A-Wiltshire PICU Ashdown | B80: RVN | C80: AVON AND WILTSHIRE MENTAL HEALTH PARTNERSHIP NHS TRUST | D80: RVN9A | E80: FOUNTAIN WAY, SALISBURY | F80: Wiltshire PICU Ashdown
A81: RVN6A-Specialised LD IP Daisy | B81: RVN | C81: AVON AND WILTSHIRE MENTAL HEALTH PARTNERSHIP NHS TRUST | D81: RVN6A | E81: GREEN LANE HOSPITAL, DEVIZES | F81: Specialised LD IP Daisy
A82: RVN6A-Wiltshire Acute IP Poppy | B82: RVN | C82: AVON AND WILTSHIRE MENTAL HEALTH PARTNERSHIP NHS TRUST | D82: RVN6A | E82: GREEN LANE HOSPITAL, DEVIZES | F82: Wiltshire Acute IP Poppy
A83: RVN2A-BANES Acute IP Sycamore | B83: RVN | C83: AVON AND WILTSHIRE MENTAL HEALTH PARTNERSHIP NHS TRUST | D83: RVN2A | E83: HILLVIEW LODGE | F83: BANES Acute IP Sycamore
A84: RVNT1-N.Som Acute IP Juniper | B84: RVN | C84: AVON AND WILTSHIRE MENTAL HEALTH PARTNERSHIP NHS TRUST | D84: RVNT1 | E84: NORTH SOMERSET ADULT | F84: N.Som Acute IP Juniper
A85: RVNT1-N.Som Rehab Elmham Way | B85: RVN | C85: AVON AND WILTSHIRE MENTAL HEALTH PARTNERSHIP NHS TRUST | D85: RVNT1 | E85: NORTH SOMERSET ADULT | F85: N.Som Rehab Elmham Way
A86: RVNT6-N.Som LL IP Cove | B86: RVN | C86: AVON AND WILTSHIRE MENTAL HEALTH PARTNERSHIP NHS TRUST | D86: RVNT6 | E86: NORTH SOMERSET OLDER ADULT | F86: N.Som LL IP Cove
A87: RVNT6-N.Som LL IP Dune | B87: RVN | C87: AVON AND WILTSHIRE MENTAL HEALTH PARTNERSHIP NHS TRUST | D87: RVNT6 | E87: NORTH SOMERSET OLDER ADULT | F87: N.Som LL IP Dune
A88: RVN8A-Swindon Acute IP Applewood | B88: RVN | C88: AVON AND WILTSHIRE MENTAL HEALTH PARTNERSHIP NHS TRUST | D88: RVN8A | E88: SANDALWOOD COURT, SWINDON | F88: Swindon Acute IP Applewood
A89: RVN3N-Bristol Acute IP Oakwood | B89: RVN | C89: AVON AND WILTSHIRE MENTAL HEALTH PARTNERSHIP NHS TRUST | D89: RVN3N | E89: SOUTHMEAD HOSPITAL AWP | F89: Bristol Acute IP Oakwood
A90: RVN3N-Specialised Mother and Baby IP Unit | B90: RVN | C90: AVON AND WILTSHIRE MENTAL HEALTH PARTNERSHIP NHS TRUST | D90: RVN3N | E90: SOUTHMEAD HOSPITAL AWP | F90: Specialised Mother and Baby IP Unit
A91: RVN2B-BANES LL IP Ward 4 | B91: RVN | C91: AVON AND WILTSHIRE MENTAL HEALTH PARTNERSHIP NHS TRUST | D91: RVN2B | E91: ST MARTINS HOSPITAL (BATH) | F91: BANES LL IP Ward 4
A92: RVNCE-Swindon LL IP Hodson | B92: RVN | C92: AVON AND WILTSHIRE MENTAL HEALTH PARTNERSHIP NHS TRUST | D92: RVNCE | E92: VICTORIA CENTRE, SWINDON | F92: Swindon LL IP Hodson
A93: RVNCE-Swindon LL IP Liddington | B93: RVN | C93: AVON AND WILTSHIRE MENTAL HEALTH PARTNERSHIP NHS TRUST | D93: RVNCE | E93: VICTORIA CENTRE, SWINDON | F93: Swindon LL IP Liddington
A94: RVN5J-S.Glos Rehab Whittucks Road | B94: RVN | C94: AVON AND WILTSHIRE MENTAL HEALTH PARTNERSHIP NHS TRUST | D94: RVN5J | E94: WHITTUCKS ROAD, HANHAM | F94: S.Glos Rehab Whittucks Road
A95: RVN8D-Swindon Rehab Windswept | B95: RVN | C95: AVON AND WILTSHIRE MENTAL HEALTH PARTNERSHIP NHS TRUST | D95: RVN8D | E95: WINDSWEPT | F95: Swindon Rehab Windswept
A96: RF4DG-Ash | B96: RF4 | C96: BARKING, HAVERING AND REDBRIDGE UNIVERSITY HOSPITALS NHS TRUST | D96: RF4DG | E96: KING GEORGE HOSPITAL | F96: Ash
A97: RF4DG-Beech | B97: RF4 | C97: BARKING, HAVERING AND REDBRIDGE UNIVERSITY HOSPITALS NHS TRUST | D97: RF4DG | E97: KING GEORGE HOSPITAL | F97: Beech
A98: RF4DG-CAU KGH | B98: RF4 | C98: BARKING, HAVERING AND REDBRIDGE UNIVERSITY HOSPITALS NHS TRUST | D98: RF4DG | E98: KING GEORGE HOSPITAL | F98: CAU KGH
A99: RF4DG-Clover | B99: RF4 | C99: BARKING, HAVERING AND REDBRIDGE UNIVERSITY HOSPITALS NHS TRUST | D99: RF4DG | E99: KING GEORGE HOSPITAL | F99: Clover
A100: RF4DG-Dahlia | B100: RF4 | C100: BARKING, HAVERING AND REDBRIDGE UNIVERSITY HOSPITALS NHS TRUST | D100: RF4DG | E100: KING GEORGE HOSPITAL | F100: Dahlia
A101: RF4DG-Erica | B101: RF4 | C101: BARKING, HAVERING AND REDBRIDGE UNIVERSITY HOSPITALS NHS TRUST | D101: RF4DG | E101: KING GEORGE HOSPITAL | F101: Erica
A102: RF4DG-Fern | B102: RF4 | C102: BARKING, HAVERING AND REDBRIDGE UNIVERSITY HOSPITALS NHS TRUST | D102: RF4DG | E102: KING GEORGE HOSPITAL | F102: Fern
A103: RF4DG-Gardenia | B103: RF4 | C103: BARKING, HAVERING AND REDBRIDGE UNIVERSITY HOSPITALS NHS TRUST | D103: RF4DG | E103: KING GEORGE HOSPITAL | F103: Gardenia
A104: RF4DG-Gentian | B104: RF4 | C104: BARKING, HAVERING AND REDBRIDGE UNIVERSITY HOSPITALS NHS TRUST | D104: RF4DG | E104: KING GEORGE HOSPITAL | F104: Gentian
A105: RF4DG-Heather | B105: RF4 | C105: BARKING, HAVERING AND REDBRIDGE UNIVERSITY HOSPITALS NHS TRUST | D105: RF4DG | E105: KING GEORGE HOSPITAL | F105: Heather
A106: RF4DG-Holly | B106: RF4 | C106: BARKING, HAVERING AND REDBRIDGE UNIVERSITY HOSPITALS NHS TRUST | D106: RF4DG | E106: KING GEORGE HOSPITAL | F106: Holly
A107: RF4DG-Iris | B107: RF4 | C107: BARKING, HAVERING AND REDBRIDGE UNIVERSITY HOSPITALS NHS TRUST | D107: RF4DG | E107: KING GEORGE HOSPITAL | F107: Iris
A108: RF4DG-KGH ITU | B108: RF4 | C108: BARKING, HAVERING AND REDBRIDGE UNIVERSITY HOSPITALS NHS TRUST | D108: RF4DG | E108: KING GEORGE HOSPITAL | F108: KGH ITU
A109: RF4QH-Amber A | B109: RF4 | C109: BARKING, HAVERING AND REDBRIDGE UNIVERSITY HOSPITALS NHS TRUST | D109: RF4QH | E109: QUEEN'S HOSPITAL | F109: Amber A
A110: RF4QH-Amber B | B110: RF4 | C110: BARKING, HAVERING AND REDBRIDGE UNIVERSITY HOSPITALS NHS TRUST | D110: RF4QH | E110: QUEEN'S HOSPITAL | F110: Amber B
A111: RF4QH-Antenatal | B111: RF4 | C111: BARKING, HAVERING AND REDBRIDGE UNIVERSITY HOSPITALS NHS TRUST | D111: RF4QH | E111: QUEEN'S HOSPITAL | F111: Antenatal
A112: RF4QH-Bluebell A | B112: RF4 | C112: BARKING, HAVERING AND REDBRIDGE UNIVERSITY HOSPITALS NHS TRUST | D112: RF4QH | E112: QUEEN'S HOSPITAL | F112: Bluebell A
A113: RF4QH-Bluebell B | B113: RF4 | C113: BARKING, HAVERING AND REDBRIDGE UNIVERSITY HOSPITALS NHS TRUST | D113: RF4QH | E113: QUEEN'S HOSPITAL | F113: Bluebell B
A114: RF4QH-CCU | B114: RF4 | C114: BARKING, HAVERING AND REDBRIDGE UNIVERSITY HOSPITALS NHS TRUST | D114: RF4QH | E114: QUEEN'S HOSPITAL | F114: CCU
A115: RF4QH-Clementine A | B115: RF4 | C115: BARKING, HAVERING AND REDBRIDGE UNIVERSITY HOSPITALS NHS TRUST | D115: RF4QH | E115: QUEEN'S HOSPITAL | F115: Clementine A
A116: RF4QH-Clementine B | B116: RF4 | C116: BARKING, HAVERING AND REDBRIDGE UNIVERSITY HOSPITALS NHS TRUST | D116: RF4QH | E116: QUEEN'S HOSPITAL | F116: Clementine B
A117: RF4QH-Coral | B117: RF4 | C117: BARKING, HAVERING AND REDBRIDGE UNIVERSITY HOSPITALS NHS TRUST | D117: RF4QH | E117: QUEEN'S HOSPITAL | F117: Coral
A118: RF4QH-Cornflower B | B118: RF4 | C118: BARKING, HAVERING AND REDBRIDGE UNIVERSITY HOSPITALS NHS TRUST | D118: RF4QH | E118: QUEEN'S HOSPITAL | F118: Cornflower B
A119: RF4QH-ERU | B119: RF4 | C119: BARKING, HAVERING AND REDBRIDGE UNIVERSITY HOSPITALS NHS TRUST | D119: RF4QH | E119: QUEEN'S HOSPITAL | F119: ERU
A120: RF4QH-Harvest A | B120: RF4 | C120: BARKING, HAVERING AND REDBRIDGE UNIVERSITY HOSPITALS NHS TRUST | D120: RF4QH | E120: QUEEN'S HOSPITAL | F120: Harvest A
A121: RF4QH-Harvest B | B121: RF4 | C121: BARKING, HAVERING AND REDBRIDGE UNIVERSITY HOSPITALS NHS TRUST | D121: RF4QH | E121: QUEEN'S HOSPITAL | F121: Harvest B
A122: RF4QH-HASU | B122: RF4 | C122: BARKING, HAVERING AND REDBRIDGE UNIVERSITY HOSPITALS NHS TRUST | D122: RF4QH | E122: QUEEN'S HOSPITAL | F122: HASU
A123: RF4QH-Mandarin A | B123: RF4 | C123: BARKING, HAVERING AND REDBRIDGE UNIVERSITY HOSPITALS NHS TRUST | D123: RF4QH | E123: QUEEN'S HOSPITAL | F123: Mandarin A
A124: RF4QH-Mandarin B | B124: RF4 | C124: BARKING, HAVERING AND REDBRIDGE UNIVERSITY HOSPITALS NHS TRUST | D124: RF4QH | E124: QUEEN'S HOSPITAL | F124: Mandarin B
A125: RF4QH-MRU | B125: RF4 | C125: BARKING, HAVERING AND REDBRIDGE UNIVERSITY HOSPITALS NHS TRUST | D125: RF4QH | E125: QUEEN'S HOSPITAL | F125: MRU
A126: RF4QH-Ocean A | B126: RF4 | C126: BARKING, HAVERING AND REDBRIDGE UNIVERSITY HOSPITALS NHS TRUST | D126: RF4QH | E126: QUEEN'S HOSPITAL | F126: Ocean A
A127: RF4QH-Ocean B | B127: RF4 | C127: BARKING, HAVERING AND REDBRIDGE UNIVERSITY HOSPITALS NHS TRUST | D127: RF4QH | E127: QUEEN'S HOSPITAL | F127: Ocean B
A128: RF4QH-Postnatal | B128: RF4 | C128: BARKING, HAVERING AND REDBRIDGE UNIVERSITY HOSPITALS NHS TRUST | D128: RF4QH | E128: QUEEN'S HOSPITAL | F128: Postnatal
A129: RF4QH-Queens ITU | B129: RF4 | C129: BARKING, HAVERING AND REDBRIDGE UNIVERSITY HOSPITALS NHS TRUST | D129: RF4QH | E129: QUEEN'S HOSPITAL | F129: Queens ITU
A130: RF4QH-Queens Neuro ITU | B130: RF4 | C130: BARKING, HAVERING AND REDBRIDGE UNIVERSITY HOSPITALS NHS TRUST | D130: RF4QH | E130: QUEEN'S HOSPITAL | F130: Queens Neuro ITU
A131: =CONCATENATE(D131,"-",F131) -> RF4QH-Sahara A | B131: RF4 | C131: BARKING, HAVERING AND REDBRIDGE UNIVERSITY HOSPITALS NHS TRUST | D131: RF4QH | E131: QUEEN'S HOSPITAL | F131: Sahara A
A132: RF4QH-Sahara B | B132: RF4 | C132: BARKING, HAVERING AND REDBRIDGE UNIVERSITY HOSPITALS NHS TRUST | D132: RF4QH | E132: QUEEN'S HOSPITAL | F132: Sahara B
A133: RF4QH-SAU | B133: RF4 | C133: BARKING, HAVERING AND REDBRIDGE UNIVERSITY HOSPITALS NHS TRUST | D133: RF4QH | E133: QUEEN'S HOSPITAL | F133: SAU
A134: RF4QH-SCBU | B134: RF4 | C134: BARKING, HAVERING AND REDBRIDGE UNIVERSITY HOSPITALS NHS TRUST | D134: RF4QH | E134: QUEEN'S HOSPITAL | F134: SCBU
A135: RF4QH-Sunrise A | B135: RF4 | C135: BARKING, HAVERING AND REDBRIDGE UNIVERSITY HOSPITALS NHS TRUST | D135: RF4QH | E135: QUEEN'S HOSPITAL | F135: Sunrise A
A136: RF4QH-Sunrise B | B136: RF4 | C136: BARKING, HAVERING AND REDBRIDGE UNIVERSITY HOSPITALS NHS TRUST | D136: RF4QH | E136: QUEEN'S HOSPITAL | F136: Sunrise B
A137: RF4QH-Tropical Lagoon | B137: RF4 | C137: BARKING, HAVERING AND REDBRIDGE UNIVERSITY HOSPITALS NHS TRUST | D137: RF4QH | E137: QUEEN'S HOSPITAL | F137: Tropical Lagoon
A138: RRP01-Ken Porter | B138: RRP | C138: BARNET, ENFIELD AND HARINGEY MENTAL HEALTH NHS TRUST | D138: RRP01 | E138: BARNET GENERAL HOSPITAL | F138: Ken Porter
A139: RRP16-Blue Nile | B139: RRP | C139: BARNET, ENFIELD AND HARINGEY MENTAL HEALTH NHS TRUST | D139: RRP16 | E139: CHASE FARM HOSPITAL | F139: Blue Nile
A140: RRP16-Cape Town | B140: RRP | C140: BARNET, ENFIELD AND HARINGEY MENTAL HEALTH NHS TRUST | D140: RRP16 | E140: CHASE FARM HOSPITAL | F140: Cape Town
A141: RRP16-Cardamom | B141: RRP | C141: BARNET, ENFIELD AND HARINGEY MENTAL HEALTH NHS TRUST | D141: RRP16 | E141: CHASE FARM HOSPITAL | F141: Cardamom
A142: RRP16-Complex Rehab Ward (formerly Somerset Villa) | B142: RRP | C142: BARNET, ENFIELD AND HARINGEY MENTAL HEALTH NHS TRUST | D142: RRP16 | E142: CHASE FARM HOSPITAL | F142: Complex Rehab Ward (formerly Somerset Villa)
A143: RRP16-Cornwall Villa | B143: RRP | C143: BARNET, ENFIELD AND HARINGEY MENTAL HEALTH NHS TRUST | D143: RRP16 | E143: CHASE FARM HOSPITAL | F143: Cornwall Villa
A144: RRP16-Derwent | B144: RRP | C144: BARNET, ENFIELD AND HARINGEY MENTAL HEALTH NHS TRUST | D144: RRP16 | E144: CHASE FARM HOSPITAL | F144: Derwent
A145: RRP16-Dorset | B145: RRP | C145: BARNET, ENFIELD AND HARINGEY MENTAL HEALTH NHS TRUST | D145: RRP16 | E145: CHASE FARM HOSPITAL | F145: Dorset
A146: RRP16-Eden House | B146: RRP | C146: BARNET, ENFIELD AND HARINGEY MENTAL HEALTH NHS TRUST | D146: RRP16 | E146: CHASE FARM HOSPITAL | F146: Eden House
A147: RRP16-Fennel | B147: RRP | C147: BARNET, ENFIELD AND HARINGEY MENTAL HEALTH NHS TRUST | D147: RRP16 | E147: CHASE FARM HOSPITAL | F147: Fennel
A148: RRP16-Juniper | B148: RRP | C148: BARNET, ENFIELD AND HARINGEY MENTAL HEALTH NHS TRUST | D148: RRP16 | E148: CHASE FARM HOSPITAL | F148: Juniper
A149: RRP16-Mint | B149: RRP | C149: BARNET, ENFIELD AND HARINGEY MENTAL HEALTH NHS TRUST | D149: RRP16 | E149: CHASE FARM HOSPITAL | F149: Mint
A150: RRP16-Moselle House | B150: RRP | C150: BARNET, ENFIELD AND HARINGEY MENTAL HEALTH NHS TRUST | D150: RRP16 | E150: CHASE FARM HOSPITAL | F150: Moselle House
A151: RRP16-Paprika | B151: RRP | C151: BARNET, ENFIELD AND HARINGEY MENTAL HEALTH NHS TRUST | D151: RRP16 | E151: CHASE FARM HOSPITAL | F151: Paprika
A152: RRP16-Sage | B152: RRP | C152: BARNET, ENFIELD AND HARINGEY MENTAL HEALTH NHS TRUST | D152: RRP16 | E152: CHASE FARM HOSPITAL | F152: Sage
A153: RRP16-Severn | B153: RRP | C153: BARNET, ENFIELD AND HARINGEY MENTAL HEALTH NHS TRUST | D153: RRP16 | E153: CHASE FARM HOSPITAL | F153: Severn
A154: RRP16-Silver Birches | B154: RRP | C154: BARNET, ENFIELD AND HARINGEY MENTAL HEALTH NHS TRUST | D154: RRP16 | E154: CHASE FARM HOSPITAL | F154: Silver Birches
A155: RRP16-Suffolk Ward | B155: RRP | C155: BARNET, ENFIELD AND HARINGEY MENTAL HEALTH NHS TRUST | D155: RRP16 | E155: CHASE FARM HOSPITAL | F155: Suffolk Ward
A156: RRP16-Sussex | B156: RRP | C156: BARNET, ENFIELD AND HARINGEY MENTAL HEALTH NHS TRUST | D156: RRP16 | E156: CHASE FARM HOSPITAL | F156: Sussex
A157: RRP16-Tamarind | B157: RRP | C157: BARNET, ENFIELD AND HARINGEY MENTAL HEALTH NHS TRUST | D157: RRP16 | E157: CHASE FARM HOSPITAL | F157: Tamarind
A158: RRP16-The Oaks | B158: RRP | C158: BARNET, ENFIELD AND HARINGEY MENTAL HEALTH NHS TRUST | D158: RRP16 | E158: CHASE FARM HOSPITAL | F158: The Oaks
A159: RRP23-Beacon Centre | B159: RRP | C159: BARNET, ENFIELD AND HARINGEY MENTAL HEALTH NHS TRUST | D159: RRP23 | E159: EDGWARE COMMUNITY HOSPITAL | F159: Beacon Centre
A160: RRP23-Devon Ward (formerly Avon) | B160: RRP | C160: BARNET, ENFIELD AND HARINGEY MENTAL HEALTH NHS TRUST | D160: RRP23 | E160: EDGWARE COMMUNITY HOSPITAL | F160: Devon Ward (formerly Avon)
A161: RRP23-Thames Ward | B161: RRP | C161: BARNET, ENFIELD AND HARINGEY MENTAL HEALTH NHS TRUST | D161: RRP23 | E161: EDGWARE COMMUNITY HOSPITAL | F161: Thames Ward
A162: RRP23-Trent Ward | B162: RRP | C162: BARNET, ENFIELD AND HARINGEY MENTAL HEALTH NHS TRUST | D162: RRP23 | E162: EDGWARE COMMUNITY HOSPITAL | F162: Trent Ward
A163: RRP46-Fairlands (Downhills) | B163: RRP | C163: BARNET, ENFIELD AND HARINGEY MENTAL HEALTH NHS TRUST | D163: RRP46 | E163: ST ANN'S HOSPITAL | F163: Fairlands (Downhills)
A164: RRP46-Finsbury | B164: RRP | C164: BARNET, ENFIELD AND HARINGEY MENTAL HEALTH NHS TRUST | D164: RRP46 | E164: ST ANN'S HOSPITAL | F164: Finsbury
A165: RRP46-Haringey Ward | B165: RRP | C165: BARNET, ENFIELD AND HARINGEY MENTAL HEALTH NHS TRUST | D165: RRP46 | E165: ST ANN'S HOSPITAL | F165: Haringey Ward
A166: RRP46-Pheonix | B166: RRP | C166: BARNET, ENFIELD AND HARINGEY MENTAL HEALTH NHS TRUST | D166: RRP46 | E166: ST ANN'S HOSPITAL | F166: Pheonix
A167: RRP47-Magnolia | B167: RRP | C167: BARNET, ENFIELD AND HARINGEY MENTAL HEALTH NHS TRUST | D167: RRP47 | E167: ST MICHAEL'S HOSPITAL | F167: Magnolia
A168: RFFAA-AMU | B168: RFF | C168: BARNSLEY HOSPITAL NHS FOUNDATION TRUST | D168: RFFAA | E168: BARNSLEY HOSPITAL NHS FOUNDATION TRUST HQ | F168: AMU
A169: RFFAA-AN/PN | B169: RFF | C169: BARNSLEY HOSPITAL NHS FOUNDATION TRUST | D169: RFFAA | E169: BARNSLEY HOSPITAL NHS FOUNDATION TRUST HQ | F169: AN/PN
A170: RFFAA-Birthing Centre | B170: RFF | C170: BARNSLEY HOSPITAL NHS FOUNDATION TRUST | D170: RFFAA | E170: BARNSLEY HOSPITAL NHS FOUNDATION TRUST HQ | F170: Birthing Centre
A171: RFFAA-CCU | B171: RFF | C171: BARNSLEY HOSPITAL NHS FOUNDATION TRUST | D171: RFFAA | E171: BARNSLEY HOSPITAL NHS FOUNDATION TRUST HQ | F171: CCU
A172: RFFAA-Gynae Inpatient Ward | B172: RFF | C172: BARNSLEY HOSPITAL NHS FOUNDATION TRUST | D172: RFFAA | E172: BARNSLEY HOSPITAL NHS FOUNDATION TRUST HQ | F172: Gynae Inpatient Ward
A173: RFFAA-ITU | B173: RFF | C173: BARNSLEY HOSPITAL NHS FOUNDATION TRUST | D173: RFFAA | E173: BARNSLEY HOSPITAL NHS FOUNDATION TRUST HQ | F173: ITU
A174: RFFAA-SHDU | B174: RFF | C174: BARNSLEY HOSPITAL NHS FOUNDATION TRUST | D174: RFFAA | E174: BARNSLEY HOSPITAL NHS FOUNDATION TRUST HQ | F174: SHDU
A175: RFFAA-Ward 15 NNU | B175: RFF | C175: BARNSLEY HOSPITAL NHS FOUNDATION TRUST | D175: RFFAA | E175: BARNSLEY HOSPITAL NHS FOUNDATION TRUST HQ | F175: Ward 15 NNU
A176: RFFAA-Ward 17 | B176: RFF | C176: BARNSLEY HOSPITAL NHS FOUNDATION TRUST | D176: RFFAA | E176: BARNSLEY HOSPITAL NHS FOUNDATION TRUST HQ | F176: Ward 17
A177: RFFAA-Ward 18 | B177: RFF | C177: BARNSLEY HOSPITAL NHS FOUNDATION TRUST | D177: RFFAA | E177: BARNSLEY HOSPITAL NHS FOUNDATION TRUST HQ | F177: Ward 18
A178: RFFAA-Ward 19 Elderly | B178: RFF | C178: BARNSLEY HOSPITAL NHS FOUNDATION TRUST | D178: RFFAA | E178: BARNSLEY HOSPITAL NHS FOUNDATION TRUST HQ | F178: Ward 19 Elderly
A179: RFFAA-Ward 20 ASU | B179: RFF | C179: BARNSLEY HOSPITAL NHS FOUNDATION TRUST | D179: RFFAA | E179: BARNSLEY HOSPITAL NHS FOUNDATION TRUST HQ | F179: Ward 20 ASU
A180: RFFAA-Ward 21 | B180: RFF | C180: BARNSLEY HOSPITAL NHS FOUNDATION TRUST | D180: RFFAA | E180: BARNSLEY HOSPITAL NHS FOUNDATION TRUST HQ | F180: Ward 21
A181: RFFAA-Ward 22 Diabetes/Endo | B181: RFF | C181: BARNSLEY HOSPITAL NHS FOUNDATION TRUST | D181: RFFAA | E181: BARNSLEY HOSPITAL NHS FOUNDATION TRUST HQ | F181: Ward 22 Diabetes/Endo
A182: RFFAA-Ward 23 Frailty Unit | B182: RFF | C182: BARNSLEY HOSPITAL NHS FOUNDATION TRUST | D182: RFFAA | E182: BARNSLEY HOSPITAL NHS FOUNDATION TRUST HQ | F182: Ward 23 Frailty Unit
A183: RFFAA-Ward 24 | B183: RFF | C183: BARNSLEY HOSPITAL NHS FOUNDATION TRUST | D183: RFFAA | E183: BARNSLEY HOSPITAL NHS FOUNDATION TRUST HQ | F183: Ward 24
A184: RFFAA-Ward 29 SSU | B184: RFF | C184: BARNSLEY HOSPITAL NHS FOUNDATION TRUST | D184: RFFAA | E184: BARNSLEY HOSPITAL NHS FOUNDATION TRUST HQ | F184: Ward 29 SSU
A185: RFFAA-Ward 30 General Medical Ward | B185: RFF | C185: BARNSLEY HOSPITAL NHS FOUNDATION TRUST | D185: RFFAA | E185: BARNSLEY HOSPITAL NHS FOUNDATION TRUST HQ | F185: Ward 30 General Medical Ward
A186: RFFAA-Ward 31 SA | B186: RFF | C186: BARNSLEY HOSPITAL NHS FOUNDATION TRUST | D186: RFFAA | E186: BARNSLEY HOSPITAL NHS FOUNDATION TRUST HQ | F186: Ward 31 SA
A187: RFFAA-Ward 32 | B187: RFF | C187: BARNSLEY HOSPITAL NHS FOUNDATION TRUST | D187: RFFAA | E187: BARNSLEY HOSPITAL NHS FOUNDATION TRUST HQ | F187: Ward 32
A188: RFFAA-Ward 33 | B188: RFF | C188: BARNSLEY HOSPITAL NHS FOUNDATION TRUST | D188: RFFAA | E188: BARNSLEY HOSPITAL NHS FOUNDATION TRUST HQ | F188: Ward 33
A189: RFFAA-Ward 34 | B189: RFF | C189: BARNSLEY HOSPITAL NHS FOUNDATION TRUST | D189: RFFAA | E189: BARNSLEY HOSPITAL NHS FOUNDATION TRUST HQ | F189: Ward 34
A190: RFFAA-Ward 37 | B190: RFF | C190: BARNSLEY HOSPITAL NHS FOUNDATION TRUST | D190: RFFAA | E190: BARNSLEY HOSPITAL NHS FOUNDATION TRUST HQ | F190: Ward 37
A191: R1HNH-BECKTON | B191: R1H | C191: BARTS HEALTH NHS TRUST | D191: R1HNH | E191: Newham General Hospital | F191: BECKTON
A192: R1HNH-CCU NUH | B192: R1H | C192: BARTS HEALTH NHS TRUST | D192: R1HNH | E192: Newham General Hospital | F192: CCU NUH
A193: R1HNH-DELIVERY SUITE NUH | B193: R1H | C193: BARTS HEALTH NHS TRUST | D193: R1HNH | E193: Newham General Hospital | F193: DELIVERY SUITE NUH
A194: R1HNH-EAST HAM | B194: R1H | C194: BARTS HEALTH NHS TRUST | D194: R1HNH | E194: Newham General Hospital | F194: EAST HAM
A195: =CONCATENATE(D195,"-",F195) -> R1HNH-HEATHER | B195: R1H | C195: BARTS HEALTH NHS TRUST | D195: R1HNH | E195: Newham General Hospital | F195: HEATHER
A196: R1HNH-ICU NUH | B196: R1H | C196: BARTS HEALTH NHS TRUST | D196: R1HNH | E196: Newham General Hospital | F196: ICU NUH
A197: R1HNH-LARCH | B197: R1H | C197: BARTS HEALTH NHS TRUST | D197: R1HNH | E197: Newham General Hospital | F197: LARCH
A198: R1HNH-MAPLE | B198: R1H | C198: BARTS HEALTH NHS TRUST | D198: R1HNH | E198: Newham General Hospital | F198: MAPLE
A199: R1HNH-MAU NUH | B199: R1H | C199: BARTS HEALTH NHS TRUST | D199: R1HNH | E199: Newham General Hospital | F199: MAU NUH
A200: R1HNH-NEONATAL NUH | B200: R1H | C200: BARTS HEALTH NHS TRUST | D200: R1HNH | E200: Newham General Hospital | F200: NEONATAL NUH
... 6506 more rows

Sheet Index (hidden)
A1: Lookups | F1: Provider Orgs | J1: Concatenation | K1: Natural Key | N1: Provider Orgs | O1: AHP Activity?
A2: Columns | B2: Row | F2: RCF | G2: Airedale NHS Foundation Trust | J2: April_2017-18 | K2: 10166 | N2: RTQ | O2: Y
A3: 1 | B3: 1 | F3: RBS | G3: Alder Hey Children's NHS Foundation Trust | J3: May_2017-18 | K3: 10167 | N3: REM | O3: Y
A4: 1 | B4: 2 | F4: RTK | G4: Ashford And St Peter's Hospitals NHS Foundation Trust | J4: June_2017-18 | K4: 10168 | N4: RCF | O4: Y
A5: 1 | B5: 3 | F5: RVN | G5: Avon and Wiltshire Mental Health Partnership NHS Trust | J5: July_2017-18 | K5: 10169 | N5: RBS | O5: Y
A6: 1 | B6: 4 | F6: RF4 | G6: Barking, Havering And Redbridge University Hospitals NHS Trust | J6: August_2017-18 | K6: 10170 | N6: RTK | O6: Y
A7: 1 | B7: 5 | F7: RRP | G7: Barnet, Enfield and Haringey Mental Health NHS Trust | J7: September_2017-18 | K7: 10171 | N7: RVN | O7: Y
A8: 1 | B8: 6 | F8: RFF | G8: Barnsley Hospital NHS Foundation Trust | J8: October_2017-18 | K8: 10172 | N8: RF4 | O8: Y
A9: 1 | B9: 7 | F9: R1H | G9: Barts Health NHS Trust | J9: November_2017-18 | K9: 10173 | N9: RRP | O9: Y
A10: 1 | B10: 8 | F10: RDD | G10: Basildon And Thurrock University Hospitals NHS Foundation Trust | J10: December_2017-18 | K10: 10174 | N10: RFF | O10: Y
A11: 1 | B11: 9 | F11: RC1 | G11: Bedford Hospital NHS Trust | J11: January_2017-18 | K11: 10175 | N11: R1H | O11: Y
A12: 1 | B12: 10 | F12: RWX | G12: Berkshire Healthcare NHS Foundation Trust | J12: February_2017-18 | K12: 10176 | N12: RDD | O12: Y
A13: 1 | B13: 11 | F13: RXT | G13: Birmingham and Solihull Mental Health NHS Foundation Trust | J13: March_2017-18 | K13: 10177 | N13: RC1 | O13: Y
A14: 1 | B14: 12 | F14: RYW | G14: Birmingham Community HealthCare NHS Trust | N14: RWX | O14: Y
A15: 1 | B15: 13 | F15: RQ3 | G15: Birmingham Women's and Children's Hospital NHS Foundation Trust | N15: RXT | O15: Y
A16: 1 | B16: 14 | F16: TAJ | G16: Black Country Partnership NHS Foundation Trust | N16: RYW | O16: Y
A17: 1 | B17: 15 | F17: RXL | G17: Blackpool Teaching Hospitals NHS Foundation Trust | N17: RQ3 | O17: Y
A18: 1 | B18: 16 | F18: RMC | G18: Bolton NHS Foundation Trust | N18: TAJ | O18: Y
A19: 1 | B19: 17 | F19: TAD | G19: Bradford District Care Trust | N19: RXL | O19: Y
A20: 1 | B20: 18 | F20: RAE | G20: Bradford Teaching Hospitals NHS Foundation Trust | N20: RMC | O20: Y
A21: 1 | B21: 19 | F21: RY2 | G21: Bridgewater Community Healthcare NHS Trust | N21: TAD | O21: Y
A22: 1 | B22: 20 | F22: RXH | G22: Brighton And Sussex University Hospitals NHS Trust | N22: RAE | O22: Y
A23: 1 | B23: 21 | F23: RXQ | G23: Buckinghamshire Healthcare NHS Trust | N23: RY2 | O23: Y
A24: 1 | B24: 22 | F24: RWY | G24: Calderdale And Huddersfield NHS Foundation Trust | N24: RXH | O24: Y
A25: 1 | B25: 23 | F25: RGT | G25: Cambridge University Hospitals NHS Foundation Trust | N25: RXQ | O25: Y
A26: 1 | B26: 24 | F26: RT1 | G26: Cambridgeshire And Peterborough NHS Foundation Trust | N26: RWY | O26: Y
A27: 1 | B27: 25 | F27: RYV | G27: Cambridgeshire Community Services NHS Trust | N27: RGT | O27: Y
A28: 1 | B28: 26 | F28: TAF | G28: Camden And Islington NHS Foundation Trust | N28: RT1 | O28: Y
A29: 1 | B29: 27 | F29: RV3 | G29: Central and North West London NHS Foundation Trust | N29: RYV | O29: Y
A30: 1 | B30: 28 | F30: RYX | G30: Central London Community Healthcare NHS Trust | N30: TAF | O30: Y
A31: 1 | B31: 29 | F31: RQM | G31: Chelsea And Westminster Hospital NHS Foundation Trust | N31: RV3 | O31: Y
A32: 1 | B32: 30 | F32: RXA | G32: Cheshire and Wirral Partnership NHS Foundation Trust | N32: RYX | O32: Y
A33: 1 | B33: 31 | F33: RFS | G33: Chesterfield Royal Hospital NHS Foundation Trust | N33: RQM | O33: Y
A34: 1 | B34: 32 | F34: RLN | G34: City Hospitals Sunderland NHS Foundation Trust | N34: RXA | O34: Y
A35: 1 | B35: 33 | F35: RJ8 | G35: Cornwall Partnership NHS Foundation Trust | N35: RFS | O35: Y
A36: 1 | B36: 34 | F36: RJR | G36: Countess of Chester Hospital NHS Foundation Trust | N36: RLN | O36: Y
A37: 1 | B37: 35 | F37: RXP | G37: County Durham And Darlington NHS Foundation Trust | N37: RJ8 | O37: Y
A38: 1 | B38: 36 | F38: RYG | G38: Coventry and Warwickshire Partnership NHS Trust | N38: RJR | O38: Y
A39: 1 | B39: 37 | F39: RJ6 | G39: Croydon Health Services NHS Trust | N39: RXP | O39: Y
A40: 1 | B40: 38 | F40: RX4 | G40: Cumbria, Northumberland, Tyne and Wear NHS Foundation Trust | N40: RYG | O40: Y
A41: 1 | B41: 39 | F41: RN7 | G41: Dartford And Gravesham NHS Trust | N41: RJ6 | O41: Y
A42: 1 | B42: 40 | F42: RY8 | G42: Derbyshire Community Health Services NHS Trust | N42: RNN | O42: Y
A43: 1 | B43: 41 | F43: RXM | G43: Derbyshire Healthcare NHS Foundation Trust | N43: RN7 | O43: Y
A44: 1 | B44: 42 | F44: RWV | G44: Devon Partnership NHS Trust | N44: RY8 | O44: Y
A45: 1 | B45: 43 | F45: RP5 | G45: Doncaster And Bassetlaw Hospitals NHS Foundation Trust | N45: RXM | O45: Y
A46: 1 | B46: 44 | F46: RBD | G46: Dorset County Hospital NHS Foundation Trust | N46: RWV | O46: Y
A47: 1 | B47: 45 | F47: RDY | G47: Dorset HealthCare University NHS Foundation Trust | N47: RP5 | O47: Y
A48: 1 | B48: 46 | F48: RYK | G48: Dudley and Walsall Mental Health Partnership NHS Trust | N48: RBD | O48: Y
A49: 1 | B49: 47 | F49: RWH | G49: East And North Hertfordshire NHS Trust | N49: RDY | O49: Y
A50: 1 | B50: 48 | F50: RJN | G50: East Cheshire NHS Trust | N50: RYK | O50: Y
A51: 1 | B51: 49 | F51: RVV | G51: East Kent Hospitals University NHS Foundation Trust | N51: RWH | O51: Y
A52: 1 | B52: 50 | F52: RXR | G52: East Lancashire Hospitals NHS Trust | N52: RJN | O52: Y
A53: 1 | B53: 51 | F53: RWK | G53: East London Foundation Trust | N53: RVV | O53: Y
A54: 1 | B54: 52 | F54: RDE | G54: East Suffolk and North Essex NHS Foundation Trust | N54: RXR | O54: Y
A55: 1 | B55: 53 | F55: RXC | G55: East Sussex Healthcare NHS Trust | N55: RWK | O55: Y
A56: 1 | B56: 54 | F56: RVR | G56: Epsom And St Helier University Hospitals NHS Trust | N56: RDE | O56: Y
A57: 1 | B57: 55 | F57: R1L | G57: Essex Partnership University NHS Foundation Trust | N57: RXC | O57: Y
A58: 1 | B58: 56 | F58: RDU | G58: Frimley Park Hospital NHS Foundation Trust | N58: RVR | O58: Y
A59: 1 | B59: 57 | F59: RR7 | G59: Gateshead Health NHS Foundation Trust | N59: R1L | O59: Y
A60: 1 | B60: 58 | F60: RLT | G60: George Eliot Hospital NHS Trust | N60: RDU | O60: Y
A61: 1 | B61: 59 | F61: RTQ | G61: Gloucestershire Health and Care NHS Foundation Trust | N61: RR7 | O61: Y
A62: 1 | B62: 60 | F62: RTE | G62: Gloucestershire Hospitals NHS Foundation Trust | N62: RLT | O62: Y
A63: 1 | B63: 61 | F63: RP4 | G63: Great Ormond Street Hospital For Children NHS Foundation Trust | N63: RTE | O63: Y
A64: 1 | B64: 62 | F64: RN3 | G64: Great Western Hospitals NHS Foundation Trust | N64: RP4 | O64: Y
A65: 1 | B65: 63 | F65: RXV | G65: Greater Manchester Mental Health NHS Foundation Trust | N65: RN3 | O65: Y
A66: 1 | B66: 64 | F66: RJ1 | G66: Guy's and St Thomas' NHS Foundation Trust | N66: RXV | O66: Y
A67: 1 | B67: 65 | F67: RN5 | G67: Hampshire Hospitals NHS Foundation Trust | N67: RJ1 | O67: Y
A68: 1 | B68: 66 | F68: RCD | G68: Harrogate And District NHS Foundation Trust | N68: RN5 | O68: Y
A69: 1 | B69: 67 | F69: RY4 | G69: Hertfordshire Community NHS Trust | N69: RCD | O69: Y
A70: 1 | B70: 68 | F70: RWR | G70: Hertfordshire Partnership University NHS Foundation Trust | N70: RY4 | O70: Y
A71: 1 | B71: 69 | F71: RQX | G71: Homerton University Hospital NHS Foundation Trust | N71: RWR | O71: Y
A72: 1 | B72: 70 | F72: RY9 | G72: Hounslow And Richmond Community Healthcare NHS Trust | N72: RQX | O72: Y
A73: 1 | B73: 71 | F73: RWA | G73: Hull And East Yorkshire Hospitals NHS Trust | N73: RY9 | O73: Y
A74: 1 | B74: 72 | F74: RV9 | G74: Humber NHS Foundation Trust | N74: RWA | O74: Y
A75: 1 | B75: 73 | F75: RYJ | G75: Imperial College Healthcare NHS Trust | N75: RV9 | O75: Y
A76: 1 | B76: 74 | F76: R1F | G76: Isle of Wight NHS Trust | N76: RYJ | O76: Y
A77: 1 | B77: 75 | F77: RGP | G77: James Paget University Hospitals NHS Foundation Trust | N77: R1F | O77: Y
A78: 1 | B78: 76 | F78: RXY | G78: Kent And Medway NHS And Social Care Partnership Trust | N78: RGP | O78: Y
A79: 1 | B79: 77 | F79: RYY | G79: Kent Community Health NHS Trust | N79: RXY | O79: Y
A80: 1 | B80: 78 | F80: RNQ | G80: Kettering General Hospital NHS Foundation Trust | N80: RYY | O80: Y
A81: 1 | B81: 79 | F81: RJZ | G81: King's College Hospital NHS Foundation Trust | N81: RNQ | O81: Y
A82: 1 | B82: 80 | F82: RAX | G82: Kingston Hospital NHS Trust | N82: RJZ | O82: Y
A83: 1 | B83: 81 | F83: RW5 | G83: Lancashire Care NHS Foundation trust | N83: RAX | O83: Y
A84: 1 | B84: 82 | F84: RXN | G84: Lancashire Teaching Hospitals NHS Foundation Trust | N84: RW5 | O84: Y
A85: 1 | B85: 83 | F85: RGD | G85: Leeds and York Partnership NHS Foundation Trust | N85: RXN | O85: Y
A86: 1 | B86: 84 | F86: RY6 | G86: Leeds Community Healthcare NHS Trust | N86: RGD | O86: Y
A87: 1 | B87: 85 | F87: RR8 | G87: Leeds Teaching Hospitals NHS Trust | N87: RY6 | O87: Y
A88: 1 | B88: 86 | F88: RT5 | G88: Leicestershire Partnership NHS Trust | N88: RR8 | O88: Y
A89: 1 | B89: 87 | F89: RJ2 | G89: Lewisham and Greenwich NHS Trust | N89: RT5 | O89: Y
A90: 1 | B90: 88 | F90: RY5 | G90: Lincolnshire Community Health Services NHS Trust | N90: RJ2 | O90: Y
A91: 1 | B91: 89 | F91: RP7 | G91: Lincolnshire Partnership NHS Foundation Trust | N91: RY5 | O91: Y
A92: 1 | B92: 90 | F92: RBQ | G92: Liverpool Heart And Chest NHS Foundation Trust | N92: RP7 | O92: Y
A93: 1 | B93: 91 | F93: REM | G93: Liverpool University Hosptials NHS Foundation Trust | N93: RBQ | O93: Y
A94: 1 | B94: 92 | F94: REP | G94: Liverpool Women's NHS Foundation Trust | N94: REP | O94: Y
A95: 1 | B95: 93 | F95: R1K | G95: London North West Healthcare NHS Trust | N95: R1K | O95: Y
A96: 1 | B96: 94 | F96: RC9 | G96: Luton And Dunstable Hospital NHS Foundation Trust | N96: RC9 | O96: Y
A97: 1 | B97: 95 | F97: RWF | G97: Maidstone And Tunbridge Wells NHS Trust | N97: RWF | O97: Y
A98: 1 | B98: 96 | F98: R0A | G98: Manchester University NHS Foundation Trust | N98: R0A | O98: Y
A99: 1 | B99: 97 | F99: RPA | G99: Medway NHS Foundation Trust | N99: RPA | O99: Y
A100: 1 | B100: 98 | F100: RW4 | G100: Mersey Care NHS Trust | N100: RW4 | O100: Y
A101: 1 | B101: 99 | F101: RBT | G101: Mid Cheshire Hospitals NHS Foundation Trust | N101: RBT | O101: Y
A102: 1 | B102: 100 | F102: RQ8 | G102: Mid Essex Hospital Services NHS Trust | N102: RQ8 | O102: Y
A103: 1 | B103: 101 | F103: RXF | G103: Mid Yorkshire Hospitals NHS Trust | N103: RXF | O103: Y
A104: 1 | B104: 102 | F104: RRE | G104: Midlands Partnership NHS Foundation Trust | N104: RRE | O104: Y
A105: 1 | B105: 103 | F105: RD8 | G105: Milton Keynes Hospital NHS Foundation Trust | N105: RD8 | O105: Y
A106: 1 | B106: 104 | F106: RP6 | G106: Moorfields Eye Hospital NHS Foundation Trust | N106: RP6 | O106: Y
A107: 1 | B107: 105 | F107: RM1 | G107: Norfolk And Norwich University Hospitals NHS Foundation Trust | N107: RM1 | O107: Y
A108: 1 | B108: 106 | F108: RMY | G108: Norfolk and Suffolk NHS Foundation Trust | N108: RMY | O108: Y
A109: 1 | B109: 107 | F109: RY3 | G109: Norfolk Community Health And Care NHS Trust | N109: RY3 | O109: Y
A110: 1 | B110: 108 | F110: RVJ | G110: North Bristol NHS Trust | N110: RVJ | O110: Y
A111: 1 | B111: 109 | F111: RNN | G111: North Cumbria Integrated Care NHS Foundation Trust | N111: RAT | O111: Y
A112: 1 | B112: 110 | F112: RAT | G112: North East London NHS Foundation Trust | N112: RAP | O112: Y
A113: 1 | B113: 111 | F113: RAP | G113: North Middlesex University Hospital NHS Trust | N113: RLY | O113: Y
A114: 1 | B114: 112 | F114: RLY | G114: North Staffordshire Combined Healthcare NHS Trust | N114: RVW | O114: Y
A115: 1 | B115: 113 | F115: RVW | G115: North Tees And Hartlepool NHS Foundation Trust | N115: RGN | O115: Y
A116: 1 | B116: 114 | F116: RGN | G116: North West Anglia NHS Foundation Trust | N116: RTV | O116: Y
A117: 1 | B117: 115 | F117: RTV | G117: North West Boroughs Healthcare NHS Foundation Trust | N117: RNS | O117: Y
A118: 1 | B118: 116 | F118: RNS | G118: Northampton General Hospital NHS Trust | N118: RP1 | O118: Y
A119: 1 | B119: 117 | F119: RP1 | G119: Northamptonshire Healthcare NHS Foundation Trust | N119: RBZ | O119: Y
A120: 1 | B120: 118 | F120: RBZ | G120: Northern Devon Healthcare NHS Trust | N120: RJL | O120: Y
A121: 1 | B121: 119 | F121: RJL | G121: Northern Lincolnshire And Goole Hospitals NHS Foundation Trust | N121: RX4 | O121: Y
A122: 1 | B122: 120 | F122: RTF | G122: Northumbria Healthcare NHS Foundation Trust | N122: RTF | O122: Y
A123: 1 | B123: 121 | F123: RX1 | G123: Nottingham University Hospitals NHS Trust | N123: RX1 | O123: Y
A124: 1 | B124: 122 | F124: RHA | G124: Nottinghamshire Healthcare NHS Trust | N124: RHA | O124: Y
A125: 1 | B125: 123 | F125: RNU | G125: Oxford Health NHS Foundation Trust | N125: RNU | O125: Y
A126: 1 | B126: 124 | F126: RTH | G126: Oxford University Hospitals NHS Trust | N126: RTH | O126: Y
A127: 1 | B127: 125 | F127: RPG | G127: Oxleas NHS Foundation Trust | N127: RPG | O127: Y
A128: 1 | B128: 126 | F128: RW6 | G128: Pennine Acute Hospitals NHS Trust | N128: RGM | O128: Y
A129: 1 | B129: 127 | F129: RT2 | G129: Pennine Care NHS Foundation Trust | N129: RW6 | O129: Y
A130: 1 | B130: 128 | F130: RK9 | G130: Plymouth Hospitals NHS Trust | N130: RT2 | O130: Y
A131: 1 | B131: 129 | F131: RD3 | G131: Poole Hospital NHS Foundation Trust | N131: RK9 | O131: Y
A132: 1 | B132: 130 | F132: RHU | G132: Portsmouth Hospitals NHS Trust | N132: RD3 | O132: Y
A133: 1 | B133: 131 | F133: RPC | G133: Queen Victoria Hospital NHS Foundation Trust | N133: RHU | O133: Y
A134: 1 | B134: 132 | F134: RXE | G134: Rotherham Doncaster and South Humber NHS Foundation Trust | N134: RPC | O134: Y
A135: 1 | B135: 133 | F135: RHW | G135: Royal Berkshire NHS Foundation Trust | N135: RXE | O135: Y
A136: 1 | B136: 134 | F136: RT3 | G136: Royal Brompton And Harefield NHS Foundation Trust | N136: RHW | O136: Y
A137: 1 | B137: 135 | F137: REF | G137: Royal Cornwall Hospitals NHS Trust | N137: RT3 | O137: Y
A138: 1 | B138: 136 | F138: RH8 | G138: Royal Devon And Exeter NHS Foundation Trust | N138: REF | O138: Y
A139: 1 | B139: 137 | F139: RAL | G139: Royal Free London NHS Foundation Trust | N139: RH8 | O139: Y
A140: 1 | B140: 138 | F140: RAN | G140: Royal National Orthopaedic Hospital NHS Trust | N140: RAL | O140: Y
A141: 1 | B141: 139 | F141: RGM | G141: Royal Papworth Hospital NHS Foundation Trust | N141: RAN | O141: Y
A142: 1 | B142: 140 | F142: RA2 | G142: Royal Surrey County Hospital NHS Foundation Trust | N142: RA2 | O142: Y
A143: 1 | B143: 141 | F143: RD1 | G143: Royal United Hospital Bath NHS Trust | N143: RD1 | O143: Y
A144: 1 | B144: 142 | F144: RM3 | G144: Salford Royal NHS Foundation Trust | N144: RM3 | O144: Y
A145: 1 | B145: 143 | F145: RNZ | G145: Salisbury NHS Foundation Trust | N145: RNZ | O145: Y
A146: 1 | B146: 144 | F146: RXK | G146: Sandwell And West Birmingham Hospitals NHS Trust | N146: RXK | O146: Y
A147: 1 | B147: 145 | F147: RCU | G147: Sheffield Children's NHS Foundation Trust | N147: RCU | O147: Y
A148: 1 | B148: 146 | F148: TAH | G148: Sheffield Health & Social Care NHS Foundation Trust | N148: TAH | O148: Y
A149: 1 | B149: 147 | F149: RHQ | G149: Sheffield Teaching Hospitals NHS Foundation Trust | N149: RHQ | O149: Y
A150: 1 | B150: 148 | F150: RK5 | G150: Sherwood Forest Hospitals NHS Foundation Trust | N150: RK5 | O150: Y
A151: 1 | B151: 149 | F151: RXW | G151: Shrewsbury And Telford Hospital NHS Trust | N151: RXW | O151: Y
A152: 1 | B152: 150 | F152: R1D | G152: Shropshire Community Health NHS Trust | N152: R1D | O152: Y
A153: 1 | B153: 151 | F153: R1C | G153: Solent NHS Trust | N153: R1C | O153: Y
A154: 1 | B154: 152 | F154: RH5 | G154: Somerset Partnership NHS Foundation Trust | N154: RH5 | O154: Y
A155: 1 | B155: 153 | F155: RV5 | G155: South London And Maudsley NHS Foundation Trust | N155: RV5 | O155: Y
A156: 1 | B156: 154 | F156: RTR | G156: South Tees Hospitals NHS Foundation Trust | N156: RTR | O156: Y
A157: 1 | B157: 155 | F157: R0B | G157: South Tyneside and Sunderland NHS Foundation Trust | N157: RE9 | O157: Y
A158: 1 | B158: 156 | F158: RE9 | G158: South Tyneside NHS Foundation Trust | N158: RJC | O158: Y
A159: 1 | B159: 157 | F159: RJC | G159: South Warwickshire NHS Foundation Trust | N159: RQY | O159: Y
A160: 1 | B160: 158 | F160: RQY | G160: South West London And St George's Mental Health NHS Trust | N160: RXG | O160: Y
A161: 1 | B161: 159 | F161: RXG | G161: South West Yorkshire Partnership NHS Foundation Trust | N161: RAJ | O161: Y
A162: 1 | B162: 160 | F162: RAJ | G162: Southend University Hospital NHS Foundation Trust | N162: RW1 | O162: Y
A163: 1 | B163: 161 | F163: RW1 | G163: Southern Health NHS Foundation Trust | N163: RVY | O163: Y
A164: 1 | B164: 162 | F164: RVY | G164: Southport And Ormskirk Hospital NHS Trust | N164: RJ7 | O164: Y
A165: 1 | B165: 163 | F165: RJ7 | G165: St George's Healthcare NHS Trust | N165: RBN | O165: Y
A166: 1 | B166: 164 | F166: RBN | G166: St Helens And Knowsley Hospitals NHS Trust | N166: RWJ | O166: Y
A167: 1 | B167: 165 | F167: RWJ | G167: Stockport NHS Foundation Trust | N167: RXX | O167: Y
A168: 1 | B168: 166 | F168: RXX | G168: Surrey and Borders Partnership NHS Foundation Trust | N168: RTP | O168: Y
A169: 1 | B169: 167 | F169: RTP | G169: Surrey And Sussex Healthcare NHS Trust | N169: RDR | O169: Y
A170: 1 | B170: 168 | F170: RDR | G170: Sussex Community NHS Trust | N170: RX2 | O170: Y
A171: 1 | B171: 169 | F171: RX2 | G171: Sussex Partnership NHS Foundation Trust | N171: RMP | O171: Y
A172: 1 | B172: 170 | F172: RMP | G172: Tameside Hospital NHS Foundation Trust | N172: RBA | O172: Y
A173: 1 | B173: 171 | F173: RBA | G173: Taunton And Somerset NHS Foundation Trust | N173: RX3 | O173: Y
A174: 1 | B174: 172 | F174: RX3 | G174: Tees, Esk and Wear Valleys NHS Foundation Trust | N174: RBV | O174: Y
A175: 1 | B175: 173 | F175: RBV | G175: The Christie NHS Foundation Trust | N175: REN | O175: Y
A176: 1 | B176: 174 | F176: REN | G176: The Clatterbridge Cancer Centre NHS Foundation Trust | N176: RNA | O176: Y
A177: 1 | B177: 175 | F177: RNA | G177: The Dudley Group NHS Foundation Trust | N177: RAS | O177: Y
A178: 1 | B178: 176 | F178: RAS | G178: The Hillingdon Hospitals NHS Foundation Trust | N178: RTD | O178: Y
A179: 1 | B179: 177 | F179: RTD | G179: The Newcastle Upon Tyne Hospitals NHS Foundation Trust | N179: RQW | O179: Y
A180: 1 | B180: 178 | F180: RQW | G180: The Princess Alexandra Hospital NHS Trust | N180: RCX | O180: Y
A181: 1 | B181: 179 | F181: RCX | G181: The Queen Elizabeth Hospital, King's Lynn, NHS Foundation Trust | N181: RL1 | O181: Y
A182: 1 | B182: 180 | F182: RL1 | G182: The Robert Jones And Agnes Hunt Orthopaedic Hospital NHS Foundation Trust | N182: RFR | O182: Y
A183: 1 | B183: 181 | F183: RFR | G183: The Rotherham NHS Foundation Trust | N183: RDZ | O183: Y
A184: 1 | B184: 182 | F184: RDZ | G184: The Royal Bournemouth And Christchurch Hospitals NHS Foundation Trust | N184: RPY | O184: Y
A185: 1 | B185: 183 | F185: RPY | G185: The Royal Marsden NHS Foundation Trust | N185: RRJ | O185: Y
A186: 1 | B186: 184 | F186: RRJ | G186: The Royal Orthopaedic Hospital NHS Foundation Trust | N186: RL4 | O186: Y
A187: 1 | B187: 185 | F187: RL4 | G187: The Royal Wolverhampton NHS Trust | N187: RET | O187: Y
A188: 1 | B188: 186 | F188: RET | G188: The Walton Centre NHS Foundation Trust | N188: RKE | O188: Y
A189: 1 | B189: 187 | F189: RKE | G189: The Whittington Hospital NHS Trust | N189: RA9 | O189: Y
A190: 1 | B190: 188 | F190: RA9 | G190: Torbay and South Devon NHS Foundation Trust | N190: RWD | O190: Y
A191: 1 | B191: 189 | F191: RWD | G191: United Lincolnshire Hospitals NHS Trust | N191: RRV | O191: Y
A192: 1 | B192: 190 | F192: RRV | G192: University College London Hospitals NHS Foundation Trust | N192: RJE | O192: Y
A193: 1 | B193: 191 | F193: RJE | G193: University Hospital of North Midlands NHS Trust | N193: RHM | O193: Y
A194: 1 | B194: 192 | F194: RHM | G194: University Hospital Southampton NHS Foundation Trust | N194: RRK | O194: Y
A195: 1 | B195: 193 | F195: RRK | G195: University Hospitals Birmingham NHS Foundation Trust | N195: RA7 | O195: Y
A196: 1 | B196: 194 | F196: RA7 | G196: University Hospitals Bristol NHS Foundation Trust | N196: RKB | O196: Y
A197: 1 | B197: 195 | F197: RKB | G197: University Hospitals Coventry And Warwickshire NHS Trust | N197: RTG | O197: Y
A198: 1 | B198: 196 | F198: RTG | G198: University Hospitals of Derby and Burton NHS Foundation Trust | N198: RWE | O198: Y
A199: 1 | B199: 197 | F199: RWE | G199: University Hospitals of Leicester NHS Trust | N199: RTX | O199: Y
A200: 1 | B200: 198 | F200: RTX | G200: University Hospitals of Morecambe Bay NHS Foundation Trust | N200: RBK | O200: Y
... 2602 more rows

Sheet Backsheet (hidden)
A1: Site Code:K | B1: Site Name | C1: Ward | D1: Specialty 1 | E1: Specialty 2 | F1: Day Nurse Plan:N | G1: Day Nurse Actual:N | H1: Day Care Plan:N | I1: Day Care Actual:N | J1: Day Reg Assoc Plan:N | K1: Day Reg Assoc Actual:N | L1: Day Reg Non Assoc Plan:N | M1: Day Reg Non Assoc Actual:N | N1: Night Nurse Plan:N | O1: Night Nurse Actual:N | P1: Night Care Plan:N | Q1: Night Care Actual:N | R1: Night Reg Assoc Plan:N | S1: Night Reg Assoc Actual:N | T1: Night Reg Non Assoc Plan:N | U1: Night Reg Non Assoc Actual:N | V1: Registered AHP Plan:N | W1: Registered AHP Actual:N | X1: Non-registered AHP Plan:N | Y1: Non-registered AHP Actual:N | Z1: Day Nurse Fill Rate:N | AA1: Day Care Fill Rate:N | AB1: Day Reg Assoc Fill Rate:N | AC1: Day Non Reg Assoc Fill Rate:N | AD1: Night Nurse Fill Rate:N | AE1: Night Care Fill Rate:N | AF1: Night Reg Assoc Fill Rate:N | AG1: Night Non Reg Assoc Fill Rate:N | AH1: Registered AHP Fill Rate:N | AI1: Non-Registered AHP Fill Rate:N | AJ1: Total Patients (CHPPD):N | AK1: Nurse CHPPD:N | AL1: Care CHPPD:N | AM1: Reg Nursing Assoc CHPPD:N | AN1: Non Reg Nursing Assoc CHPPD:N | AO1: Registered AHP CHPPD:N | AP1: Non-registered AHP CHPPD:N | AQ1: Overall CHPPD:N | AR1: Url Staffing Url
A2: =IF('Trust - Frontsheet'!D14=0,"",IF('Trust - Frontsheet'!D14="","",'Trust - Frontsheet'!D14)) -> RWK2X | B2: =IF(ISBLANK('Trust - Frontsheet'!E14),"",'Trust - Frontsheet'!E14) -> LUTON & CENTRAL BEDS MHIP | C2: =IF(ISBLANK('Trust - Frontsheet'!F14),"","'" & 'Trust - Frontsheet'!F14 & "'") -> 'BED Archer Unit' | D2: =IF(ISBLANK('Trust - Frontsheet'!G14),"",'Trust - Frontsheet'!G14) -> 430 - GERIATRIC MEDICINE | E2: =IF(ISBLANK('Trust - Frontsheet'!H14),"",'Trust - Frontsheet'!H14) ->  | F2: ='Trust - Frontsheet'!I14 -> 850 | G2: ='Trust - Frontsheet'!J14 -> 1233.5 | H2: ='Trust - Frontsheet'!K14 -> 1556 | I2: ='Trust - Frontsheet'!L14 -> 1643.5 | J2: ='Trust - Frontsheet'!M14 -> 0 | K2: ='Trust - Frontsheet'!N14 -> 0 | L2: ='Trust - Frontsheet'!O14 -> 0 | M2: ='Trust - Frontsheet'!P14 -> 0 | N2: ='Trust - Frontsheet'!Q14 -> 673.5 | O2: ='Trust - Frontsheet'!R14 -> 673.5 | P2: ='Trust - Frontsheet'!S14 -> 1020 | Q2: ='Trust - Frontsheet'!T14 -> 1020 | R2: ='Trust - Frontsheet'!U14 -> 0 | S2: ='Trust - Frontsheet'!V14 -> 0 | T2: ='Trust - Frontsheet'!W14 -> 0 | U2: ='Trust - Frontsheet'!X14 -> 0 | V2: ='Trust - Frontsheet'!Y14 -> 0 | W2: ='Trust - Frontsheet'!Z14 -> 0 | X2: ='Trust - Frontsheet'!AA14 -> 0 | Y2: ='Trust - Frontsheet'!AB14 -> 0 | Z2: =IF(OR('Trust - Frontsheet'!AK14="",'Trust - Frontsheet'!AK14="-"),0,('Trust - Frontsheet'!AK14)) -> 1.451176471 | AA2: =IF(OR('Trust - Frontsheet'!AL14="",'Trust - Frontsheet'!AL14="-"),0,('Trust - Frontsheet'!AL14)) -> 1.056233933 | AB2: =IF(OR('Trust - Frontsheet'!AM14="",'Trust - Frontsheet'!AM14="-"),0,('Trust - Frontsheet'!AM14)) -> 0 | AC2: =IF(OR('Trust - Frontsheet'!AN14="",'Trust - Frontsheet'!AN14="-"),0,('Trust - Frontsheet'!AN14)) -> 0 | AD2: =IF(OR('Trust - Frontsheet'!AO14="",'Trust - Frontsheet'!AO14="-"),0,('Trust - Frontsheet'!AO14)) -> 1 | AE2: =IF(OR('Trust - Frontsheet'!AP14="",'Trust - Frontsheet'!AP14="-"),0,('Trust - Frontsheet'!AP14)) -> 1 | AF2: =IF(OR('Trust - Frontsheet'!AQ14="",'Trust - Frontsheet'!AQ14="-"),0,('Trust - Frontsheet'!AQ14)) -> 0 | AG2: =IF(OR('Trust - Frontsheet'!AR14="",'Trust - Frontsheet'!AR14="-"),0,('Trust - Frontsheet'!AR14)) -> 0 | AH2: =IF(OR('Trust - Frontsheet'!AS14="",'Trust - Frontsheet'!AS14="-"),0,('Trust - Frontsheet'!AS14)) -> 0 | AI2: =IF(OR('Trust - Frontsheet'!AT14="",'Trust - Frontsheet'!AT14="-"),0,('Trust - Frontsheet'!AT14)) -> 0 | AJ2: ='Trust - Frontsheet'!AC14 -> 702 | AK2: =IF(OR('Trust - Frontsheet'!AD14="",'Trust - Frontsheet'!AD14="-"),0,('Trust - Frontsheet'!AD14)) -> 2.716524217 | AL2: =IF(OR('Trust - Frontsheet'!AE14="",'Trust - Frontsheet'!AE14="-"),0,('Trust - Frontsheet'!AE14)) -> 3.794159544 | AM2: =IF(OR('Trust - Frontsheet'!AF14="",'Trust - Frontsheet'!AF14="-"),0,('Trust - Frontsheet'!AF14)) -> 0 | AN2: =IF(OR('Trust - Frontsheet'!AG14="",'Trust - Frontsheet'!AG14="-"),0,('Trust - Frontsheet'!AG14)) -> 0 | AO2: =IF(OR('Trust - Frontsheet'!AH14="",'Trust - Frontsheet'!AH14="-"),0,('Trust - Frontsheet'!AH14)) -> 0 | AP2: =IF(OR('Trust - Frontsheet'!AI14="",'Trust - Frontsheet'!AI14="-"),0,('Trust - Frontsheet'!AI14)) -> 0 | AQ2: =IF(OR('Trust - Frontsheet'!AJ14="",'Trust - Frontsheet'!AJ14="-"),0,('Trust - Frontsheet'!AJ14)) -> 6.510683761 | AR2: =IF(A2="","",(IF(ISBLANK('Trust - Frontsheet'!F9),"",'Trust - Frontsheet'!F9))) -> https://www.elft.nhs.uk/About-Us/Safer-Staffing-Levels
A3: =IF('Trust - Frontsheet'!D15=0,"",IF('Trust - Frontsheet'!D15="","",'Trust - Frontsheet'!D15)) -> RWK2X | B3: =IF(ISBLANK('Trust - Frontsheet'!E15),"",'Trust - Frontsheet'!E15) -> LUTON & CENTRAL BEDS MHIP | C3: =IF(ISBLANK('Trust - Frontsheet'!F15),"","'" & 'Trust - Frontsheet'!F15 & "'") -> 'BED Ash Ward' | D3: =IF(ISBLANK('Trust - Frontsheet'!G15),"",'Trust - Frontsheet'!G15) -> 710 - ADULT MENTAL ILLNESS | E3: =IF(ISBLANK('Trust - Frontsheet'!H15),"",'Trust - Frontsheet'!H15) ->  | F3: ='Trust - Frontsheet'!I15 -> 713 | G3: ='Trust - Frontsheet'!J15 -> 807.25 | H3: ='Trust - Frontsheet'!K15 -> 1070 | I3: ='Trust - Frontsheet'!L15 -> 1187 | J3: ='Trust - Frontsheet'!M15 -> 0 | K3: ='Trust - Frontsheet'!N15 -> 0 | L3: ='Trust - Frontsheet'!O15 -> 0 | M3: ='Trust - Frontsheet'!P15 -> 0 | N3: ='Trust - Frontsheet'!Q15 -> 828 | O3: ='Trust - Frontsheet'!R15 -> 716 | P3: ='Trust - Frontsheet'!S15 -> 713 | Q3: ='Trust - Frontsheet'!T15 -> 1089.5 | R3: ='Trust - Frontsheet'!U15 -> 0 | S3: ='Trust - Frontsheet'!V15 -> 0 | T3: ='Trust - Frontsheet'!W15 -> 0 | U3: ='Trust - Frontsheet'!X15 -> 0 | V3: ='Trust - Frontsheet'!Y15 -> 0 | W3: ='Trust - Frontsheet'!Z15 -> 0 | X3: ='Trust - Frontsheet'!AA15 -> 0 | Y3: ='Trust - Frontsheet'!AB15 -> 0 | Z3: =IF(OR('Trust - Frontsheet'!AK15="",'Trust - Frontsheet'!AK15="-"),0,('Trust - Frontsheet'!AK15)) -> 1.132187938 | AA3: =IF(OR('Trust - Frontsheet'!AL15="",'Trust - Frontsheet'!AL15="-"),0,('Trust - Frontsheet'!AL15)) -> 1.109345794 | AB3: =IF(OR('Trust - Frontsheet'!AM15="",'Trust - Frontsheet'!AM15="-"),0,('Trust - Frontsheet'!AM15)) -> 0 | AC3: =IF(OR('Trust - Frontsheet'!AN15="",'Trust - Frontsheet'!AN15="-"),0,('Trust - Frontsheet'!AN15)) -> 0 | AD3: =IF(OR('Trust - Frontsheet'!AO15="",'Trust - Frontsheet'!AO15="-"),0,('Trust - Frontsheet'!AO15)) -> 0.8647342995 | AE3: =IF(OR('Trust - Frontsheet'!AP15="",'Trust - Frontsheet'!AP15="-"),0,('Trust - Frontsheet'!AP15)) -> 1.528050491 | AF3: =IF(OR('Trust - Frontsheet'!AQ15="",'Trust - Frontsheet'!AQ15="-"),0,('Trust - Frontsheet'!AQ15)) -> 0 | AG3: =IF(OR('Trust - Frontsheet'!AR15="",'Trust - Frontsheet'!AR15="-"),0,('Trust - Frontsheet'!AR15)) -> 0 | AH3: =IF(OR('Trust - Frontsheet'!AS15="",'Trust - Frontsheet'!AS15="-"),0,('Trust - Frontsheet'!AS15)) -> 0 | AI3: =IF(OR('Trust - Frontsheet'!AT15="",'Trust - Frontsheet'!AT15="-"),0,('Trust - Frontsheet'!AT15)) -> 0 | AJ3: ='Trust - Frontsheet'!AC15 -> 585 | AK3: =IF(OR('Trust - Frontsheet'!AD15="",'Trust - Frontsheet'!AD15="-"),0,('Trust - Frontsheet'!AD15)) -> 2.603846154 | AL3: =IF(OR('Trust - Frontsheet'!AE15="",'Trust - Frontsheet'!AE15="-"),0,('Trust - Frontsheet'!AE15)) -> 3.891452991 | AM3: =IF(OR('Trust - Frontsheet'!AF15="",'Trust - Frontsheet'!AF15="-"),0,('Trust - Frontsheet'!AF15)) -> 0 | AN3: =IF(OR('Trust - Frontsheet'!AG15="",'Trust - Frontsheet'!AG15="-"),0,('Trust - Frontsheet'!AG15)) -> 0 | AO3: =IF(OR('Trust - Frontsheet'!AH15="",'Trust - Frontsheet'!AH15="-"),0,('Trust - Frontsheet'!AH15)) -> 0 | AP3: =IF(OR('Trust - Frontsheet'!AI15="",'Trust - Frontsheet'!AI15="-"),0,('Trust - Frontsheet'!AI15)) -> 0 | AQ3: =IF(OR('Trust - Frontsheet'!AJ15="",'Trust - Frontsheet'!AJ15="-"),0,('Trust - Frontsheet'!AJ15)) -> 6.495299145 | AR3: =IF(A3="","",(IF(ISBLANK('Trust - Frontsheet'!F9),"",'Trust - Frontsheet'!F9))) -> https://www.elft.nhs.uk/About-Us/Safer-Staffing-Levels
A4: =IF('Trust - Frontsheet'!D16=0,"",IF('Trust - Frontsheet'!D16="","",'Trust - Frontsheet'!D16)) -> RWK2X | B4: =IF(ISBLANK('Trust - Frontsheet'!E16),"",'Trust - Frontsheet'!E16) -> LUTON & CENTRAL BEDS MHIP | C4: =IF(ISBLANK('Trust - Frontsheet'!F16),"","'" & 'Trust - Frontsheet'!F16 & "'") -> 'BED Cedar House' | D4: =IF(ISBLANK('Trust - Frontsheet'!G16),"",'Trust - Frontsheet'!G16) -> 928 - MENTAL HEALTH REHABILITATION | E4: =IF(ISBLANK('Trust - Frontsheet'!H16),"",'Trust - Frontsheet'!H16) ->  | F4: ='Trust - Frontsheet'!I16 -> 614 | G4: ='Trust - Frontsheet'!J16 -> 636.5 | H4: ='Trust - Frontsheet'!K16 -> 713 | I4: ='Trust - Frontsheet'!L16 -> 993.2 | J4: ='Trust - Frontsheet'!M16 -> 0 | K4: ='Trust - Frontsheet'!N16 -> 0 | L4: ='Trust - Frontsheet'!O16 -> 0 | M4: ='Trust - Frontsheet'!P16 -> 0 | N4: ='Trust - Frontsheet'!Q16 -> 356.5 | O4: ='Trust - Frontsheet'!R16 -> 356.5 | P4: ='Trust - Frontsheet'!S16 -> 714.5 | Q4: ='Trust - Frontsheet'!T16 -> 714.5 | R4: ='Trust - Frontsheet'!U16 -> 0 | S4: ='Trust - Frontsheet'!V16 -> 0 | T4: ='Trust - Frontsheet'!W16 -> 0 | U4: ='Trust - Frontsheet'!X16 -> 0 | V4: ='Trust - Frontsheet'!Y16 -> 0 | W4: ='Trust - Frontsheet'!Z16 -> 0 | X4: ='Trust - Frontsheet'!AA16 -> 0 | Y4: ='Trust - Frontsheet'!AB16 -> 0 | Z4: =IF(OR('Trust - Frontsheet'!AK16="",'Trust - Frontsheet'!AK16="-"),0,('Trust - Frontsheet'!AK16)) -> 1.036644951 | AA4: =IF(OR('Trust - Frontsheet'!AL16="",'Trust - Frontsheet'!AL16="-"),0,('Trust - Frontsheet'!AL16)) -> 1.392987377 | AB4: =IF(OR('Trust - Frontsheet'!AM16="",'Trust - Frontsheet'!AM16="-"),0,('Trust - Frontsheet'!AM16)) -> 0 | AC4: =IF(OR('Trust - Frontsheet'!AN16="",'Trust - Frontsheet'!AN16="-"),0,('Trust - Frontsheet'!AN16)) -> 0 | AD4: =IF(OR('Trust - Frontsheet'!AO16="",'Trust - Frontsheet'!AO16="-"),0,('Trust - Frontsheet'!AO16)) -> 1 | AE4: =IF(OR('Trust - Frontsheet'!AP16="",'Trust - Frontsheet'!AP16="-"),0,('Trust - Frontsheet'!AP16)) -> 1 | AF4: =IF(OR('Trust - Frontsheet'!AQ16="",'Trust - Frontsheet'!AQ16="-"),0,('Trust - Frontsheet'!AQ16)) -> 0 | AG4: =IF(OR('Trust - Frontsheet'!AR16="",'Trust - Frontsheet'!AR16="-"),0,('Trust - Frontsheet'!AR16)) -> 0 | AH4: =IF(OR('Trust - Frontsheet'!AS16="",'Trust - Frontsheet'!AS16="-"),0,('Trust - Frontsheet'!AS16)) -> 0 | AI4: =IF(OR('Trust - Frontsheet'!AT16="",'Trust - Frontsheet'!AT16="-"),0,('Trust - Frontsheet'!AT16)) -> 0 | AJ4: ='Trust - Frontsheet'!AC16 -> 496 | AK4: =IF(OR('Trust - Frontsheet'!AD16="",'Trust - Frontsheet'!AD16="-"),0,('Trust - Frontsheet'!AD16)) -> 2.002016129 | AL4: =IF(OR('Trust - Frontsheet'!AE16="",'Trust - Frontsheet'!AE16="-"),0,('Trust - Frontsheet'!AE16)) -> 3.442943548 | AM4: =IF(OR('Trust - Frontsheet'!AF16="",'Trust - Frontsheet'!AF16="-"),0,('Trust - Frontsheet'!AF16)) -> 0 | AN4: =IF(OR('Trust - Frontsheet'!AG16="",'Trust - Frontsheet'!AG16="-"),0,('Trust - Frontsheet'!AG16)) -> 0 | AO4: =IF(OR('Trust - Frontsheet'!AH16="",'Trust - Frontsheet'!AH16="-"),0,('Trust - Frontsheet'!AH16)) -> 0 | AP4: =IF(OR('Trust - Frontsheet'!AI16="",'Trust - Frontsheet'!AI16="-"),0,('Trust - Frontsheet'!AI16)) -> 0 | AQ4: =IF(OR('Trust - Frontsheet'!AJ16="",'Trust - Frontsheet'!AJ16="-"),0,('Trust - Frontsheet'!AJ16)) -> 5.444959677 | AR4: =IF(A4="","",(IF(ISBLANK('Trust - Frontsheet'!F9),"",'Trust - Frontsheet'!F9))) -> https://www.elft.nhs.uk/About-Us/Safer-Staffing-Levels
A5: =IF('Trust - Frontsheet'!D17=0,"",IF('Trust - Frontsheet'!D17="","",'Trust - Frontsheet'!D17)) -> RWK2X | B5: =IF(ISBLANK('Trust - Frontsheet'!E17),"",'Trust - Frontsheet'!E17) -> LUTON & CENTRAL BEDS MHIP | C5: =IF(ISBLANK('Trust - Frontsheet'!F17),"","'" & 'Trust - Frontsheet'!F17 & "'") -> 'BED Fountains Court' | D5: =IF(ISBLANK('Trust - Frontsheet'!G17),"",'Trust - Frontsheet'!G17) -> 715 - OLD AGE PSYCHIATRY | E5: =IF(ISBLANK('Trust - Frontsheet'!H17),"",'Trust - Frontsheet'!H17) ->  | F5: ='Trust - Frontsheet'!I17 -> 1060.833333 | G5: ='Trust - Frontsheet'!J17 -> 1413.75 | H5: ='Trust - Frontsheet'!K17 -> 2105.683333 | I5: ='Trust - Frontsheet'!L17 -> 3026.9 | J5: ='Trust - Frontsheet'!M17 -> 0 | K5: ='Trust - Frontsheet'!N17 -> 0 | L5: ='Trust - Frontsheet'!O17 -> 0 | M5: ='Trust - Frontsheet'!P17 -> 0 | N5: ='Trust - Frontsheet'!Q17 -> 701.5 | O5: ='Trust - Frontsheet'!R17 -> 734.5 | P5: ='Trust - Frontsheet'!S17 -> 1782.5 | Q5: ='Trust - Frontsheet'!T17 -> 2669 | R5: ='Trust - Frontsheet'!U17 -> 0 | S5: ='Trust - Frontsheet'!V17 -> 0 | T5: ='Trust - Frontsheet'!W17 -> 0 | U5: ='Trust - Frontsheet'!X17 -> 0 | V5: ='Trust - Frontsheet'!Y17 -> 0 | W5: ='Trust - Frontsheet'!Z17 -> 0 | X5: ='Trust - Frontsheet'!AA17 -> 0 | Y5: ='Trust - Frontsheet'!AB17 -> 0 | Z5: =IF(OR('Trust - Frontsheet'!AK17="",'Trust - Frontsheet'!AK17="-"),0,('Trust - Frontsheet'!AK17)) -> 1.332678712 | AA5: =IF(OR('Trust - Frontsheet'!AL17="",'Trust - Frontsheet'!AL17="-"),0,('Trust - Frontsheet'!AL17)) -> 1.437490601 | AB5: =IF(OR('Trust - Frontsheet'!AM17="",'Trust - Frontsheet'!AM17="-"),0,('Trust - Frontsheet'!AM17)) -> 0 | AC5: =IF(OR('Trust - Frontsheet'!AN17="",'Trust - Frontsheet'!AN17="-"),0,('Trust - Frontsheet'!AN17)) -> 0 | AD5: =IF(OR('Trust - Frontsheet'!AO17="",'Trust - Frontsheet'!AO17="-"),0,('Trust - Frontsheet'!AO17)) -> 1.047042053 | AE5: =IF(OR('Trust - Frontsheet'!AP17="",'Trust - Frontsheet'!AP17="-"),0,('Trust - Frontsheet'!AP17)) -> 1.497335203 | AF5: =IF(OR('Trust - Frontsheet'!AQ17="",'Trust - Frontsheet'!AQ17="-"),0,('Trust - Frontsheet'!AQ17)) -> 0 | AG5: =IF(OR('Trust - Frontsheet'!AR17="",'Trust - Frontsheet'!AR17="-"),0,('Trust - Frontsheet'!AR17)) -> 0 | AH5: =IF(OR('Trust - Frontsheet'!AS17="",'Trust - Frontsheet'!AS17="-"),0,('Trust - Frontsheet'!AS17)) -> 0 | AI5: =IF(OR('Trust - Frontsheet'!AT17="",'Trust - Frontsheet'!AT17="-"),0,('Trust - Frontsheet'!AT17)) -> 0 | AJ5: ='Trust - Frontsheet'!AC17 -> 773 | AK5: =IF(OR('Trust - Frontsheet'!AD17="",'Trust - Frontsheet'!AD17="-"),0,('Trust - Frontsheet'!AD17)) -> 2.779107374 | AL5: =IF(OR('Trust - Frontsheet'!AE17="",'Trust - Frontsheet'!AE17="-"),0,('Trust - Frontsheet'!AE17)) -> 7.368564036 | AM5: =IF(OR('Trust - Frontsheet'!AF17="",'Trust - Frontsheet'!AF17="-"),0,('Trust - Frontsheet'!AF17)) -> 0 | AN5: =IF(OR('Trust - Frontsheet'!AG17="",'Trust - Frontsheet'!AG17="-"),0,('Trust - Frontsheet'!AG17)) -> 0 | AO5: =IF(OR('Trust - Frontsheet'!AH17="",'Trust - Frontsheet'!AH17="-"),0,('Trust - Frontsheet'!AH17)) -> 0 | AP5: =IF(OR('Trust - Frontsheet'!AI17="",'Trust - Frontsheet'!AI17="-"),0,('Trust - Frontsheet'!AI17)) -> 0 | AQ5: =IF(OR('Trust - Frontsheet'!AJ17="",'Trust - Frontsheet'!AJ17="-"),0,('Trust - Frontsheet'!AJ17)) -> 10.14767141 | AR5: =IF(A5="","",(IF(ISBLANK('Trust - Frontsheet'!F9),"",'Trust - Frontsheet'!F9))) -> https://www.elft.nhs.uk/About-Us/Safer-Staffing-Levels
A6: =IF('Trust - Frontsheet'!D18=0,"",IF('Trust - Frontsheet'!D18="","",'Trust - Frontsheet'!D18)) -> RWK2X | B6: =IF(ISBLANK('Trust - Frontsheet'!E18),"",'Trust - Frontsheet'!E18) -> LUTON & CENTRAL BEDS MHIP | C6: =IF(ISBLANK('Trust - Frontsheet'!F18),"","'" & 'Trust - Frontsheet'!F18 & "'") -> 'BED Townsend Court' | D6: =IF(ISBLANK('Trust - Frontsheet'!G18),"",'Trust - Frontsheet'!G18) -> 710 - ADULT MENTAL ILLNESS | E6: =IF(ISBLANK('Trust - Frontsheet'!H18),"",'Trust - Frontsheet'!H18) ->  | F6: ='Trust - Frontsheet'!I18 -> 694.25 | G6: ='Trust - Frontsheet'!J18 -> 961.75 | H6: ='Trust - Frontsheet'!K18 -> 1056 | I6: ='Trust - Frontsheet'!L18 -> 1156.8 | J6: ='Trust - Frontsheet'!M18 -> 0 | K6: ='Trust - Frontsheet'!N18 -> 0 | L6: ='Trust - Frontsheet'!O18 -> 0 | M6: ='Trust - Frontsheet'!P18 -> 0 | N6: ='Trust - Frontsheet'!Q18 -> 712 | O6: ='Trust - Frontsheet'!R18 -> 728 | P6: ='Trust - Frontsheet'!S18 -> 713 | Q6: ='Trust - Frontsheet'!T18 -> 700.5 | R6: ='Trust - Frontsheet'!U18 -> 0 | S6: ='Trust - Frontsheet'!V18 -> 0 | T6: ='Trust - Frontsheet'!W18 -> 0 | U6: ='Trust - Frontsheet'!X18 -> 0 | V6: ='Trust - Frontsheet'!Y18 -> 0 | W6: ='Trust - Frontsheet'!Z18 -> 0 | X6: ='Trust - Frontsheet'!AA18 -> 0 | Y6: ='Trust - Frontsheet'!AB18 -> 0 | Z6: =IF(OR('Trust - Frontsheet'!AK18="",'Trust - Frontsheet'!AK18="-"),0,('Trust - Frontsheet'!AK18)) -> 1.385307886 | AA6: =IF(OR('Trust - Frontsheet'!AL18="",'Trust - Frontsheet'!AL18="-"),0,('Trust - Frontsheet'!AL18)) -> 1.095454545 | AB6: =IF(OR('Trust - Frontsheet'!AM18="",'Trust - Frontsheet'!AM18="-"),0,('Trust - Frontsheet'!AM18)) -> 0 | AC6: =IF(OR('Trust - Frontsheet'!AN18="",'Trust - Frontsheet'!AN18="-"),0,('Trust - Frontsheet'!AN18)) -> 0 | AD6: =IF(OR('Trust - Frontsheet'!AO18="",'Trust - Frontsheet'!AO18="-"),0,('Trust - Frontsheet'!AO18)) -> 1.02247191 | AE6: =IF(OR('Trust - Frontsheet'!AP18="",'Trust - Frontsheet'!AP18="-"),0,('Trust - Frontsheet'!AP18)) -> 0.9824684432 | AF6: =IF(OR('Trust - Frontsheet'!AQ18="",'Trust - Frontsheet'!AQ18="-"),0,('Trust - Frontsheet'!AQ18)) -> 0 | AG6: =IF(OR('Trust - Frontsheet'!AR18="",'Trust - Frontsheet'!AR18="-"),0,('Trust - Frontsheet'!AR18)) -> 0 | AH6: =IF(OR('Trust - Frontsheet'!AS18="",'Trust - Frontsheet'!AS18="-"),0,('Trust - Frontsheet'!AS18)) -> 0 | AI6: =IF(OR('Trust - Frontsheet'!AT18="",'Trust - Frontsheet'!AT18="-"),0,('Trust - Frontsheet'!AT18)) -> 0 | AJ6: ='Trust - Frontsheet'!AC18 -> 604 | AK6: =IF(OR('Trust - Frontsheet'!AD18="",'Trust - Frontsheet'!AD18="-"),0,('Trust - Frontsheet'!AD18)) -> 2.797599338 | AL6: =IF(OR('Trust - Frontsheet'!AE18="",'Trust - Frontsheet'!AE18="-"),0,('Trust - Frontsheet'!AE18)) -> 3.075 | AM6: =IF(OR('Trust - Frontsheet'!AF18="",'Trust - Frontsheet'!AF18="-"),0,('Trust - Frontsheet'!AF18)) -> 0 | AN6: =IF(OR('Trust - Frontsheet'!AG18="",'Trust - Frontsheet'!AG18="-"),0,('Trust - Frontsheet'!AG18)) -> 0 | AO6: =IF(OR('Trust - Frontsheet'!AH18="",'Trust - Frontsheet'!AH18="-"),0,('Trust - Frontsheet'!AH18)) -> 0 | AP6: =IF(OR('Trust - Frontsheet'!AI18="",'Trust - Frontsheet'!AI18="-"),0,('Trust - Frontsheet'!AI18)) -> 0 | AQ6: =IF(OR('Trust - Frontsheet'!AJ18="",'Trust - Frontsheet'!AJ18="-"),0,('Trust - Frontsheet'!AJ18)) -> 5.872599338 | AR6: =IF(A6="","",(IF(ISBLANK('Trust - Frontsheet'!F9),"",'Trust - Frontsheet'!F9))) -> https://www.elft.nhs.uk/About-Us/Safer-Staffing-Levels
A7: =IF('Trust - Frontsheet'!D19=0,"",IF('Trust - Frontsheet'!D19="","",'Trust - Frontsheet'!D19)) -> RWK2X | B7: =IF(ISBLANK('Trust - Frontsheet'!E19),"",'Trust - Frontsheet'!E19) -> LUTON & CENTRAL BEDS MHIP | C7: =IF(ISBLANK('Trust - Frontsheet'!F19),"","'" & 'Trust - Frontsheet'!F19 & "'") -> 'BED Willow Ward' | D7: =IF(ISBLANK('Trust - Frontsheet'!G19),"",'Trust - Frontsheet'!G19) -> 710 - ADULT MENTAL ILLNESS | E7: =IF(ISBLANK('Trust - Frontsheet'!H19),"",'Trust - Frontsheet'!H19) ->  | F7: ='Trust - Frontsheet'!I19 -> 713 | G7: ='Trust - Frontsheet'!J19 -> 693 | H7: ='Trust - Frontsheet'!K19 -> 713 | I7: ='Trust - Frontsheet'!L19 -> 827 | J7: ='Trust - Frontsheet'!M19 -> 0 | K7: ='Trust - Frontsheet'!N19 -> 0 | L7: ='Trust - Frontsheet'!O19 -> 0 | M7: ='Trust - Frontsheet'!P19 -> 0 | N7: ='Trust - Frontsheet'!Q19 -> 828 | O7: ='Trust - Frontsheet'!R19 -> 713 | P7: ='Trust - Frontsheet'!S19 -> 356.5 | Q7: ='Trust - Frontsheet'!T19 -> 460 | R7: ='Trust - Frontsheet'!U19 -> 0 | S7: ='Trust - Frontsheet'!V19 -> 0 | T7: ='Trust - Frontsheet'!W19 -> 0 | U7: ='Trust - Frontsheet'!X19 -> 0 | V7: ='Trust - Frontsheet'!Y19 -> 0 | W7: ='Trust - Frontsheet'!Z19 -> 0 | X7: ='Trust - Frontsheet'!AA19 -> 0 | Y7: ='Trust - Frontsheet'!AB19 -> 0 | Z7: =IF(OR('Trust - Frontsheet'!AK19="",'Trust - Frontsheet'!AK19="-"),0,('Trust - Frontsheet'!AK19)) -> 0.9719495091 | AA7: =IF(OR('Trust - Frontsheet'!AL19="",'Trust - Frontsheet'!AL19="-"),0,('Trust - Frontsheet'!AL19)) -> 1.159887798 | AB7: =IF(OR('Trust - Frontsheet'!AM19="",'Trust - Frontsheet'!AM19="-"),0,('Trust - Frontsheet'!AM19)) -> 0 | AC7: =IF(OR('Trust - Frontsheet'!AN19="",'Trust - Frontsheet'!AN19="-"),0,('Trust - Frontsheet'!AN19)) -> 0 | AD7: =IF(OR('Trust - Frontsheet'!AO19="",'Trust - Frontsheet'!AO19="-"),0,('Trust - Frontsheet'!AO19)) -> 0.8611111111 | AE7: =IF(OR('Trust - Frontsheet'!AP19="",'Trust - Frontsheet'!AP19="-"),0,('Trust - Frontsheet'!AP19)) -> 1.290322581 | AF7: =IF(OR('Trust - Frontsheet'!AQ19="",'Trust - Frontsheet'!AQ19="-"),0,('Trust - Frontsheet'!AQ19)) -> 0 | AG7: =IF(OR('Trust - Frontsheet'!AR19="",'Trust - Frontsheet'!AR19="-"),0,('Trust - Frontsheet'!AR19)) -> 0 | AH7: =IF(OR('Trust - Frontsheet'!AS19="",'Trust - Frontsheet'!AS19="-"),0,('Trust - Frontsheet'!AS19)) -> 0 | AI7: =IF(OR('Trust - Frontsheet'!AT19="",'Trust - Frontsheet'!AT19="-"),0,('Trust - Frontsheet'!AT19)) -> 0 | AJ7: ='Trust - Frontsheet'!AC19 -> 336 | AK7: =IF(OR('Trust - Frontsheet'!AD19="",'Trust - Frontsheet'!AD19="-"),0,('Trust - Frontsheet'!AD19)) -> 4.18452381 | AL7: =IF(OR('Trust - Frontsheet'!AE19="",'Trust - Frontsheet'!AE19="-"),0,('Trust - Frontsheet'!AE19)) -> 3.830357143 | AM7: =IF(OR('Trust - Frontsheet'!AF19="",'Trust - Frontsheet'!AF19="-"),0,('Trust - Frontsheet'!AF19)) -> 0 | AN7: =IF(OR('Trust - Frontsheet'!AG19="",'Trust - Frontsheet'!AG19="-"),0,('Trust - Frontsheet'!AG19)) -> 0 | AO7: =IF(OR('Trust - Frontsheet'!AH19="",'Trust - Frontsheet'!AH19="-"),0,('Trust - Frontsheet'!AH19)) -> 0 | AP7: =IF(OR('Trust - Frontsheet'!AI19="",'Trust - Frontsheet'!AI19="-"),0,('Trust - Frontsheet'!AI19)) -> 0 | AQ7: =IF(OR('Trust - Frontsheet'!AJ19="",'Trust - Frontsheet'!AJ19="-"),0,('Trust - Frontsheet'!AJ19)) -> 8.014880952 | AR7: =IF(A7="","",(IF(ISBLANK('Trust - Frontsheet'!F9),"",'Trust - Frontsheet'!F9))) -> https://www.elft.nhs.uk/About-Us/Safer-Staffing-Levels
A8: =IF('Trust - Frontsheet'!D20=0,"",IF('Trust - Frontsheet'!D20="","",'Trust - Frontsheet'!D20)) -> RWK2X | B8: =IF(ISBLANK('Trust - Frontsheet'!E20),"",'Trust - Frontsheet'!E20) -> LUTON & CENTRAL BEDS MHIP | C8: =IF(ISBLANK('Trust - Frontsheet'!F20),"","'" & 'Trust - Frontsheet'!F20 & "'") -> 'LU Coral Ward' | D8: =IF(ISBLANK('Trust - Frontsheet'!G20),"",'Trust - Frontsheet'!G20) -> 710 - ADULT MENTAL ILLNESS | E8: =IF(ISBLANK('Trust - Frontsheet'!H20),"",'Trust - Frontsheet'!H20) ->  | F8: ='Trust - Frontsheet'!I20 -> 1054.483333 | G8: ='Trust - Frontsheet'!J20 -> 978.4666667 | H8: ='Trust - Frontsheet'!K20 -> 1069.5 | I8: ='Trust - Frontsheet'!L20 -> 1173 | J8: ='Trust - Frontsheet'!M20 -> 92 | K8: ='Trust - Frontsheet'!N20 -> 92 | L8: ='Trust - Frontsheet'!O20 -> 0 | M8: ='Trust - Frontsheet'!P20 -> 0 | N8: ='Trust - Frontsheet'!Q20 -> 713 | O8: ='Trust - Frontsheet'!R20 -> 727 | P8: ='Trust - Frontsheet'!S20 -> 1069.5 | Q8: ='Trust - Frontsheet'!T20 -> 1013 | R8: ='Trust - Frontsheet'!U20 -> 0 | S8: ='Trust - Frontsheet'!V20 -> 0 | T8: ='Trust - Frontsheet'!W20 -> 0 | U8: ='Trust - Frontsheet'!X20 -> 0 | V8: ='Trust - Frontsheet'!Y20 -> 0 | W8: ='Trust - Frontsheet'!Z20 -> 0 | X8: ='Trust - Frontsheet'!AA20 -> 0 | Y8: ='Trust - Frontsheet'!AB20 -> 0 | Z8: =IF(OR('Trust - Frontsheet'!AK20="",'Trust - Frontsheet'!AK20="-"),0,('Trust - Frontsheet'!AK20)) -> 0.9279109833 | AA8: =IF(OR('Trust - Frontsheet'!AL20="",'Trust - Frontsheet'!AL20="-"),0,('Trust - Frontsheet'!AL20)) -> 1.096774194 | AB8: =IF(OR('Trust - Frontsheet'!AM20="",'Trust - Frontsheet'!AM20="-"),0,('Trust - Frontsheet'!AM20)) -> 1 | AC8: =IF(OR('Trust - Frontsheet'!AN20="",'Trust - Frontsheet'!AN20="-"),0,('Trust - Frontsheet'!AN20)) -> 0 | AD8: =IF(OR('Trust - Frontsheet'!AO20="",'Trust - Frontsheet'!AO20="-"),0,('Trust - Frontsheet'!AO20)) -> 1.019635344 | AE8: =IF(OR('Trust - Frontsheet'!AP20="",'Trust - Frontsheet'!AP20="-"),0,('Trust - Frontsheet'!AP20)) -> 0.9471715755 | AF8: =IF(OR('Trust - Frontsheet'!AQ20="",'Trust - Frontsheet'!AQ20="-"),0,('Trust - Frontsheet'!AQ20)) -> 0 | AG8: =IF(OR('Trust - Frontsheet'!AR20="",'Trust - Frontsheet'!AR20="-"),0,('Trust - Frontsheet'!AR20)) -> 0 | AH8: =IF(OR('Trust - Frontsheet'!AS20="",'Trust - Frontsheet'!AS20="-"),0,('Trust - Frontsheet'!AS20)) -> 0 | AI8: =IF(OR('Trust - Frontsheet'!AT20="",'Trust - Frontsheet'!AT20="-"),0,('Trust - Frontsheet'!AT20)) -> 0 | AJ8: ='Trust - Frontsheet'!AC20 -> 641 | AK8: =IF(OR('Trust - Frontsheet'!AD20="",'Trust - Frontsheet'!AD20="-"),0,('Trust - Frontsheet'!AD20)) -> 2.660634425 | AL8: =IF(OR('Trust - Frontsheet'!AE20="",'Trust - Frontsheet'!AE20="-"),0,('Trust - Frontsheet'!AE20)) -> 3.410296412 | AM8: =IF(OR('Trust - Frontsheet'!AF20="",'Trust - Frontsheet'!AF20="-"),0,('Trust - Frontsheet'!AF20)) -> 0.143525741 | AN8: =IF(OR('Trust - Frontsheet'!AG20="",'Trust - Frontsheet'!AG20="-"),0,('Trust - Frontsheet'!AG20)) -> 0 | AO8: =IF(OR('Trust - Frontsheet'!AH20="",'Trust - Frontsheet'!AH20="-"),0,('Trust - Frontsheet'!AH20)) -> 0 | AP8: =IF(OR('Trust - Frontsheet'!AI20="",'Trust - Frontsheet'!AI20="-"),0,('Trust - Frontsheet'!AI20)) -> 0 | AQ8: =IF(OR('Trust - Frontsheet'!AJ20="",'Trust - Frontsheet'!AJ20="-"),0,('Trust - Frontsheet'!AJ20)) -> 6.214456578 | AR8: =IF(A8="","",(IF(ISBLANK('Trust - Frontsheet'!F9),"",'Trust - Frontsheet'!F9))) -> https://www.elft.nhs.uk/About-Us/Safer-Staffing-Levels
A9: =IF('Trust - Frontsheet'!D21=0,"",IF('Trust - Frontsheet'!D21="","",'Trust - Frontsheet'!D21)) -> RWK2X | B9: =IF(ISBLANK('Trust - Frontsheet'!E21),"",'Trust - Frontsheet'!E21) -> LUTON & CENTRAL BEDS MHIP | C9: =IF(ISBLANK('Trust - Frontsheet'!F21),"","'" & 'Trust - Frontsheet'!F21 & "'") -> 'LU Onyx Ward' | D9: =IF(ISBLANK('Trust - Frontsheet'!G21),"",'Trust - Frontsheet'!G21) -> 710 - ADULT MENTAL ILLNESS | E9: =IF(ISBLANK('Trust - Frontsheet'!H21),"",'Trust - Frontsheet'!H21) ->  | F9: ='Trust - Frontsheet'!I21 -> 710.5 | G9: ='Trust - Frontsheet'!J21 -> 1365.25 | H9: ='Trust - Frontsheet'!K21 -> 1069.5 | I9: ='Trust - Frontsheet'!L21 -> 973.5 | J9: ='Trust - Frontsheet'!M21 -> 0 | K9: ='Trust - Frontsheet'!N21 -> 0 | L9: ='Trust - Frontsheet'!O21 -> 0 | M9: ='Trust - Frontsheet'!P21 -> 0 | N9: ='Trust - Frontsheet'!Q21 -> 713 | O9: ='Trust - Frontsheet'!R21 -> 718 | P9: ='Trust - Frontsheet'!S21 -> 713 | Q9: ='Trust - Frontsheet'!T21 -> 716 | R9: ='Trust - Frontsheet'!U21 -> 0 | S9: ='Trust - Frontsheet'!V21 -> 0 | T9: ='Trust - Frontsheet'!W21 -> 0 | U9: ='Trust - Frontsheet'!X21 -> 0 | V9: ='Trust - Frontsheet'!Y21 -> 0 | W9: ='Trust - Frontsheet'!Z21 -> 0 | X9: ='Trust - Frontsheet'!AA21 -> 0 | Y9: ='Trust - Frontsheet'!AB21 -> 0 | Z9: =IF(OR('Trust - Frontsheet'!AK21="",'Trust - Frontsheet'!AK21="-"),0,('Trust - Frontsheet'!AK21)) -> 1.921534131 | AA9: =IF(OR('Trust - Frontsheet'!AL21="",'Trust - Frontsheet'!AL21="-"),0,('Trust - Frontsheet'!AL21)) -> 0.9102384292 | AB9: =IF(OR('Trust - Frontsheet'!AM21="",'Trust - Frontsheet'!AM21="-"),0,('Trust - Frontsheet'!AM21)) -> 0 | AC9: =IF(OR('Trust - Frontsheet'!AN21="",'Trust - Frontsheet'!AN21="-"),0,('Trust - Frontsheet'!AN21)) -> 0 | AD9: =IF(OR('Trust - Frontsheet'!AO21="",'Trust - Frontsheet'!AO21="-"),0,('Trust - Frontsheet'!AO21)) -> 1.007012623 | AE9: =IF(OR('Trust - Frontsheet'!AP21="",'Trust - Frontsheet'!AP21="-"),0,('Trust - Frontsheet'!AP21)) -> 1.004207574 | AF9: =IF(OR('Trust - Frontsheet'!AQ21="",'Trust - Frontsheet'!AQ21="-"),0,('Trust - Frontsheet'!AQ21)) -> 0 | AG9: =IF(OR('Trust - Frontsheet'!AR21="",'Trust - Frontsheet'!AR21="-"),0,('Trust - Frontsheet'!AR21)) -> 0 | AH9: =IF(OR('Trust - Frontsheet'!AS21="",'Trust - Frontsheet'!AS21="-"),0,('Trust - Frontsheet'!AS21)) -> 0 | AI9: =IF(OR('Trust - Frontsheet'!AT21="",'Trust - Frontsheet'!AT21="-"),0,('Trust - Frontsheet'!AT21)) -> 0 | AJ9: ='Trust - Frontsheet'!AC21 -> 583 | AK9: =IF(OR('Trust - Frontsheet'!AD21="",'Trust - Frontsheet'!AD21="-"),0,('Trust - Frontsheet'!AD21)) -> 3.573327616 | AL9: =IF(OR('Trust - Frontsheet'!AE21="",'Trust - Frontsheet'!AE21="-"),0,('Trust - Frontsheet'!AE21)) -> 2.897941681 | AM9: =IF(OR('Trust - Frontsheet'!AF21="",'Trust - Frontsheet'!AF21="-"),0,('Trust - Frontsheet'!AF21)) -> 0 | AN9: =IF(OR('Trust - Frontsheet'!AG21="",'Trust - Frontsheet'!AG21="-"),0,('Trust - Frontsheet'!AG21)) -> 0 | AO9: =IF(OR('Trust - Frontsheet'!AH21="",'Trust - Frontsheet'!AH21="-"),0,('Trust - Frontsheet'!AH21)) -> 0 | AP9: =IF(OR('Trust - Frontsheet'!AI21="",'Trust - Frontsheet'!AI21="-"),0,('Trust - Frontsheet'!AI21)) -> 0 | AQ9: =IF(OR('Trust - Frontsheet'!AJ21="",'Trust - Frontsheet'!AJ21="-"),0,('Trust - Frontsheet'!AJ21)) -> 6.471269297 | AR9: =IF(A9="","",(IF(ISBLANK('Trust - Frontsheet'!F9),"",'Trust - Frontsheet'!F9))) -> https://www.elft.nhs.uk/About-Us/Safer-Staffing-Levels
A10: =IF('Trust - Frontsheet'!D22=0,"",IF('Trust - Frontsheet'!D22="","",'Trust - Frontsheet'!D22)) -> RWK2X | B10: =IF(ISBLANK('Trust - Frontsheet'!E22),"",'Trust - Frontsheet'!E22) -> LUTON & CENTRAL BEDS MHIP | C10: =IF(ISBLANK('Trust - Frontsheet'!F22),"","'" & 'Trust - Frontsheet'!F22 & "'") -> 'LU Poplars Ward' | D10: =IF(ISBLANK('Trust - Frontsheet'!G22),"",'Trust - Frontsheet'!G22) -> 928 - MENTAL HEALTH REHABILITATION | E10: =IF(ISBLANK('Trust - Frontsheet'!H22),"",'Trust - Frontsheet'!H22) ->  | F10: ='Trust - Frontsheet'!I22 -> 627 | G10: ='Trust - Frontsheet'!J22 -> 900.5 | H10: ='Trust - Frontsheet'!K22 -> 889 | I10: ='Trust - Frontsheet'!L22 -> 1111.5 | J10: ='Trust - Frontsheet'!M22 -> 0 | K10: ='Trust - Frontsheet'!N22 -> 0 | L10: ='Trust - Frontsheet'!O22 -> 0 | M10: ='Trust - Frontsheet'!P22 -> 0 | N10: ='Trust - Frontsheet'!Q22 -> 356.5 | O10: ='Trust - Frontsheet'!R22 -> 598 | P10: ='Trust - Frontsheet'!S22 -> 356.5 | Q10: ='Trust - Frontsheet'!T22 -> 839.5 | R10: ='Trust - Frontsheet'!U22 -> 0 | S10: ='Trust - Frontsheet'!V22 -> 0 | T10: ='Trust - Frontsheet'!W22 -> 0 | U10: ='Trust - Frontsheet'!X22 -> 0 | V10: ='Trust - Frontsheet'!Y22 -> 0 | W10: ='Trust - Frontsheet'!Z22 -> 0 | X10: ='Trust - Frontsheet'!AA22 -> 0 | Y10: ='Trust - Frontsheet'!AB22 -> 0 | Z10: =IF(OR('Trust - Frontsheet'!AK22="",'Trust - Frontsheet'!AK22="-"),0,('Trust - Frontsheet'!AK22)) -> 1.436204147 | AA10: =IF(OR('Trust - Frontsheet'!AL22="",'Trust - Frontsheet'!AL22="-"),0,('Trust - Frontsheet'!AL22)) -> 1.250281215 | AB10: =IF(OR('Trust - Frontsheet'!AM22="",'Trust - Frontsheet'!AM22="-"),0,('Trust - Frontsheet'!AM22)) -> 0 | AC10: =IF(OR('Trust - Frontsheet'!AN22="",'Trust - Frontsheet'!AN22="-"),0,('Trust - Frontsheet'!AN22)) -> 0 | AD10: =IF(OR('Trust - Frontsheet'!AO22="",'Trust - Frontsheet'!AO22="-"),0,('Trust - Frontsheet'!AO22)) -> 1.677419355 | AE10: =IF(OR('Trust - Frontsheet'!AP22="",'Trust - Frontsheet'!AP22="-"),0,('Trust - Frontsheet'!AP22)) -> 2.35483871 | AF10: =IF(OR('Trust - Frontsheet'!AQ22="",'Trust - Frontsheet'!AQ22="-"),0,('Trust - Frontsheet'!AQ22)) -> 0 | AG10: =IF(OR('Trust - Frontsheet'!AR22="",'Trust - Frontsheet'!AR22="-"),0,('Trust - Frontsheet'!AR22)) -> 0 | AH10: =IF(OR('Trust - Frontsheet'!AS22="",'Trust - Frontsheet'!AS22="-"),0,('Trust - Frontsheet'!AS22)) -> 0 | AI10: =IF(OR('Trust - Frontsheet'!AT22="",'Trust - Frontsheet'!AT22="-"),0,('Trust - Frontsheet'!AT22)) -> 0 | AJ10: ='Trust - Frontsheet'!AC22 -> 495 | AK10: =IF(OR('Trust - Frontsheet'!AD22="",'Trust - Frontsheet'!AD22="-"),0,('Trust - Frontsheet'!AD22)) -> 3.027272727 | AL10: =IF(OR('Trust - Frontsheet'!AE22="",'Trust - Frontsheet'!AE22="-"),0,('Trust - Frontsheet'!AE22)) -> 3.941414141 | AM10: =IF(OR('Trust - Frontsheet'!AF22="",'Trust - Frontsheet'!AF22="-"),0,('Trust - Frontsheet'!AF22)) -> 0 | AN10: =IF(OR('Trust - Frontsheet'!AG22="",'Trust - Frontsheet'!AG22="-"),0,('Trust - Frontsheet'!AG22)) -> 0 | AO10: =IF(OR('Trust - Frontsheet'!AH22="",'Trust - Frontsheet'!AH22="-"),0,('Trust - Frontsheet'!AH22)) -> 0 | AP10: =IF(OR('Trust - Frontsheet'!AI22="",'Trust - Frontsheet'!AI22="-"),0,('Trust - Frontsheet'!AI22)) -> 0 | AQ10: =IF(OR('Trust - Frontsheet'!AJ22="",'Trust - Frontsheet'!AJ22="-"),0,('Trust - Frontsheet'!AJ22)) -> 6.968686869 | AR10: =IF(A10="","",(IF(ISBLANK('Trust - Frontsheet'!F9),"",'Trust - Frontsheet'!F9))) -> https://www.elft.nhs.uk/About-Us/Safer-Staffing-Levels
A11: =IF('Trust - Frontsheet'!D23=0,"",IF('Trust - Frontsheet'!D23="","",'Trust - Frontsheet'!D23)) -> RWK2X | B11: =IF(ISBLANK('Trust - Frontsheet'!E23),"",'Trust - Frontsheet'!E23) -> LUTON & CENTRAL BEDS MHIP | C11: =IF(ISBLANK('Trust - Frontsheet'!F23),"","'" & 'Trust - Frontsheet'!F23 & "'") -> 'LUTON Crystal Ward' | D11: =IF(ISBLANK('Trust - Frontsheet'!G23),"",'Trust - Frontsheet'!G23) -> 710 - ADULT MENTAL ILLNESS | E11: =IF(ISBLANK('Trust - Frontsheet'!H23),"",'Trust - Frontsheet'!H23) ->  | F11: ='Trust - Frontsheet'!I23 -> 667 | G11: ='Trust - Frontsheet'!J23 -> 970.25 | H11: ='Trust - Frontsheet'!K23 -> 954.5 | I11: ='Trust - Frontsheet'!L23 -> 1127.25 | J11: ='Trust - Frontsheet'!M23 -> 0 | K11: ='Trust - Frontsheet'!N23 -> 0 | L11: ='Trust - Frontsheet'!O23 -> 0 | M11: ='Trust - Frontsheet'!P23 -> 0 | N11: ='Trust - Frontsheet'!Q23 -> 713 | O11: ='Trust - Frontsheet'!R23 -> 725.5 | P11: ='Trust - Frontsheet'!S23 -> 701.5 | Q11: ='Trust - Frontsheet'!T23 -> 791 | R11: ='Trust - Frontsheet'!U23 -> 0 | S11: ='Trust - Frontsheet'!V23 -> 0 | T11: ='Trust - Frontsheet'!W23 -> 0 | U11: ='Trust - Frontsheet'!X23 -> 0 | V11: ='Trust - Frontsheet'!Y23 -> 0 | W11: ='Trust - Frontsheet'!Z23 -> 0 | X11: ='Trust - Frontsheet'!AA23 -> 0 | Y11: ='Trust - Frontsheet'!AB23 -> 0 | Z11: =IF(OR('Trust - Frontsheet'!AK23="",'Trust - Frontsheet'!AK23="-"),0,('Trust - Frontsheet'!AK23)) -> 1.454647676 | AA11: =IF(OR('Trust - Frontsheet'!AL23="",'Trust - Frontsheet'!AL23="-"),0,('Trust - Frontsheet'!AL23)) -> 1.180984809 | AB11: =IF(OR('Trust - Frontsheet'!AM23="",'Trust - Frontsheet'!AM23="-"),0,('Trust - Frontsheet'!AM23)) -> 0 | AC11: =IF(OR('Trust - Frontsheet'!AN23="",'Trust - Frontsheet'!AN23="-"),0,('Trust - Frontsheet'!AN23)) -> 0 | AD11: =IF(OR('Trust - Frontsheet'!AO23="",'Trust - Frontsheet'!AO23="-"),0,('Trust - Frontsheet'!AO23)) -> 1.017531557 | AE11: =IF(OR('Trust - Frontsheet'!AP23="",'Trust - Frontsheet'!AP23="-"),0,('Trust - Frontsheet'!AP23)) -> 1.127583749 | AF11: =IF(OR('Trust - Frontsheet'!AQ23="",'Trust - Frontsheet'!AQ23="-"),0,('Trust - Frontsheet'!AQ23)) -> 0 | AG11: =IF(OR('Trust - Frontsheet'!AR23="",'Trust - Frontsheet'!AR23="-"),0,('Trust - Frontsheet'!AR23)) -> 0 | AH11: =IF(OR('Trust - Frontsheet'!AS23="",'Trust - Frontsheet'!AS23="-"),0,('Trust - Frontsheet'!AS23)) -> 0 | AI11: =IF(OR('Trust - Frontsheet'!AT23="",'Trust - Frontsheet'!AT23="-"),0,('Trust - Frontsheet'!AT23)) -> 0 | AJ11: ='Trust - Frontsheet'!AC23 -> 540 | AK11: =IF(OR('Trust - Frontsheet'!AD23="",'Trust - Frontsheet'!AD23="-"),0,('Trust - Frontsheet'!AD23)) -> 3.140277778 | AL11: =IF(OR('Trust - Frontsheet'!AE23="",'Trust - Frontsheet'!AE23="-"),0,('Trust - Frontsheet'!AE23)) -> 3.552314815 | AM11: =IF(OR('Trust - Frontsheet'!AF23="",'Trust - Frontsheet'!AF23="-"),0,('Trust - Frontsheet'!AF23)) -> 0 | AN11: =IF(OR('Trust - Frontsheet'!AG23="",'Trust - Frontsheet'!AG23="-"),0,('Trust - Frontsheet'!AG23)) -> 0 | AO11: =IF(OR('Trust - Frontsheet'!AH23="",'Trust - Frontsheet'!AH23="-"),0,('Trust - Frontsheet'!AH23)) -> 0 | AP11: =IF(OR('Trust - Frontsheet'!AI23="",'Trust - Frontsheet'!AI23="-"),0,('Trust - Frontsheet'!AI23)) -> 0 | AQ11: =IF(OR('Trust - Frontsheet'!AJ23="",'Trust - Frontsheet'!AJ23="-"),0,('Trust - Frontsheet'!AJ23)) -> 6.692592593 | AR11: =IF(A11="","",(IF(ISBLANK('Trust - Frontsheet'!F9),"",'Trust - Frontsheet'!F9))) -> https://www.elft.nhs.uk/About-Us/Safer-Staffing-Levels
A12: =IF('Trust - Frontsheet'!D24=0,"",IF('Trust - Frontsheet'!D24="","",'Trust - Frontsheet'!D24)) -> RWK2X | B12: =IF(ISBLANK('Trust - Frontsheet'!E24),"",'Trust - Frontsheet'!E24) -> LUTON & CENTRAL BEDS MHIP | C12: =IF(ISBLANK('Trust - Frontsheet'!F24),"","'" & 'Trust - Frontsheet'!F24 & "'") -> 'LUTON Jade' | D12: =IF(ISBLANK('Trust - Frontsheet'!G24),"",'Trust - Frontsheet'!G24) -> 996 - PSYCHIATRIC INTENSIVE CARE UNIT | E12: =IF(ISBLANK('Trust - Frontsheet'!H24),"",'Trust - Frontsheet'!H24) ->  | F12: ='Trust - Frontsheet'!I24 -> 690 | G12: ='Trust - Frontsheet'!J24 -> 1263.5 | H12: ='Trust - Frontsheet'!K24 -> 1058 | I12: ='Trust - Frontsheet'!L24 -> 1077 | J12: ='Trust - Frontsheet'!M24 -> 0 | K12: ='Trust - Frontsheet'!N24 -> 0 | L12: ='Trust - Frontsheet'!O24 -> 0 | M12: ='Trust - Frontsheet'!P24 -> 0 | N12: ='Trust - Frontsheet'!Q24 -> 713 | O12: ='Trust - Frontsheet'!R24 -> 793.5 | P12: ='Trust - Frontsheet'!S24 -> 713 | Q12: ='Trust - Frontsheet'!T24 -> 642.5 | R12: ='Trust - Frontsheet'!U24 -> 0 | S12: ='Trust - Frontsheet'!V24 -> 0 | T12: ='Trust - Frontsheet'!W24 -> 0 | U12: ='Trust - Frontsheet'!X24 -> 0 | V12: ='Trust - Frontsheet'!Y24 -> 0 | W12: ='Trust - Frontsheet'!Z24 -> 0 | X12: ='Trust - Frontsheet'!AA24 -> 0 | Y12: ='Trust - Frontsheet'!AB24 -> 0 | Z12: =IF(OR('Trust - Frontsheet'!AK24="",'Trust - Frontsheet'!AK24="-"),0,('Trust - Frontsheet'!AK24)) -> 1.83115942 | AA12: =IF(OR('Trust - Frontsheet'!AL24="",'Trust - Frontsheet'!AL24="-"),0,('Trust - Frontsheet'!AL24)) -> 1.017958412 | AB12: =IF(OR('Trust - Frontsheet'!AM24="",'Trust - Frontsheet'!AM24="-"),0,('Trust - Frontsheet'!AM24)) -> 0 | AC12: =IF(OR('Trust - Frontsheet'!AN24="",'Trust - Frontsheet'!AN24="-"),0,('Trust - Frontsheet'!AN24)) -> 0 | AD12: =IF(OR('Trust - Frontsheet'!AO24="",'Trust - Frontsheet'!AO24="-"),0,('Trust - Frontsheet'!AO24)) -> 1.112903226 | AE12: =IF(OR('Trust - Frontsheet'!AP24="",'Trust - Frontsheet'!AP24="-"),0,('Trust - Frontsheet'!AP24)) -> 0.9011220196 | AF12: =IF(OR('Trust - Frontsheet'!AQ24="",'Trust - Frontsheet'!AQ24="-"),0,('Trust - Frontsheet'!AQ24)) -> 0 | AG12: =IF(OR('Trust - Frontsheet'!AR24="",'Trust - Frontsheet'!AR24="-"),0,('Trust - Frontsheet'!AR24)) -> 0 | AH12: =IF(OR('Trust - Frontsheet'!AS24="",'Trust - Frontsheet'!AS24="-"),0,('Trust - Frontsheet'!AS24)) -> 0 | AI12: =IF(OR('Trust - Frontsheet'!AT24="",'Trust - Frontsheet'!AT24="-"),0,('Trust - Frontsheet'!AT24)) -> 0 | AJ12: ='Trust - Frontsheet'!AC24 -> 198 | AK12: =IF(OR('Trust - Frontsheet'!AD24="",'Trust - Frontsheet'!AD24="-"),0,('Trust - Frontsheet'!AD24)) -> 10.38888889 | AL12: =IF(OR('Trust - Frontsheet'!AE24="",'Trust - Frontsheet'!AE24="-"),0,('Trust - Frontsheet'!AE24)) -> 8.684343434 | AM12: =IF(OR('Trust - Frontsheet'!AF24="",'Trust - Frontsheet'!AF24="-"),0,('Trust - Frontsheet'!AF24)) -> 0 | AN12: =IF(OR('Trust - Frontsheet'!AG24="",'Trust - Frontsheet'!AG24="-"),0,('Trust - Frontsheet'!AG24)) -> 0 | AO12: =IF(OR('Trust - Frontsheet'!AH24="",'Trust - Frontsheet'!AH24="-"),0,('Trust - Frontsheet'!AH24)) -> 0 | AP12: =IF(OR('Trust - Frontsheet'!AI24="",'Trust - Frontsheet'!AI24="-"),0,('Trust - Frontsheet'!AI24)) -> 0 | AQ12: =IF(OR('Trust - Frontsheet'!AJ24="",'Trust - Frontsheet'!AJ24="-"),0,('Trust - Frontsheet'!AJ24)) -> 19.07323232 | AR12: =IF(A12="","",(IF(ISBLANK('Trust - Frontsheet'!F9),"",'Trust - Frontsheet'!F9))) -> https://www.elft.nhs.uk/About-Us/Safer-Staffing-Levels
A13: =IF('Trust - Frontsheet'!D25=0,"",IF('Trust - Frontsheet'!D25="","",'Trust - Frontsheet'!D25)) -> RWK60 | B13: =IF(ISBLANK('Trust - Frontsheet'!E25),"",'Trust - Frontsheet'!E25) -> FORENSIC CENTRE FOR MENTAL HEALTH | C13: =IF(ISBLANK('Trust - Frontsheet'!F25),"","'" & 'Trust - Frontsheet'!F25 & "'") -> 'Bow Ward' | D13: =IF(ISBLANK('Trust - Frontsheet'!G25),"",'Trust - Frontsheet'!G25) -> 712 - FORENSIC PSYCHIATRY | E13: =IF(ISBLANK('Trust - Frontsheet'!H25),"",'Trust - Frontsheet'!H25) ->  | F13: ='Trust - Frontsheet'!I25 -> 726 | G13: ='Trust - Frontsheet'!J25 -> 944.75 | H13: ='Trust - Frontsheet'!K25 -> 720 | I13: ='Trust - Frontsheet'!L25 -> 1308.5 | J13: ='Trust - Frontsheet'!M25 -> 0 | K13: ='Trust - Frontsheet'!N25 -> 0 | L13: ='Trust - Frontsheet'!O25 -> 0 | M13: ='Trust - Frontsheet'!P25 -> 0 | N13: ='Trust - Frontsheet'!Q25 -> 341 | O13: ='Trust - Frontsheet'!R25 -> 561.5 | P13: ='Trust - Frontsheet'!S25 -> 682 | Q13: ='Trust - Frontsheet'!T25 -> 1013.5 | R13: ='Trust - Frontsheet'!U25 -> 0 | S13: ='Trust - Frontsheet'!V25 -> 0 | T13: ='Trust - Frontsheet'!W25 -> 0 | U13: ='Trust - Frontsheet'!X25 -> 0 | V13: ='Trust - Frontsheet'!Y25 -> 0 | W13: ='Trust - Frontsheet'!Z25 -> 0 | X13: ='Trust - Frontsheet'!AA25 -> 0 | Y13: ='Trust - Frontsheet'!AB25 -> 0 | Z13: =IF(OR('Trust - Frontsheet'!AK25="",'Trust - Frontsheet'!AK25="-"),0,('Trust - Frontsheet'!AK25)) -> 1.30130854 | AA13: =IF(OR('Trust - Frontsheet'!AL25="",'Trust - Frontsheet'!AL25="-"),0,('Trust - Frontsheet'!AL25)) -> 1.817361111 | AB13: =IF(OR('Trust - Frontsheet'!AM25="",'Trust - Frontsheet'!AM25="-"),0,('Trust - Frontsheet'!AM25)) -> 0 | AC13: =IF(OR('Trust - Frontsheet'!AN25="",'Trust - Frontsheet'!AN25="-"),0,('Trust - Frontsheet'!AN25)) -> 0 | AD13: =IF(OR('Trust - Frontsheet'!AO25="",'Trust - Frontsheet'!AO25="-"),0,('Trust - Frontsheet'!AO25)) -> 1.646627566 | AE13: =IF(OR('Trust - Frontsheet'!AP25="",'Trust - Frontsheet'!AP25="-"),0,('Trust - Frontsheet'!AP25)) -> 1.486070381 | AF13: =IF(OR('Trust - Frontsheet'!AQ25="",'Trust - Frontsheet'!AQ25="-"),0,('Trust - Frontsheet'!AQ25)) -> 0 | AG13: =IF(OR('Trust - Frontsheet'!AR25="",'Trust - Frontsheet'!AR25="-"),0,('Trust - Frontsheet'!AR25)) -> 0 | AH13: =IF(OR('Trust - Frontsheet'!AS25="",'Trust - Frontsheet'!AS25="-"),0,('Trust - Frontsheet'!AS25)) -> 0 | AI13: =IF(OR('Trust - Frontsheet'!AT25="",'Trust - Frontsheet'!AT25="-"),0,('Trust - Frontsheet'!AT25)) -> 0 | AJ13: ='Trust - Frontsheet'!AC25 -> 465 | AK13: =IF(OR('Trust - Frontsheet'!AD25="",'Trust - Frontsheet'!AD25="-"),0,('Trust - Frontsheet'!AD25)) -> 3.239247312 | AL13: =IF(OR('Trust - Frontsheet'!AE25="",'Trust - Frontsheet'!AE25="-"),0,('Trust - Frontsheet'!AE25)) -> 4.993548387 | AM13: =IF(OR('Trust - Frontsheet'!AF25="",'Trust - Frontsheet'!AF25="-"),0,('Trust - Frontsheet'!AF25)) -> 0 | AN13: =IF(OR('Trust - Frontsheet'!AG25="",'Trust - Frontsheet'!AG25="-"),0,('Trust - Frontsheet'!AG25)) -> 0 | AO13: =IF(OR('Trust - Frontsheet'!AH25="",'Trust - Frontsheet'!AH25="-"),0,('Trust - Frontsheet'!AH25)) -> 0 | AP13: =IF(OR('Trust - Frontsheet'!AI25="",'Trust - Frontsheet'!AI25="-"),0,('Trust - Frontsheet'!AI25)) -> 0 | AQ13: =IF(OR('Trust - Frontsheet'!AJ25="",'Trust - Frontsheet'!AJ25="-"),0,('Trust - Frontsheet'!AJ25)) -> 8.232795699 | AR13: =IF(A13="","",(IF(ISBLANK('Trust - Frontsheet'!F9),"",'Trust - Frontsheet'!F9))) -> https://www.elft.nhs.uk/About-Us/Safer-Staffing-Levels
A14: =IF('Trust - Frontsheet'!D26=0,"",IF('Trust - Frontsheet'!D26="","",'Trust - Frontsheet'!D26)) -> RWK60 | B14: =IF(ISBLANK('Trust - Frontsheet'!E26),"",'Trust - Frontsheet'!E26) -> FORENSIC CENTRE FOR MENTAL HEALTH | C14: =IF(ISBLANK('Trust - Frontsheet'!F26),"","'" & 'Trust - Frontsheet'!F26 & "'") -> 'Broadgate Ward' | D14: =IF(ISBLANK('Trust - Frontsheet'!G26),"",'Trust - Frontsheet'!G26) -> 712 - FORENSIC PSYCHIATRY | E14: =IF(ISBLANK('Trust - Frontsheet'!H26),"",'Trust - Frontsheet'!H26) ->  | F14: ='Trust - Frontsheet'!I26 -> 744 | G14: ='Trust - Frontsheet'!J26 -> 1187.5 | H14: ='Trust - Frontsheet'!K26 -> 678 | I14: ='Trust - Frontsheet'!L26 -> 1059 | J14: ='Trust - Frontsheet'!M26 -> 34.5 | K14: ='Trust - Frontsheet'!N26 -> 34.5 | L14: ='Trust - Frontsheet'!O26 -> 0 | M14: ='Trust - Frontsheet'!P26 -> 0 | N14: ='Trust - Frontsheet'!Q26 -> 682 | O14: ='Trust - Frontsheet'!R26 -> 628 | P14: ='Trust - Frontsheet'!S26 -> 341 | Q14: ='Trust - Frontsheet'!T26 -> 326.5 | R14: ='Trust - Frontsheet'!U26 -> 80.5 | S14: ='Trust - Frontsheet'!V26 -> 80.5 | T14: ='Trust - Frontsheet'!W26 -> 0 | U14: ='Trust - Frontsheet'!X26 -> 0 | V14: ='Trust - Frontsheet'!Y26 -> 0 | W14: ='Trust - Frontsheet'!Z26 -> 0 | X14: ='Trust - Frontsheet'!AA26 -> 0 | Y14: ='Trust - Frontsheet'!AB26 -> 0 | Z14: =IF(OR('Trust - Frontsheet'!AK26="",'Trust - Frontsheet'!AK26="-"),0,('Trust - Frontsheet'!AK26)) -> 1.596102151 | AA14: =IF(OR('Trust - Frontsheet'!AL26="",'Trust - Frontsheet'!AL26="-"),0,('Trust - Frontsheet'!AL26)) -> 1.561946903 | AB14: =IF(OR('Trust - Frontsheet'!AM26="",'Trust - Frontsheet'!AM26="-"),0,('Trust - Frontsheet'!AM26)) -> 1 | AC14: =IF(OR('Trust - Frontsheet'!AN26="",'Trust - Frontsheet'!AN26="-"),0,('Trust - Frontsheet'!AN26)) -> 0 | AD14: =IF(OR('Trust - Frontsheet'!AO26="",'Trust - Frontsheet'!AO26="-"),0,('Trust - Frontsheet'!AO26)) -> 0.9208211144 | AE14: =IF(OR('Trust - Frontsheet'!AP26="",'Trust - Frontsheet'!AP26="-"),0,('Trust - Frontsheet'!AP26)) -> 0.9574780059 | AF14: =IF(OR('Trust - Frontsheet'!AQ26="",'Trust - Frontsheet'!AQ26="-"),0,('Trust - Frontsheet'!AQ26)) -> 1 | AG14: =IF(OR('Trust - Frontsheet'!AR26="",'Trust - Frontsheet'!AR26="-"),0,('Trust - Frontsheet'!AR26)) -> 0 | AH14: =IF(OR('Trust - Frontsheet'!AS26="",'Trust - Frontsheet'!AS26="-"),0,('Trust - Frontsheet'!AS26)) -> 0 | AI14: =IF(OR('Trust - Frontsheet'!AT26="",'Trust - Frontsheet'!AT26="-"),0,('Trust - Frontsheet'!AT26)) -> 0 | AJ14: ='Trust - Frontsheet'!AC26 -> 526 | AK14: =IF(OR('Trust - Frontsheet'!AD26="",'Trust - Frontsheet'!AD26="-"),0,('Trust - Frontsheet'!AD26)) -> 3.451520913 | AL14: =IF(OR('Trust - Frontsheet'!AE26="",'Trust - Frontsheet'!AE26="-"),0,('Trust - Frontsheet'!AE26)) -> 2.634030418 | AM14: =IF(OR('Trust - Frontsheet'!AF26="",'Trust - Frontsheet'!AF26="-"),0,('Trust - Frontsheet'!AF26)) -> 0.2186311787 | AN14: =IF(OR('Trust - Frontsheet'!AG26="",'Trust - Frontsheet'!AG26="-"),0,('Trust - Frontsheet'!AG26)) -> 0 | AO14: =IF(OR('Trust - Frontsheet'!AH26="",'Trust - Frontsheet'!AH26="-"),0,('Trust - Frontsheet'!AH26)) -> 0 | AP14: =IF(OR('Trust - Frontsheet'!AI26="",'Trust - Frontsheet'!AI26="-"),0,('Trust - Frontsheet'!AI26)) -> 0 | AQ14: =IF(OR('Trust - Frontsheet'!AJ26="",'Trust - Frontsheet'!AJ26="-"),0,('Trust - Frontsheet'!AJ26)) -> 6.30418251 | AR14: =IF(A14="","",(IF(ISBLANK('Trust - Frontsheet'!F9),"",'Trust - Frontsheet'!F9))) -> https://www.elft.nhs.uk/About-Us/Safer-Staffing-Levels
A15: =IF('Trust - Frontsheet'!D27=0,"",IF('Trust - Frontsheet'!D27="","",'Trust - Frontsheet'!D27)) -> RWK60 | B15: =IF(ISBLANK('Trust - Frontsheet'!E27),"",'Trust - Frontsheet'!E27) -> FORENSIC CENTRE FOR MENTAL HEALTH | C15: =IF(ISBLANK('Trust - Frontsheet'!F27),"","'" & 'Trust - Frontsheet'!F27 & "'") -> 'Butterfield Ward' | D15: =IF(ISBLANK('Trust - Frontsheet'!G27),"",'Trust - Frontsheet'!G27) -> 712 - FORENSIC PSYCHIATRY | E15: =IF(ISBLANK('Trust - Frontsheet'!H27),"",'Trust - Frontsheet'!H27) ->  | F15: ='Trust - Frontsheet'!I27 -> 725 | G15: ='Trust - Frontsheet'!J27 -> 895.5 | H15: ='Trust - Frontsheet'!K27 -> 729 | I15: ='Trust - Frontsheet'!L27 -> 843.5 | J15: ='Trust - Frontsheet'!M27 -> 0 | K15: ='Trust - Frontsheet'!N27 -> 0 | L15: ='Trust - Frontsheet'!O27 -> 0 | M15: ='Trust - Frontsheet'!P27 -> 0 | N15: ='Trust - Frontsheet'!Q27 -> 341 | O15: ='Trust - Frontsheet'!R27 -> 572 | P15: ='Trust - Frontsheet'!S27 -> 341 | Q15: ='Trust - Frontsheet'!T27 -> 604 | R15: ='Trust - Frontsheet'!U27 -> 0 | S15: ='Trust - Frontsheet'!V27 -> 0 | T15: ='Trust - Frontsheet'!W27 -> 0 | U15: ='Trust - Frontsheet'!X27 -> 0 | V15: ='Trust - Frontsheet'!Y27 -> 0 | W15: ='Trust - Frontsheet'!Z27 -> 0 | X15: ='Trust - Frontsheet'!AA27 -> 0 | Y15: ='Trust - Frontsheet'!AB27 -> 0 | Z15: =IF(OR('Trust - Frontsheet'!AK27="",'Trust - Frontsheet'!AK27="-"),0,('Trust - Frontsheet'!AK27)) -> 1.235172414 | AA15: =IF(OR('Trust - Frontsheet'!AL27="",'Trust - Frontsheet'!AL27="-"),0,('Trust - Frontsheet'!AL27)) -> 1.157064472 | AB15: =IF(OR('Trust - Frontsheet'!AM27="",'Trust - Frontsheet'!AM27="-"),0,('Trust - Frontsheet'!AM27)) -> 0 | AC15: =IF(OR('Trust - Frontsheet'!AN27="",'Trust - Frontsheet'!AN27="-"),0,('Trust - Frontsheet'!AN27)) -> 0 | AD15: =IF(OR('Trust - Frontsheet'!AO27="",'Trust - Frontsheet'!AO27="-"),0,('Trust - Frontsheet'!AO27)) -> 1.677419355 | AE15: =IF(OR('Trust - Frontsheet'!AP27="",'Trust - Frontsheet'!AP27="-"),0,('Trust - Frontsheet'!AP27)) -> 1.771260997 | AF15: =IF(OR('Trust - Frontsheet'!AQ27="",'Trust - Frontsheet'!AQ27="-"),0,('Trust - Frontsheet'!AQ27)) -> 0 | AG15: =IF(OR('Trust - Frontsheet'!AR27="",'Trust - Frontsheet'!AR27="-"),0,('Trust - Frontsheet'!AR27)) -> 0 | AH15: =IF(OR('Trust - Frontsheet'!AS27="",'Trust - Frontsheet'!AS27="-"),0,('Trust - Frontsheet'!AS27)) -> 0 | AI15: =IF(OR('Trust - Frontsheet'!AT27="",'Trust - Frontsheet'!AT27="-"),0,('Trust - Frontsheet'!AT27)) -> 0 | AJ15: ='Trust - Frontsheet'!AC27 -> 527 | AK15: =IF(OR('Trust - Frontsheet'!AD27="",'Trust - Frontsheet'!AD27="-"),0,('Trust - Frontsheet'!AD27)) -> 2.784629981 | AL15: =IF(OR('Trust - Frontsheet'!AE27="",'Trust - Frontsheet'!AE27="-"),0,('Trust - Frontsheet'!AE27)) -> 2.746679317 | AM15: =IF(OR('Trust - Frontsheet'!AF27="",'Trust - Frontsheet'!AF27="-"),0,('Trust - Frontsheet'!AF27)) -> 0 | AN15: =IF(OR('Trust - Frontsheet'!AG27="",'Trust - Frontsheet'!AG27="-"),0,('Trust - Frontsheet'!AG27)) -> 0 | AO15: =IF(OR('Trust - Frontsheet'!AH27="",'Trust - Frontsheet'!AH27="-"),0,('Trust - Frontsheet'!AH27)) -> 0 | AP15: =IF(OR('Trust - Frontsheet'!AI27="",'Trust - Frontsheet'!AI27="-"),0,('Trust - Frontsheet'!AI27)) -> 0 | AQ15: =IF(OR('Trust - Frontsheet'!AJ27="",'Trust - Frontsheet'!AJ27="-"),0,('Trust - Frontsheet'!AJ27)) -> 5.531309298 | AR15: =IF(A15="","",(IF(ISBLANK('Trust - Frontsheet'!F9),"",'Trust - Frontsheet'!F9))) -> https://www.elft.nhs.uk/About-Us/Safer-Staffing-Levels
A16: =IF('Trust - Frontsheet'!D28=0,"",IF('Trust - Frontsheet'!D28="","",'Trust - Frontsheet'!D28)) -> RWK60 | B16: =IF(ISBLANK('Trust - Frontsheet'!E28),"",'Trust - Frontsheet'!E28) -> FORENSIC CENTRE FOR MENTAL HEALTH | C16: =IF(ISBLANK('Trust - Frontsheet'!F28),"","'" & 'Trust - Frontsheet'!F28 & "'") -> 'Clerkenwell JHC' | D16: =IF(ISBLANK('Trust - Frontsheet'!G28),"",'Trust - Frontsheet'!G28) -> 712 - FORENSIC PSYCHIATRY | E16: =IF(ISBLANK('Trust - Frontsheet'!H28),"",'Trust - Frontsheet'!H28) -> 700 - LEARNING DISABILITY | F16: ='Trust - Frontsheet'!I28 -> 708 | G16: ='Trust - Frontsheet'!J28 -> 1134.416667 | H16: ='Trust - Frontsheet'!K28 -> 684 | I16: ='Trust - Frontsheet'!L28 -> 1470 | J16: ='Trust - Frontsheet'!M28 -> 0 | K16: ='Trust - Frontsheet'!N28 -> 0 | L16: ='Trust - Frontsheet'!O28 -> 0 | M16: ='Trust - Frontsheet'!P28 -> 0 | N16: ='Trust - Frontsheet'!Q28 -> 594 | O16: ='Trust - Frontsheet'!R28 -> 671 | P16: ='Trust - Frontsheet'!S28 -> 308 | Q16: ='Trust - Frontsheet'!T28 -> 592 | R16: ='Trust - Frontsheet'!U28 -> 0 | S16: ='Trust - Frontsheet'!V28 -> 0 | T16: ='Trust - Frontsheet'!W28 -> 0 | U16: ='Trust - Frontsheet'!X28 -> 0 | V16: ='Trust - Frontsheet'!Y28 -> 0 | W16: ='Trust - Frontsheet'!Z28 -> 0 | X16: ='Trust - Frontsheet'!AA28 -> 0 | Y16: ='Trust - Frontsheet'!AB28 -> 0 | Z16: =IF(OR('Trust - Frontsheet'!AK28="",'Trust - Frontsheet'!AK28="-"),0,('Trust - Frontsheet'!AK28)) -> 1.602283427 | AA16: =IF(OR('Trust - Frontsheet'!AL28="",'Trust - Frontsheet'!AL28="-"),0,('Trust - Frontsheet'!AL28)) -> 2.149122807 | AB16: =IF(OR('Trust - Frontsheet'!AM28="",'Trust - Frontsheet'!AM28="-"),0,('Trust - Frontsheet'!AM28)) -> 0 | AC16: =IF(OR('Trust - Frontsheet'!AN28="",'Trust - Frontsheet'!AN28="-"),0,('Trust - Frontsheet'!AN28)) -> 0 | AD16: =IF(OR('Trust - Frontsheet'!AO28="",'Trust - Frontsheet'!AO28="-"),0,('Trust - Frontsheet'!AO28)) -> 1.12962963 | AE16: =IF(OR('Trust - Frontsheet'!AP28="",'Trust - Frontsheet'!AP28="-"),0,('Trust - Frontsheet'!AP28)) -> 1.922077922 | AF16: =IF(OR('Trust - Frontsheet'!AQ28="",'Trust - Frontsheet'!AQ28="-"),0,('Trust - Frontsheet'!AQ28)) -> 0 | AG16: =IF(OR('Trust - Frontsheet'!AR28="",'Trust - Frontsheet'!AR28="-"),0,('Trust - Frontsheet'!AR28)) -> 0 | AH16: =IF(OR('Trust - Frontsheet'!AS28="",'Trust - Frontsheet'!AS28="-"),0,('Trust - Frontsheet'!AS28)) -> 0 | AI16: =IF(OR('Trust - Frontsheet'!AT28="",'Trust - Frontsheet'!AT28="-"),0,('Trust - Frontsheet'!AT28)) -> 0 | AJ16: ='Trust - Frontsheet'!AC28 -> 465 | AK16: =IF(OR('Trust - Frontsheet'!AD28="",'Trust - Frontsheet'!AD28="-"),0,('Trust - Frontsheet'!AD28)) -> 3.882616487 | AL16: =IF(OR('Trust - Frontsheet'!AE28="",'Trust - Frontsheet'!AE28="-"),0,('Trust - Frontsheet'!AE28)) -> 4.434408602 | AM16: =IF(OR('Trust - Frontsheet'!AF28="",'Trust - Frontsheet'!AF28="-"),0,('Trust - Frontsheet'!AF28)) -> 0 | AN16: =IF(OR('Trust - Frontsheet'!AG28="",'Trust - Frontsheet'!AG28="-"),0,('Trust - Frontsheet'!AG28)) -> 0 | AO16: =IF(OR('Trust - Frontsheet'!AH28="",'Trust - Frontsheet'!AH28="-"),0,('Trust - Frontsheet'!AH28)) -> 0 | AP16: =IF(OR('Trust - Frontsheet'!AI28="",'Trust - Frontsheet'!AI28="-"),0,('Trust - Frontsheet'!AI28)) -> 0 | AQ16: =IF(OR('Trust - Frontsheet'!AJ28="",'Trust - Frontsheet'!AJ28="-"),0,('Trust - Frontsheet'!AJ28)) -> 8.31702509 | AR16: =IF(A16="","",(IF(ISBLANK('Trust - Frontsheet'!F9),"",'Trust - Frontsheet'!F9))) -> https://www.elft.nhs.uk/About-Us/Safer-Staffing-Levels
A17: =IF('Trust - Frontsheet'!D29=0,"",IF('Trust - Frontsheet'!D29="","",'Trust - Frontsheet'!D29)) -> RWK60 | B17: =IF(ISBLANK('Trust - Frontsheet'!E29),"",'Trust - Frontsheet'!E29) -> FORENSIC CENTRE FOR MENTAL HEALTH | C17: =IF(ISBLANK('Trust - Frontsheet'!F29),"","'" & 'Trust - Frontsheet'!F29 & "'") -> 'Clissold Ward' | D17: =IF(ISBLANK('Trust - Frontsheet'!G29),"",'Trust - Frontsheet'!G29) -> 712 - FORENSIC PSYCHIATRY | E17: =IF(ISBLANK('Trust - Frontsheet'!H29),"",'Trust - Frontsheet'!H29) ->  | F17: ='Trust - Frontsheet'!I29 -> 727.5 | G17: ='Trust - Frontsheet'!J29 -> 911.9166667 | H17: ='Trust - Frontsheet'!K29 -> 744 | I17: ='Trust - Frontsheet'!L29 -> 712.5 | J17: ='Trust - Frontsheet'!M29 -> 0 | K17: ='Trust - Frontsheet'!N29 -> 0 | L17: ='Trust - Frontsheet'!O29 -> 0 | M17: ='Trust - Frontsheet'!P29 -> 0 | N17: ='Trust - Frontsheet'!Q29 -> 341 | O17: ='Trust - Frontsheet'!R29 -> 490 | P17: ='Trust - Frontsheet'!S29 -> 341 | Q17: ='Trust - Frontsheet'!T29 -> 594 | R17: ='Trust - Frontsheet'!U29 -> 0 | S17: ='Trust - Frontsheet'!V29 -> 0 | T17: ='Trust - Frontsheet'!W29 -> 0 | U17: ='Trust - Frontsheet'!X29 -> 0 | V17: ='Trust - Frontsheet'!Y29 -> 0 | W17: ='Trust - Frontsheet'!Z29 -> 0 | X17: ='Trust - Frontsheet'!AA29 -> 0 | Y17: ='Trust - Frontsheet'!AB29 -> 0 | Z17: =IF(OR('Trust - Frontsheet'!AK29="",'Trust - Frontsheet'!AK29="-"),0,('Trust - Frontsheet'!AK29)) -> 1.2534937 | AA17: =IF(OR('Trust - Frontsheet'!AL29="",'Trust - Frontsheet'!AL29="-"),0,('Trust - Frontsheet'!AL29)) -> 0.9576612903 | AB17: =IF(OR('Trust - Frontsheet'!AM29="",'Trust - Frontsheet'!AM29="-"),0,('Trust - Frontsheet'!AM29)) -> 0 | AC17: =IF(OR('Trust - Frontsheet'!AN29="",'Trust - Frontsheet'!AN29="-"),0,('Trust - Frontsheet'!AN29)) -> 0 | AD17: =IF(OR('Trust - Frontsheet'!AO29="",'Trust - Frontsheet'!AO29="-"),0,('Trust - Frontsheet'!AO29)) -> 1.436950147 | AE17: =IF(OR('Trust - Frontsheet'!AP29="",'Trust - Frontsheet'!AP29="-"),0,('Trust - Frontsheet'!AP29)) -> 1.741935484 | AF17: =IF(OR('Trust - Frontsheet'!AQ29="",'Trust - Frontsheet'!AQ29="-"),0,('Trust - Frontsheet'!AQ29)) -> 0 | AG17: =IF(OR('Trust - Frontsheet'!AR29="",'Trust - Frontsheet'!AR29="-"),0,('Trust - Frontsheet'!AR29)) -> 0 | AH17: =IF(OR('Trust - Frontsheet'!AS29="",'Trust - Frontsheet'!AS29="-"),0,('Trust - Frontsheet'!AS29)) -> 0 | AI17: =IF(OR('Trust - Frontsheet'!AT29="",'Trust - Frontsheet'!AT29="-"),0,('Trust - Frontsheet'!AT29)) -> 0 | AJ17: ='Trust - Frontsheet'!AC29 -> 527 | AK17: =IF(OR('Trust - Frontsheet'!AD29="",'Trust - Frontsheet'!AD29="-"),0,('Trust - Frontsheet'!AD29)) -> 2.660183428 | AL17: =IF(OR('Trust - Frontsheet'!AE29="",'Trust - Frontsheet'!AE29="-"),0,('Trust - Frontsheet'!AE29)) -> 2.479127135 | AM17: =IF(OR('Trust - Frontsheet'!AF29="",'Trust - Frontsheet'!AF29="-"),0,('Trust - Frontsheet'!AF29)) -> 0 | AN17: =IF(OR('Trust - Frontsheet'!AG29="",'Trust - Frontsheet'!AG29="-"),0,('Trust - Frontsheet'!AG29)) -> 0 | AO17: =IF(OR('Trust - Frontsheet'!AH29="",'Trust - Frontsheet'!AH29="-"),0,('Trust - Frontsheet'!AH29)) -> 0 | AP17: =IF(OR('Trust - Frontsheet'!AI29="",'Trust - Frontsheet'!AI29="-"),0,('Trust - Frontsheet'!AI29)) -> 0 | AQ17: =IF(OR('Trust - Frontsheet'!AJ29="",'Trust - Frontsheet'!AJ29="-"),0,('Trust - Frontsheet'!AJ29)) -> 5.139310563 | AR17: =IF(A17="","",(IF(ISBLANK('Trust - Frontsheet'!F9),"",'Trust - Frontsheet'!F9))) -> https://www.elft.nhs.uk/About-Us/Safer-Staffing-Levels
A18: =IF('Trust - Frontsheet'!D30=0,"",IF('Trust - Frontsheet'!D30="","",'Trust - Frontsheet'!D30)) -> RWK60 | B18: =IF(ISBLANK('Trust - Frontsheet'!E30),"",'Trust - Frontsheet'!E30) -> FORENSIC CENTRE FOR MENTAL HEALTH | C18: =IF(ISBLANK('Trust - Frontsheet'!F30),"","'" & 'Trust - Frontsheet'!F30 & "'") -> 'East India' | D18: =IF(ISBLANK('Trust - Frontsheet'!G30),"",'Trust - Frontsheet'!G30) -> 712 - FORENSIC PSYCHIATRY | E18: =IF(ISBLANK('Trust - Frontsheet'!H30),"",'Trust - Frontsheet'!H30) ->  | F18: ='Trust - Frontsheet'!I30 -> 732 | G18: ='Trust - Frontsheet'!J30 -> 931.75 | H18: ='Trust - Frontsheet'!K30 -> 742.5 | I18: ='Trust - Frontsheet'!L30 -> 853.6666667 | J18: ='Trust - Frontsheet'!M30 -> 0 | K18: ='Trust - Frontsheet'!N30 -> 0 | L18: ='Trust - Frontsheet'!O30 -> 0 | M18: ='Trust - Frontsheet'!P30 -> 0 | N18: ='Trust - Frontsheet'!Q30 -> 341 | O18: ='Trust - Frontsheet'!R30 -> 661 | P18: ='Trust - Frontsheet'!S30 -> 341 | Q18: ='Trust - Frontsheet'!T30 -> 506 | R18: ='Trust - Frontsheet'!U30 -> 0 | S18: ='Trust - Frontsheet'!V30 -> 0 | T18: ='Trust - Frontsheet'!W30 -> 0 | U18: ='Trust - Frontsheet'!X30 -> 0 | V18: ='Trust - Frontsheet'!Y30 -> 0 | W18: ='Trust - Frontsheet'!Z30 -> 0 | X18: ='Trust - Frontsheet'!AA30 -> 0 | Y18: ='Trust - Frontsheet'!AB30 -> 0 | Z18: =IF(OR('Trust - Frontsheet'!AK30="",'Trust - Frontsheet'!AK30="-"),0,('Trust - Frontsheet'!AK30)) -> 1.272882514 | AA18: =IF(OR('Trust - Frontsheet'!AL30="",'Trust - Frontsheet'!AL30="-"),0,('Trust - Frontsheet'!AL30)) -> 1.149719416 | AB18: =IF(OR('Trust - Frontsheet'!AM30="",'Trust - Frontsheet'!AM30="-"),0,('Trust - Frontsheet'!AM30)) -> 0 | AC18: =IF(OR('Trust - Frontsheet'!AN30="",'Trust - Frontsheet'!AN30="-"),0,('Trust - Frontsheet'!AN30)) -> 0 | AD18: =IF(OR('Trust - Frontsheet'!AO30="",'Trust - Frontsheet'!AO30="-"),0,('Trust - Frontsheet'!AO30)) -> 1.938416422 | AE18: =IF(OR('Trust - Frontsheet'!AP30="",'Trust - Frontsheet'!AP30="-"),0,('Trust - Frontsheet'!AP30)) -> 1.483870968 | AF18: =IF(OR('Trust - Frontsheet'!AQ30="",'Trust - Frontsheet'!AQ30="-"),0,('Trust - Frontsheet'!AQ30)) -> 0 | AG18: =IF(OR('Trust - Frontsheet'!AR30="",'Trust - Frontsheet'!AR30="-"),0,('Trust - Frontsheet'!AR30)) -> 0 | AH18: =IF(OR('Trust - Frontsheet'!AS30="",'Trust - Frontsheet'!AS30="-"),0,('Trust - Frontsheet'!AS30)) -> 0 | AI18: =IF(OR('Trust - Frontsheet'!AT30="",'Trust - Frontsheet'!AT30="-"),0,('Trust - Frontsheet'!AT30)) -> 0 | AJ18: ='Trust - Frontsheet'!AC30 -> 403 | AK18: =IF(OR('Trust - Frontsheet'!AD30="",'Trust - Frontsheet'!AD30="-"),0,('Trust - Frontsheet'!AD30)) -> 3.952233251 | AL18: =IF(OR('Trust - Frontsheet'!AE30="",'Trust - Frontsheet'!AE30="-"),0,('Trust - Frontsheet'!AE30)) -> 3.373862696 | AM18: =IF(OR('Trust - Frontsheet'!AF30="",'Trust - Frontsheet'!AF30="-"),0,('Trust - Frontsheet'!AF30)) -> 0 | AN18: =IF(OR('Trust - Frontsheet'!AG30="",'Trust - Frontsheet'!AG30="-"),0,('Trust - Frontsheet'!AG30)) -> 0 | AO18: =IF(OR('Trust - Frontsheet'!AH30="",'Trust - Frontsheet'!AH30="-"),0,('Trust - Frontsheet'!AH30)) -> 0 | AP18: =IF(OR('Trust - Frontsheet'!AI30="",'Trust - Frontsheet'!AI30="-"),0,('Trust - Frontsheet'!AI30)) -> 0 | AQ18: =IF(OR('Trust - Frontsheet'!AJ30="",'Trust - Frontsheet'!AJ30="-"),0,('Trust - Frontsheet'!AJ30)) -> 7.326095947 | AR18: =IF(A18="","",(IF(ISBLANK('Trust - Frontsheet'!F9),"",'Trust - Frontsheet'!F9))) -> https://www.elft.nhs.uk/About-Us/Safer-Staffing-Levels
A19: =IF('Trust - Frontsheet'!D31=0,"",IF('Trust - Frontsheet'!D31="","",'Trust - Frontsheet'!D31)) -> RWK60 | B19: =IF(ISBLANK('Trust - Frontsheet'!E31),"",'Trust - Frontsheet'!E31) -> FORENSIC CENTRE FOR MENTAL HEALTH | C19: =IF(ISBLANK('Trust - Frontsheet'!F31),"","'" & 'Trust - Frontsheet'!F31 & "'") -> 'Hoxton Ward' | D19: =IF(ISBLANK('Trust - Frontsheet'!G31),"",'Trust - Frontsheet'!G31) -> 712 - FORENSIC PSYCHIATRY | E19: =IF(ISBLANK('Trust - Frontsheet'!H31),"",'Trust - Frontsheet'!H31) ->  | F19: ='Trust - Frontsheet'!I31 -> 743.5 | G19: ='Trust - Frontsheet'!J31 -> 976.25 | H19: ='Trust - Frontsheet'!K31 -> 744 | I19: ='Trust - Frontsheet'!L31 -> 807.5 | J19: ='Trust - Frontsheet'!M31 -> 0 | K19: ='Trust - Frontsheet'!N31 -> 0 | L19: ='Trust - Frontsheet'!O31 -> 0 | M19: ='Trust - Frontsheet'!P31 -> 0 | N19: ='Trust - Frontsheet'!Q31 -> 341 | O19: ='Trust - Frontsheet'!R31 -> 479 | P19: ='Trust - Frontsheet'!S31 -> 341 | Q19: ='Trust - Frontsheet'!T31 -> 627 | R19: ='Trust - Frontsheet'!U31 -> 0 | S19: ='Trust - Frontsheet'!V31 -> 0 | T19: ='Trust - Frontsheet'!W31 -> 0 | U19: ='Trust - Frontsheet'!X31 -> 0 | V19: ='Trust - Frontsheet'!Y31 -> 0 | W19: ='Trust - Frontsheet'!Z31 -> 0 | X19: ='Trust - Frontsheet'!AA31 -> 0 | Y19: ='Trust - Frontsheet'!AB31 -> 0 | Z19: =IF(OR('Trust - Frontsheet'!AK31="",'Trust - Frontsheet'!AK31="-"),0,('Trust - Frontsheet'!AK31)) -> 1.313046402 | AA19: =IF(OR('Trust - Frontsheet'!AL31="",'Trust - Frontsheet'!AL31="-"),0,('Trust - Frontsheet'!AL31)) -> 1.085349462 | AB19: =IF(OR('Trust - Frontsheet'!AM31="",'Trust - Frontsheet'!AM31="-"),0,('Trust - Frontsheet'!AM31)) -> 0 | AC19: =IF(OR('Trust - Frontsheet'!AN31="",'Trust - Frontsheet'!AN31="-"),0,('Trust - Frontsheet'!AN31)) -> 0 | AD19: =IF(OR('Trust - Frontsheet'!AO31="",'Trust - Frontsheet'!AO31="-"),0,('Trust - Frontsheet'!AO31)) -> 1.404692082 | AE19: =IF(OR('Trust - Frontsheet'!AP31="",'Trust - Frontsheet'!AP31="-"),0,('Trust - Frontsheet'!AP31)) -> 1.838709677 | AF19: =IF(OR('Trust - Frontsheet'!AQ31="",'Trust - Frontsheet'!AQ31="-"),0,('Trust - Frontsheet'!AQ31)) -> 0 | AG19: =IF(OR('Trust - Frontsheet'!AR31="",'Trust - Frontsheet'!AR31="-"),0,('Trust - Frontsheet'!AR31)) -> 0 | AH19: =IF(OR('Trust - Frontsheet'!AS31="",'Trust - Frontsheet'!AS31="-"),0,('Trust - Frontsheet'!AS31)) -> 0 | AI19: =IF(OR('Trust - Frontsheet'!AT31="",'Trust - Frontsheet'!AT31="-"),0,('Trust - Frontsheet'!AT31)) -> 0 | AJ19: ='Trust - Frontsheet'!AC31 -> 527 | AK19: =IF(OR('Trust - Frontsheet'!AD31="",'Trust - Frontsheet'!AD31="-"),0,('Trust - Frontsheet'!AD31)) -> 2.761385199 | AL19: =IF(OR('Trust - Frontsheet'!AE31="",'Trust - Frontsheet'!AE31="-"),0,('Trust - Frontsheet'!AE31)) -> 2.722011385 | AM19: =IF(OR('Trust - Frontsheet'!AF31="",'Trust - Frontsheet'!AF31="-"),0,('Trust - Frontsheet'!AF31)) -> 0 | AN19: =IF(OR('Trust - Frontsheet'!AG31="",'Trust - Frontsheet'!AG31="-"),0,('Trust - Frontsheet'!AG31)) -> 0 | AO19: =IF(OR('Trust - Frontsheet'!AH31="",'Trust - Frontsheet'!AH31="-"),0,('Trust - Frontsheet'!AH31)) -> 0 | AP19: =IF(OR('Trust - Frontsheet'!AI31="",'Trust - Frontsheet'!AI31="-"),0,('Trust - Frontsheet'!AI31)) -> 0 | AQ19: =IF(OR('Trust - Frontsheet'!AJ31="",'Trust - Frontsheet'!AJ31="-"),0,('Trust - Frontsheet'!AJ31)) -> 5.483396584 | AR19: =IF(A19="","",(IF(ISBLANK('Trust - Frontsheet'!F9),"",'Trust - Frontsheet'!F9))) -> https://www.elft.nhs.uk/About-Us/Safer-Staffing-Levels
A20: =IF('Trust - Frontsheet'!D32=0,"",IF('Trust - Frontsheet'!D32="","",'Trust - Frontsheet'!D32)) -> RWK60 | B20: =IF(ISBLANK('Trust - Frontsheet'!E32),"",'Trust - Frontsheet'!E32) -> FORENSIC CENTRE FOR MENTAL HEALTH | C20: =IF(ISBLANK('Trust - Frontsheet'!F32),"","'" & 'Trust - Frontsheet'!F32 & "'") -> 'Limehouse Unit' | D20: =IF(ISBLANK('Trust - Frontsheet'!G32),"",'Trust - Frontsheet'!G32) -> 712 - FORENSIC PSYCHIATRY | E20: =IF(ISBLANK('Trust - Frontsheet'!H32),"",'Trust - Frontsheet'!H32) ->  | F20: ='Trust - Frontsheet'!I32 -> 732 | G20: ='Trust - Frontsheet'!J32 -> 768 | H20: ='Trust - Frontsheet'!K32 -> 732 | I20: ='Trust - Frontsheet'!L32 -> 828.5 | J20: ='Trust - Frontsheet'!M32 -> 0 | K20: ='Trust - Frontsheet'!N32 -> 0 | L20: ='Trust - Frontsheet'!O32 -> 0 | M20: ='Trust - Frontsheet'!P32 -> 0 | N20: ='Trust - Frontsheet'!Q32 -> 340.5 | O20: ='Trust - Frontsheet'!R32 -> 395.5 | P20: ='Trust - Frontsheet'!S32 -> 341 | Q20: ='Trust - Frontsheet'!T32 -> 623 | R20: ='Trust - Frontsheet'!U32 -> 0 | S20: ='Trust - Frontsheet'!V32 -> 0 | T20: ='Trust - Frontsheet'!W32 -> 0 | U20: ='Trust - Frontsheet'!X32 -> 0 | V20: ='Trust - Frontsheet'!Y32 -> 0 | W20: ='Trust - Frontsheet'!Z32 -> 0 | X20: ='Trust - Frontsheet'!AA32 -> 0 | Y20: ='Trust - Frontsheet'!AB32 -> 0 | Z20: =IF(OR('Trust - Frontsheet'!AK32="",'Trust - Frontsheet'!AK32="-"),0,('Trust - Frontsheet'!AK32)) -> 1.049180328 | AA20: =IF(OR('Trust - Frontsheet'!AL32="",'Trust - Frontsheet'!AL32="-"),0,('Trust - Frontsheet'!AL32)) -> 1.131830601 | AB20: =IF(OR('Trust - Frontsheet'!AM32="",'Trust - Frontsheet'!AM32="-"),0,('Trust - Frontsheet'!AM32)) -> 0 | AC20: =IF(OR('Trust - Frontsheet'!AN32="",'Trust - Frontsheet'!AN32="-"),0,('Trust - Frontsheet'!AN32)) -> 0 | AD20: =IF(OR('Trust - Frontsheet'!AO32="",'Trust - Frontsheet'!AO32="-"),0,('Trust - Frontsheet'!AO32)) -> 1.161527166 | AE20: =IF(OR('Trust - Frontsheet'!AP32="",'Trust - Frontsheet'!AP32="-"),0,('Trust - Frontsheet'!AP32)) -> 1.826979472 | AF20: =IF(OR('Trust - Frontsheet'!AQ32="",'Trust - Frontsheet'!AQ32="-"),0,('Trust - Frontsheet'!AQ32)) -> 0 | AG20: =IF(OR('Trust - Frontsheet'!AR32="",'Trust - Frontsheet'!AR32="-"),0,('Trust - Frontsheet'!AR32)) -> 0 | AH20: =IF(OR('Trust - Frontsheet'!AS32="",'Trust - Frontsheet'!AS32="-"),0,('Trust - Frontsheet'!AS32)) -> 0 | AI20: =IF(OR('Trust - Frontsheet'!AT32="",'Trust - Frontsheet'!AT32="-"),0,('Trust - Frontsheet'!AT32)) -> 0 | AJ20: ='Trust - Frontsheet'!AC32 -> 496 | AK20: =IF(OR('Trust - Frontsheet'!AD32="",'Trust - Frontsheet'!AD32="-"),0,('Trust - Frontsheet'!AD32)) -> 2.345766129 | AL20: =IF(OR('Trust - Frontsheet'!AE32="",'Trust - Frontsheet'!AE32="-"),0,('Trust - Frontsheet'!AE32)) -> 2.92641129 | AM20: =IF(OR('Trust - Frontsheet'!AF32="",'Trust - Frontsheet'!AF32="-"),0,('Trust - Frontsheet'!AF32)) -> 0 | AN20: =IF(OR('Trust - Frontsheet'!AG32="",'Trust - Frontsheet'!AG32="-"),0,('Trust - Frontsheet'!AG32)) -> 0 | AO20: =IF(OR('Trust - Frontsheet'!AH32="",'Trust - Frontsheet'!AH32="-"),0,('Trust - Frontsheet'!AH32)) -> 0 | AP20: =IF(OR('Trust - Frontsheet'!AI32="",'Trust - Frontsheet'!AI32="-"),0,('Trust - Frontsheet'!AI32)) -> 0 | AQ20: =IF(OR('Trust - Frontsheet'!AJ32="",'Trust - Frontsheet'!AJ32="-"),0,('Trust - Frontsheet'!AJ32)) -> 5.272177419 | AR20: =IF(A20="","",(IF(ISBLANK('Trust - Frontsheet'!F9),"",'Trust - Frontsheet'!F9))) -> https://www.elft.nhs.uk/About-Us/Safer-Staffing-Levels
A21: =IF('Trust - Frontsheet'!D33=0,"",IF('Trust - Frontsheet'!D33="","",'Trust - Frontsheet'!D33)) -> RWK60 | B21: =IF(ISBLANK('Trust - Frontsheet'!E33),"",'Trust - Frontsheet'!E33) -> FORENSIC CENTRE FOR MENTAL HEALTH | C21: =IF(ISBLANK('Trust - Frontsheet'!F33),"","'" & 'Trust - Frontsheet'!F33 & "'") -> 'Loxford Ward' | D21: =IF(ISBLANK('Trust - Frontsheet'!G33),"",'Trust - Frontsheet'!G33) -> 712 - FORENSIC PSYCHIATRY | E21: =IF(ISBLANK('Trust - Frontsheet'!H33),"",'Trust - Frontsheet'!H33) ->  | F21: ='Trust - Frontsheet'!I33 -> 613.5 | G21: ='Trust - Frontsheet'!J33 -> 1044 | H21: ='Trust - Frontsheet'!K33 -> 621 | I21: ='Trust - Frontsheet'!L33 -> 783.5 | J21: ='Trust - Frontsheet'!M33 -> 0 | K21: ='Trust - Frontsheet'!N33 -> 0 | L21: ='Trust - Frontsheet'!O33 -> 0 | M21: ='Trust - Frontsheet'!P33 -> 0 | N21: ='Trust - Frontsheet'!Q33 -> 341 | O21: ='Trust - Frontsheet'!R33 -> 396 | P21: ='Trust - Frontsheet'!S33 -> 308 | Q21: ='Trust - Frontsheet'!T33 -> 638 | R21: ='Trust - Frontsheet'!U33 -> 0 | S21: ='Trust - Frontsheet'!V33 -> 0 | T21: ='Trust - Frontsheet'!W33 -> 0 | U21: ='Trust - Frontsheet'!X33 -> 0 | V21: ='Trust - Frontsheet'!Y33 -> 0 | W21: ='Trust - Frontsheet'!Z33 -> 0 | X21: ='Trust - Frontsheet'!AA33 -> 0 | Y21: ='Trust - Frontsheet'!AB33 -> 0 | Z21: =IF(OR('Trust - Frontsheet'!AK33="",'Trust - Frontsheet'!AK33="-"),0,('Trust - Frontsheet'!AK33)) -> 1.701711491 | AA21: =IF(OR('Trust - Frontsheet'!AL33="",'Trust - Frontsheet'!AL33="-"),0,('Trust - Frontsheet'!AL33)) -> 1.261674718 | AB21: =IF(OR('Trust - Frontsheet'!AM33="",'Trust - Frontsheet'!AM33="-"),0,('Trust - Frontsheet'!AM33)) -> 0 | AC21: =IF(OR('Trust - Frontsheet'!AN33="",'Trust - Frontsheet'!AN33="-"),0,('Trust - Frontsheet'!AN33)) -> 0 | AD21: =IF(OR('Trust - Frontsheet'!AO33="",'Trust - Frontsheet'!AO33="-"),0,('Trust - Frontsheet'!AO33)) -> 1.161290323 | AE21: =IF(OR('Trust - Frontsheet'!AP33="",'Trust - Frontsheet'!AP33="-"),0,('Trust - Frontsheet'!AP33)) -> 2.071428571 | AF21: =IF(OR('Trust - Frontsheet'!AQ33="",'Trust - Frontsheet'!AQ33="-"),0,('Trust - Frontsheet'!AQ33)) -> 0 | AG21: =IF(OR('Trust - Frontsheet'!AR33="",'Trust - Frontsheet'!AR33="-"),0,('Trust - Frontsheet'!AR33)) -> 0 | AH21: =IF(OR('Trust - Frontsheet'!AS33="",'Trust - Frontsheet'!AS33="-"),0,('Trust - Frontsheet'!AS33)) -> 0 | AI21: =IF(OR('Trust - Frontsheet'!AT33="",'Trust - Frontsheet'!AT33="-"),0,('Trust - Frontsheet'!AT33)) -> 0 | AJ21: ='Trust - Frontsheet'!AC33 -> 527 | AK21: =IF(OR('Trust - Frontsheet'!AD33="",'Trust - Frontsheet'!AD33="-"),0,('Trust - Frontsheet'!AD33)) -> 2.732447818 | AL21: =IF(OR('Trust - Frontsheet'!AE33="",'Trust - Frontsheet'!AE33="-"),0,('Trust - Frontsheet'!AE33)) -> 2.697343454 | AM21: =IF(OR('Trust - Frontsheet'!AF33="",'Trust - Frontsheet'!AF33="-"),0,('Trust - Frontsheet'!AF33)) -> 0 | AN21: =IF(OR('Trust - Frontsheet'!AG33="",'Trust - Frontsheet'!AG33="-"),0,('Trust - Frontsheet'!AG33)) -> 0 | AO21: =IF(OR('Trust - Frontsheet'!AH33="",'Trust - Frontsheet'!AH33="-"),0,('Trust - Frontsheet'!AH33)) -> 0 | AP21: =IF(OR('Trust - Frontsheet'!AI33="",'Trust - Frontsheet'!AI33="-"),0,('Trust - Frontsheet'!AI33)) -> 0 | AQ21: =IF(OR('Trust - Frontsheet'!AJ33="",'Trust - Frontsheet'!AJ33="-"),0,('Trust - Frontsheet'!AJ33)) -> 5.429791271 | AR21: =IF(A21="","",(IF(ISBLANK('Trust - Frontsheet'!F9),"",'Trust - Frontsheet'!F9))) -> https://www.elft.nhs.uk/About-Us/Safer-Staffing-Levels
A22: =IF('Trust - Frontsheet'!D34=0,"",IF('Trust - Frontsheet'!D34="","",'Trust - Frontsheet'!D34)) -> RWK60 | B22: =IF(ISBLANK('Trust - Frontsheet'!E34),"",'Trust - Frontsheet'!E34) -> FORENSIC CENTRE FOR MENTAL HEALTH | C22: =IF(ISBLANK('Trust - Frontsheet'!F34),"","'" & 'Trust - Frontsheet'!F34 & "'") -> 'Ludgate Ward' | D22: =IF(ISBLANK('Trust - Frontsheet'!G34),"",'Trust - Frontsheet'!G34) -> 712 - FORENSIC PSYCHIATRY | E22: =IF(ISBLANK('Trust - Frontsheet'!H34),"",'Trust - Frontsheet'!H34) ->  | F22: ='Trust - Frontsheet'!I34 -> 730.5 | G22: ='Trust - Frontsheet'!J34 -> 1081.583333 | H22: ='Trust - Frontsheet'!K34 -> 732 | I22: ='Trust - Frontsheet'!L34 -> 886.5 | J22: ='Trust - Frontsheet'!M34 -> 0 | K22: ='Trust - Frontsheet'!N34 -> 0 | L22: ='Trust - Frontsheet'!O34 -> 0 | M22: ='Trust - Frontsheet'!P34 -> 0 | N22: ='Trust - Frontsheet'!Q34 -> 341 | O22: ='Trust - Frontsheet'!R34 -> 499 | P22: ='Trust - Frontsheet'!S34 -> 341 | Q22: ='Trust - Frontsheet'!T34 -> 693 | R22: ='Trust - Frontsheet'!U34 -> 0 | S22: ='Trust - Frontsheet'!V34 -> 0 | T22: ='Trust - Frontsheet'!W34 -> 0 | U22: ='Trust - Frontsheet'!X34 -> 0 | V22: ='Trust - Frontsheet'!Y34 -> 0 | W22: ='Trust - Frontsheet'!Z34 -> 0 | X22: ='Trust - Frontsheet'!AA34 -> 0 | Y22: ='Trust - Frontsheet'!AB34 -> 0 | Z22: =IF(OR('Trust - Frontsheet'!AK34="",'Trust - Frontsheet'!AK34="-"),0,('Trust - Frontsheet'!AK34)) -> 1.48060689 | AA22: =IF(OR('Trust - Frontsheet'!AL34="",'Trust - Frontsheet'!AL34="-"),0,('Trust - Frontsheet'!AL34)) -> 1.211065574 | AB22: =IF(OR('Trust - Frontsheet'!AM34="",'Trust - Frontsheet'!AM34="-"),0,('Trust - Frontsheet'!AM34)) -> 0 | AC22: =IF(OR('Trust - Frontsheet'!AN34="",'Trust - Frontsheet'!AN34="-"),0,('Trust - Frontsheet'!AN34)) -> 0 | AD22: =IF(OR('Trust - Frontsheet'!AO34="",'Trust - Frontsheet'!AO34="-"),0,('Trust - Frontsheet'!AO34)) -> 1.463343109 | AE22: =IF(OR('Trust - Frontsheet'!AP34="",'Trust - Frontsheet'!AP34="-"),0,('Trust - Frontsheet'!AP34)) -> 2.032258065 | AF22: =IF(OR('Trust - Frontsheet'!AQ34="",'Trust - Frontsheet'!AQ34="-"),0,('Trust - Frontsheet'!AQ34)) -> 0 | AG22: =IF(OR('Trust - Frontsheet'!AR34="",'Trust - Frontsheet'!AR34="-"),0,('Trust - Frontsheet'!AR34)) -> 0 | AH22: =IF(OR('Trust - Frontsheet'!AS34="",'Trust - Frontsheet'!AS34="-"),0,('Trust - Frontsheet'!AS34)) -> 0 | AI22: =IF(OR('Trust - Frontsheet'!AT34="",'Trust - Frontsheet'!AT34="-"),0,('Trust - Frontsheet'!AT34)) -> 0 | AJ22: ='Trust - Frontsheet'!AC34 -> 509 | AK22: =IF(OR('Trust - Frontsheet'!AD34="",'Trust - Frontsheet'!AD34="-"),0,('Trust - Frontsheet'!AD34)) -> 3.105271775 | AL22: =IF(OR('Trust - Frontsheet'!AE34="",'Trust - Frontsheet'!AE34="-"),0,('Trust - Frontsheet'!AE34)) -> 3.103143418 | AM22: =IF(OR('Trust - Frontsheet'!AF34="",'Trust - Frontsheet'!AF34="-"),0,('Trust - Frontsheet'!AF34)) -> 0 | AN22: =IF(OR('Trust - Frontsheet'!AG34="",'Trust - Frontsheet'!AG34="-"),0,('Trust - Frontsheet'!AG34)) -> 0 | AO22: =IF(OR('Trust - Frontsheet'!AH34="",'Trust - Frontsheet'!AH34="-"),0,('Trust - Frontsheet'!AH34)) -> 0 | AP22: =IF(OR('Trust - Frontsheet'!AI34="",'Trust - Frontsheet'!AI34="-"),0,('Trust - Frontsheet'!AI34)) -> 0 | AQ22: =IF(OR('Trust - Frontsheet'!AJ34="",'Trust - Frontsheet'!AJ34="-"),0,('Trust - Frontsheet'!AJ34)) -> 6.208415193 | AR22: =IF(A22="","",(IF(ISBLANK('Trust - Frontsheet'!F9),"",'Trust - Frontsheet'!F9))) -> https://www.elft.nhs.uk/About-Us/Safer-Staffing-Levels
A23: =IF('Trust - Frontsheet'!D35=0,"",IF('Trust - Frontsheet'!D35="","",'Trust - Frontsheet'!D35)) -> RWK60 | B23: =IF(ISBLANK('Trust - Frontsheet'!E35),"",'Trust - Frontsheet'!E35) -> FORENSIC CENTRE FOR MENTAL HEALTH | C23: =IF(ISBLANK('Trust - Frontsheet'!F35),"","'" & 'Trust - Frontsheet'!F35 & "'") -> 'Morrison Ward' | D23: =IF(ISBLANK('Trust - Frontsheet'!G35),"",'Trust - Frontsheet'!G35) -> 712 - FORENSIC PSYCHIATRY | E23: =IF(ISBLANK('Trust - Frontsheet'!H35),"",'Trust - Frontsheet'!H35) ->  | F23: ='Trust - Frontsheet'!I35 -> 732 | G23: ='Trust - Frontsheet'!J35 -> 1062 | H23: ='Trust - Frontsheet'!K35 -> 720 | I23: ='Trust - Frontsheet'!L35 -> 945.5 | J23: ='Trust - Frontsheet'!M35 -> 0 | K23: ='Trust - Frontsheet'!N35 -> 0 | L23: ='Trust - Frontsheet'!O35 -> 0 | M23: ='Trust - Frontsheet'!P35 -> 0 | N23: ='Trust - Frontsheet'!Q35 -> 396 | O23: ='Trust - Frontsheet'!R35 -> 552 | P23: ='Trust - Frontsheet'!S35 -> 397 | Q23: ='Trust - Frontsheet'!T35 -> 554 | R23: ='Trust - Frontsheet'!U35 -> 0 | S23: ='Trust - Frontsheet'!V35 -> 0 | T23: ='Trust - Frontsheet'!W35 -> 0 | U23: ='Trust - Frontsheet'!X35 -> 0 | V23: ='Trust - Frontsheet'!Y35 -> 0 | W23: ='Trust - Frontsheet'!Z35 -> 0 | X23: ='Trust - Frontsheet'!AA35 -> 0 | Y23: ='Trust - Frontsheet'!AB35 -> 0 | Z23: =IF(OR('Trust - Frontsheet'!AK35="",'Trust - Frontsheet'!AK35="-"),0,('Trust - Frontsheet'!AK35)) -> 1.450819672 | AA23: =IF(OR('Trust - Frontsheet'!AL35="",'Trust - Frontsheet'!AL35="-"),0,('Trust - Frontsheet'!AL35)) -> 1.313194444 | AB23: =IF(OR('Trust - Frontsheet'!AM35="",'Trust - Frontsheet'!AM35="-"),0,('Trust - Frontsheet'!AM35)) -> 0 | AC23: =IF(OR('Trust - Frontsheet'!AN35="",'Trust - Frontsheet'!AN35="-"),0,('Trust - Frontsheet'!AN35)) -> 0 | AD23: =IF(OR('Trust - Frontsheet'!AO35="",'Trust - Frontsheet'!AO35="-"),0,('Trust - Frontsheet'!AO35)) -> 1.393939394 | AE23: =IF(OR('Trust - Frontsheet'!AP35="",'Trust - Frontsheet'!AP35="-"),0,('Trust - Frontsheet'!AP35)) -> 1.395465995 | AF23: =IF(OR('Trust - Frontsheet'!AQ35="",'Trust - Frontsheet'!AQ35="-"),0,('Trust - Frontsheet'!AQ35)) -> 0 | AG23: =IF(OR('Trust - Frontsheet'!AR35="",'Trust - Frontsheet'!AR35="-"),0,('Trust - Frontsheet'!AR35)) -> 0 | AH23: =IF(OR('Trust - Frontsheet'!AS35="",'Trust - Frontsheet'!AS35="-"),0,('Trust - Frontsheet'!AS35)) -> 0 | AI23: =IF(OR('Trust - Frontsheet'!AT35="",'Trust - Frontsheet'!AT35="-"),0,('Trust - Frontsheet'!AT35)) -> 0 | AJ23: ='Trust - Frontsheet'!AC35 -> 496 | AK23: =IF(OR('Trust - Frontsheet'!AD35="",'Trust - Frontsheet'!AD35="-"),0,('Trust - Frontsheet'!AD35)) -> 3.254032258 | AL23: =IF(OR('Trust - Frontsheet'!AE35="",'Trust - Frontsheet'!AE35="-"),0,('Trust - Frontsheet'!AE35)) -> 3.023185484 | AM23: =IF(OR('Trust - Frontsheet'!AF35="",'Trust - Frontsheet'!AF35="-"),0,('Trust - Frontsheet'!AF35)) -> 0 | AN23: =IF(OR('Trust - Frontsheet'!AG35="",'Trust - Frontsheet'!AG35="-"),0,('Trust - Frontsheet'!AG35)) -> 0 | AO23: =IF(OR('Trust - Frontsheet'!AH35="",'Trust - Frontsheet'!AH35="-"),0,('Trust - Frontsheet'!AH35)) -> 0 | AP23: =IF(OR('Trust - Frontsheet'!AI35="",'Trust - Frontsheet'!AI35="-"),0,('Trust - Frontsheet'!AI35)) -> 0 | AQ23: =IF(OR('Trust - Frontsheet'!AJ35="",'Trust - Frontsheet'!AJ35="-"),0,('Trust - Frontsheet'!AJ35)) -> 6.277217742 | AR23: =IF(A23="","",(IF(ISBLANK('Trust - Frontsheet'!F9),"",'Trust - Frontsheet'!F9))) -> https://www.elft.nhs.uk/About-Us/Safer-Staffing-Levels
A24: =IF('Trust - Frontsheet'!D36=0,"",IF('Trust - Frontsheet'!D36="","",'Trust - Frontsheet'!D36)) -> RWK60 | B24: =IF(ISBLANK('Trust - Frontsheet'!E36),"",'Trust - Frontsheet'!E36) -> FORENSIC CENTRE FOR MENTAL HEALTH | C24: =IF(ISBLANK('Trust - Frontsheet'!F36),"","'" & 'Trust - Frontsheet'!F36 & "'") -> 'Shoreditch' | D24: =IF(ISBLANK('Trust - Frontsheet'!G36),"",'Trust - Frontsheet'!G36) -> 712 - FORENSIC PSYCHIATRY | E24: =IF(ISBLANK('Trust - Frontsheet'!H36),"",'Trust - Frontsheet'!H36) -> 700 - LEARNING DISABILITY | F24: ='Trust - Frontsheet'!I36 -> 744.5 | G24: ='Trust - Frontsheet'!J36 -> 1482.5 | H24: ='Trust - Frontsheet'!K36 -> 1116.5 | I24: ='Trust - Frontsheet'!L36 -> 1627 | J24: ='Trust - Frontsheet'!M36 -> 0 | K24: ='Trust - Frontsheet'!N36 -> 0 | L24: ='Trust - Frontsheet'!O36 -> 0 | M24: ='Trust - Frontsheet'!P36 -> 0 | N24: ='Trust - Frontsheet'!Q36 -> 341 | O24: ='Trust - Frontsheet'!R36 -> 1012.5 | P24: ='Trust - Frontsheet'!S36 -> 660 | Q24: ='Trust - Frontsheet'!T36 -> 1396 | R24: ='Trust - Frontsheet'!U36 -> 0 | S24: ='Trust - Frontsheet'!V36 -> 0 | T24: ='Trust - Frontsheet'!W36 -> 0 | U24: ='Trust - Frontsheet'!X36 -> 0 | V24: ='Trust - Frontsheet'!Y36 -> 0 | W24: ='Trust - Frontsheet'!Z36 -> 0 | X24: ='Trust - Frontsheet'!AA36 -> 0 | Y24: ='Trust - Frontsheet'!AB36 -> 0 | Z24: =IF(OR('Trust - Frontsheet'!AK36="",'Trust - Frontsheet'!AK36="-"),0,('Trust - Frontsheet'!AK36)) -> 1.991269308 | AA24: =IF(OR('Trust - Frontsheet'!AL36="",'Trust - Frontsheet'!AL36="-"),0,('Trust - Frontsheet'!AL36)) -> 1.457232423 | AB24: =IF(OR('Trust - Frontsheet'!AM36="",'Trust - Frontsheet'!AM36="-"),0,('Trust - Frontsheet'!AM36)) -> 0 | AC24: =IF(OR('Trust - Frontsheet'!AN36="",'Trust - Frontsheet'!AN36="-"),0,('Trust - Frontsheet'!AN36)) -> 0 | AD24: =IF(OR('Trust - Frontsheet'!AO36="",'Trust - Frontsheet'!AO36="-"),0,('Trust - Frontsheet'!AO36)) -> 2.969208211 | AE24: =IF(OR('Trust - Frontsheet'!AP36="",'Trust - Frontsheet'!AP36="-"),0,('Trust - Frontsheet'!AP36)) -> 2.115151515 | AF24: =IF(OR('Trust - Frontsheet'!AQ36="",'Trust - Frontsheet'!AQ36="-"),0,('Trust - Frontsheet'!AQ36)) -> 0 | AG24: =IF(OR('Trust - Frontsheet'!AR36="",'Trust - Frontsheet'!AR36="-"),0,('Trust - Frontsheet'!AR36)) -> 0 | AH24: =IF(OR('Trust - Frontsheet'!AS36="",'Trust - Frontsheet'!AS36="-"),0,('Trust - Frontsheet'!AS36)) -> 0 | AI24: =IF(OR('Trust - Frontsheet'!AT36="",'Trust - Frontsheet'!AT36="-"),0,('Trust - Frontsheet'!AT36)) -> 0 | AJ24: ='Trust - Frontsheet'!AC36 -> 367 | AK24: =IF(OR('Trust - Frontsheet'!AD36="",'Trust - Frontsheet'!AD36="-"),0,('Trust - Frontsheet'!AD36)) -> 6.798365123 | AL24: =IF(OR('Trust - Frontsheet'!AE36="",'Trust - Frontsheet'!AE36="-"),0,('Trust - Frontsheet'!AE36)) -> 8.237057221 | AM24: =IF(OR('Trust - Frontsheet'!AF36="",'Trust - Frontsheet'!AF36="-"),0,('Trust - Frontsheet'!AF36)) -> 0 | AN24: =IF(OR('Trust - Frontsheet'!AG36="",'Trust - Frontsheet'!AG36="-"),0,('Trust - Frontsheet'!AG36)) -> 0 | AO24: =IF(OR('Trust - Frontsheet'!AH36="",'Trust - Frontsheet'!AH36="-"),0,('Trust - Frontsheet'!AH36)) -> 0 | AP24: =IF(OR('Trust - Frontsheet'!AI36="",'Trust - Frontsheet'!AI36="-"),0,('Trust - Frontsheet'!AI36)) -> 0 | AQ24: =IF(OR('Trust - Frontsheet'!AJ36="",'Trust - Frontsheet'!AJ36="-"),0,('Trust - Frontsheet'!AJ36)) -> 15.03542234 | AR24: =IF(A24="","",(IF(ISBLANK('Trust - Frontsheet'!F9),"",'Trust - Frontsheet'!F9))) -> https://www.elft.nhs.uk/About-Us/Safer-Staffing-Levels
A25: =IF('Trust - Frontsheet'!D37=0,"",IF('Trust - Frontsheet'!D37="","",'Trust - Frontsheet'!D37)) -> RWK60 | B25: =IF(ISBLANK('Trust - Frontsheet'!E37),"",'Trust - Frontsheet'!E37) -> FORENSIC CENTRE FOR MENTAL HEALTH | C25: =IF(ISBLANK('Trust - Frontsheet'!F37),"","'" & 'Trust - Frontsheet'!F37 & "'") -> 'Victoria Ward' | D25: =IF(ISBLANK('Trust - Frontsheet'!G37),"",'Trust - Frontsheet'!G37) -> 712 - FORENSIC PSYCHIATRY | E25: =IF(ISBLANK('Trust - Frontsheet'!H37),"",'Trust - Frontsheet'!H37) ->  | F25: ='Trust - Frontsheet'!I37 -> 696 | G25: ='Trust - Frontsheet'!J37 -> 1040.583333 | H25: ='Trust - Frontsheet'!K37 -> 696 | I25: ='Trust - Frontsheet'!L37 -> 992 | J25: ='Trust - Frontsheet'!M37 -> 0 | K25: ='Trust - Frontsheet'!N37 -> 0 | L25: ='Trust - Frontsheet'!O37 -> 0 | M25: ='Trust - Frontsheet'!P37 -> 0 | N25: ='Trust - Frontsheet'!Q37 -> 341 | O25: ='Trust - Frontsheet'!R37 -> 572 | P25: ='Trust - Frontsheet'!S37 -> 330 | Q25: ='Trust - Frontsheet'!T37 -> 528 | R25: ='Trust - Frontsheet'!U37 -> 0 | S25: ='Trust - Frontsheet'!V37 -> 0 | T25: ='Trust - Frontsheet'!W37 -> 0 | U25: ='Trust - Frontsheet'!X37 -> 0 | V25: ='Trust - Frontsheet'!Y37 -> 0 | W25: ='Trust - Frontsheet'!Z37 -> 0 | X25: ='Trust - Frontsheet'!AA37 -> 0 | Y25: ='Trust - Frontsheet'!AB37 -> 0 | Z25: =IF(OR('Trust - Frontsheet'!AK37="",'Trust - Frontsheet'!AK37="-"),0,('Trust - Frontsheet'!AK37)) -> 1.495090996 | AA25: =IF(OR('Trust - Frontsheet'!AL37="",'Trust - Frontsheet'!AL37="-"),0,('Trust - Frontsheet'!AL37)) -> 1.425287356 | AB25: =IF(OR('Trust - Frontsheet'!AM37="",'Trust - Frontsheet'!AM37="-"),0,('Trust - Frontsheet'!AM37)) -> 0 | AC25: =IF(OR('Trust - Frontsheet'!AN37="",'Trust - Frontsheet'!AN37="-"),0,('Trust - Frontsheet'!AN37)) -> 0 | AD25: =IF(OR('Trust - Frontsheet'!AO37="",'Trust - Frontsheet'!AO37="-"),0,('Trust - Frontsheet'!AO37)) -> 1.677419355 | AE25: =IF(OR('Trust - Frontsheet'!AP37="",'Trust - Frontsheet'!AP37="-"),0,('Trust - Frontsheet'!AP37)) -> 1.6 | AF25: =IF(OR('Trust - Frontsheet'!AQ37="",'Trust - Frontsheet'!AQ37="-"),0,('Trust - Frontsheet'!AQ37)) -> 0 | AG25: =IF(OR('Trust - Frontsheet'!AR37="",'Trust - Frontsheet'!AR37="-"),0,('Trust - Frontsheet'!AR37)) -> 0 | AH25: =IF(OR('Trust - Frontsheet'!AS37="",'Trust - Frontsheet'!AS37="-"),0,('Trust - Frontsheet'!AS37)) -> 0 | AI25: =IF(OR('Trust - Frontsheet'!AT37="",'Trust - Frontsheet'!AT37="-"),0,('Trust - Frontsheet'!AT37)) -> 0 | AJ25: ='Trust - Frontsheet'!AC37 -> 527 | AK25: =IF(OR('Trust - Frontsheet'!AD37="",'Trust - Frontsheet'!AD37="-"),0,('Trust - Frontsheet'!AD37)) -> 3.059930424 | AL25: =IF(OR('Trust - Frontsheet'!AE37="",'Trust - Frontsheet'!AE37="-"),0,('Trust - Frontsheet'!AE37)) -> 2.884250474 | AM25: =IF(OR('Trust - Frontsheet'!AF37="",'Trust - Frontsheet'!AF37="-"),0,('Trust - Frontsheet'!AF37)) -> 0 | AN25: =IF(OR('Trust - Frontsheet'!AG37="",'Trust - Frontsheet'!AG37="-"),0,('Trust - Frontsheet'!AG37)) -> 0 | AO25: =IF(OR('Trust - Frontsheet'!AH37="",'Trust - Frontsheet'!AH37="-"),0,('Trust - Frontsheet'!AH37)) -> 0 | AP25: =IF(OR('Trust - Frontsheet'!AI37="",'Trust - Frontsheet'!AI37="-"),0,('Trust - Frontsheet'!AI37)) -> 0 | AQ25: =IF(OR('Trust - Frontsheet'!AJ37="",'Trust - Frontsheet'!AJ37="-"),0,('Trust - Frontsheet'!AJ37)) -> 5.944180898 | AR25: =IF(A25="","",(IF(ISBLANK('Trust - Frontsheet'!F9),"",'Trust - Frontsheet'!F9))) -> https://www.elft.nhs.uk/About-Us/Safer-Staffing-Levels
A26: =IF('Trust - Frontsheet'!D38=0,"",IF('Trust - Frontsheet'!D38="","",'Trust - Frontsheet'!D38)) -> RWK60 | B26: =IF(ISBLANK('Trust - Frontsheet'!E38),"",'Trust - Frontsheet'!E38) -> FORENSIC CENTRE FOR MENTAL HEALTH | C26: =IF(ISBLANK('Trust - Frontsheet'!F38),"","'" & 'Trust - Frontsheet'!F38 & "'") -> 'West Ferry' | D26: =IF(ISBLANK('Trust - Frontsheet'!G38),"",'Trust - Frontsheet'!G38) -> 712 - FORENSIC PSYCHIATRY | E26: =IF(ISBLANK('Trust - Frontsheet'!H38),"",'Trust - Frontsheet'!H38) -> 996 - PSYCHIATRIC INTENSIVE CARE UNIT | F26: ='Trust - Frontsheet'!I38 -> 912.5 | G26: ='Trust - Frontsheet'!J38 -> 1184.083333 | H26: ='Trust - Frontsheet'!K38 -> 1116 | I26: ='Trust - Frontsheet'!L38 -> 1406.5 | J26: ='Trust - Frontsheet'!M38 -> 0 | K26: ='Trust - Frontsheet'!N38 -> 0 | L26: ='Trust - Frontsheet'!O38 -> 0 | M26: ='Trust - Frontsheet'!P38 -> 0 | N26: ='Trust - Frontsheet'!Q38 -> 671 | O26: ='Trust - Frontsheet'!R38 -> 870 | P26: ='Trust - Frontsheet'!S38 -> 682 | Q26: ='Trust - Frontsheet'!T38 -> 1164.166667 | R26: ='Trust - Frontsheet'!U38 -> 0 | S26: ='Trust - Frontsheet'!V38 -> 0 | T26: ='Trust - Frontsheet'!W38 -> 0 | U26: ='Trust - Frontsheet'!X38 -> 0 | V26: ='Trust - Frontsheet'!Y38 -> 0 | W26: ='Trust - Frontsheet'!Z38 -> 0 | X26: ='Trust - Frontsheet'!AA38 -> 0 | Y26: ='Trust - Frontsheet'!AB38 -> 0 | Z26: =IF(OR('Trust - Frontsheet'!AK38="",'Trust - Frontsheet'!AK38="-"),0,('Trust - Frontsheet'!AK38)) -> 1.297625571 | AA26: =IF(OR('Trust - Frontsheet'!AL38="",'Trust - Frontsheet'!AL38="-"),0,('Trust - Frontsheet'!AL38)) -> 1.260304659 | AB26: =IF(OR('Trust - Frontsheet'!AM38="",'Trust - Frontsheet'!AM38="-"),0,('Trust - Frontsheet'!AM38)) -> 0 | AC26: =IF(OR('Trust - Frontsheet'!AN38="",'Trust - Frontsheet'!AN38="-"),0,('Trust - Frontsheet'!AN38)) -> 0 | AD26: =IF(OR('Trust - Frontsheet'!AO38="",'Trust - Frontsheet'!AO38="-"),0,('Trust - Frontsheet'!AO38)) -> 1.29657228 | AE26: =IF(OR('Trust - Frontsheet'!AP38="",'Trust - Frontsheet'!AP38="-"),0,('Trust - Frontsheet'!AP38)) -> 1.706989247 | AF26: =IF(OR('Trust - Frontsheet'!AQ38="",'Trust - Frontsheet'!AQ38="-"),0,('Trust - Frontsheet'!AQ38)) -> 0 | AG26: =IF(OR('Trust - Frontsheet'!AR38="",'Trust - Frontsheet'!AR38="-"),0,('Trust - Frontsheet'!AR38)) -> 0 | AH26: =IF(OR('Trust - Frontsheet'!AS38="",'Trust - Frontsheet'!AS38="-"),0,('Trust - Frontsheet'!AS38)) -> 0 | AI26: =IF(OR('Trust - Frontsheet'!AT38="",'Trust - Frontsheet'!AT38="-"),0,('Trust - Frontsheet'!AT38)) -> 0 | AJ26: ='Trust - Frontsheet'!AC38 -> 339 | AK26: =IF(OR('Trust - Frontsheet'!AD38="",'Trust - Frontsheet'!AD38="-"),0,('Trust - Frontsheet'!AD38)) -> 6.059242871 | AL26: =IF(OR('Trust - Frontsheet'!AE38="",'Trust - Frontsheet'!AE38="-"),0,('Trust - Frontsheet'!AE38)) -> 7.583087512 | AM26: =IF(OR('Trust - Frontsheet'!AF38="",'Trust - Frontsheet'!AF38="-"),0,('Trust - Frontsheet'!AF38)) -> 0 | AN26: =IF(OR('Trust - Frontsheet'!AG38="",'Trust - Frontsheet'!AG38="-"),0,('Trust - Frontsheet'!AG38)) -> 0 | AO26: =IF(OR('Trust - Frontsheet'!AH38="",'Trust - Frontsheet'!AH38="-"),0,('Trust - Frontsheet'!AH38)) -> 0 | AP26: =IF(OR('Trust - Frontsheet'!AI38="",'Trust - Frontsheet'!AI38="-"),0,('Trust - Frontsheet'!AI38)) -> 0 | AQ26: =IF(OR('Trust - Frontsheet'!AJ38="",'Trust - Frontsheet'!AJ38="-"),0,('Trust - Frontsheet'!AJ38)) -> 13.64233038 | AR26: =IF(A26="","",(IF(ISBLANK('Trust - Frontsheet'!F9),"",'Trust - Frontsheet'!F9))) -> https://www.elft.nhs.uk/About-Us/Safer-Staffing-Levels
A27: =IF('Trust - Frontsheet'!D39=0,"",IF('Trust - Frontsheet'!D39="","",'Trust - Frontsheet'!D39)) -> RWK60 | B27: =IF(ISBLANK('Trust - Frontsheet'!E39),"",'Trust - Frontsheet'!E39) -> FORENSIC CENTRE FOR MENTAL HEALTH | C27: =IF(ISBLANK('Trust - Frontsheet'!F39),"","'" & 'Trust - Frontsheet'!F39 & "'") -> 'Woodberry Ward' | D27: =IF(ISBLANK('Trust - Frontsheet'!G39),"",'Trust - Frontsheet'!G39) -> 712 - FORENSIC PSYCHIATRY | E27: =IF(ISBLANK('Trust - Frontsheet'!H39),"",'Trust - Frontsheet'!H39) ->  | F27: ='Trust - Frontsheet'!I39 -> 720 | G27: ='Trust - Frontsheet'!J39 -> 895.5 | H27: ='Trust - Frontsheet'!K39 -> 744 | I27: ='Trust - Frontsheet'!L39 -> 921.25 | J27: ='Trust - Frontsheet'!M39 -> 0 | K27: ='Trust - Frontsheet'!N39 -> 0 | L27: ='Trust - Frontsheet'!O39 -> 0 | M27: ='Trust - Frontsheet'!P39 -> 0 | N27: ='Trust - Frontsheet'!Q39 -> 341 | O27: ='Trust - Frontsheet'!R39 -> 466 | P27: ='Trust - Frontsheet'!S39 -> 341 | Q27: ='Trust - Frontsheet'!T39 -> 583 | R27: ='Trust - Frontsheet'!U39 -> 0 | S27: ='Trust - Frontsheet'!V39 -> 0 | T27: ='Trust - Frontsheet'!W39 -> 0 | U27: ='Trust - Frontsheet'!X39 -> 0 | V27: ='Trust - Frontsheet'!Y39 -> 0 | W27: ='Trust - Frontsheet'!Z39 -> 0 | X27: ='Trust - Frontsheet'!AA39 -> 0 | Y27: ='Trust - Frontsheet'!AB39 -> 0 | Z27: =IF(OR('Trust - Frontsheet'!AK39="",'Trust - Frontsheet'!AK39="-"),0,('Trust - Frontsheet'!AK39)) -> 1.24375 | AA27: =IF(OR('Trust - Frontsheet'!AL39="",'Trust - Frontsheet'!AL39="-"),0,('Trust - Frontsheet'!AL39)) -> 1.238239247 | AB27: =IF(OR('Trust - Frontsheet'!AM39="",'Trust - Frontsheet'!AM39="-"),0,('Trust - Frontsheet'!AM39)) -> 0 | AC27: =IF(OR('Trust - Frontsheet'!AN39="",'Trust - Frontsheet'!AN39="-"),0,('Trust - Frontsheet'!AN39)) -> 0 | AD27: =IF(OR('Trust - Frontsheet'!AO39="",'Trust - Frontsheet'!AO39="-"),0,('Trust - Frontsheet'!AO39)) -> 1.366568915 | AE27: =IF(OR('Trust - Frontsheet'!AP39="",'Trust - Frontsheet'!AP39="-"),0,('Trust - Frontsheet'!AP39)) -> 1.709677419 | AF27: =IF(OR('Trust - Frontsheet'!AQ39="",'Trust - Frontsheet'!AQ39="-"),0,('Trust - Frontsheet'!AQ39)) -> 0 | AG27: =IF(OR('Trust - Frontsheet'!AR39="",'Trust - Frontsheet'!AR39="-"),0,('Trust - Frontsheet'!AR39)) -> 0 | AH27: =IF(OR('Trust - Frontsheet'!AS39="",'Trust - Frontsheet'!AS39="-"),0,('Trust - Frontsheet'!AS39)) -> 0 | AI27: =IF(OR('Trust - Frontsheet'!AT39="",'Trust - Frontsheet'!AT39="-"),0,('Trust - Frontsheet'!AT39)) -> 0 | AJ27: ='Trust - Frontsheet'!AC39 -> 341 | AK27: =IF(OR('Trust - Frontsheet'!AD39="",'Trust - Frontsheet'!AD39="-"),0,('Trust - Frontsheet'!AD39)) -> 3.992668622 | AL27: =IF(OR('Trust - Frontsheet'!AE39="",'Trust - Frontsheet'!AE39="-"),0,('Trust - Frontsheet'!AE39)) -> 4.411290323 | AM27: =IF(OR('Trust - Frontsheet'!AF39="",'Trust - Frontsheet'!AF39="-"),0,('Trust - Frontsheet'!AF39)) -> 0 | AN27: =IF(OR('Trust - Frontsheet'!AG39="",'Trust - Frontsheet'!AG39="-"),0,('Trust - Frontsheet'!AG39)) -> 0 | AO27: =IF(OR('Trust - Frontsheet'!AH39="",'Trust - Frontsheet'!AH39="-"),0,('Trust - Frontsheet'!AH39)) -> 0 | AP27: =IF(OR('Trust - Frontsheet'!AI39="",'Trust - Frontsheet'!AI39="-"),0,('Trust - Frontsheet'!AI39)) -> 0 | AQ27: =IF(OR('Trust - Frontsheet'!AJ39="",'Trust - Frontsheet'!AJ39="-"),0,('Trust - Frontsheet'!AJ39)) -> 8.403958944 | AR27: =IF(A27="","",(IF(ISBLANK('Trust - Frontsheet'!F9),"",'Trust - Frontsheet'!F9))) -> https://www.elft.nhs.uk/About-Us/Safer-Staffing-Levels
A28: =IF('Trust - Frontsheet'!D40=0,"",IF('Trust - Frontsheet'!D40="","",'Trust - Frontsheet'!D40)) -> RWK62 | B28: =IF(ISBLANK('Trust - Frontsheet'!E40),"",'Trust - Frontsheet'!E40) -> CITY AND HACKNEY CENTRE FOR MENTAL HEALTH | C28: =IF(ISBLANK('Trust - Frontsheet'!F40),"","'" & 'Trust - Frontsheet'!F40 & "'") -> 'Bevan Ward' | D28: =IF(ISBLANK('Trust - Frontsheet'!G40),"",'Trust - Frontsheet'!G40) -> 996 - PSYCHIATRIC INTENSIVE CARE UNIT | E28: =IF(ISBLANK('Trust - Frontsheet'!H40),"",'Trust - Frontsheet'!H40) ->  | F28: ='Trust - Frontsheet'!I40 -> 1206.5 | G28: ='Trust - Frontsheet'!J40 -> 1314.5 | H28: ='Trust - Frontsheet'!K40 -> 697.75 | I28: ='Trust - Frontsheet'!L40 -> 831.5 | J28: ='Trust - Frontsheet'!M40 -> 0 | K28: ='Trust - Frontsheet'!N40 -> 0 | L28: ='Trust - Frontsheet'!O40 -> 0 | M28: ='Trust - Frontsheet'!P40 -> 0 | N28: ='Trust - Frontsheet'!Q40 -> 701.5 | O28: ='Trust - Frontsheet'!R40 -> 697.5 | P28: ='Trust - Frontsheet'!S40 -> 713 | Q28: ='Trust - Frontsheet'!T40 -> 977.5 | R28: ='Trust - Frontsheet'!U40 -> 0 | S28: ='Trust - Frontsheet'!V40 -> 0 | T28: ='Trust - Frontsheet'!W40 -> 0 | U28: ='Trust - Frontsheet'!X40 -> 0 | V28: ='Trust - Frontsheet'!Y40 -> 0 | W28: ='Trust - Frontsheet'!Z40 -> 0 | X28: ='Trust - Frontsheet'!AA40 -> 0 | Y28: ='Trust - Frontsheet'!AB40 -> 0 | Z28: =IF(OR('Trust - Frontsheet'!AK40="",'Trust - Frontsheet'!AK40="-"),0,('Trust - Frontsheet'!AK40)) -> 1.089515126 | AA28: =IF(OR('Trust - Frontsheet'!AL40="",'Trust - Frontsheet'!AL40="-"),0,('Trust - Frontsheet'!AL40)) -> 1.191687567 | AB28: =IF(OR('Trust - Frontsheet'!AM40="",'Trust - Frontsheet'!AM40="-"),0,('Trust - Frontsheet'!AM40)) -> 0 | AC28: =IF(OR('Trust - Frontsheet'!AN40="",'Trust - Frontsheet'!AN40="-"),0,('Trust - Frontsheet'!AN40)) -> 0 | AD28: =IF(OR('Trust - Frontsheet'!AO40="",'Trust - Frontsheet'!AO40="-"),0,('Trust - Frontsheet'!AO40)) -> 0.994297933 | AE28: =IF(OR('Trust - Frontsheet'!AP40="",'Trust - Frontsheet'!AP40="-"),0,('Trust - Frontsheet'!AP40)) -> 1.370967742 | AF28: =IF(OR('Trust - Frontsheet'!AQ40="",'Trust - Frontsheet'!AQ40="-"),0,('Trust - Frontsheet'!AQ40)) -> 0 | AG28: =IF(OR('Trust - Frontsheet'!AR40="",'Trust - Frontsheet'!AR40="-"),0,('Trust - Frontsheet'!AR40)) -> 0 | AH28: =IF(OR('Trust - Frontsheet'!AS40="",'Trust - Frontsheet'!AS40="-"),0,('Trust - Frontsheet'!AS40)) -> 0 | AI28: =IF(OR('Trust - Frontsheet'!AT40="",'Trust - Frontsheet'!AT40="-"),0,('Trust - Frontsheet'!AT40)) -> 0 | AJ28: ='Trust - Frontsheet'!AC40 -> 318 | AK28: =IF(OR('Trust - Frontsheet'!AD40="",'Trust - Frontsheet'!AD40="-"),0,('Trust - Frontsheet'!AD40)) -> 6.327044025 | AL28: =IF(OR('Trust - Frontsheet'!AE40="",'Trust - Frontsheet'!AE40="-"),0,('Trust - Frontsheet'!AE40)) -> 5.688679245 | AM28: =IF(OR('Trust - Frontsheet'!AF40="",'Trust - Frontsheet'!AF40="-"),0,('Trust - Frontsheet'!AF40)) -> 0 | AN28: =IF(OR('Trust - Frontsheet'!AG40="",'Trust - Frontsheet'!AG40="-"),0,('Trust - Frontsheet'!AG40)) -> 0 | AO28: =IF(OR('Trust - Frontsheet'!AH40="",'Trust - Frontsheet'!AH40="-"),0,('Trust - Frontsheet'!AH40)) -> 0 | AP28: =IF(OR('Trust - Frontsheet'!AI40="",'Trust - Frontsheet'!AI40="-"),0,('Trust - Frontsheet'!AI40)) -> 0 | AQ28: =IF(OR('Trust - Frontsheet'!AJ40="",'Trust - Frontsheet'!AJ40="-"),0,('Trust - Frontsheet'!AJ40)) -> 12.01572327 | AR28: =IF(A28="","",(IF(ISBLANK('Trust - Frontsheet'!F9),"",'Trust - Frontsheet'!F9))) -> https://www.elft.nhs.uk/About-Us/Safer-Staffing-Levels
A29: =IF('Trust - Frontsheet'!D41=0,"",IF('Trust - Frontsheet'!D41="","",'Trust - Frontsheet'!D41)) -> RWK62 | B29: =IF(ISBLANK('Trust - Frontsheet'!E41),"",'Trust - Frontsheet'!E41) -> CITY AND HACKNEY CENTRE FOR MENTAL HEALTH | C29: =IF(ISBLANK('Trust - Frontsheet'!F41),"","'" & 'Trust - Frontsheet'!F41 & "'") -> 'Brett Ward' | D29: =IF(ISBLANK('Trust - Frontsheet'!G41),"",'Trust - Frontsheet'!G41) -> 710 - ADULT MENTAL ILLNESS | E29: =IF(ISBLANK('Trust - Frontsheet'!H41),"",'Trust - Frontsheet'!H41) ->  | F29: ='Trust - Frontsheet'!I41 -> 706.5 | G29: ='Trust - Frontsheet'!J41 -> 763.5 | H29: ='Trust - Frontsheet'!K41 -> 898 | I29: ='Trust - Frontsheet'!L41 -> 1337.25 | J29: ='Trust - Frontsheet'!M41 -> 57.5 | K29: ='Trust - Frontsheet'!N41 -> 57.5 | L29: ='Trust - Frontsheet'!O41 -> 0 | M29: ='Trust - Frontsheet'!P41 -> 0 | N29: ='Trust - Frontsheet'!Q41 -> 713 | O29: ='Trust - Frontsheet'!R41 -> 652 | P29: ='Trust - Frontsheet'!S41 -> 356.5 | Q29: ='Trust - Frontsheet'!T41 -> 619.8333333 | R29: ='Trust - Frontsheet'!U41 -> 0 | S29: ='Trust - Frontsheet'!V41 -> 0 | T29: ='Trust - Frontsheet'!W41 -> 0 | U29: ='Trust - Frontsheet'!X41 -> 0 | V29: ='Trust - Frontsheet'!Y41 -> 0 | W29: ='Trust - Frontsheet'!Z41 -> 0 | X29: ='Trust - Frontsheet'!AA41 -> 0 | Y29: ='Trust - Frontsheet'!AB41 -> 0 | Z29: =IF(OR('Trust - Frontsheet'!AK41="",'Trust - Frontsheet'!AK41="-"),0,('Trust - Frontsheet'!AK41)) -> 1.080679406 | AA29: =IF(OR('Trust - Frontsheet'!AL41="",'Trust - Frontsheet'!AL41="-"),0,('Trust - Frontsheet'!AL41)) -> 1.489142539 | AB29: =IF(OR('Trust - Frontsheet'!AM41="",'Trust - Frontsheet'!AM41="-"),0,('Trust - Frontsheet'!AM41)) -> 1 | AC29: =IF(OR('Trust - Frontsheet'!AN41="",'Trust - Frontsheet'!AN41="-"),0,('Trust - Frontsheet'!AN41)) -> 0 | AD29: =IF(OR('Trust - Frontsheet'!AO41="",'Trust - Frontsheet'!AO41="-"),0,('Trust - Frontsheet'!AO41)) -> 0.9144460028 | AE29: =IF(OR('Trust - Frontsheet'!AP41="",'Trust - Frontsheet'!AP41="-"),0,('Trust - Frontsheet'!AP41)) -> 1.738662927 | AF29: =IF(OR('Trust - Frontsheet'!AQ41="",'Trust - Frontsheet'!AQ41="-"),0,('Trust - Frontsheet'!AQ41)) -> 0 | AG29: =IF(OR('Trust - Frontsheet'!AR41="",'Trust - Frontsheet'!AR41="-"),0,('Trust - Frontsheet'!AR41)) -> 0 | AH29: =IF(OR('Trust - Frontsheet'!AS41="",'Trust - Frontsheet'!AS41="-"),0,('Trust - Frontsheet'!AS41)) -> 0 | AI29: =IF(OR('Trust - Frontsheet'!AT41="",'Trust - Frontsheet'!AT41="-"),0,('Trust - Frontsheet'!AT41)) -> 0 | AJ29: ='Trust - Frontsheet'!AC41 -> 568 | AK29: =IF(OR('Trust - Frontsheet'!AD41="",'Trust - Frontsheet'!AD41="-"),0,('Trust - Frontsheet'!AD41)) -> 2.492077465 | AL29: =IF(OR('Trust - Frontsheet'!AE41="",'Trust - Frontsheet'!AE41="-"),0,('Trust - Frontsheet'!AE41)) -> 3.445569249 | AM29: =IF(OR('Trust - Frontsheet'!AF41="",'Trust - Frontsheet'!AF41="-"),0,('Trust - Frontsheet'!AF41)) -> 0.1012323944 | AN29: =IF(OR('Trust - Frontsheet'!AG41="",'Trust - Frontsheet'!AG41="-"),0,('Trust - Frontsheet'!AG41)) -> 0 | AO29: =IF(OR('Trust - Frontsheet'!AH41="",'Trust - Frontsheet'!AH41="-"),0,('Trust - Frontsheet'!AH41)) -> 0 | AP29: =IF(OR('Trust - Frontsheet'!AI41="",'Trust - Frontsheet'!AI41="-"),0,('Trust - Frontsheet'!AI41)) -> 0 | AQ29: =IF(OR('Trust - Frontsheet'!AJ41="",'Trust - Frontsheet'!AJ41="-"),0,('Trust - Frontsheet'!AJ41)) -> 6.038879108 | AR29: =IF(A29="","",(IF(ISBLANK('Trust - Frontsheet'!F9),"",'Trust - Frontsheet'!F9))) -> https://www.elft.nhs.uk/About-Us/Safer-Staffing-Levels
A30: =IF('Trust - Frontsheet'!D42=0,"",IF('Trust - Frontsheet'!D42="","",'Trust - Frontsheet'!D42)) -> RWK62 | B30: =IF(ISBLANK('Trust - Frontsheet'!E42),"",'Trust - Frontsheet'!E42) -> CITY AND HACKNEY CENTRE FOR MENTAL HEALTH | C30: =IF(ISBLANK('Trust - Frontsheet'!F42),"","'" & 'Trust - Frontsheet'!F42 & "'") -> 'Conolly Ward' | D30: =IF(ISBLANK('Trust - Frontsheet'!G42),"",'Trust - Frontsheet'!G42) -> 710 - ADULT MENTAL ILLNESS | E30: =IF(ISBLANK('Trust - Frontsheet'!H42),"",'Trust - Frontsheet'!H42) ->  | F30: ='Trust - Frontsheet'!I42 -> 697 | G30: ='Trust - Frontsheet'!J42 -> 784.5 | H30: ='Trust - Frontsheet'!K42 -> 710.5 | I30: ='Trust - Frontsheet'!L42 -> 994.5 | J30: ='Trust - Frontsheet'!M42 -> 0 | K30: ='Trust - Frontsheet'!N42 -> 0 | L30: ='Trust - Frontsheet'!O42 -> 0 | M30: ='Trust - Frontsheet'!P42 -> 0 | N30: ='Trust - Frontsheet'!Q42 -> 678.5 | O30: ='Trust - Frontsheet'!R42 -> 713 | P30: ='Trust - Frontsheet'!S42 -> 356.5 | Q30: ='Trust - Frontsheet'!T42 -> 622 | R30: ='Trust - Frontsheet'!U42 -> 0 | S30: ='Trust - Frontsheet'!V42 -> 0 | T30: ='Trust - Frontsheet'!W42 -> 0 | U30: ='Trust - Frontsheet'!X42 -> 0 | V30: ='Trust - Frontsheet'!Y42 -> 0 | W30: ='Trust - Frontsheet'!Z42 -> 0 | X30: ='Trust - Frontsheet'!AA42 -> 0 | Y30: ='Trust - Frontsheet'!AB42 -> 0 | Z30: =IF(OR('Trust - Frontsheet'!AK42="",'Trust - Frontsheet'!AK42="-"),0,('Trust - Frontsheet'!AK42)) -> 1.12553802 | AA30: =IF(OR('Trust - Frontsheet'!AL42="",'Trust - Frontsheet'!AL42="-"),0,('Trust - Frontsheet'!AL42)) -> 1.399718508 | AB30: =IF(OR('Trust - Frontsheet'!AM42="",'Trust - Frontsheet'!AM42="-"),0,('Trust - Frontsheet'!AM42)) -> 0 | AC30: =IF(OR('Trust - Frontsheet'!AN42="",'Trust - Frontsheet'!AN42="-"),0,('Trust - Frontsheet'!AN42)) -> 0 | AD30: =IF(OR('Trust - Frontsheet'!AO42="",'Trust - Frontsheet'!AO42="-"),0,('Trust - Frontsheet'!AO42)) -> 1.050847458 | AE30: =IF(OR('Trust - Frontsheet'!AP42="",'Trust - Frontsheet'!AP42="-"),0,('Trust - Frontsheet'!AP42)) -> 1.744740533 | AF30: =IF(OR('Trust - Frontsheet'!AQ42="",'Trust - Frontsheet'!AQ42="-"),0,('Trust - Frontsheet'!AQ42)) -> 0 | AG30: =IF(OR('Trust - Frontsheet'!AR42="",'Trust - Frontsheet'!AR42="-"),0,('Trust - Frontsheet'!AR42)) -> 0 | AH30: =IF(OR('Trust - Frontsheet'!AS42="",'Trust - Frontsheet'!AS42="-"),0,('Trust - Frontsheet'!AS42)) -> 0 | AI30: =IF(OR('Trust - Frontsheet'!AT42="",'Trust - Frontsheet'!AT42="-"),0,('Trust - Frontsheet'!AT42)) -> 0 | AJ30: ='Trust - Frontsheet'!AC42 -> 464 | AK30: =IF(OR('Trust - Frontsheet'!AD42="",'Trust - Frontsheet'!AD42="-"),0,('Trust - Frontsheet'!AD42)) -> 3.22737069 | AL30: =IF(OR('Trust - Frontsheet'!AE42="",'Trust - Frontsheet'!AE42="-"),0,('Trust - Frontsheet'!AE42)) -> 3.483836207 | AM30: =IF(OR('Trust - Frontsheet'!AF42="",'Trust - Frontsheet'!AF42="-"),0,('Trust - Frontsheet'!AF42)) -> 0 | AN30: =IF(OR('Trust - Frontsheet'!AG42="",'Trust - Frontsheet'!AG42="-"),0,('Trust - Frontsheet'!AG42)) -> 0 | AO30: =IF(OR('Trust - Frontsheet'!AH42="",'Trust - Frontsheet'!AH42="-"),0,('Trust - Frontsheet'!AH42)) -> 0 | AP30: =IF(OR('Trust - Frontsheet'!AI42="",'Trust - Frontsheet'!AI42="-"),0,('Trust - Frontsheet'!AI42)) -> 0 | AQ30: =IF(OR('Trust - Frontsheet'!AJ42="",'Trust - Frontsheet'!AJ42="-"),0,('Trust - Frontsheet'!AJ42)) -> 6.711206897 | AR30: =IF(A30="","",(IF(ISBLANK('Trust - Frontsheet'!F9),"",'Trust - Frontsheet'!F9))) -> https://www.elft.nhs.uk/About-Us/Safer-Staffing-Levels
A31: =IF('Trust - Frontsheet'!D43=0,"",IF('Trust - Frontsheet'!D43="","",'Trust - Frontsheet'!D43)) -> RWK62 | B31: =IF(ISBLANK('Trust - Frontsheet'!E43),"",'Trust - Frontsheet'!E43) -> CITY AND HACKNEY CENTRE FOR MENTAL HEALTH | C31: =IF(ISBLANK('Trust - Frontsheet'!F43),"","'" & 'Trust - Frontsheet'!F43 & "'") -> 'Gardner Ward' | D31: =IF(ISBLANK('Trust - Frontsheet'!G43),"",'Trust - Frontsheet'!G43) -> 710 - ADULT MENTAL ILLNESS | E31: =IF(ISBLANK('Trust - Frontsheet'!H43),"",'Trust - Frontsheet'!H43) ->  | F31: ='Trust - Frontsheet'!I43 -> 701.5 | G31: ='Trust - Frontsheet'!J43 -> 799.5 | H31: ='Trust - Frontsheet'!K43 -> 713 | I31: ='Trust - Frontsheet'!L43 -> 870 | J31: ='Trust - Frontsheet'!M43 -> 0 | K31: ='Trust - Frontsheet'!N43 -> 0 | L31: ='Trust - Frontsheet'!O43 -> 0 | M31: ='Trust - Frontsheet'!P43 -> 0 | N31: ='Trust - Frontsheet'!Q43 -> 713 | O31: ='Trust - Frontsheet'!R43 -> 701.5 | P31: ='Trust - Frontsheet'!S43 -> 345 | Q31: ='Trust - Frontsheet'!T43 -> 460 | R31: ='Trust - Frontsheet'!U43 -> 0 | S31: ='Trust - Frontsheet'!V43 -> 0 | T31: ='Trust - Frontsheet'!W43 -> 0 | U31: ='Trust - Frontsheet'!X43 -> 0 | V31: ='Trust - Frontsheet'!Y43 -> 0 | W31: ='Trust - Frontsheet'!Z43 -> 0 | X31: ='Trust - Frontsheet'!AA43 -> 0 | Y31: ='Trust - Frontsheet'!AB43 -> 0 | Z31: =IF(OR('Trust - Frontsheet'!AK43="",'Trust - Frontsheet'!AK43="-"),0,('Trust - Frontsheet'!AK43)) -> 1.139700641 | AA31: =IF(OR('Trust - Frontsheet'!AL43="",'Trust - Frontsheet'!AL43="-"),0,('Trust - Frontsheet'!AL43)) -> 1.220196353 | AB31: =IF(OR('Trust - Frontsheet'!AM43="",'Trust - Frontsheet'!AM43="-"),0,('Trust - Frontsheet'!AM43)) -> 0 | AC31: =IF(OR('Trust - Frontsheet'!AN43="",'Trust - Frontsheet'!AN43="-"),0,('Trust - Frontsheet'!AN43)) -> 0 | AD31: =IF(OR('Trust - Frontsheet'!AO43="",'Trust - Frontsheet'!AO43="-"),0,('Trust - Frontsheet'!AO43)) -> 0.9838709677 | AE31: =IF(OR('Trust - Frontsheet'!AP43="",'Trust - Frontsheet'!AP43="-"),0,('Trust - Frontsheet'!AP43)) -> 1.333333333 | AF31: =IF(OR('Trust - Frontsheet'!AQ43="",'Trust - Frontsheet'!AQ43="-"),0,('Trust - Frontsheet'!AQ43)) -> 0 | AG31: =IF(OR('Trust - Frontsheet'!AR43="",'Trust - Frontsheet'!AR43="-"),0,('Trust - Frontsheet'!AR43)) -> 0 | AH31: =IF(OR('Trust - Frontsheet'!AS43="",'Trust - Frontsheet'!AS43="-"),0,('Trust - Frontsheet'!AS43)) -> 0 | AI31: =IF(OR('Trust - Frontsheet'!AT43="",'Trust - Frontsheet'!AT43="-"),0,('Trust - Frontsheet'!AT43)) -> 0 | AJ31: ='Trust - Frontsheet'!AC43 -> 518 | AK31: =IF(OR('Trust - Frontsheet'!AD43="",'Trust - Frontsheet'!AD43="-"),0,('Trust - Frontsheet'!AD43)) -> 2.897683398 | AL31: =IF(OR('Trust - Frontsheet'!AE43="",'Trust - Frontsheet'!AE43="-"),0,('Trust - Frontsheet'!AE43)) -> 2.567567568 | AM31: =IF(OR('Trust - Frontsheet'!AF43="",'Trust - Frontsheet'!AF43="-"),0,('Trust - Frontsheet'!AF43)) -> 0 | AN31: =IF(OR('Trust - Frontsheet'!AG43="",'Trust - Frontsheet'!AG43="-"),0,('Trust - Frontsheet'!AG43)) -> 0 | AO31: =IF(OR('Trust - Frontsheet'!AH43="",'Trust - Frontsheet'!AH43="-"),0,('Trust - Frontsheet'!AH43)) -> 0 | AP31: =IF(OR('Trust - Frontsheet'!AI43="",'Trust - Frontsheet'!AI43="-"),0,('Trust - Frontsheet'!AI43)) -> 0 | AQ31: =IF(OR('Trust - Frontsheet'!AJ43="",'Trust - Frontsheet'!AJ43="-"),0,('Trust - Frontsheet'!AJ43)) -> 5.465250965 | AR31: =IF(A31="","",(IF(ISBLANK('Trust - Frontsheet'!F9),"",'Trust - Frontsheet'!F9))) -> https://www.elft.nhs.uk/About-Us/Safer-Staffing-Levels
A32: =IF('Trust - Frontsheet'!D44=0,"",IF('Trust - Frontsheet'!D44="","",'Trust - Frontsheet'!D44)) -> RWK62 | B32: =IF(ISBLANK('Trust - Frontsheet'!E44),"",'Trust - Frontsheet'!E44) -> CITY AND HACKNEY CENTRE FOR MENTAL HEALTH | C32: =IF(ISBLANK('Trust - Frontsheet'!F44),"","'" & 'Trust - Frontsheet'!F44 & "'") -> 'Joshua Ward' | D32: =IF(ISBLANK('Trust - Frontsheet'!G44),"",'Trust - Frontsheet'!G44) -> 710 - ADULT MENTAL ILLNESS | E32: =IF(ISBLANK('Trust - Frontsheet'!H44),"",'Trust - Frontsheet'!H44) ->  | F32: ='Trust - Frontsheet'!I44 -> 708.5 | G32: ='Trust - Frontsheet'!J44 -> 791 | H32: ='Trust - Frontsheet'!K44 -> 661 | I32: ='Trust - Frontsheet'!L44 -> 1091.5 | J32: ='Trust - Frontsheet'!M44 -> 0 | K32: ='Trust - Frontsheet'!N44 -> 0 | L32: ='Trust - Frontsheet'!O44 -> 0 | M32: ='Trust - Frontsheet'!P44 -> 0 | N32: ='Trust - Frontsheet'!Q44 -> 713 | O32: ='Trust - Frontsheet'!R44 -> 690 | P32: ='Trust - Frontsheet'!S44 -> 322 | Q32: ='Trust - Frontsheet'!T44 -> 437 | R32: ='Trust - Frontsheet'!U44 -> 0 | S32: ='Trust - Frontsheet'!V44 -> 0 | T32: ='Trust - Frontsheet'!W44 -> 0 | U32: ='Trust - Frontsheet'!X44 -> 0 | V32: ='Trust - Frontsheet'!Y44 -> 0 | W32: ='Trust - Frontsheet'!Z44 -> 0 | X32: ='Trust - Frontsheet'!AA44 -> 0 | Y32: ='Trust - Frontsheet'!AB44 -> 0 | Z32: =IF(OR('Trust - Frontsheet'!AK44="",'Trust - Frontsheet'!AK44="-"),0,('Trust - Frontsheet'!AK44)) -> 1.11644319 | AA32: =IF(OR('Trust - Frontsheet'!AL44="",'Trust - Frontsheet'!AL44="-"),0,('Trust - Frontsheet'!AL44)) -> 1.65128593 | AB32: =IF(OR('Trust - Frontsheet'!AM44="",'Trust - Frontsheet'!AM44="-"),0,('Trust - Frontsheet'!AM44)) -> 0 | AC32: =IF(OR('Trust - Frontsheet'!AN44="",'Trust - Frontsheet'!AN44="-"),0,('Trust - Frontsheet'!AN44)) -> 0 | AD32: =IF(OR('Trust - Frontsheet'!AO44="",'Trust - Frontsheet'!AO44="-"),0,('Trust - Frontsheet'!AO44)) -> 0.9677419355 | AE32: =IF(OR('Trust - Frontsheet'!AP44="",'Trust - Frontsheet'!AP44="-"),0,('Trust - Frontsheet'!AP44)) -> 1.357142857 | AF32: =IF(OR('Trust - Frontsheet'!AQ44="",'Trust - Frontsheet'!AQ44="-"),0,('Trust - Frontsheet'!AQ44)) -> 0 | AG32: =IF(OR('Trust - Frontsheet'!AR44="",'Trust - Frontsheet'!AR44="-"),0,('Trust - Frontsheet'!AR44)) -> 0 | AH32: =IF(OR('Trust - Frontsheet'!AS44="",'Trust - Frontsheet'!AS44="-"),0,('Trust - Frontsheet'!AS44)) -> 0 | AI32: =IF(OR('Trust - Frontsheet'!AT44="",'Trust - Frontsheet'!AT44="-"),0,('Trust - Frontsheet'!AT44)) -> 0 | AJ32: ='Trust - Frontsheet'!AC44 -> 576 | AK32: =IF(OR('Trust - Frontsheet'!AD44="",'Trust - Frontsheet'!AD44="-"),0,('Trust - Frontsheet'!AD44)) -> 2.571180556 | AL32: =IF(OR('Trust - Frontsheet'!AE44="",'Trust - Frontsheet'!AE44="-"),0,('Trust - Frontsheet'!AE44)) -> 2.653645833 | AM32: =IF(OR('Trust - Frontsheet'!AF44="",'Trust - Frontsheet'!AF44="-"),0,('Trust - Frontsheet'!AF44)) -> 0 | AN32: =IF(OR('Trust - Frontsheet'!AG44="",'Trust - Frontsheet'!AG44="-"),0,('Trust - Frontsheet'!AG44)) -> 0 | AO32: =IF(OR('Trust - Frontsheet'!AH44="",'Trust - Frontsheet'!AH44="-"),0,('Trust - Frontsheet'!AH44)) -> 0 | AP32: =IF(OR('Trust - Frontsheet'!AI44="",'Trust - Frontsheet'!AI44="-"),0,('Trust - Frontsheet'!AI44)) -> 0 | AQ32: =IF(OR('Trust - Frontsheet'!AJ44="",'Trust - Frontsheet'!AJ44="-"),0,('Trust - Frontsheet'!AJ44)) -> 5.224826389 | AR32: =IF(A32="","",(IF(ISBLANK('Trust - Frontsheet'!F9),"",'Trust - Frontsheet'!F9))) -> https://www.elft.nhs.uk/About-Us/Safer-Staffing-Levels
A33: =IF('Trust - Frontsheet'!D45=0,"",IF('Trust - Frontsheet'!D45="","",'Trust - Frontsheet'!D45)) -> RWK62 | B33: =IF(ISBLANK('Trust - Frontsheet'!E45),"",'Trust - Frontsheet'!E45) -> CITY AND HACKNEY CENTRE FOR MENTAL HEALTH | C33: =IF(ISBLANK('Trust - Frontsheet'!F45),"","'" & 'Trust - Frontsheet'!F45 & "'") -> 'Mother & Baby Ward ' | D33: =IF(ISBLANK('Trust - Frontsheet'!G45),"",'Trust - Frontsheet'!G45) -> 710 - ADULT MENTAL ILLNESS | E33: =IF(ISBLANK('Trust - Frontsheet'!H45),"",'Trust - Frontsheet'!H45) ->  | F33: ='Trust - Frontsheet'!I45 -> 810.5 | G33: ='Trust - Frontsheet'!J45 -> 1255 | H33: ='Trust - Frontsheet'!K45 -> 529 | I33: ='Trust - Frontsheet'!L45 -> 1144.25 | J33: ='Trust - Frontsheet'!M45 -> 0 | K33: ='Trust - Frontsheet'!N45 -> 0 | L33: ='Trust - Frontsheet'!O45 -> 0 | M33: ='Trust - Frontsheet'!P45 -> 0 | N33: ='Trust - Frontsheet'!Q45 -> 713 | O33: ='Trust - Frontsheet'!R45 -> 656 | P33: ='Trust - Frontsheet'!S45 -> 356.5 | Q33: ='Trust - Frontsheet'!T45 -> 1151.5 | R33: ='Trust - Frontsheet'!U45 -> 0 | S33: ='Trust - Frontsheet'!V45 -> 0 | T33: ='Trust - Frontsheet'!W45 -> 0 | U33: ='Trust - Frontsheet'!X45 -> 0 | V33: ='Trust - Frontsheet'!Y45 -> 0 | W33: ='Trust - Frontsheet'!Z45 -> 0 | X33: ='Trust - Frontsheet'!AA45 -> 0 | Y33: ='Trust - Frontsheet'!AB45 -> 0 | Z33: =IF(OR('Trust - Frontsheet'!AK45="",'Trust - Frontsheet'!AK45="-"),0,('Trust - Frontsheet'!AK45)) -> 1.548426897 | AA33: =IF(OR('Trust - Frontsheet'!AL45="",'Trust - Frontsheet'!AL45="-"),0,('Trust - Frontsheet'!AL45)) -> 2.163043478 | AB33: =IF(OR('Trust - Frontsheet'!AM45="",'Trust - Frontsheet'!AM45="-"),0,('Trust - Frontsheet'!AM45)) -> 0 | AC33: =IF(OR('Trust - Frontsheet'!AN45="",'Trust - Frontsheet'!AN45="-"),0,('Trust - Frontsheet'!AN45)) -> 0 | AD33: =IF(OR('Trust - Frontsheet'!AO45="",'Trust - Frontsheet'!AO45="-"),0,('Trust - Frontsheet'!AO45)) -> 0.920056101 | AE33: =IF(OR('Trust - Frontsheet'!AP45="",'Trust - Frontsheet'!AP45="-"),0,('Trust - Frontsheet'!AP45)) -> 3.230014025 | AF33: =IF(OR('Trust - Frontsheet'!AQ45="",'Trust - Frontsheet'!AQ45="-"),0,('Trust - Frontsheet'!AQ45)) -> 0 | AG33: =IF(OR('Trust - Frontsheet'!AR45="",'Trust - Frontsheet'!AR45="-"),0,('Trust - Frontsheet'!AR45)) -> 0 | AH33: =IF(OR('Trust - Frontsheet'!AS45="",'Trust - Frontsheet'!AS45="-"),0,('Trust - Frontsheet'!AS45)) -> 0 | AI33: =IF(OR('Trust - Frontsheet'!AT45="",'Trust - Frontsheet'!AT45="-"),0,('Trust - Frontsheet'!AT45)) -> 0 | AJ33: ='Trust - Frontsheet'!AC45 -> 270 | AK33: =IF(OR('Trust - Frontsheet'!AD45="",'Trust - Frontsheet'!AD45="-"),0,('Trust - Frontsheet'!AD45)) -> 7.077777778 | AL33: =IF(OR('Trust - Frontsheet'!AE45="",'Trust - Frontsheet'!AE45="-"),0,('Trust - Frontsheet'!AE45)) -> 8.502777778 | AM33: =IF(OR('Trust - Frontsheet'!AF45="",'Trust - Frontsheet'!AF45="-"),0,('Trust - Frontsheet'!AF45)) -> 0 | AN33: =IF(OR('Trust - Frontsheet'!AG45="",'Trust - Frontsheet'!AG45="-"),0,('Trust - Frontsheet'!AG45)) -> 0 | AO33: =IF(OR('Trust - Frontsheet'!AH45="",'Trust - Frontsheet'!AH45="-"),0,('Trust - Frontsheet'!AH45)) -> 0 | AP33: =IF(OR('Trust - Frontsheet'!AI45="",'Trust - Frontsheet'!AI45="-"),0,('Trust - Frontsheet'!AI45)) -> 0 | AQ33: =IF(OR('Trust - Frontsheet'!AJ45="",'Trust - Frontsheet'!AJ45="-"),0,('Trust - Frontsheet'!AJ45)) -> 15.58055556 | AR33: =IF(A33="","",(IF(ISBLANK('Trust - Frontsheet'!F9),"",'Trust - Frontsheet'!F9))) -> https://www.elft.nhs.uk/About-Us/Safer-Staffing-Levels
A34: =IF('Trust - Frontsheet'!D46=0,"",IF('Trust - Frontsheet'!D46="","",'Trust - Frontsheet'!D46)) -> RWK62 | B34: =IF(ISBLANK('Trust - Frontsheet'!E46),"",'Trust - Frontsheet'!E46) -> CITY AND HACKNEY CENTRE FOR MENTAL HEALTH | C34: =IF(ISBLANK('Trust - Frontsheet'!F46),"","'" & 'Trust - Frontsheet'!F46 & "'") -> 'Ruth Seifert Ward' | D34: =IF(ISBLANK('Trust - Frontsheet'!G46),"",'Trust - Frontsheet'!G46) -> 710 - ADULT MENTAL ILLNESS | E34: =IF(ISBLANK('Trust - Frontsheet'!H46),"",'Trust - Frontsheet'!H46) ->  | F34: ='Trust - Frontsheet'!I46 -> 818 | G34: ='Trust - Frontsheet'!J46 -> 865.5833333 | H34: ='Trust - Frontsheet'!K46 -> 713 | I34: ='Trust - Frontsheet'!L46 -> 910.5 | J34: ='Trust - Frontsheet'!M46 -> 0 | K34: ='Trust - Frontsheet'!N46 -> 0 | L34: ='Trust - Frontsheet'!O46 -> 0 | M34: ='Trust - Frontsheet'!P46 -> 0 | N34: ='Trust - Frontsheet'!Q46 -> 713 | O34: ='Trust - Frontsheet'!R46 -> 702.5 | P34: ='Trust - Frontsheet'!S46 -> 356.5 | Q34: ='Trust - Frontsheet'!T46 -> 540 | R34: ='Trust - Frontsheet'!U46 -> 0 | S34: ='Trust - Frontsheet'!V46 -> 0 | T34: ='Trust - Frontsheet'!W46 -> 0 | U34: ='Trust - Frontsheet'!X46 -> 0 | V34: ='Trust - Frontsheet'!Y46 -> 0 | W34: ='Trust - Frontsheet'!Z46 -> 0 | X34: ='Trust - Frontsheet'!AA46 -> 0 | Y34: ='Trust - Frontsheet'!AB46 -> 0 | Z34: =IF(OR('Trust - Frontsheet'!AK46="",'Trust - Frontsheet'!AK46="-"),0,('Trust - Frontsheet'!AK46)) -> 1.058170334 | AA34: =IF(OR('Trust - Frontsheet'!AL46="",'Trust - Frontsheet'!AL46="-"),0,('Trust - Frontsheet'!AL46)) -> 1.276998597 | AB34: =IF(OR('Trust - Frontsheet'!AM46="",'Trust - Frontsheet'!AM46="-"),0,('Trust - Frontsheet'!AM46)) -> 0 | AC34: =IF(OR('Trust - Frontsheet'!AN46="",'Trust - Frontsheet'!AN46="-"),0,('Trust - Frontsheet'!AN46)) -> 0 | AD34: =IF(OR('Trust - Frontsheet'!AO46="",'Trust - Frontsheet'!AO46="-"),0,('Trust - Frontsheet'!AO46)) -> 0.9852734923 | AE34: =IF(OR('Trust - Frontsheet'!AP46="",'Trust - Frontsheet'!AP46="-"),0,('Trust - Frontsheet'!AP46)) -> 1.514726508 | AF34: =IF(OR('Trust - Frontsheet'!AQ46="",'Trust - Frontsheet'!AQ46="-"),0,('Trust - Frontsheet'!AQ46)) -> 0 | AG34: =IF(OR('Trust - Frontsheet'!AR46="",'Trust - Frontsheet'!AR46="-"),0,('Trust - Frontsheet'!AR46)) -> 0 | AH34: =IF(OR('Trust - Frontsheet'!AS46="",'Trust - Frontsheet'!AS46="-"),0,('Trust - Frontsheet'!AS46)) -> 0 | AI34: =IF(OR('Trust - Frontsheet'!AT46="",'Trust - Frontsheet'!AT46="-"),0,('Trust - Frontsheet'!AT46)) -> 0 | AJ34: ='Trust - Frontsheet'!AC46 -> 461 | AK34: =IF(OR('Trust - Frontsheet'!AD46="",'Trust - Frontsheet'!AD46="-"),0,('Trust - Frontsheet'!AD46)) -> 3.401482285 | AL34: =IF(OR('Trust - Frontsheet'!AE46="",'Trust - Frontsheet'!AE46="-"),0,('Trust - Frontsheet'!AE46)) -> 3.146420824 | AM34: =IF(OR('Trust - Frontsheet'!AF46="",'Trust - Frontsheet'!AF46="-"),0,('Trust - Frontsheet'!AF46)) -> 0 | AN34: =IF(OR('Trust - Frontsheet'!AG46="",'Trust - Frontsheet'!AG46="-"),0,('Trust - Frontsheet'!AG46)) -> 0 | AO34: =IF(OR('Trust - Frontsheet'!AH46="",'Trust - Frontsheet'!AH46="-"),0,('Trust - Frontsheet'!AH46)) -> 0 | AP34: =IF(OR('Trust - Frontsheet'!AI46="",'Trust - Frontsheet'!AI46="-"),0,('Trust - Frontsheet'!AI46)) -> 0 | AQ34: =IF(OR('Trust - Frontsheet'!AJ46="",'Trust - Frontsheet'!AJ46="-"),0,('Trust - Frontsheet'!AJ46)) -> 6.547903109 | AR34: =IF(A34="","",(IF(ISBLANK('Trust - Frontsheet'!F9),"",'Trust - Frontsheet'!F9))) -> https://www.elft.nhs.uk/About-Us/Safer-Staffing-Levels
A35: =IF('Trust - Frontsheet'!D47=0,"",IF('Trust - Frontsheet'!D47="","",'Trust - Frontsheet'!D47)) -> RWK61 | B35: =IF(ISBLANK('Trust - Frontsheet'!E47),"",'Trust - Frontsheet'!E47) -> TOWER HAMLETS CENTRE FOR MENTAL HEALTH | C35: =IF(ISBLANK('Trust - Frontsheet'!F47),"","'" & 'Trust - Frontsheet'!F47 & "'") -> 'Brick Lane Ward' | D35: =IF(ISBLANK('Trust - Frontsheet'!G47),"",'Trust - Frontsheet'!G47) -> 710 - ADULT MENTAL ILLNESS | E35: =IF(ISBLANK('Trust - Frontsheet'!H47),"",'Trust - Frontsheet'!H47) ->  | F35: ='Trust - Frontsheet'!I47 -> 713 | G35: ='Trust - Frontsheet'!J47 -> 909.75 | H35: ='Trust - Frontsheet'!K47 -> 713 | I35: ='Trust - Frontsheet'!L47 -> 893 | J35: ='Trust - Frontsheet'!M47 -> 0 | K35: ='Trust - Frontsheet'!N47 -> 0 | L35: ='Trust - Frontsheet'!O47 -> 0 | M35: ='Trust - Frontsheet'!P47 -> 0 | N35: ='Trust - Frontsheet'!Q47 -> 713 | O35: ='Trust - Frontsheet'!R47 -> 644 | P35: ='Trust - Frontsheet'!S47 -> 356.5 | Q35: ='Trust - Frontsheet'!T47 -> 368 | R35: ='Trust - Frontsheet'!U47 -> 0 | S35: ='Trust - Frontsheet'!V47 -> 0 | T35: ='Trust - Frontsheet'!W47 -> 0 | U35: ='Trust - Frontsheet'!X47 -> 0 | V35: ='Trust - Frontsheet'!Y47 -> 0 | W35: ='Trust - Frontsheet'!Z47 -> 0 | X35: ='Trust - Frontsheet'!AA47 -> 0 | Y35: ='Trust - Frontsheet'!AB47 -> 0 | Z35: =IF(OR('Trust - Frontsheet'!AK47="",'Trust - Frontsheet'!AK47="-"),0,('Trust - Frontsheet'!AK47)) -> 1.275946704 | AA35: =IF(OR('Trust - Frontsheet'!AL47="",'Trust - Frontsheet'!AL47="-"),0,('Trust - Frontsheet'!AL47)) -> 1.252454418 | AB35: =IF(OR('Trust - Frontsheet'!AM47="",'Trust - Frontsheet'!AM47="-"),0,('Trust - Frontsheet'!AM47)) -> 0 | AC35: =IF(OR('Trust - Frontsheet'!AN47="",'Trust - Frontsheet'!AN47="-"),0,('Trust - Frontsheet'!AN47)) -> 0 | AD35: =IF(OR('Trust - Frontsheet'!AO47="",'Trust - Frontsheet'!AO47="-"),0,('Trust - Frontsheet'!AO47)) -> 0.9032258065 | AE35: =IF(OR('Trust - Frontsheet'!AP47="",'Trust - Frontsheet'!AP47="-"),0,('Trust - Frontsheet'!AP47)) -> 1.032258065 | AF35: =IF(OR('Trust - Frontsheet'!AQ47="",'Trust - Frontsheet'!AQ47="-"),0,('Trust - Frontsheet'!AQ47)) -> 0 | AG35: =IF(OR('Trust - Frontsheet'!AR47="",'Trust - Frontsheet'!AR47="-"),0,('Trust - Frontsheet'!AR47)) -> 0 | AH35: =IF(OR('Trust - Frontsheet'!AS47="",'Trust - Frontsheet'!AS47="-"),0,('Trust - Frontsheet'!AS47)) -> 0 | AI35: =IF(OR('Trust - Frontsheet'!AT47="",'Trust - Frontsheet'!AT47="-"),0,('Trust - Frontsheet'!AT47)) -> 0 | AJ35: ='Trust - Frontsheet'!AC47 -> 485 | AK35: =IF(OR('Trust - Frontsheet'!AD47="",'Trust - Frontsheet'!AD47="-"),0,('Trust - Frontsheet'!AD47)) -> 3.203608247 | AL35: =IF(OR('Trust - Frontsheet'!AE47="",'Trust - Frontsheet'!AE47="-"),0,('Trust - Frontsheet'!AE47)) -> 2.6 | AM35: =IF(OR('Trust - Frontsheet'!AF47="",'Trust - Frontsheet'!AF47="-"),0,('Trust - Frontsheet'!AF47)) -> 0 | AN35: =IF(OR('Trust - Frontsheet'!AG47="",'Trust - Frontsheet'!AG47="-"),0,('Trust - Frontsheet'!AG47)) -> 0 | AO35: =IF(OR('Trust - Frontsheet'!AH47="",'Trust - Frontsheet'!AH47="-"),0,('Trust - Frontsheet'!AH47)) -> 0 | AP35: =IF(OR('Trust - Frontsheet'!AI47="",'Trust - Frontsheet'!AI47="-"),0,('Trust - Frontsheet'!AI47)) -> 0 | AQ35: =IF(OR('Trust - Frontsheet'!AJ47="",'Trust - Frontsheet'!AJ47="-"),0,('Trust - Frontsheet'!AJ47)) -> 5.803608247 | AR35: =IF(A35="","",(IF(ISBLANK('Trust - Frontsheet'!F9),"",'Trust - Frontsheet'!F9))) -> https://www.elft.nhs.uk/About-Us/Safer-Staffing-Levels
A36: =IF('Trust - Frontsheet'!D48=0,"",IF('Trust - Frontsheet'!D48="","",'Trust - Frontsheet'!D48)) -> RWK61 | B36: =IF(ISBLANK('Trust - Frontsheet'!E48),"",'Trust - Frontsheet'!E48) -> TOWER HAMLETS CENTRE FOR MENTAL HEALTH | C36: =IF(ISBLANK('Trust - Frontsheet'!F48),"","'" & 'Trust - Frontsheet'!F48 & "'") -> 'Columbia Ward' | D36: =IF(ISBLANK('Trust - Frontsheet'!G48),"",'Trust - Frontsheet'!G48) -> 715 - OLD AGE PSYCHIATRY | E36: =IF(ISBLANK('Trust - Frontsheet'!H48),"",'Trust - Frontsheet'!H48) ->  | F36: ='Trust - Frontsheet'!I48 -> 647.5 | G36: ='Trust - Frontsheet'!J48 -> 1130.5 | H36: ='Trust - Frontsheet'!K48 -> 873.5 | I36: ='Trust - Frontsheet'!L48 -> 1767 | J36: ='Trust - Frontsheet'!M48 -> 0 | K36: ='Trust - Frontsheet'!N48 -> 0 | L36: ='Trust - Frontsheet'!O48 -> 0 | M36: ='Trust - Frontsheet'!P48 -> 0 | N36: ='Trust - Frontsheet'!Q48 -> 701.5 | O36: ='Trust - Frontsheet'!R48 -> 724.5 | P36: ='Trust - Frontsheet'!S48 -> 356.5 | Q36: ='Trust - Frontsheet'!T48 -> 1161.5 | R36: ='Trust - Frontsheet'!U48 -> 0 | S36: ='Trust - Frontsheet'!V48 -> 0 | T36: ='Trust - Frontsheet'!W48 -> 0 | U36: ='Trust - Frontsheet'!X48 -> 0 | V36: ='Trust - Frontsheet'!Y48 -> 0 | W36: ='Trust - Frontsheet'!Z48 -> 0 | X36: ='Trust - Frontsheet'!AA48 -> 0 | Y36: ='Trust - Frontsheet'!AB48 -> 0 | Z36: =IF(OR('Trust - Frontsheet'!AK48="",'Trust - Frontsheet'!AK48="-"),0,('Trust - Frontsheet'!AK48)) -> 1.745945946 | AA36: =IF(OR('Trust - Frontsheet'!AL48="",'Trust - Frontsheet'!AL48="-"),0,('Trust - Frontsheet'!AL48)) -> 2.022896394 | AB36: =IF(OR('Trust - Frontsheet'!AM48="",'Trust - Frontsheet'!AM48="-"),0,('Trust - Frontsheet'!AM48)) -> 0 | AC36: =IF(OR('Trust - Frontsheet'!AN48="",'Trust - Frontsheet'!AN48="-"),0,('Trust - Frontsheet'!AN48)) -> 0 | AD36: =IF(OR('Trust - Frontsheet'!AO48="",'Trust - Frontsheet'!AO48="-"),0,('Trust - Frontsheet'!AO48)) -> 1.032786885 | AE36: =IF(OR('Trust - Frontsheet'!AP48="",'Trust - Frontsheet'!AP48="-"),0,('Trust - Frontsheet'!AP48)) -> 3.258064516 | AF36: =IF(OR('Trust - Frontsheet'!AQ48="",'Trust - Frontsheet'!AQ48="-"),0,('Trust - Frontsheet'!AQ48)) -> 0 | AG36: =IF(OR('Trust - Frontsheet'!AR48="",'Trust - Frontsheet'!AR48="-"),0,('Trust - Frontsheet'!AR48)) -> 0 | AH36: =IF(OR('Trust - Frontsheet'!AS48="",'Trust - Frontsheet'!AS48="-"),0,('Trust - Frontsheet'!AS48)) -> 0 | AI36: =IF(OR('Trust - Frontsheet'!AT48="",'Trust - Frontsheet'!AT48="-"),0,('Trust - Frontsheet'!AT48)) -> 0 | AJ36: ='Trust - Frontsheet'!AC48 -> 673 | AK36: =IF(OR('Trust - Frontsheet'!AD48="",'Trust - Frontsheet'!AD48="-"),0,('Trust - Frontsheet'!AD48)) -> 2.756315007 | AL36: =IF(OR('Trust - Frontsheet'!AE48="",'Trust - Frontsheet'!AE48="-"),0,('Trust - Frontsheet'!AE48)) -> 4.35141159 | AM36: =IF(OR('Trust - Frontsheet'!AF48="",'Trust - Frontsheet'!AF48="-"),0,('Trust - Frontsheet'!AF48)) -> 0 | AN36: =IF(OR('Trust - Frontsheet'!AG48="",'Trust - Frontsheet'!AG48="-"),0,('Trust - Frontsheet'!AG48)) -> 0 | AO36: =IF(OR('Trust - Frontsheet'!AH48="",'Trust - Frontsheet'!AH48="-"),0,('Trust - Frontsheet'!AH48)) -> 0 | AP36: =IF(OR('Trust - Frontsheet'!AI48="",'Trust - Frontsheet'!AI48="-"),0,('Trust - Frontsheet'!AI48)) -> 0 | AQ36: =IF(OR('Trust - Frontsheet'!AJ48="",'Trust - Frontsheet'!AJ48="-"),0,('Trust - Frontsheet'!AJ48)) -> 7.107726597 | AR36: =IF(A36="","",(IF(ISBLANK('Trust - Frontsheet'!F9),"",'Trust - Frontsheet'!F9))) -> https://www.elft.nhs.uk/About-Us/Safer-Staffing-Levels
A37: =IF('Trust - Frontsheet'!D49=0,"",IF('Trust - Frontsheet'!D49="","",'Trust - Frontsheet'!D49)) -> RWK61 | B37: =IF(ISBLANK('Trust - Frontsheet'!E49),"",'Trust - Frontsheet'!E49) -> TOWER HAMLETS CENTRE FOR MENTAL HEALTH | C37: =IF(ISBLANK('Trust - Frontsheet'!F49),"","'" & 'Trust - Frontsheet'!F49 & "'") -> 'Globe Ward' | D37: =IF(ISBLANK('Trust - Frontsheet'!G49),"",'Trust - Frontsheet'!G49) -> 710 - ADULT MENTAL ILLNESS | E37: =IF(ISBLANK('Trust - Frontsheet'!H49),"",'Trust - Frontsheet'!H49) ->  | F37: ='Trust - Frontsheet'!I49 -> 717.5 | G37: ='Trust - Frontsheet'!J49 -> 800.5 | H37: ='Trust - Frontsheet'!K49 -> 706.25 | I37: ='Trust - Frontsheet'!L49 -> 928.25 | J37: ='Trust - Frontsheet'!M49 -> 0 | K37: ='Trust - Frontsheet'!N49 -> 0 | L37: ='Trust - Frontsheet'!O49 -> 0 | M37: ='Trust - Frontsheet'!P49 -> 0 | N37: ='Trust - Frontsheet'!Q49 -> 713 | O37: ='Trust - Frontsheet'!R49 -> 632.5 | P37: ='Trust - Frontsheet'!S49 -> 356.5 | Q37: ='Trust - Frontsheet'!T49 -> 563.5 | R37: ='Trust - Frontsheet'!U49 -> 0 | S37: ='Trust - Frontsheet'!V49 -> 0 | T37: ='Trust - Frontsheet'!W49 -> 0 | U37: ='Trust - Frontsheet'!X49 -> 0 | V37: ='Trust - Frontsheet'!Y49 -> 0 | W37: ='Trust - Frontsheet'!Z49 -> 0 | X37: ='Trust - Frontsheet'!AA49 -> 0 | Y37: ='Trust - Frontsheet'!AB49 -> 0 | Z37: =IF(OR('Trust - Frontsheet'!AK49="",'Trust - Frontsheet'!AK49="-"),0,('Trust - Frontsheet'!AK49)) -> 1.115679443 | AA37: =IF(OR('Trust - Frontsheet'!AL49="",'Trust - Frontsheet'!AL49="-"),0,('Trust - Frontsheet'!AL49)) -> 1.314336283 | AB37: =IF(OR('Trust - Frontsheet'!AM49="",'Trust - Frontsheet'!AM49="-"),0,('Trust - Frontsheet'!AM49)) -> 0 | AC37: =IF(OR('Trust - Frontsheet'!AN49="",'Trust - Frontsheet'!AN49="-"),0,('Trust - Frontsheet'!AN49)) -> 0 | AD37: =IF(OR('Trust - Frontsheet'!AO49="",'Trust - Frontsheet'!AO49="-"),0,('Trust - Frontsheet'!AO49)) -> 0.8870967742 | AE37: =IF(OR('Trust - Frontsheet'!AP49="",'Trust - Frontsheet'!AP49="-"),0,('Trust - Frontsheet'!AP49)) -> 1.580645161 | AF37: =IF(OR('Trust - Frontsheet'!AQ49="",'Trust - Frontsheet'!AQ49="-"),0,('Trust - Frontsheet'!AQ49)) -> 0 | AG37: =IF(OR('Trust - Frontsheet'!AR49="",'Trust - Frontsheet'!AR49="-"),0,('Trust - Frontsheet'!AR49)) -> 0 | AH37: =IF(OR('Trust - Frontsheet'!AS49="",'Trust - Frontsheet'!AS49="-"),0,('Trust - Frontsheet'!AS49)) -> 0 | AI37: =IF(OR('Trust - Frontsheet'!AT49="",'Trust - Frontsheet'!AT49="-"),0,('Trust - Frontsheet'!AT49)) -> 0 | AJ37: ='Trust - Frontsheet'!AC49 -> 532 | AK37: =IF(OR('Trust - Frontsheet'!AD49="",'Trust - Frontsheet'!AD49="-"),0,('Trust - Frontsheet'!AD49)) -> 2.693609023 | AL37: =IF(OR('Trust - Frontsheet'!AE49="",'Trust - Frontsheet'!AE49="-"),0,('Trust - Frontsheet'!AE49)) -> 2.804041353 | AM37: =IF(OR('Trust - Frontsheet'!AF49="",'Trust - Frontsheet'!AF49="-"),0,('Trust - Frontsheet'!AF49)) -> 0 | AN37: =IF(OR('Trust - Frontsheet'!AG49="",'Trust - Frontsheet'!AG49="-"),0,('Trust - Frontsheet'!AG49)) -> 0 | AO37: =IF(OR('Trust - Frontsheet'!AH49="",'Trust - Frontsheet'!AH49="-"),0,('Trust - Frontsheet'!AH49)) -> 0 | AP37: =IF(OR('Trust - Frontsheet'!AI49="",'Trust - Frontsheet'!AI49="-"),0,('Trust - Frontsheet'!AI49)) -> 0 | AQ37: =IF(OR('Trust - Frontsheet'!AJ49="",'Trust - Frontsheet'!AJ49="-"),0,('Trust - Frontsheet'!AJ49)) -> 5.497650376 | AR37: =IF(A37="","",(IF(ISBLANK('Trust - Frontsheet'!F9),"",'Trust - Frontsheet'!F9))) -> https://www.elft.nhs.uk/About-Us/Safer-Staffing-Levels
A38: =IF('Trust - Frontsheet'!D50=0,"",IF('Trust - Frontsheet'!D50="","",'Trust - Frontsheet'!D50)) -> RWK61 | B38: =IF(ISBLANK('Trust - Frontsheet'!E50),"",'Trust - Frontsheet'!E50) -> TOWER HAMLETS CENTRE FOR MENTAL HEALTH | C38: =IF(ISBLANK('Trust - Frontsheet'!F50),"","'" & 'Trust - Frontsheet'!F50 & "'") -> 'Lea Ward' | D38: =IF(ISBLANK('Trust - Frontsheet'!G50),"",'Trust - Frontsheet'!G50) -> 710 - ADULT MENTAL ILLNESS | E38: =IF(ISBLANK('Trust - Frontsheet'!H50),"",'Trust - Frontsheet'!H50) ->  | F38: ='Trust - Frontsheet'!I50 -> 667 | G38: ='Trust - Frontsheet'!J50 -> 897.75 | H38: ='Trust - Frontsheet'!K50 -> 678.5 | I38: ='Trust - Frontsheet'!L50 -> 988.75 | J38: ='Trust - Frontsheet'!M50 -> 0 | K38: ='Trust - Frontsheet'!N50 -> 0 | L38: ='Trust - Frontsheet'!O50 -> 0 | M38: ='Trust - Frontsheet'!P50 -> 0 | N38: ='Trust - Frontsheet'!Q50 -> 713 | O38: ='Trust - Frontsheet'!R50 -> 690 | P38: ='Trust - Frontsheet'!S50 -> 356.5 | Q38: ='Trust - Frontsheet'!T50 -> 471.5 | R38: ='Trust - Frontsheet'!U50 -> 0 | S38: ='Trust - Frontsheet'!V50 -> 0 | T38: ='Trust - Frontsheet'!W50 -> 0 | U38: ='Trust - Frontsheet'!X50 -> 0 | V38: ='Trust - Frontsheet'!Y50 -> 0 | W38: ='Trust - Frontsheet'!Z50 -> 0 | X38: ='Trust - Frontsheet'!AA50 -> 0 | Y38: ='Trust - Frontsheet'!AB50 -> 0 | Z38: =IF(OR('Trust - Frontsheet'!AK50="",'Trust - Frontsheet'!AK50="-"),0,('Trust - Frontsheet'!AK50)) -> 1.345952024 | AA38: =IF(OR('Trust - Frontsheet'!AL50="",'Trust - Frontsheet'!AL50="-"),0,('Trust - Frontsheet'!AL50)) -> 1.457258659 | AB38: =IF(OR('Trust - Frontsheet'!AM50="",'Trust - Frontsheet'!AM50="-"),0,('Trust - Frontsheet'!AM50)) -> 0 | AC38: =IF(OR('Trust - Frontsheet'!AN50="",'Trust - Frontsheet'!AN50="-"),0,('Trust - Frontsheet'!AN50)) -> 0 | AD38: =IF(OR('Trust - Frontsheet'!AO50="",'Trust - Frontsheet'!AO50="-"),0,('Trust - Frontsheet'!AO50)) -> 0.9677419355 | AE38: =IF(OR('Trust - Frontsheet'!AP50="",'Trust - Frontsheet'!AP50="-"),0,('Trust - Frontsheet'!AP50)) -> 1.322580645 | AF38: =IF(OR('Trust - Frontsheet'!AQ50="",'Trust - Frontsheet'!AQ50="-"),0,('Trust - Frontsheet'!AQ50)) -> 0 | AG38: =IF(OR('Trust - Frontsheet'!AR50="",'Trust - Frontsheet'!AR50="-"),0,('Trust - Frontsheet'!AR50)) -> 0 | AH38: =IF(OR('Trust - Frontsheet'!AS50="",'Trust - Frontsheet'!AS50="-"),0,('Trust - Frontsheet'!AS50)) -> 0 | AI38: =IF(OR('Trust - Frontsheet'!AT50="",'Trust - Frontsheet'!AT50="-"),0,('Trust - Frontsheet'!AT50)) -> 0 | AJ38: ='Trust - Frontsheet'!AC50 -> 548 | AK38: =IF(OR('Trust - Frontsheet'!AD50="",'Trust - Frontsheet'!AD50="-"),0,('Trust - Frontsheet'!AD50)) -> 2.897354015 | AL38: =IF(OR('Trust - Frontsheet'!AE50="",'Trust - Frontsheet'!AE50="-"),0,('Trust - Frontsheet'!AE50)) -> 2.664689781 | AM38: =IF(OR('Trust - Frontsheet'!AF50="",'Trust - Frontsheet'!AF50="-"),0,('Trust - Frontsheet'!AF50)) -> 0 | AN38: =IF(OR('Trust - Frontsheet'!AG50="",'Trust - Frontsheet'!AG50="-"),0,('Trust - Frontsheet'!AG50)) -> 0 | AO38: =IF(OR('Trust - Frontsheet'!AH50="",'Trust - Frontsheet'!AH50="-"),0,('Trust - Frontsheet'!AH50)) -> 0 | AP38: =IF(OR('Trust - Frontsheet'!AI50="",'Trust - Frontsheet'!AI50="-"),0,('Trust - Frontsheet'!AI50)) -> 0 | AQ38: =IF(OR('Trust - Frontsheet'!AJ50="",'Trust - Frontsheet'!AJ50="-"),0,('Trust - Frontsheet'!AJ50)) -> 5.562043796 | AR38: =IF(A38="","",(IF(ISBLANK('Trust - Frontsheet'!F9),"",'Trust - Frontsheet'!F9))) -> https://www.elft.nhs.uk/About-Us/Safer-Staffing-Levels
A39: =IF('Trust - Frontsheet'!D51=0,"",IF('Trust - Frontsheet'!D51="","",'Trust - Frontsheet'!D51)) -> RWK61 | B39: =IF(ISBLANK('Trust - Frontsheet'!E51),"",'Trust - Frontsheet'!E51) -> TOWER HAMLETS CENTRE FOR MENTAL HEALTH | C39: =IF(ISBLANK('Trust - Frontsheet'!F51),"","'" & 'Trust - Frontsheet'!F51 & "'") -> 'Leadenhall Ward' | D39: =IF(ISBLANK('Trust - Frontsheet'!G51),"",'Trust - Frontsheet'!G51) -> 715 - OLD AGE PSYCHIATRY | E39: =IF(ISBLANK('Trust - Frontsheet'!H51),"",'Trust - Frontsheet'!H51) ->  | F39: ='Trust - Frontsheet'!I51 -> 598 | G39: ='Trust - Frontsheet'!J51 -> 737 | H39: ='Trust - Frontsheet'!K51 -> 713 | I39: ='Trust - Frontsheet'!L51 -> 1144.5 | J39: ='Trust - Frontsheet'!M51 -> 0 | K39: ='Trust - Frontsheet'!N51 -> 0 | L39: ='Trust - Frontsheet'!O51 -> 0 | M39: ='Trust - Frontsheet'!P51 -> 0 | N39: ='Trust - Frontsheet'!Q51 -> 713 | O39: ='Trust - Frontsheet'!R51 -> 678.5 | P39: ='Trust - Frontsheet'!S51 -> 345 | Q39: ='Trust - Frontsheet'!T51 -> 586.5 | R39: ='Trust - Frontsheet'!U51 -> 0 | S39: ='Trust - Frontsheet'!V51 -> 0 | T39: ='Trust - Frontsheet'!W51 -> 0 | U39: ='Trust - Frontsheet'!X51 -> 0 | V39: ='Trust - Frontsheet'!Y51 -> 0 | W39: ='Trust - Frontsheet'!Z51 -> 0 | X39: ='Trust - Frontsheet'!AA51 -> 0 | Y39: ='Trust - Frontsheet'!AB51 -> 0 | Z39: =IF(OR('Trust - Frontsheet'!AK51="",'Trust - Frontsheet'!AK51="-"),0,('Trust - Frontsheet'!AK51)) -> 1.232441472 | AA39: =IF(OR('Trust - Frontsheet'!AL51="",'Trust - Frontsheet'!AL51="-"),0,('Trust - Frontsheet'!AL51)) -> 1.605189341 | AB39: =IF(OR('Trust - Frontsheet'!AM51="",'Trust - Frontsheet'!AM51="-"),0,('Trust - Frontsheet'!AM51)) -> 0 | AC39: =IF(OR('Trust - Frontsheet'!AN51="",'Trust - Frontsheet'!AN51="-"),0,('Trust - Frontsheet'!AN51)) -> 0 | AD39: =IF(OR('Trust - Frontsheet'!AO51="",'Trust - Frontsheet'!AO51="-"),0,('Trust - Frontsheet'!AO51)) -> 0.9516129032 | AE39: =IF(OR('Trust - Frontsheet'!AP51="",'Trust - Frontsheet'!AP51="-"),0,('Trust - Frontsheet'!AP51)) -> 1.7 | AF39: =IF(OR('Trust - Frontsheet'!AQ51="",'Trust - Frontsheet'!AQ51="-"),0,('Trust - Frontsheet'!AQ51)) -> 0 | AG39: =IF(OR('Trust - Frontsheet'!AR51="",'Trust - Frontsheet'!AR51="-"),0,('Trust - Frontsheet'!AR51)) -> 0 | AH39: =IF(OR('Trust - Frontsheet'!AS51="",'Trust - Frontsheet'!AS51="-"),0,('Trust - Frontsheet'!AS51)) -> 0 | AI39: =IF(OR('Trust - Frontsheet'!AT51="",'Trust - Frontsheet'!AT51="-"),0,('Trust - Frontsheet'!AT51)) -> 0 | AJ39: ='Trust - Frontsheet'!AC51 -> 549 | AK39: =IF(OR('Trust - Frontsheet'!AD51="",'Trust - Frontsheet'!AD51="-"),0,('Trust - Frontsheet'!AD51)) -> 2.578324226 | AL39: =IF(OR('Trust - Frontsheet'!AE51="",'Trust - Frontsheet'!AE51="-"),0,('Trust - Frontsheet'!AE51)) -> 3.153005464 | AM39: =IF(OR('Trust - Frontsheet'!AF51="",'Trust - Frontsheet'!AF51="-"),0,('Trust - Frontsheet'!AF51)) -> 0 | AN39: =IF(OR('Trust - Frontsheet'!AG51="",'Trust - Frontsheet'!AG51="-"),0,('Trust - Frontsheet'!AG51)) -> 0 | AO39: =IF(OR('Trust - Frontsheet'!AH51="",'Trust - Frontsheet'!AH51="-"),0,('Trust - Frontsheet'!AH51)) -> 0 | AP39: =IF(OR('Trust - Frontsheet'!AI51="",'Trust - Frontsheet'!AI51="-"),0,('Trust - Frontsheet'!AI51)) -> 0 | AQ39: =IF(OR('Trust - Frontsheet'!AJ51="",'Trust - Frontsheet'!AJ51="-"),0,('Trust - Frontsheet'!AJ51)) -> 5.73132969 | AR39: =IF(A39="","",(IF(ISBLANK('Trust - Frontsheet'!F9),"",'Trust - Frontsheet'!F9))) -> https://www.elft.nhs.uk/About-Us/Safer-Staffing-Levels
A40: =IF('Trust - Frontsheet'!D52=0,"",IF('Trust - Frontsheet'!D52="","",'Trust - Frontsheet'!D52)) -> RWK61 | B40: =IF(ISBLANK('Trust - Frontsheet'!E52),"",'Trust - Frontsheet'!E52) -> TOWER HAMLETS CENTRE FOR MENTAL HEALTH | C40: =IF(ISBLANK('Trust - Frontsheet'!F52),"","'" & 'Trust - Frontsheet'!F52 & "'") -> 'Roman Ward' | D40: =IF(ISBLANK('Trust - Frontsheet'!G52),"",'Trust - Frontsheet'!G52) -> 710 - ADULT MENTAL ILLNESS | E40: =IF(ISBLANK('Trust - Frontsheet'!H52),"",'Trust - Frontsheet'!H52) ->  | F40: ='Trust - Frontsheet'!I52 -> 713 | G40: ='Trust - Frontsheet'!J52 -> 935.9833333 | H40: ='Trust - Frontsheet'!K52 -> 644 | I40: ='Trust - Frontsheet'!L52 -> 647.5 | J40: ='Trust - Frontsheet'!M52 -> 0 | K40: ='Trust - Frontsheet'!N52 -> 0 | L40: ='Trust - Frontsheet'!O52 -> 0 | M40: ='Trust - Frontsheet'!P52 -> 0 | N40: ='Trust - Frontsheet'!Q52 -> 701.5 | O40: ='Trust - Frontsheet'!R52 -> 675.5 | P40: ='Trust - Frontsheet'!S52 -> 356.5 | Q40: ='Trust - Frontsheet'!T52 -> 438 | R40: ='Trust - Frontsheet'!U52 -> 0 | S40: ='Trust - Frontsheet'!V52 -> 0 | T40: ='Trust - Frontsheet'!W52 -> 0 | U40: ='Trust - Frontsheet'!X52 -> 0 | V40: ='Trust - Frontsheet'!Y52 -> 0 | W40: ='Trust - Frontsheet'!Z52 -> 0 | X40: ='Trust - Frontsheet'!AA52 -> 0 | Y40: ='Trust - Frontsheet'!AB52 -> 0 | Z40: =IF(OR('Trust - Frontsheet'!AK52="",'Trust - Frontsheet'!AK52="-"),0,('Trust - Frontsheet'!AK52)) -> 1.312739598 | AA40: =IF(OR('Trust - Frontsheet'!AL52="",'Trust - Frontsheet'!AL52="-"),0,('Trust - Frontsheet'!AL52)) -> 1.005434783 | AB40: =IF(OR('Trust - Frontsheet'!AM52="",'Trust - Frontsheet'!AM52="-"),0,('Trust - Frontsheet'!AM52)) -> 0 | AC40: =IF(OR('Trust - Frontsheet'!AN52="",'Trust - Frontsheet'!AN52="-"),0,('Trust - Frontsheet'!AN52)) -> 0 | AD40: =IF(OR('Trust - Frontsheet'!AO52="",'Trust - Frontsheet'!AO52="-"),0,('Trust - Frontsheet'!AO52)) -> 0.9629365645 | AE40: =IF(OR('Trust - Frontsheet'!AP52="",'Trust - Frontsheet'!AP52="-"),0,('Trust - Frontsheet'!AP52)) -> 1.228611501 | AF40: =IF(OR('Trust - Frontsheet'!AQ52="",'Trust - Frontsheet'!AQ52="-"),0,('Trust - Frontsheet'!AQ52)) -> 0 | AG40: =IF(OR('Trust - Frontsheet'!AR52="",'Trust - Frontsheet'!AR52="-"),0,('Trust - Frontsheet'!AR52)) -> 0 | AH40: =IF(OR('Trust - Frontsheet'!AS52="",'Trust - Frontsheet'!AS52="-"),0,('Trust - Frontsheet'!AS52)) -> 0 | AI40: =IF(OR('Trust - Frontsheet'!AT52="",'Trust - Frontsheet'!AT52="-"),0,('Trust - Frontsheet'!AT52)) -> 0 | AJ40: ='Trust - Frontsheet'!AC52 -> 505 | AK40: =IF(OR('Trust - Frontsheet'!AD52="",'Trust - Frontsheet'!AD52="-"),0,('Trust - Frontsheet'!AD52)) -> 3.191056106 | AL40: =IF(OR('Trust - Frontsheet'!AE52="",'Trust - Frontsheet'!AE52="-"),0,('Trust - Frontsheet'!AE52)) -> 2.14950495 | AM40: =IF(OR('Trust - Frontsheet'!AF52="",'Trust - Frontsheet'!AF52="-"),0,('Trust - Frontsheet'!AF52)) -> 0 | AN40: =IF(OR('Trust - Frontsheet'!AG52="",'Trust - Frontsheet'!AG52="-"),0,('Trust - Frontsheet'!AG52)) -> 0 | AO40: =IF(OR('Trust - Frontsheet'!AH52="",'Trust - Frontsheet'!AH52="-"),0,('Trust - Frontsheet'!AH52)) -> 0 | AP40: =IF(OR('Trust - Frontsheet'!AI52="",'Trust - Frontsheet'!AI52="-"),0,('Trust - Frontsheet'!AI52)) -> 0 | AQ40: =IF(OR('Trust - Frontsheet'!AJ52="",'Trust - Frontsheet'!AJ52="-"),0,('Trust - Frontsheet'!AJ52)) -> 5.340561056 | AR40: =IF(A40="","",(IF(ISBLANK('Trust - Frontsheet'!F9),"",'Trust - Frontsheet'!F9))) -> https://www.elft.nhs.uk/About-Us/Safer-Staffing-Levels
A41: =IF('Trust - Frontsheet'!D53=0,"",IF('Trust - Frontsheet'!D53="","",'Trust - Frontsheet'!D53)) -> RWK61 | B41: =IF(ISBLANK('Trust - Frontsheet'!E53),"",'Trust - Frontsheet'!E53) -> TOWER HAMLETS CENTRE FOR MENTAL HEALTH | C41: =IF(ISBLANK('Trust - Frontsheet'!F53),"","'" & 'Trust - Frontsheet'!F53 & "'") -> 'Rosebank Ward' | D41: =IF(ISBLANK('Trust - Frontsheet'!G53),"",'Trust - Frontsheet'!G53) -> 996 - PSYCHIATRIC INTENSIVE CARE UNIT | E41: =IF(ISBLANK('Trust - Frontsheet'!H53),"",'Trust - Frontsheet'!H53) ->  | F41: ='Trust - Frontsheet'!I53 -> 710.5 | G41: ='Trust - Frontsheet'!J53 -> 802.5 | H41: ='Trust - Frontsheet'!K53 -> 1415 | I41: ='Trust - Frontsheet'!L53 -> 1690.5 | J41: ='Trust - Frontsheet'!M53 -> 0 | K41: ='Trust - Frontsheet'!N53 -> 0 | L41: ='Trust - Frontsheet'!O53 -> 0 | M41: ='Trust - Frontsheet'!P53 -> 0 | N41: ='Trust - Frontsheet'!Q53 -> 713 | O41: ='Trust - Frontsheet'!R53 -> 678.5 | P41: ='Trust - Frontsheet'!S53 -> 1069.5 | Q41: ='Trust - Frontsheet'!T53 -> 1389.5 | R41: ='Trust - Frontsheet'!U53 -> 0 | S41: ='Trust - Frontsheet'!V53 -> 0 | T41: ='Trust - Frontsheet'!W53 -> 0 | U41: ='Trust - Frontsheet'!X53 -> 0 | V41: ='Trust - Frontsheet'!Y53 -> 0 | W41: ='Trust - Frontsheet'!Z53 -> 0 | X41: ='Trust - Frontsheet'!AA53 -> 0 | Y41: ='Trust - Frontsheet'!AB53 -> 0 | Z41: =IF(OR('Trust - Frontsheet'!AK53="",'Trust - Frontsheet'!AK53="-"),0,('Trust - Frontsheet'!AK53)) -> 1.129486277 | AA41: =IF(OR('Trust - Frontsheet'!AL53="",'Trust - Frontsheet'!AL53="-"),0,('Trust - Frontsheet'!AL53)) -> 1.194699647 | AB41: =IF(OR('Trust - Frontsheet'!AM53="",'Trust - Frontsheet'!AM53="-"),0,('Trust - Frontsheet'!AM53)) -> 0 | AC41: =IF(OR('Trust - Frontsheet'!AN53="",'Trust - Frontsheet'!AN53="-"),0,('Trust - Frontsheet'!AN53)) -> 0 | AD41: =IF(OR('Trust - Frontsheet'!AO53="",'Trust - Frontsheet'!AO53="-"),0,('Trust - Frontsheet'!AO53)) -> 0.9516129032 | AE41: =IF(OR('Trust - Frontsheet'!AP53="",'Trust - Frontsheet'!AP53="-"),0,('Trust - Frontsheet'!AP53)) -> 1.299205236 | AF41: =IF(OR('Trust - Frontsheet'!AQ53="",'Trust - Frontsheet'!AQ53="-"),0,('Trust - Frontsheet'!AQ53)) -> 0 | AG41: =IF(OR('Trust - Frontsheet'!AR53="",'Trust - Frontsheet'!AR53="-"),0,('Trust - Frontsheet'!AR53)) -> 0 | AH41: =IF(OR('Trust - Frontsheet'!AS53="",'Trust - Frontsheet'!AS53="-"),0,('Trust - Frontsheet'!AS53)) -> 0 | AI41: =IF(OR('Trust - Frontsheet'!AT53="",'Trust - Frontsheet'!AT53="-"),0,('Trust - Frontsheet'!AT53)) -> 0 | AJ41: ='Trust - Frontsheet'!AC53 -> 376 | AK41: =IF(OR('Trust - Frontsheet'!AD53="",'Trust - Frontsheet'!AD53="-"),0,('Trust - Frontsheet'!AD53)) -> 3.938829787 | AL41: =IF(OR('Trust - Frontsheet'!AE53="",'Trust - Frontsheet'!AE53="-"),0,('Trust - Frontsheet'!AE53)) -> 8.191489362 | AM41: =IF(OR('Trust - Frontsheet'!AF53="",'Trust - Frontsheet'!AF53="-"),0,('Trust - Frontsheet'!AF53)) -> 0 | AN41: =IF(OR('Trust - Frontsheet'!AG53="",'Trust - Frontsheet'!AG53="-"),0,('Trust - Frontsheet'!AG53)) -> 0 | AO41: =IF(OR('Trust - Frontsheet'!AH53="",'Trust - Frontsheet'!AH53="-"),0,('Trust - Frontsheet'!AH53)) -> 0 | AP41: =IF(OR('Trust - Frontsheet'!AI53="",'Trust - Frontsheet'!AI53="-"),0,('Trust - Frontsheet'!AI53)) -> 0 | AQ41: =IF(OR('Trust - Frontsheet'!AJ53="",'Trust - Frontsheet'!AJ53="-"),0,('Trust - Frontsheet'!AJ53)) -> 12.13031915 | AR41: =IF(A41="","",(IF(ISBLANK('Trust - Frontsheet'!F9),"",'Trust - Frontsheet'!F9))) -> https://www.elft.nhs.uk/About-Us/Safer-Staffing-Levels
A42: =IF('Trust - Frontsheet'!D54=0,"",IF('Trust - Frontsheet'!D54="","",'Trust - Frontsheet'!D54)) -> RWK61 | B42: =IF(ISBLANK('Trust - Frontsheet'!E54),"",'Trust - Frontsheet'!E54) -> TOWER HAMLETS CENTRE FOR MENTAL HEALTH | C42: =IF(ISBLANK('Trust - Frontsheet'!F54),"","'" & 'Trust - Frontsheet'!F54 & "'") -> 'Thames Hse' | D42: =IF(ISBLANK('Trust - Frontsheet'!G54),"",'Trust - Frontsheet'!G54) -> 715 - OLD AGE PSYCHIATRY | E42: =IF(ISBLANK('Trust - Frontsheet'!H54),"",'Trust - Frontsheet'!H54) ->  | F42: ='Trust - Frontsheet'!I54 -> 712 | G42: ='Trust - Frontsheet'!J54 -> 990 | H42: ='Trust - Frontsheet'!K54 -> 695 | I42: ='Trust - Frontsheet'!L54 -> 1134 | J42: ='Trust - Frontsheet'!M54 -> 0 | K42: ='Trust - Frontsheet'!N54 -> 0 | L42: ='Trust - Frontsheet'!O54 -> 0 | M42: ='Trust - Frontsheet'!P54 -> 0 | N42: ='Trust - Frontsheet'!Q54 -> 713 | O42: ='Trust - Frontsheet'!R54 -> 736 | P42: ='Trust - Frontsheet'!S54 -> 356.5 | Q42: ='Trust - Frontsheet'!T54 -> 690 | R42: ='Trust - Frontsheet'!U54 -> 0 | S42: ='Trust - Frontsheet'!V54 -> 0 | T42: ='Trust - Frontsheet'!W54 -> 0 | U42: ='Trust - Frontsheet'!X54 -> 0 | V42: ='Trust - Frontsheet'!Y54 -> 0 | W42: ='Trust - Frontsheet'!Z54 -> 0 | X42: ='Trust - Frontsheet'!AA54 -> 0 | Y42: ='Trust - Frontsheet'!AB54 -> 0 | Z42: =IF(OR('Trust - Frontsheet'!AK54="",'Trust - Frontsheet'!AK54="-"),0,('Trust - Frontsheet'!AK54)) -> 1.390449438 | AA42: =IF(OR('Trust - Frontsheet'!AL54="",'Trust - Frontsheet'!AL54="-"),0,('Trust - Frontsheet'!AL54)) -> 1.631654676 | AB42: =IF(OR('Trust - Frontsheet'!AM54="",'Trust - Frontsheet'!AM54="-"),0,('Trust - Frontsheet'!AM54)) -> 0 | AC42: =IF(OR('Trust - Frontsheet'!AN54="",'Trust - Frontsheet'!AN54="-"),0,('Trust - Frontsheet'!AN54)) -> 0 | AD42: =IF(OR('Trust - Frontsheet'!AO54="",'Trust - Frontsheet'!AO54="-"),0,('Trust - Frontsheet'!AO54)) -> 1.032258065 | AE42: =IF(OR('Trust - Frontsheet'!AP54="",'Trust - Frontsheet'!AP54="-"),0,('Trust - Frontsheet'!AP54)) -> 1.935483871 | AF42: =IF(OR('Trust - Frontsheet'!AQ54="",'Trust - Frontsheet'!AQ54="-"),0,('Trust - Frontsheet'!AQ54)) -> 0 | AG42: =IF(OR('Trust - Frontsheet'!AR54="",'Trust - Frontsheet'!AR54="-"),0,('Trust - Frontsheet'!AR54)) -> 0 | AH42: =IF(OR('Trust - Frontsheet'!AS54="",'Trust - Frontsheet'!AS54="-"),0,('Trust - Frontsheet'!AS54)) -> 0 | AI42: =IF(OR('Trust - Frontsheet'!AT54="",'Trust - Frontsheet'!AT54="-"),0,('Trust - Frontsheet'!AT54)) -> 0 | AJ42: ='Trust - Frontsheet'!AC54 -> 486 | AK42: =IF(OR('Trust - Frontsheet'!AD54="",'Trust - Frontsheet'!AD54="-"),0,('Trust - Frontsheet'!AD54)) -> 3.551440329 | AL42: =IF(OR('Trust - Frontsheet'!AE54="",'Trust - Frontsheet'!AE54="-"),0,('Trust - Frontsheet'!AE54)) -> 3.75308642 | AM42: =IF(OR('Trust - Frontsheet'!AF54="",'Trust - Frontsheet'!AF54="-"),0,('Trust - Frontsheet'!AF54)) -> 0 | AN42: =IF(OR('Trust - Frontsheet'!AG54="",'Trust - Frontsheet'!AG54="-"),0,('Trust - Frontsheet'!AG54)) -> 0 | AO42: =IF(OR('Trust - Frontsheet'!AH54="",'Trust - Frontsheet'!AH54="-"),0,('Trust - Frontsheet'!AH54)) -> 0 | AP42: =IF(OR('Trust - Frontsheet'!AI54="",'Trust - Frontsheet'!AI54="-"),0,('Trust - Frontsheet'!AI54)) -> 0 | AQ42: =IF(OR('Trust - Frontsheet'!AJ54="",'Trust - Frontsheet'!AJ54="-"),0,('Trust - Frontsheet'!AJ54)) -> 7.304526749 | AR42: =IF(A42="","",(IF(ISBLANK('Trust - Frontsheet'!F9),"",'Trust - Frontsheet'!F9))) -> https://www.elft.nhs.uk/About-Us/Safer-Staffing-Levels
A43: =IF('Trust - Frontsheet'!D55=0,"",IF('Trust - Frontsheet'!D55="","",'Trust - Frontsheet'!D55)) -> RWK46 | B43: =IF(ISBLANK('Trust - Frontsheet'!E55),"",'Trust - Frontsheet'!E55) -> NEWHAM CENTRE FOR MENTAL HEALTH | C43: =IF(ISBLANK('Trust - Frontsheet'!F55),"","'" & 'Trust - Frontsheet'!F55 & "'") -> 'Emerald Ward' | D43: =IF(ISBLANK('Trust - Frontsheet'!G55),"",'Trust - Frontsheet'!G55) -> 710 - ADULT MENTAL ILLNESS | E43: =IF(ISBLANK('Trust - Frontsheet'!H55),"",'Trust - Frontsheet'!H55) ->  | F43: ='Trust - Frontsheet'!I55 -> 695.5 | G43: ='Trust - Frontsheet'!J55 -> 788 | H43: ='Trust - Frontsheet'!K55 -> 714 | I43: ='Trust - Frontsheet'!L55 -> 697.5 | J43: ='Trust - Frontsheet'!M55 -> 0 | K43: ='Trust - Frontsheet'!N55 -> 0 | L43: ='Trust - Frontsheet'!O55 -> 0 | M43: ='Trust - Frontsheet'!P55 -> 0 | N43: ='Trust - Frontsheet'!Q55 -> 713 | O43: ='Trust - Frontsheet'!R55 -> 713 | P43: ='Trust - Frontsheet'!S55 -> 356.5 | Q43: ='Trust - Frontsheet'!T55 -> 356.5 | R43: ='Trust - Frontsheet'!U55 -> 0 | S43: ='Trust - Frontsheet'!V55 -> 0 | T43: ='Trust - Frontsheet'!W55 -> 0 | U43: ='Trust - Frontsheet'!X55 -> 0 | V43: ='Trust - Frontsheet'!Y55 -> 0 | W43: ='Trust - Frontsheet'!Z55 -> 0 | X43: ='Trust - Frontsheet'!AA55 -> 0 | Y43: ='Trust - Frontsheet'!AB55 -> 0 | Z43: =IF(OR('Trust - Frontsheet'!AK55="",'Trust - Frontsheet'!AK55="-"),0,('Trust - Frontsheet'!AK55)) -> 1.132997843 | AA43: =IF(OR('Trust - Frontsheet'!AL55="",'Trust - Frontsheet'!AL55="-"),0,('Trust - Frontsheet'!AL55)) -> 0.9768907563 | AB43: =IF(OR('Trust - Frontsheet'!AM55="",'Trust - Frontsheet'!AM55="-"),0,('Trust - Frontsheet'!AM55)) -> 0 | AC43: =IF(OR('Trust - Frontsheet'!AN55="",'Trust - Frontsheet'!AN55="-"),0,('Trust - Frontsheet'!AN55)) -> 0 | AD43: =IF(OR('Trust - Frontsheet'!AO55="",'Trust - Frontsheet'!AO55="-"),0,('Trust - Frontsheet'!AO55)) -> 1 | AE43: =IF(OR('Trust - Frontsheet'!AP55="",'Trust - Frontsheet'!AP55="-"),0,('Trust - Frontsheet'!AP55)) -> 1 | AF43: =IF(OR('Trust - Frontsheet'!AQ55="",'Trust - Frontsheet'!AQ55="-"),0,('Trust - Frontsheet'!AQ55)) -> 0 | AG43: =IF(OR('Trust - Frontsheet'!AR55="",'Trust - Frontsheet'!AR55="-"),0,('Trust - Frontsheet'!AR55)) -> 0 | AH43: =IF(OR('Trust - Frontsheet'!AS55="",'Trust - Frontsheet'!AS55="-"),0,('Trust - Frontsheet'!AS55)) -> 0 | AI43: =IF(OR('Trust - Frontsheet'!AT55="",'Trust - Frontsheet'!AT55="-"),0,('Trust - Frontsheet'!AT55)) -> 0 | AJ43: ='Trust - Frontsheet'!AC55 -> 479 | AK43: =IF(OR('Trust - Frontsheet'!AD55="",'Trust - Frontsheet'!AD55="-"),0,('Trust - Frontsheet'!AD55)) -> 3.133611691 | AL43: =IF(OR('Trust - Frontsheet'!AE55="",'Trust - Frontsheet'!AE55="-"),0,('Trust - Frontsheet'!AE55)) -> 2.200417537 | AM43: =IF(OR('Trust - Frontsheet'!AF55="",'Trust - Frontsheet'!AF55="-"),0,('Trust - Frontsheet'!AF55)) -> 0 | AN43: =IF(OR('Trust - Frontsheet'!AG55="",'Trust - Frontsheet'!AG55="-"),0,('Trust - Frontsheet'!AG55)) -> 0 | AO43: =IF(OR('Trust - Frontsheet'!AH55="",'Trust - Frontsheet'!AH55="-"),0,('Trust - Frontsheet'!AH55)) -> 0 | AP43: =IF(OR('Trust - Frontsheet'!AI55="",'Trust - Frontsheet'!AI55="-"),0,('Trust - Frontsheet'!AI55)) -> 0 | AQ43: =IF(OR('Trust - Frontsheet'!AJ55="",'Trust - Frontsheet'!AJ55="-"),0,('Trust - Frontsheet'!AJ55)) -> 5.334029228 | AR43: =IF(A43="","",(IF(ISBLANK('Trust - Frontsheet'!F9),"",'Trust - Frontsheet'!F9))) -> https://www.elft.nhs.uk/About-Us/Safer-Staffing-Levels
A44: =IF('Trust - Frontsheet'!D56=0,"",IF('Trust - Frontsheet'!D56="","",'Trust - Frontsheet'!D56)) -> RWK46 | B44: =IF(ISBLANK('Trust - Frontsheet'!E56),"",'Trust - Frontsheet'!E56) -> NEWHAM CENTRE FOR MENTAL HEALTH | C44: =IF(ISBLANK('Trust - Frontsheet'!F56),"","'" & 'Trust - Frontsheet'!F56 & "'") -> 'LONDON Crystal' | D44: =IF(ISBLANK('Trust - Frontsheet'!G56),"",'Trust - Frontsheet'!G56) -> 996 - PSYCHIATRIC INTENSIVE CARE UNIT | E44: =IF(ISBLANK('Trust - Frontsheet'!H56),"",'Trust - Frontsheet'!H56) ->  | F44: ='Trust - Frontsheet'!I56 -> 677.5 | G44: ='Trust - Frontsheet'!J56 -> 932.75 | H44: ='Trust - Frontsheet'!K56 -> 1055.5 | I44: ='Trust - Frontsheet'!L56 -> 1069.5 | J44: ='Trust - Frontsheet'!M56 -> 0 | K44: ='Trust - Frontsheet'!N56 -> 0 | L44: ='Trust - Frontsheet'!O56 -> 0 | M44: ='Trust - Frontsheet'!P56 -> 0 | N44: ='Trust - Frontsheet'!Q56 -> 678.5 | O44: ='Trust - Frontsheet'!R56 -> 713 | P44: ='Trust - Frontsheet'!S56 -> 701.5 | Q44: ='Trust - Frontsheet'!T56 -> 1092.5 | R44: ='Trust - Frontsheet'!U56 -> 0 | S44: ='Trust - Frontsheet'!V56 -> 0 | T44: ='Trust - Frontsheet'!W56 -> 0 | U44: ='Trust - Frontsheet'!X56 -> 0 | V44: ='Trust - Frontsheet'!Y56 -> 0 | W44: ='Trust - Frontsheet'!Z56 -> 0 | X44: ='Trust - Frontsheet'!AA56 -> 0 | Y44: ='Trust - Frontsheet'!AB56 -> 0 | Z44: =IF(OR('Trust - Frontsheet'!AK56="",'Trust - Frontsheet'!AK56="-"),0,('Trust - Frontsheet'!AK56)) -> 1.376752768 | AA44: =IF(OR('Trust - Frontsheet'!AL56="",'Trust - Frontsheet'!AL56="-"),0,('Trust - Frontsheet'!AL56)) -> 1.013263856 | AB44: =IF(OR('Trust - Frontsheet'!AM56="",'Trust - Frontsheet'!AM56="-"),0,('Trust - Frontsheet'!AM56)) -> 0 | AC44: =IF(OR('Trust - Frontsheet'!AN56="",'Trust - Frontsheet'!AN56="-"),0,('Trust - Frontsheet'!AN56)) -> 0 | AD44: =IF(OR('Trust - Frontsheet'!AO56="",'Trust - Frontsheet'!AO56="-"),0,('Trust - Frontsheet'!AO56)) -> 1.050847458 | AE44: =IF(OR('Trust - Frontsheet'!AP56="",'Trust - Frontsheet'!AP56="-"),0,('Trust - Frontsheet'!AP56)) -> 1.557377049 | AF44: =IF(OR('Trust - Frontsheet'!AQ56="",'Trust - Frontsheet'!AQ56="-"),0,('Trust - Frontsheet'!AQ56)) -> 0 | AG44: =IF(OR('Trust - Frontsheet'!AR56="",'Trust - Frontsheet'!AR56="-"),0,('Trust - Frontsheet'!AR56)) -> 0 | AH44: =IF(OR('Trust - Frontsheet'!AS56="",'Trust - Frontsheet'!AS56="-"),0,('Trust - Frontsheet'!AS56)) -> 0 | AI44: =IF(OR('Trust - Frontsheet'!AT56="",'Trust - Frontsheet'!AT56="-"),0,('Trust - Frontsheet'!AT56)) -> 0 | AJ44: ='Trust - Frontsheet'!AC56 -> 277 | AK44: =IF(OR('Trust - Frontsheet'!AD56="",'Trust - Frontsheet'!AD56="-"),0,('Trust - Frontsheet'!AD56)) -> 5.94133574 | AL44: =IF(OR('Trust - Frontsheet'!AE56="",'Trust - Frontsheet'!AE56="-"),0,('Trust - Frontsheet'!AE56)) -> 7.805054152 | AM44: =IF(OR('Trust - Frontsheet'!AF56="",'Trust - Frontsheet'!AF56="-"),0,('Trust - Frontsheet'!AF56)) -> 0 | AN44: =IF(OR('Trust - Frontsheet'!AG56="",'Trust - Frontsheet'!AG56="-"),0,('Trust - Frontsheet'!AG56)) -> 0 | AO44: =IF(OR('Trust - Frontsheet'!AH56="",'Trust - Frontsheet'!AH56="-"),0,('Trust - Frontsheet'!AH56)) -> 0 | AP44: =IF(OR('Trust - Frontsheet'!AI56="",'Trust - Frontsheet'!AI56="-"),0,('Trust - Frontsheet'!AI56)) -> 0 | AQ44: =IF(OR('Trust - Frontsheet'!AJ56="",'Trust - Frontsheet'!AJ56="-"),0,('Trust - Frontsheet'!AJ56)) -> 13.74638989 | AR44: =IF(A44="","",(IF(ISBLANK('Trust - Frontsheet'!F9),"",'Trust - Frontsheet'!F9))) -> https://www.elft.nhs.uk/About-Us/Safer-Staffing-Levels
A45: =IF('Trust - Frontsheet'!D57=0,"",IF('Trust - Frontsheet'!D57="","",'Trust - Frontsheet'!D57)) -> RWK46 | B45: =IF(ISBLANK('Trust - Frontsheet'!E57),"",'Trust - Frontsheet'!E57) -> NEWHAM CENTRE FOR MENTAL HEALTH | C45: =IF(ISBLANK('Trust - Frontsheet'!F57),"","'" & 'Trust - Frontsheet'!F57 & "'") -> ' NEW Ivory' | D45: =IF(ISBLANK('Trust - Frontsheet'!G57),"",'Trust - Frontsheet'!G57) -> 710 - ADULT MENTAL ILLNESS | E45: =IF(ISBLANK('Trust - Frontsheet'!H57),"",'Trust - Frontsheet'!H57) ->  | F45: ='Trust - Frontsheet'!I57 -> 713 | G45: ='Trust - Frontsheet'!J57 -> 1041 | H45: ='Trust - Frontsheet'!K57 -> 701.5 | I45: ='Trust - Frontsheet'!L57 -> 1128 | J45: ='Trust - Frontsheet'!M57 -> 0 | K45: ='Trust - Frontsheet'!N57 -> 0 | L45: ='Trust - Frontsheet'!O57 -> 0 | M45: ='Trust - Frontsheet'!P57 -> 0 | N45: ='Trust - Frontsheet'!Q57 -> 713 | O45: ='Trust - Frontsheet'!R57 -> 827.5 | P45: ='Trust - Frontsheet'!S57 -> 356.5 | Q45: ='Trust - Frontsheet'!T57 -> 747.5 | R45: ='Trust - Frontsheet'!U57 -> 0 | S45: ='Trust - Frontsheet'!V57 -> 0 | T45: ='Trust - Frontsheet'!W57 -> 0 | U45: ='Trust - Frontsheet'!X57 -> 0 | V45: ='Trust - Frontsheet'!Y57 -> 0 | W45: ='Trust - Frontsheet'!Z57 -> 0 | X45: ='Trust - Frontsheet'!AA57 -> 0 | Y45: ='Trust - Frontsheet'!AB57 -> 0 | Z45: =IF(OR('Trust - Frontsheet'!AK57="",'Trust - Frontsheet'!AK57="-"),0,('Trust - Frontsheet'!AK57)) -> 1.46002805 | AA45: =IF(OR('Trust - Frontsheet'!AL57="",'Trust - Frontsheet'!AL57="-"),0,('Trust - Frontsheet'!AL57)) -> 1.607982894 | AB45: =IF(OR('Trust - Frontsheet'!AM57="",'Trust - Frontsheet'!AM57="-"),0,('Trust - Frontsheet'!AM57)) -> 0 | AC45: =IF(OR('Trust - Frontsheet'!AN57="",'Trust - Frontsheet'!AN57="-"),0,('Trust - Frontsheet'!AN57)) -> 0 | AD45: =IF(OR('Trust - Frontsheet'!AO57="",'Trust - Frontsheet'!AO57="-"),0,('Trust - Frontsheet'!AO57)) -> 1.16058906 | AE45: =IF(OR('Trust - Frontsheet'!AP57="",'Trust - Frontsheet'!AP57="-"),0,('Trust - Frontsheet'!AP57)) -> 2.096774194 | AF45: =IF(OR('Trust - Frontsheet'!AQ57="",'Trust - Frontsheet'!AQ57="-"),0,('Trust - Frontsheet'!AQ57)) -> 0 | AG45: =IF(OR('Trust - Frontsheet'!AR57="",'Trust - Frontsheet'!AR57="-"),0,('Trust - Frontsheet'!AR57)) -> 0 | AH45: =IF(OR('Trust - Frontsheet'!AS57="",'Trust - Frontsheet'!AS57="-"),0,('Trust - Frontsheet'!AS57)) -> 0 | AI45: =IF(OR('Trust - Frontsheet'!AT57="",'Trust - Frontsheet'!AT57="-"),0,('Trust - Frontsheet'!AT57)) -> 0 | AJ45: ='Trust - Frontsheet'!AC57 -> 353 | AK45: =IF(OR('Trust - Frontsheet'!AD57="",'Trust - Frontsheet'!AD57="-"),0,('Trust - Frontsheet'!AD57)) -> 5.293201133 | AL45: =IF(OR('Trust - Frontsheet'!AE57="",'Trust - Frontsheet'!AE57="-"),0,('Trust - Frontsheet'!AE57)) -> 5.313031161 | AM45: =IF(OR('Trust - Frontsheet'!AF57="",'Trust - Frontsheet'!AF57="-"),0,('Trust - Frontsheet'!AF57)) -> 0 | AN45: =IF(OR('Trust - Frontsheet'!AG57="",'Trust - Frontsheet'!AG57="-"),0,('Trust - Frontsheet'!AG57)) -> 0 | AO45: =IF(OR('Trust - Frontsheet'!AH57="",'Trust - Frontsheet'!AH57="-"),0,('Trust - Frontsheet'!AH57)) -> 0 | AP45: =IF(OR('Trust - Frontsheet'!AI57="",'Trust - Frontsheet'!AI57="-"),0,('Trust - Frontsheet'!AI57)) -> 0 | AQ45: =IF(OR('Trust - Frontsheet'!AJ57="",'Trust - Frontsheet'!AJ57="-"),0,('Trust - Frontsheet'!AJ57)) -> 10.60623229 | AR45: =IF(A45="","",(IF(ISBLANK('Trust - Frontsheet'!F9),"",'Trust - Frontsheet'!F9))) -> https://www.elft.nhs.uk/About-Us/Safer-Staffing-Levels
A46: =IF('Trust - Frontsheet'!D58=0,"",IF('Trust - Frontsheet'!D58="","",'Trust - Frontsheet'!D58)) -> RWK46 | B46: =IF(ISBLANK('Trust - Frontsheet'!E58),"",'Trust - Frontsheet'!E58) -> NEWHAM CENTRE FOR MENTAL HEALTH | C46: =IF(ISBLANK('Trust - Frontsheet'!F58),"","'" & 'Trust - Frontsheet'!F58 & "'") -> 'Opal Ward' | D46: =IF(ISBLANK('Trust - Frontsheet'!G58),"",'Trust - Frontsheet'!G58) -> 710 - ADULT MENTAL ILLNESS | E46: =IF(ISBLANK('Trust - Frontsheet'!H58),"",'Trust - Frontsheet'!H58) ->  | F46: ='Trust - Frontsheet'!I58 -> 164.5 | G46: ='Trust - Frontsheet'!J58 -> 986.75 | H46: ='Trust - Frontsheet'!K58 -> 1069 | I46: ='Trust - Frontsheet'!L58 -> 1028 | J46: ='Trust - Frontsheet'!M58 -> 0 | K46: ='Trust - Frontsheet'!N58 -> 0 | L46: ='Trust - Frontsheet'!O58 -> 0 | M46: ='Trust - Frontsheet'!P58 -> 0 | N46: ='Trust - Frontsheet'!Q58 -> 707.5 | O46: ='Trust - Frontsheet'!R58 -> 697 | P46: ='Trust - Frontsheet'!S58 -> 356.5 | Q46: ='Trust - Frontsheet'!T58 -> 379.5 | R46: ='Trust - Frontsheet'!U58 -> 0 | S46: ='Trust - Frontsheet'!V58 -> 0 | T46: ='Trust - Frontsheet'!W58 -> 0 | U46: ='Trust - Frontsheet'!X58 -> 0 | V46: ='Trust - Frontsheet'!Y58 -> 0 | W46: ='Trust - Frontsheet'!Z58 -> 0 | X46: ='Trust - Frontsheet'!AA58 -> 0 | Y46: ='Trust - Frontsheet'!AB58 -> 0 | Z46: =IF(OR('Trust - Frontsheet'!AK58="",'Trust - Frontsheet'!AK58="-"),0,('Trust - Frontsheet'!AK58)) -> 5.998480243 | AA46: =IF(OR('Trust - Frontsheet'!AL58="",'Trust - Frontsheet'!AL58="-"),0,('Trust - Frontsheet'!AL58)) -> 0.9616463985 | AB46: =IF(OR('Trust - Frontsheet'!AM58="",'Trust - Frontsheet'!AM58="-"),0,('Trust - Frontsheet'!AM58)) -> 0 | AC46: =IF(OR('Trust - Frontsheet'!AN58="",'Trust - Frontsheet'!AN58="-"),0,('Trust - Frontsheet'!AN58)) -> 0 | AD46: =IF(OR('Trust - Frontsheet'!AO58="",'Trust - Frontsheet'!AO58="-"),0,('Trust - Frontsheet'!AO58)) -> 0.9851590106 | AE46: =IF(OR('Trust - Frontsheet'!AP58="",'Trust - Frontsheet'!AP58="-"),0,('Trust - Frontsheet'!AP58)) -> 1.064516129 | AF46: =IF(OR('Trust - Frontsheet'!AQ58="",'Trust - Frontsheet'!AQ58="-"),0,('Trust - Frontsheet'!AQ58)) -> 0 | AG46: =IF(OR('Trust - Frontsheet'!AR58="",'Trust - Frontsheet'!AR58="-"),0,('Trust - Frontsheet'!AR58)) -> 0 | AH46: =IF(OR('Trust - Frontsheet'!AS58="",'Trust - Frontsheet'!AS58="-"),0,('Trust - Frontsheet'!AS58)) -> 0 | AI46: =IF(OR('Trust - Frontsheet'!AT58="",'Trust - Frontsheet'!AT58="-"),0,('Trust - Frontsheet'!AT58)) -> 0 | AJ46: ='Trust - Frontsheet'!AC58 -> 536 | AK46: =IF(OR('Trust - Frontsheet'!AD58="",'Trust - Frontsheet'!AD58="-"),0,('Trust - Frontsheet'!AD58)) -> 3.141324627 | AL46: =IF(OR('Trust - Frontsheet'!AE58="",'Trust - Frontsheet'!AE58="-"),0,('Trust - Frontsheet'!AE58)) -> 2.625932836 | AM46: =IF(OR('Trust - Frontsheet'!AF58="",'Trust - Frontsheet'!AF58="-"),0,('Trust - Frontsheet'!AF58)) -> 0 | AN46: =IF(OR('Trust - Frontsheet'!AG58="",'Trust - Frontsheet'!AG58="-"),0,('Trust - Frontsheet'!AG58)) -> 0 | AO46: =IF(OR('Trust - Frontsheet'!AH58="",'Trust - Frontsheet'!AH58="-"),0,('Trust - Frontsheet'!AH58)) -> 0 | AP46: =IF(OR('Trust - Frontsheet'!AI58="",'Trust - Frontsheet'!AI58="-"),0,('Trust - Frontsheet'!AI58)) -> 0 | AQ46: =IF(OR('Trust - Frontsheet'!AJ58="",'Trust - Frontsheet'!AJ58="-"),0,('Trust - Frontsheet'!AJ58)) -> 5.767257463 | AR46: =IF(A46="","",(IF(ISBLANK('Trust - Frontsheet'!F9),"",'Trust - Frontsheet'!F9))) -> https://www.elft.nhs.uk/About-Us/Safer-Staffing-Levels
A47: =IF('Trust - Frontsheet'!D59=0,"",IF('Trust - Frontsheet'!D59="","",'Trust - Frontsheet'!D59)) -> RWK46 | B47: =IF(ISBLANK('Trust - Frontsheet'!E59),"",'Trust - Frontsheet'!E59) -> NEWHAM CENTRE FOR MENTAL HEALTH | C47: =IF(ISBLANK('Trust - Frontsheet'!F59),"","'" & 'Trust - Frontsheet'!F59 & "'") -> 'Ruby Triage Ward' | D47: =IF(ISBLANK('Trust - Frontsheet'!G59),"",'Trust - Frontsheet'!G59) -> 710 - ADULT MENTAL ILLNESS | E47: =IF(ISBLANK('Trust - Frontsheet'!H59),"",'Trust - Frontsheet'!H59) ->  | F47: ='Trust - Frontsheet'!I59 -> 859.5 | G47: ='Trust - Frontsheet'!J59 -> 1154.75 | H47: ='Trust - Frontsheet'!K59 -> 685.5 | I47: ='Trust - Frontsheet'!L59 -> 943.5 | J47: ='Trust - Frontsheet'!M59 -> 0 | K47: ='Trust - Frontsheet'!N59 -> 0 | L47: ='Trust - Frontsheet'!O59 -> 0 | M47: ='Trust - Frontsheet'!P59 -> 0 | N47: ='Trust - Frontsheet'!Q59 -> 690 | O47: ='Trust - Frontsheet'!R59 -> 690 | P47: ='Trust - Frontsheet'!S59 -> 713 | Q47: ='Trust - Frontsheet'!T59 -> 759 | R47: ='Trust - Frontsheet'!U59 -> 0 | S47: ='Trust - Frontsheet'!V59 -> 0 | T47: ='Trust - Frontsheet'!W59 -> 0 | U47: ='Trust - Frontsheet'!X59 -> 0 | V47: ='Trust - Frontsheet'!Y59 -> 0 | W47: ='Trust - Frontsheet'!Z59 -> 0 | X47: ='Trust - Frontsheet'!AA59 -> 0 | Y47: ='Trust - Frontsheet'!AB59 -> 0 | Z47: =IF(OR('Trust - Frontsheet'!AK59="",'Trust - Frontsheet'!AK59="-"),0,('Trust - Frontsheet'!AK59)) -> 1.343513671 | AA47: =IF(OR('Trust - Frontsheet'!AL59="",'Trust - Frontsheet'!AL59="-"),0,('Trust - Frontsheet'!AL59)) -> 1.376367615 | AB47: =IF(OR('Trust - Frontsheet'!AM59="",'Trust - Frontsheet'!AM59="-"),0,('Trust - Frontsheet'!AM59)) -> 0 | AC47: =IF(OR('Trust - Frontsheet'!AN59="",'Trust - Frontsheet'!AN59="-"),0,('Trust - Frontsheet'!AN59)) -> 0 | AD47: =IF(OR('Trust - Frontsheet'!AO59="",'Trust - Frontsheet'!AO59="-"),0,('Trust - Frontsheet'!AO59)) -> 1 | AE47: =IF(OR('Trust - Frontsheet'!AP59="",'Trust - Frontsheet'!AP59="-"),0,('Trust - Frontsheet'!AP59)) -> 1.064516129 | AF47: =IF(OR('Trust - Frontsheet'!AQ59="",'Trust - Frontsheet'!AQ59="-"),0,('Trust - Frontsheet'!AQ59)) -> 0 | AG47: =IF(OR('Trust - Frontsheet'!AR59="",'Trust - Frontsheet'!AR59="-"),0,('Trust - Frontsheet'!AR59)) -> 0 | AH47: =IF(OR('Trust - Frontsheet'!AS59="",'Trust - Frontsheet'!AS59="-"),0,('Trust - Frontsheet'!AS59)) -> 0 | AI47: =IF(OR('Trust - Frontsheet'!AT59="",'Trust - Frontsheet'!AT59="-"),0,('Trust - Frontsheet'!AT59)) -> 0 | AJ47: ='Trust - Frontsheet'!AC59 -> 428 | AK47: =IF(OR('Trust - Frontsheet'!AD59="",'Trust - Frontsheet'!AD59="-"),0,('Trust - Frontsheet'!AD59)) -> 4.310163551 | AL47: =IF(OR('Trust - Frontsheet'!AE59="",'Trust - Frontsheet'!AE59="-"),0,('Trust - Frontsheet'!AE59)) -> 3.977803738 | AM47: =IF(OR('Trust - Frontsheet'!AF59="",'Trust - Frontsheet'!AF59="-"),0,('Trust - Frontsheet'!AF59)) -> 0 | AN47: =IF(OR('Trust - Frontsheet'!AG59="",'Trust - Frontsheet'!AG59="-"),0,('Trust - Frontsheet'!AG59)) -> 0 | AO47: =IF(OR('Trust - Frontsheet'!AH59="",'Trust - Frontsheet'!AH59="-"),0,('Trust - Frontsheet'!AH59)) -> 0 | AP47: =IF(OR('Trust - Frontsheet'!AI59="",'Trust - Frontsheet'!AI59="-"),0,('Trust - Frontsheet'!AI59)) -> 0 | AQ47: =IF(OR('Trust - Frontsheet'!AJ59="",'Trust - Frontsheet'!AJ59="-"),0,('Trust - Frontsheet'!AJ59)) -> 8.28796729 | AR47: =IF(A47="","",(IF(ISBLANK('Trust - Frontsheet'!F9),"",'Trust - Frontsheet'!F9))) -> https://www.elft.nhs.uk/About-Us/Safer-Staffing-Levels
